Workbook

Sheet INTRO
A3: This is the main workbook for Republic Services' General Rate Case submission to the Washington Utilities & Transporation Commission
A5: The subject company of this filing is : | B5: 4176 - Kent Meridian Disposal (G-12, Tariff # 26)
A7: This file will need to be submitted through the WUTC eFile web portal is it's size before adding 'filing/division/test period specific' tabs is too large for email.
A8: This file is to be completed seperately from the Payroll model in order to keep the pay data confidential. Once both models are complete, this model
A9: will be transferred to a protected folder with the Payroll model which will then be moved into this model right after the "PF Adj" tab.
A11: Tab Color Legend
A12: Auditor Narrative & Internal Instructions
A13: SQL Source Data | C13: *Print Margin for All SQL Tabs are set to first 100 pages to avoid extremely large accidental print jobs
A14: Reference Tables
A15: Cost of Service
A16: Oracle Essbase Data Extraction from Lawson
A18: Note to auditor: Detailed SQL data is available upon request. We summarize some of the SQL data reports within this model as the filesize of full
A19: reports with every transaction is often 15+ MB and discusstions with WUTC staff has concluded that summarizing when possible is the best option.
A21: Table of Contents | B21: Tab # | C21: Formula Driven / Hardcode / HC with Formulas / Written | D21: Source of Hardcode (if any)
A22: G Cert Financial | B22: 2 | C22: Formulas
A23: RS Cap Structure | B23: 3 | C23: Hardcode | D23: Annual Reports
A24: Combined LG | B24: 4 | C24: Formulas
A25: MSW | B25: 5 | C25: Formulas
A26: RCY | B26: 6 | C26: Formulas
A27: YW | B27: 7 | C27: Formulas
A28: MF RCY | B28: 8 | C28: Formulas
A29: Alloc Summary | B29: 9 | C29: Formulas
A30: Proforma | B30: 10 | C30: Formulas
A31: PR Restate | B31: 11 | C31: Formulas
A32: PF Adj | B32: 12 | C32: Formulas
A33: PR Narrative | B33: 13 | C33: Written
A34: Summary & PF | B34: 14 | C34: Formulas
A35: PR vs. GL | B35: 15 | C35: Formulas
A36: Summary Calc & Lookup | B36: 16 | C36: Formulas & Hardcode ee Data | D36: Payroll employee reports
A37: PR Instructions | B37: 17 | C37: Written
A38: Summary PR Data | B38: 18 | C38: Hardcode | D38: PR295 from Lawson
A39: Lookup Data | B39: 19 | C39: Hardcode Tables
A40: Union Wage & Pension | B40: 20 | C40: Hardcode | D40: Union Contracts
A41: H&W | B41: 21 | C41: Hardcode | D41: Union Contracts
A42: L&I | B42: 22 | C42: Hardcode | D42: WA Dept. of Labor & Industries
A43: Rev Narrative & Instructions | B43: 23 | C43: Written
A44: Revenue Lookup | B44: 24 | C44: Formulas
A45: SQL Revenue Analysis | B45: 25 | C45: Hardcode with Formulas | D45: SQL Extract from Infopro
A46: Rev Ref Tables | B46: 26 | C46: Hardcode Tables | D46: Lookup info for Infopro
A47: Price Out Summ | B47: 27 | C47: Formulas
A48: Residential Price Out | B48: 28 | C48: Formulas and Hardcode Rate Data | D48: Tariff Pages
A49: Commercial (+MF) Price Out | B49: 29 | C49: Formulas and Hardcode Rate Data | D49: Tariff Pages
A50: Commercial Lift Instructions | B50: 30 | C50: Written
A51: Commercial Lifts | B51: 31 | C51: Hardcode with Formulas | D51: SQL Extract from Infopro
A52: IND (+MF) Price Out | B52: 32 | C52: Formulas and Hardcode Rate Data | D52: Tariff Pages
A53: Truck Hrs Sum | B53: 33 | C53: Formulas
A54: RESI WUTC Hrs | B54: 34 | C54: Formulas with Hardcode | D54: See "Route Detail Residential"
A55: RES Rt Hr Instructions | B55: EXTERNAL | C55: Written
A56: RES Pivot | B56: EXTERNAL | C56: Formulas - Pivot
A57: RES Route Detail | B57: EXTERNAL | C57: Hardcode with Formulas | D57: SQL Extract from Infopro
A58: Sample Routes | B58: EXTERNAL | C58: Formulas
A59: COM WUTC Hrs | B59: 35 | C59: Formulas
A60: COM Rt Hr Instructions | B60: 36 | C60: Written
A61: COM Pivot | B61: 37 | C61: Formulas - Pivot
A62: COM Route Detail | B62: 38 | C62: Hardcode with Formulas | D62: SQL Extract from Infopro
A63: IND Hrs Sum | B63: 39 | C63: Formulas
A64: IND Data | B64: 40 | C64: Hardcode with Formulas | D64: Report from Infopro
A65: Route Analysis - IND | B65: 41 | C65: Hardcode | D65: SQL Extract from Infopro
A66: Route Analysis - COM | B66: 42 | C66: Hardcode | D66: SQL Extract from Infopro
A67: Route Analysis - RESI | B67: 43 | C67: Hardcode | D67: SQL Extract from Infopro
A68: Contract Ref | B68: 44 | C68: Hardcode Tables | D68: Lookup info for Infopro
A69: Fuel Calc | B69: 45 | C69: Formulas
A70: Fuel Invoice Data Entry | B70: 46 | C70: Hardcode with Formulas | D70: Fuel Invoices
A71: Disposal Instructions | B71: 47 | C71: Written
A72: Disposal Summary (with IC) | B72: 48 | C72: Formulas
A73: Summary Disposal Data | B73: 49 | C73: Hardcode with Formulas
A74: Industrial Summary Data Confirmation | B74: 50 | C74: Hardcode with Formulas
A75: Non-Regulated Operations | B75: 51 | C75: Written
A76: Disposal Ref Tables | B76: 52 | C76: Hardcode Tables | D76: Lookup info for Infopro
A77: Ave Inv. Narrative | B77: 53 | C77: Written
A78: Ave Inv. Summary | B78: 54 | C78: Formulas
A79: AM260 Asset Listing | B79: 55 | C79: Formulas
A80: AM260 Data | B80: 56 | C80: Hardcode with Formulas | D80: Report from Lawson
A81: Asset Type Tables | B81: 57 | C81: Hardcode Tables | D81: Lookup info for Lawson
A82: Narrative | B82: 58 | C82: Written
A83: Container Counts | B83: 59 | C83: Formulas
A84: Container Data | B84: 60 | C84: Hardcode with Formulas | D84: SQL Extract from Infopro
A85: Container Ref Tables | B85: 61 | C85: Hardcode Tables | D85: Lookup info for Infopro
A86: Cost of Service | B86: 62 | C86: Formulas
A87: Meeks Data | B87: 63 | C87: Hardcode | D87: WUTC Data
A88: Essbase Narrative | B88: 64 | C88: Written
A89: P&L - ITD3 (Acct Desc) | B89: 65 | C89: Hardcode | D89: Essbase Extract from Lawson
A90: BS - BTD3 | B90: 66 | C90: Hardcode | D90: Essbase Extract from Lawson
A91: P&L - ITD3 (Acct #) | B91: 67 | C91: Hardcode | D91: Essbase Extract from Lawson
A92: STATS - XOST (IND, COM, RES) | B92: 68 | C92: Hardcode | D92: Essbase Extract from Lawson
A93: P&L - ITD2 Aff. Co. MRF | B93: 69 | C93: Hardcode | D93: Essbase Extract from Lawson
A94: G-12 FS | B94: 70 | C94: Hardcode | D94: Essbase Extract from Lawson
A95: BS - BTD2 Aff. Co. MRF | B95: 71 | C95: Hardcode | D95: Essbase Extract from Lawson
A96: MGmt Fee2014 Budget Pull | B96: 72 | C96: Hardcode | D96: Essbase Extract from Lawson
A97: Mgmt Fee - 2014 A53 Division Expense | B97: 73 | C97: Hardcode | D97: Essbase Extract from Lawson
A98: Filing Specific Tabs > | B98: 74 | C98: Written
A99: 176 v 183 CNG Trucks | B99: 75 | C99: Hardcode | D99: JE Backup from Fleet management system - Doissier
A100: Fuel Allocations | B100: 76 | C100: Hardcode with Formulas | D100: Essbase Extract from Lawson
A101: 4183-SeaTac-AM260 | B101: 77 | C101: Hardcode | D101: Report from Lawson
A102: L&I RETRO Credit JE | B102: 78 | C102: Hardcode | D102: Journal Entry
A103: Truck Depreciation Summary | B103: 79 | C103: Formulas
A104: Jan - Dec | B104: 80 - 92 | C104: Hardcode with Formulas | D104: Report from Lawson
A105: Tons Master Report > | B105: 93 | C105: Written
A106: Division Tons (XXX Tons) | B106: 94 | C106: Hardcode with Formulas | D106: Billing and County / Municipality Reporting Document
A107: MSW Tons | B107: 95 | C107: Hardcode with Formulas
A108: Recycle Tons | B108: 96 | C108: Hardcode with Formulas
A109: YW Tons | B109: 97 | C109: Hardcode with Formulas

Sheet G-12 Cert Financial
A1: If this rate case pertains to G Certificate # 60, of which the only company is Division 4176, tariff # 27, Fiorito Enterprises, Inc. & Rabanco Companies, dba Kent-Meridian Disposal Company the only financials you need are in the Essbase Data workbook or provided in PDF form.
A2: If this rate case pertains to G Certificate # 12 (varios division info below) this tab will be populated with summarized financial data for each operating division to calculate total Certificate financial data.
A3: See Source Data: 4XXXITD2
A5: Division # | B5: 4183 | E5: 4172 | H5: 4197 | K5: 4487 | N5: 4175 | Q5: 4584 | T5: TOTAL
A6: Division Name | B6: Sea Tac Disposal | E6: Eastside Disposal | H6: Lynnwood Disposal | K6: Tri-County Disposal | N6: AW of Seattle | Q6: Robanco Recycling MRF | T6: Regulated / Unregulated
A7: Certificate & Tariff Number | B7: G-12 / Tariff 27 | E7: G-12 / Tariff 11 | H7: G-12 / Tariff 4 | K7: G-12 / Tariff 8 | N7: G-12 | Q7: G-12 | T7: G-12
A8: Regulated / Unregulated % | C8: =1-B8 -> 1 | F8: =1-E8 -> 1 | I8: =1-H8 -> 1 | L8: =1-K8 -> 1 | N8: 0 | O8: =1-N8 -> 1 | Q8: 0 | R8: =1-Q8 -> 1 | T8: =+T59/SUM(T59:U59) -> 0 | U8: =1-T8 -> 1
A11: Industrial O/S Total | B11: ='G-12 FS'!B6*B$8 -> 0 | C11: ='G-12 FS'!B6*C$8 -> 2207499.42 | E11: ='G-12 FS'!E6*E$8 -> 0 | F11: ='G-12 FS'!E6*F$8 -> 7884649.15 | H11: ='G-12 FS'!H6*H$8 -> 0 | I11: ='G-12 FS'!H6*I$8 -> 2630551.8 | K11: ='G-12 FS'!K6*K$8 -> 0 | L11: ='G-12 FS'!K6*L$8 -> 410538.71 | N11: ='G-12 FS'!N6*N$8 -> 0 | O11: ='G-12 FS'!N6*O$8 -> 5327187.41 | Q11: ='G-12 FS'!Q6*Q$8 -> 0 | R11: ='G-12 FS'!Q6*R$8 -> 0 | T11: =+B11+E11+H11+K11+N11+Q11 -> 0 | U11: =+C11+F11+I11+L11+O11+R11 -> 18460426.49
A12: Commercial O/S Total | B12: ='G-12 FS'!B7*B$8 -> 0 | C12: ='G-12 FS'!B7*C$8 -> 1948446.64 | E12: ='G-12 FS'!E7*E$8 -> 0 | F12: ='G-12 FS'!E7*F$8 -> 13919553.71 | H12: ='G-12 FS'!H7*H$8 -> 0 | I12: ='G-12 FS'!H7*I$8 -> 6512997.29 | K12: ='G-12 FS'!K7*K$8 -> 0 | L12: ='G-12 FS'!K7*L$8 -> 691060.41 | N12: ='G-12 FS'!N7*N$8 -> 0 | O12: ='G-12 FS'!N7*O$8 -> 7104057.15 | Q12: ='G-12 FS'!Q7*Q$8 -> 0 | R12: ='G-12 FS'!Q7*R$8 -> 0 | T12: =+B12+E12+H12+K12+N12+Q12 -> 0 | U12: =+C12+F12+I12+L12+O12+R12 -> 30176115.2
A13: Residential O/S Total | B13: ='G-12 FS'!B8*B$8 -> 0 | C13: ='G-12 FS'!B8*C$8 -> 3931562.76 | E13: ='G-12 FS'!E8*E$8 -> 0 | F13: ='G-12 FS'!E8*F$8 -> 21054293.22 | H13: ='G-12 FS'!H8*H$8 -> 0 | I13: ='G-12 FS'!H8*I$8 -> 9445741.88 | K13: ='G-12 FS'!K8*K$8 -> 0 | L13: ='G-12 FS'!K8*L$8 -> 545751.24 | N13: ='G-12 FS'!N8*N$8 -> 0 | O13: ='G-12 FS'!N8*O$8 -> 0 | Q13: ='G-12 FS'!Q8*Q$8 -> 0 | R13: ='G-12 FS'!Q8*R$8 -> 0 | T13: 0 | U13: 34977349.1
A15: Industrial SOM RCY Revenue I/C | B15: ='G-12 FS'!B17*B$8 -> 0 | C15: ='G-12 FS'!B17*C$8 -> 43101.81 | E15: ='G-12 FS'!E17*E$8 -> 0 | F15: ='G-12 FS'!E17*F$8 -> 187539.56 | H15: ='G-12 FS'!H17*H$8 -> 0 | I15: ='G-12 FS'!H17*I$8 -> 16703.72 | K15: ='G-12 FS'!K17*K$8 -> 0 | L15: ='G-12 FS'!K17*L$8 -> 0 | N15: ='G-12 FS'!N17*N$8 -> 0 | O15: ='G-12 FS'!N17*O$8 -> 33443.84 | Q15: ='G-12 FS'!Q17*Q$8 -> 0 | R15: ='G-12 FS'!Q17*R$8 -> 0 | T15: =+B15+E15+H15+K15+N15+Q15 -> 0 | U15: =+C15+F15+I15+L15+O15+R15 -> 280788.93
A16: Commercial SOM RCY Revenue I/C | B16: ='G-12 FS'!B18*B$8 -> 0 | C16: ='G-12 FS'!B18*C$8 -> 79132.2 | E16: ='G-12 FS'!E18*E$8 -> 0 | F16: ='G-12 FS'!E18*F$8 -> 865861.87 | H16: ='G-12 FS'!H18*H$8 -> 0 | I16: ='G-12 FS'!H18*I$8 -> 289424.35 | K16: ='G-12 FS'!K18*K$8 -> 0 | L16: ='G-12 FS'!K18*L$8 -> 0 | N16: ='G-12 FS'!N18*N$8 -> 0 | O16: ='G-12 FS'!N18*O$8 -> 980936.83 | Q16: ='G-12 FS'!Q18*Q$8 -> 0 | R16: ='G-12 FS'!Q18*R$8 -> 0 | T16: 0 | U16: =+C16+F16+I16+L16+O16+R16 -> 2215355.25
A17: Residential SOM RCY Revenue I/C | B17: ='G-12 FS'!B19*B$8 -> 0 | C17: ='G-12 FS'!B19*C$8 -> 225146.31 | E17: ='G-12 FS'!E19*E$8 -> 0 | F17: ='G-12 FS'!E19*F$8 -> 1691136.72 | H17: ='G-12 FS'!H19*H$8 -> 0 | I17: ='G-12 FS'!H19*I$8 -> 636365.16 | K17: ='G-12 FS'!K19*K$8 -> 0 | L17: ='G-12 FS'!K19*L$8 -> 0 | N17: ='G-12 FS'!N19*N$8 -> 0 | O17: ='G-12 FS'!N19*O$8 -> 0 | Q17: ='G-12 FS'!Q19*Q$8 -> 0 | R17: ='G-12 FS'!Q19*R$8 -> 0 | T17: 0 | U17: 2552648.19
A19: Total Revenue | B19: =SUM(B10:B18) -> 0 | C19: =SUM(C10:C18) -> 8434889.14 | E19: =SUM(E10:E18) -> 0 | F19: =SUM(F10:F18) -> 45603034.23 | H19: =SUM(H10:H18) -> 0 | I19: =SUM(I10:I18) -> 19531784.2 | K19: =SUM(K10:K18) -> 0 | L19: =SUM(L10:L18) -> 1647350.36 | N19: =SUM(N10:N18) -> 0 | O19: =SUM(O10:O18) -> 13445625.23 | Q19: ='G-12 FS'!$Q29*Q$8 -> 0 | R19: ='G-12 FS'!$Q29*R$8 -> 28889083.45 | T19: =+B19+E19+H19+K19+N19+Q19 -> 0 | U19: =+C19+F19+I19+L19+O19+R19 -> 117551766.6
A21: Tipping & Disposal Costs | B21: =SUM('G-12 FS'!B31*B$8) -> 0 | C21: =SUM('G-12 FS'!B31*C$8) -> 2416798.5 | E21: =SUM('G-12 FS'!E31*E$8) -> 0 | F21: =SUM('G-12 FS'!E31*F$8) -> 12002430.87 | H21: =SUM('G-12 FS'!H31*H$8) -> 0 | I21: =SUM('G-12 FS'!H31*I$8) -> 5397761.21 | K21: =SUM('G-12 FS'!K31*K$8) -> 0 | L21: =SUM('G-12 FS'!K31*L$8) -> 97557.38 | N21: =SUM('G-12 FS'!N31*N$8) -> 0 | O21: =SUM('G-12 FS'!N31*O$8) -> 153269.88 | Q21: =SUM('G-12 FS'!Q31*Q$8) -> 0 | R21: =SUM('G-12 FS'!Q31*R$8) -> 876441.49 | T21: =+B21+E21+H21+K21+N21+Q21 -> 0 | U21: =+C21+F21+I21+L21+O21+R21 -> 20944259.33
A22: Cost of Goods Sold | B22: =SUM('G-12 FS'!B32*B$8) -> 0 | C22: =SUM('G-12 FS'!B32*C$8) -> 1067126.5 | E22: =SUM('G-12 FS'!E32*E$8) -> 0 | F22: =SUM('G-12 FS'!E32*F$8) -> 5977030.22 | H22: =SUM('G-12 FS'!H32*H$8) -> 0 | I22: =SUM('G-12 FS'!H32*I$8) -> 1864678.3 | K22: =SUM('G-12 FS'!K32*K$8) -> 0 | L22: =SUM('G-12 FS'!K32*L$8) -> 0 | N22: =SUM('G-12 FS'!N32*N$8) -> 0 | O22: =SUM('G-12 FS'!N32*O$8) -> 3178269.94 | Q22: =SUM('G-12 FS'!Q32*Q$8) -> 0 | R22: =SUM('G-12 FS'!Q32*R$8) -> 9008232.59 | T22: 0 | U22: 21095337.55
A23: Transportation | B23: =SUM('G-12 FS'!B33*B$8) -> 0 | C23: =SUM('G-12 FS'!B33*C$8) -> 0 | E23: =SUM('G-12 FS'!E33*E$8) -> 0 | F23: =SUM('G-12 FS'!E33*F$8) -> 0 | H23: =SUM('G-12 FS'!H33*H$8) -> 0 | I23: =SUM('G-12 FS'!H33*I$8) -> 0 | K23: =SUM('G-12 FS'!K33*K$8) -> 0 | L23: =SUM('G-12 FS'!K33*L$8) -> 0 | N23: =SUM('G-12 FS'!N33*N$8) -> 0 | O23: =SUM('G-12 FS'!N33*O$8) -> 4567.07 | Q23: =SUM('G-12 FS'!Q33*Q$8) -> 0 | R23: =SUM('G-12 FS'!Q33*R$8) -> 0 | T23: 0 | U23: 4567.07
A24: Subcontract | B24: =SUM('G-12 FS'!B34*B$8) -> 0 | C24: =SUM('G-12 FS'!B34*C$8) -> 0 | E24: =SUM('G-12 FS'!E34*E$8) -> 0 | F24: =SUM('G-12 FS'!E34*F$8) -> 0 | H24: =SUM('G-12 FS'!H34*H$8) -> 0 | I24: =SUM('G-12 FS'!H34*I$8) -> 0 | K24: =SUM('G-12 FS'!K34*K$8) -> 0 | L24: =SUM('G-12 FS'!K34*L$8) -> 0 | N24: =SUM('G-12 FS'!N34*N$8) -> 0 | O24: =SUM('G-12 FS'!N34*O$8) -> 0 | Q24: =SUM('G-12 FS'!Q34*Q$8) -> 0 | R24: =SUM('G-12 FS'!Q34*R$8) -> 3835.5 | T24: 0 | U24: 3835.5
A25: Franchise Fees / Taxes | B25: =SUM('G-12 FS'!B35*B$8) -> 0 | C25: =SUM('G-12 FS'!B35*C$8) -> 193271.01 | E25: =SUM('G-12 FS'!E35*E$8) -> 0 | F25: =SUM('G-12 FS'!E35*F$8) -> 1825029.63 | H25: =SUM('G-12 FS'!H35*H$8) -> 0 | I25: =SUM('G-12 FS'!H35*I$8) -> 597640.58 | K25: =SUM('G-12 FS'!K35*K$8) -> 0 | L25: =SUM('G-12 FS'!K35*L$8) -> 0 | N25: =SUM('G-12 FS'!N35*N$8) -> 0 | O25: =SUM('G-12 FS'!N35*O$8) -> 4373.45 | Q25: =SUM('G-12 FS'!Q35*Q$8) -> 0 | R25: =SUM('G-12 FS'!Q35*R$8) -> 0 | T25: 0 | U25: 2620314.67
A26: COGS Other | B26: =SUM('G-12 FS'!B36*B$8) -> 0 | C26: =SUM('G-12 FS'!B36*C$8) -> 0 | E26: =SUM('G-12 FS'!E36*E$8) -> 0 | F26: =SUM('G-12 FS'!E36*F$8) -> 0 | H26: =SUM('G-12 FS'!H36*H$8) -> 0 | I26: =SUM('G-12 FS'!H36*I$8) -> 0 | K26: =SUM('G-12 FS'!K36*K$8) -> 0 | L26: =SUM('G-12 FS'!K36*L$8) -> 0 | N26: =SUM('G-12 FS'!N36*N$8) -> 0 | O26: =SUM('G-12 FS'!N36*O$8) -> 33227.72 | Q26: =SUM('G-12 FS'!Q36*Q$8) -> 0 | R26: =SUM('G-12 FS'!Q36*R$8) -> 0 | T26: 0 | U26: 33227.72
A27: Total Revenue Reductions | B27: =SUM(B20:B26) -> 0 | C27: =SUM(C20:C26) -> 3677196.01 | E27: =SUM(E20:E26) -> 0 | F27: =SUM(F20:F26) -> 19804490.72 | H27: =SUM(H20:H26) -> 0 | I27: =SUM(I20:I26) -> 7860080.09 | K27: =SUM(K20:K26) -> 0 | L27: =SUM(L20:L26) -> 97557.38 | N27: =SUM(N20:N26) -> 0 | O27: =SUM(O20:O26) -> 3373708.06 | Q27: =SUM(Q20:Q26) -> 0 | R27: =SUM(R20:R26) -> 9888509.58 | T27: 0 | U27: 44701541.84
A29: Net Revenue | B29: =+B19-B27 -> 0 | C29: =+C19-C27 -> 4757693.13 | E29: =+E19-E27 -> 0 | F29: =+F19-F27 -> 25798543.51 | H29: =+H19-H27 -> 0 | I29: =+I19-I27 -> 11671704.11 | K29: =+K19-K27 -> 0 | L29: =+L19-L27 -> 1549792.98 | N29: =+N19-N27 -> 0 | O29: =+O19-O27 -> 10071917.17 | Q29: =+Q19-Q27 -> 0 | R29: =+R19-R27 -> 19000573.87 | T29: =+B29+E29+H29+K29+N29+Q29 -> 0 | U29: =+C29+F29+I29+L29+O29+R29 -> 72850224.77
A31: Operating Labor | B31: ='G-12 FS'!B41*B$8 -> 0 | C31: ='G-12 FS'!B41*C$8 -> 1663096.89 | E31: ='G-12 FS'!E41*E$8 -> 0 | F31: ='G-12 FS'!E41*F$8 -> 9732110.79 | H31: ='G-12 FS'!H41*H$8 -> 0 | I31: ='G-12 FS'!H41*I$8 -> 3778626.1 | K31: ='G-12 FS'!K41*K$8 -> 0 | L31: ='G-12 FS'!K41*L$8 -> 572341.05 | N31: ='G-12 FS'!N41*N$8 -> 0 | O31: ='G-12 FS'!N41*O$8 -> 2253434.2 | Q31: ='G-12 FS'!Q41*Q$8 -> 0 | R31: ='G-12 FS'!Q41*R$8 -> 5782236.03 | T31: =+B31+E31+H31+K31+N31+Q31 -> 0 | U31: =+C31+F31+I31+L31+O31+R31 -> 23781845.06
A32: Supervisor Labor | B32: ='G-12 FS'!B42*B$8 -> 0 | C32: ='G-12 FS'!B42*C$8 -> 183921.85 | E32: ='G-12 FS'!E42*E$8 -> 0 | F32: ='G-12 FS'!E42*F$8 -> 1171525.82 | H32: ='G-12 FS'!H42*H$8 -> 0 | I32: ='G-12 FS'!H42*I$8 -> 438719.59 | K32: ='G-12 FS'!K42*K$8 -> 0 | L32: ='G-12 FS'!K42*L$8 -> 0 | N32: ='G-12 FS'!N42*N$8 -> 0 | O32: ='G-12 FS'!N42*O$8 -> 466721.24 | Q32: ='G-12 FS'!Q42*Q$8 -> 0 | R32: ='G-12 FS'!Q42*R$8 -> 367503.82 | T32: 0 | U32: 2628392.32
A33: Equipment Operating | B33: ='G-12 FS'!B43*B$8 -> 0 | C33: ='G-12 FS'!B43*C$8 -> 322996.79 | E33: ='G-12 FS'!E43*E$8 -> 0 | F33: ='G-12 FS'!E43*F$8 -> 1514109.49 | H33: ='G-12 FS'!H43*H$8 -> 0 | I33: ='G-12 FS'!H43*I$8 -> 1025630.06 | K33: ='G-12 FS'!K43*K$8 -> 0 | L33: ='G-12 FS'!K43*L$8 -> 243834.09 | N33: ='G-12 FS'!N43*N$8 -> 0 | O33: ='G-12 FS'!N43*O$8 -> 529497.48 | Q33: ='G-12 FS'!Q43*Q$8 -> 0 | R33: ='G-12 FS'!Q43*R$8 -> 645735.7 | T33: 0 | U33: 4281803.61
A34: Equipment Maintenance | B34: ='G-12 FS'!B44*B$8 -> 0 | C34: ='G-12 FS'!B44*C$8 -> 750608.69 | E34: ='G-12 FS'!E44*E$8 -> 0 | F34: ='G-12 FS'!E44*F$8 -> 2530707 | H34: ='G-12 FS'!H44*H$8 -> 0 | I34: ='G-12 FS'!H44*I$8 -> 1147836.68 | K34: ='G-12 FS'!K44*K$8 -> 0 | L34: ='G-12 FS'!K44*L$8 -> 31487.83 | N34: ='G-12 FS'!N44*N$8 -> 0 | O34: ='G-12 FS'!N44*O$8 -> 622655.29 | Q34: ='G-12 FS'!Q44*Q$8 -> 0 | R34: ='G-12 FS'!Q44*R$8 -> 3016978.96
A35: Container Maintenance | B35: ='G-12 FS'!B45*B$8 -> 0 | C35: ='G-12 FS'!B45*C$8 -> 60375.34 | E35: ='G-12 FS'!E45*E$8 -> 0 | F35: ='G-12 FS'!E45*F$8 -> 307758.12 | H35: ='G-12 FS'!H45*H$8 -> 0 | I35: ='G-12 FS'!H45*I$8 -> 17427.6 | K35: ='G-12 FS'!K45*K$8 -> 0 | L35: ='G-12 FS'!K45*L$8 -> 1864.08 | N35: ='G-12 FS'!N45*N$8 -> 0 | O35: ='G-12 FS'!N45*O$8 -> 259600.55 | Q35: ='G-12 FS'!Q45*Q$8 -> 0 | R35: ='G-12 FS'!Q45*R$8 -> 0 | T35: =+B35+E35+H35+K35+N35+Q35 -> 0 | U35: =+C35+F35+I35+L35+O35+R35 -> 647025.69
A36: Insurance Expense | B36: ='G-12 FS'!B46*B$8 -> 0 | C36: ='G-12 FS'!B46*C$8 -> 649707.07 | E36: ='G-12 FS'!E46*E$8 -> 0 | F36: ='G-12 FS'!E46*F$8 -> 1335733.08 | H36: ='G-12 FS'!H46*H$8 -> 0 | I36: ='G-12 FS'!H46*I$8 -> 296796.99 | K36: ='G-12 FS'!K46*K$8 -> 0 | L36: ='G-12 FS'!K46*L$8 -> 82811.63 | N36: ='G-12 FS'!N46*N$8 -> 0 | O36: ='G-12 FS'!N46*O$8 -> 629988 | Q36: ='G-12 FS'!Q46*Q$8 -> 0 | R36: ='G-12 FS'!Q46*R$8 -> 488464.65 | T36: 0 | U36: 3483501.42
A37: Occupancy / Facilty Expense | B37: ='G-12 FS'!B47*B$8 -> 0 | C37: ='G-12 FS'!B47*C$8 -> 87058.46 | E37: ='G-12 FS'!E47*E$8 -> 0 | F37: ='G-12 FS'!E47*F$8 -> 1051841.27 | H37: ='G-12 FS'!H47*H$8 -> 0 | I37: ='G-12 FS'!H47*I$8 -> 401091.51 | K37: ='G-12 FS'!K47*K$8 -> 0 | L37: ='G-12 FS'!K47*L$8 -> 409.5 | N37: ='G-12 FS'!N47*N$8 -> 0 | O37: ='G-12 FS'!N47*O$8 -> 512693.75 | Q37: ='G-12 FS'!Q47*Q$8 -> 0 | R37: ='G-12 FS'!Q47*R$8 -> 737197.61 | T37: 0 | U37: 2790292.1
A38: Other Operating Expense | B38: ='G-12 FS'!B48*B$8 -> 0 | C38: ='G-12 FS'!B48*C$8 -> 398162 | E38: ='G-12 FS'!E48*E$8 -> 0 | F38: ='G-12 FS'!E48*F$8 -> 2692250.07 | H38: ='G-12 FS'!H48*H$8 -> 0 | I38: ='G-12 FS'!H48*I$8 -> 457525.87 | K38: ='G-12 FS'!K48*K$8 -> 0 | L38: ='G-12 FS'!K48*L$8 -> 27985.82 | N38: ='G-12 FS'!N48*N$8 -> 0 | O38: ='G-12 FS'!N48*O$8 -> 277287.53 | Q38: ='G-12 FS'!Q48*Q$8 -> 0 | R38: ='G-12 FS'!Q48*R$8 -> 434564.09 | T38: 0 | U38: 4287775.38
A39: Pre-DD&A GOE | B39: =SUM(B30:B38) -> 0 | C39: =SUM(C30:C38) -> 4115927.09 | E39: =SUM(E30:E38) -> 0 | F39: =SUM(F30:F38) -> 20336035.64 | H39: =SUM(H30:H38) -> 0 | I39: =SUM(I30:I38) -> 7563654.4 | K39: =SUM(K30:K38) -> 0 | L39: =SUM(L30:L38) -> 960734 | N39: =SUM(N30:N38) -> 0 | O39: =SUM(O30:O38) -> 5551878.04 | Q39: =SUM(Q30:Q38) -> 0 | R39: =SUM(R30:R38) -> 11472680.86 | T39: 0 | U39: 50000910.03
A41: Depreciation Total | B41: ='G-12 FS'!B51*B$8 -> 0 | C41: ='G-12 FS'!B51*C$8 -> 644105.56 | E41: ='G-12 FS'!E51*E$8 -> 0 | F41: ='G-12 FS'!E51*F$8 -> 3051623.34 | H41: ='G-12 FS'!H51*H$8 -> 0 | I41: ='G-12 FS'!H51*I$8 -> 1108019.75 | K41: ='G-12 FS'!K51*K$8 -> 0 | L41: ='G-12 FS'!K51*L$8 -> 162654.56 | N41: ='G-12 FS'!N51*N$8 -> 0 | O41: ='G-12 FS'!N51*O$8 -> 309563.6 | Q41: ='G-12 FS'!Q51*Q$8 -> 0 | R41: ='G-12 FS'!Q51*R$8 -> 1695158.34 | T41: =+B41+E41+H41+K41+N41+Q41 -> 0 | U41: =+C41+F41+I41+L41+O41+R41 -> 6971125.15
A42: Amortization Total | T42: 0 | U42: 0
A43: Total DD&A | B43: =SUM(B40:B42) -> 0 | C43: =SUM(C40:C42) -> 644105.56 | E43: =SUM(E40:E42) -> 0 | F43: =SUM(F40:F42) -> 3051623.34 | H43: =SUM(H40:H42) -> 0 | I43: =SUM(I40:I42) -> 1108019.75 | K43: =SUM(K40:K42) -> 0 | L43: =SUM(L40:L42) -> 162654.56 | N43: =SUM(N40:N42) -> 0 | O43: =SUM(O40:O42) -> 309563.6 | Q43: =SUM(Q40:Q42) -> 0 | R43: =SUM(R40:R42) -> 1695158.34 | T43: 0 | U43: 6971125.15
A45: GOE | B45: =+B39+B43 -> 0 | C45: =+C39+C43 -> 4760032.65 | E45: =+E39+E43 -> 0 | F45: =+F39+F43 -> 23387658.98 | H45: =+H39+H43 -> 0 | I45: =+I39+I43 -> 8671674.15 | K45: =+K39+K43 -> 0 | L45: =+L39+L43 -> 1123388.56 | N45: =+N39+N43 -> 0 | O45: =+O39+O43 -> 5861441.64 | Q45: =+Q39+Q43 -> 0 | R45: =+R39+R43 -> 13167839.2 | T45: =+B45+E45+H45+K45+N45+Q45 -> 0 | U45: =+C45+F45+I45+L45+O45+R45 -> 56972035.18
A47: Gross Operating Profit | B47: =+B29-B45 -> 0 | C47: =+C29-C45 -> -2339.52 | E47: =+E29-E45 -> 0 | F47: =+F29-F45 -> 2410884.53 | H47: =+H29-H45 -> 0 | I47: =+I29-I45 -> 3000029.96 | K47: =+K29-K45 -> 0 | L47: =+L29-L45 -> 426404.42 | N47: =+N29-N45 -> 0 | O47: =+O29-O45 -> 4210475.53 | Q47: =+Q29-Q45 -> 0 | R47: =+R29-R45 -> 5832734.67 | T47: =+B47+E47+H47+K47+N47+Q47 -> 0 | U47: =+C47+F47+I47+L47+O47+R47 -> 15878189.59
A49: Sales & Cust Svc Payroll & Related | B49: ='G-12 FS'!B59*B$8 -> 0 | C49: ='G-12 FS'!B59*C$8 -> 142579.82 | E49: ='G-12 FS'!E59*E$8 -> 0 | F49: ='G-12 FS'!E59*F$8 -> 968878.66 | H49: ='G-12 FS'!H59*H$8 -> 0 | I49: ='G-12 FS'!H59*I$8 -> 245340.22 | K49: ='G-12 FS'!K59*K$8 -> 0 | L49: ='G-12 FS'!K59*L$8 -> 0 | N49: ='G-12 FS'!N59*N$8 -> 0 | O49: ='G-12 FS'!N59*O$8 -> 557363.7 | Q49: ='G-12 FS'!Q59*Q$8 -> 0 | R49: ='G-12 FS'!Q59*R$8 -> 0 | T49: =+B49+E49+H49+K49+N49+Q49 -> 0 | U49: =+C49+F49+I49+L49+O49+R49 -> 1914162.4
A50: Sales Expense | B50: ='G-12 FS'!B60*B$8 -> 0 | C50: ='G-12 FS'!B60*C$8 -> 24858.97 | E50: ='G-12 FS'!E60*E$8 -> 0 | F50: ='G-12 FS'!E60*F$8 -> 144639.17 | H50: ='G-12 FS'!H60*H$8 -> 0 | I50: ='G-12 FS'!H60*I$8 -> 30481.45 | K50: ='G-12 FS'!K60*K$8 -> 0 | L50: ='G-12 FS'!K60*L$8 -> 0 | N50: ='G-12 FS'!N60*N$8 -> 0 | O50: ='G-12 FS'!N60*O$8 -> 60110.92 | Q50: ='G-12 FS'!Q60*Q$8 -> 0 | R50: ='G-12 FS'!Q60*R$8 -> 0 | T50: 0 | U50: 260090.51
A51: Total Sales & Customer Svc Exp | B51: =SUM(B48:B50) -> 0 | C51: =SUM(C48:C50) -> 167438.79 | E51: =SUM(E48:E50) -> 0 | F51: =SUM(F48:F50) -> 1113517.83 | H51: =SUM(H48:H50) -> 0 | I51: =SUM(I48:I50) -> 275821.67 | K51: =SUM(K48:K50) -> 0 | L51: =SUM(L48:L50) -> 0 | N51: =SUM(N48:N50) -> 0 | O51: =SUM(O48:O50) -> 617474.62 | Q51: =SUM(Q48:Q50) -> 0 | R51: =SUM(R48:R50) -> 0 | T51: 0 | U51: 2174252.91
A53: G&A Payroll & Related | B53: ='G-12 FS'!B63*B$8 -> 0 | C53: ='G-12 FS'!B63*C$8 -> 463323.24 | E53: ='G-12 FS'!E63*E$8 -> 0 | F53: ='G-12 FS'!E63*F$8 -> 813922.24 | H53: ='G-12 FS'!H63*H$8 -> 0 | I53: ='G-12 FS'!H63*I$8 -> 235389.95 | K53: ='G-12 FS'!K63*K$8 -> 0 | L53: ='G-12 FS'!K63*L$8 -> 129495.23 | N53: ='G-12 FS'!N63*N$8 -> 0 | O53: ='G-12 FS'!N63*O$8 -> 255039.66 | Q53: ='G-12 FS'!Q63*Q$8 -> 0 | R53: ='G-12 FS'!Q63*R$8 -> 334791.67 | T53: =+B53+E53+H53+K53+N53+Q53 -> 0 | U53: =+C53+F53+I53+L53+O53+R53 -> 2231961.99
A54: G&E Expense | B54: =SUM('G-12 FS'!B64:B66)*B$8 -> 0 | C54: =SUM('G-12 FS'!B64:B66)*C$8 -> 211481.24 | E54: =SUM('G-12 FS'!E64:E66)*E$8 -> 0 | F54: =SUM('G-12 FS'!E64:E66)*F$8 -> 2117074.01 | H54: =SUM('G-12 FS'!H64:H66)*H$8 -> 0 | I54: =SUM('G-12 FS'!H64:H66)*I$8 -> 846566.67 | K54: =SUM('G-12 FS'!K64:K66)*K$8 -> 0 | L54: =SUM('G-12 FS'!K64:K66)*L$8 -> 190687.2 | N54: =SUM('G-12 FS'!N64:N66)*N$8 -> 0 | O54: =SUM('G-12 FS'!N64:N66)*O$8 -> 663283.33 | Q54: =SUM('G-12 FS'!Q64:Q66)*Q$8 -> 0 | R54: =SUM('G-12 FS'!Q64:Q66)*R$8 -> 933385.17 | T54: 0 | U54: 4962477.62
A55: Total G&A Expense | B55: =SUM(B52:B54) -> 0 | C55: =SUM(C52:C54) -> 674804.48 | E55: =SUM(E52:E54) -> 0 | F55: =SUM(F52:F54) -> 2930996.25 | H55: =SUM(H52:H54) -> 0 | I55: =SUM(I52:I54) -> 1081956.62 | K55: =SUM(K52:K54) -> 0 | L55: =SUM(L52:L54) -> 320182.43 | N55: =SUM(N52:N54) -> 0 | O55: =SUM(O52:O54) -> 918322.99 | Q55: =SUM(Q52:Q54) -> 0 | R55: =SUM(R52:R54) -> 1268176.84 | T55: 0 | U55: 7194439.61
A57: Total SG&A | B57: =+B51+B55 -> 0 | C57: =+C51+C55 -> 842243.27 | E57: =+E51+E55 -> 0 | F57: =+F51+F55 -> 4044514.08 | H57: =+H51+H55 -> 0 | I57: =+I51+I55 -> 1357778.29 | K57: =+K51+K55 -> 0 | L57: =+L51+L55 -> 320182.43 | N57: =+N51+N55 -> 0 | O57: =+O51+O55 -> 1535797.61 | Q57: =+Q51+Q55 -> 0 | R57: =+R51+R55 -> 1268176.84 | T57: =+B57+E57+H57+K57+N57+Q57 -> 0 | U57: =+C57+F57+I57+L57+O57+R57 -> 9368692.52
A59: Operating Income | B59: =+B47-B57 -> 0 | C59: =+C47-C57 -> -844582.79 | E59: =+E47-E57 -> 0 | F59: =+F47-F57 -> -1633629.55 | H59: =+H47-H57 -> 0 | I59: =+I47-I57 -> 1642251.67 | K59: =+K47-K57 -> 0 | L59: =+L47-L57 -> 106221.99 | N59: =+N47-N57 -> 0 | O59: =+O47-O57 -> 2674677.92 | Q59: =+Q47-Q57 -> 0 | R59: =+R47-R57 -> 4564557.83 | T59: =+B59+E59+H59+K59+N59+Q59 -> 0 | U59: =+C59+F59+I59+L59+O59+R59 -> 6509497.07

Sheet RS Cap Struct.
A2: CAPITAL STRUCTURE CALCULATION | B2: 2014 | C2: 2013 | D2: 2012
A3: Source: Republic Services, Inc Annual Report
A4: http://www.republicservices.com/investors
A5: Generally published each Feb/Mar of following year
A6: (in millions)
A8: Accounts Payable | C8: 511.4 | D8: 474.5 | E8: (pg 77)
A9: Notes Payable and current maturities of LTD | C9: 15.7 | D9: 19.4
A10: Deferred Revenue | C10: 301.8 | D10: 313.2
A11: Accrued Landfill and Environmental costs, current portion | C11: 178.7 | D11: 195.5
A12: Accrued Interest | C12: 68.2 | D12: 68.8
A13: Other Accrued Liabilities | C13: 641.3 | D13: 623.6
A14: Total Current Liabilities | B14: =SUM(B8:B13) -> 0 | C14: =SUM(C8:C13) -> 1717.1 | D14: 1695
A16: Long-term Debt, net of current maturities | C16: 7002.4 | D16: 7051.1
A17: Accrued Landfill and Environmental costs, net of current portion | C17: 1464.3 | D17: 1420.6
A18: Deferred Income Taxes and other long-term liabilities | C18: 1185.4 | D18: 1232.7
A19: Self-insurance reserves, net of current portion | C19: 294.9 | D19: 290.9
A20: Other long-term liabilities | C20: 379 | D20: 220.9
A22: Total Liabilities | B22: =SUM(B14:B21) -> 0 | C22: =SUM(C14:C21) -> 12043.1 | D22: 11911.2
A24: Preferred Stock | C24: 0 | D24: 0
A25: Common Stock | C25: 4.1 | D25: 4.1
A26: Additional Paid-in Capital | C26: 6764.9 | D26: 6588.9
A27: Retained Earnings | C27: 2632.7 | D27: 2403.2
A28: Treasury stock | C28: -1501.2 | D28: -1287.1
A29: Accumulated other comprehensive income (loss), net of tax | C29: 3 | D29: -5.8
A31: Non-controlling Interest | C31: 2.6 | D31: 2.4
A33: Total Stockholder's Equity | B33: =SUM(B23:B32) -> 0 | C33: =SUM(C23:C32) -> 7906.1 | D33: 7705.7
A35: Total Liabilities & Equity | B35: =+B22+B33 -> 0 | C35: =+C22+C33 -> 19949.2 | D35: 19616.9
A37: Total Debt | B37: =B9+B16 -> 0 | C37: =C9+C16 -> 7018.1 | D37: =D9+D16 -> 7070.5
A38: Total Net Equity | B38: =+B33-B29 -> 0 | C38: =+C33-C29 -> 7903.1 | D38: =+D33-D29 -> 7711.5
A41: Debt Ratio | B41: =B37/SUM(B37:B38) ->  | C41: =C37/SUM(C37:C38) -> 0.4703442082 | D41: =D37/SUM(D37:D38) -> 0.4783182249
A42: Equity Ratio | B42: =1-B41 ->  | C42: =1-C41 -> 0.5296557918 | D42: =1-D41 -> 0.5216817751
A45: COST of DEBT CALCULATION
A46: Source: Republic Services, Inc Annual Report
A47: (in millions)
A49: As of: | B49: 2014-12-31 | C49: 2013-12-31 | D49: 2012-12-31
A50: Total Debt | C50: 7018.1 | D50: 7070.5 | E50: (pg 104)
A51: Interest paid in 2012 | C51: 360 | D51: 388.5 | E51: (pg 108)
A52: Effective Interest Rate | C52: =C51/C50 -> 0.0512959348 | D52: =D51/D50 -> 0.05494660915
A56: TAX RATE
A57: Source: Republic Services, Inc Annual Report
A59: Effective Income Tax Rate | C59: 0.308 | D59: 0.306 | E59: (pg 41)

Sheet Combined LG
B1: NEW IMPROVED LURITO - GALLAGHER FORMULA | AE1: !??! | AF1: OP/RATIO | AI1: curve
G2: NOTE: | N2: FORMULAS | U2: 1st Revenue | V2: 1st Turnover | W2: M | X2: ROR | Y2: ROE | AA2: Adj ROE | AB2: Pre Tax ROE | AC2: Adj M | AD2: Revenues | AE2: Decision | AI2: lookup table
B3: !!! | C3: Revenue Requirement | E3: =E5+E4 -> 9890050.167 | F3: !!!<-- | H3: Red numbers are linked fields. | N3: 1. less than 50 | Q3: @EXP(5.72260-(.68367*@LN(T))) | U3: =$E$6*1.25 -> 11261698.93 | V3: =100*(+U3/$E$7) -> 273.8606181 | W3: =EXP(5.7226-(0.68367*LN(+V3))) -> 6.589125075 | X3: =(+W3*V3)/100 -> 18.04501866 | Y3: =100*((((X3/100)-((X3/100)-0.03574)*$E$19)-0.03574-0.00619)/0.344) -> 24.2400016 | Z3: =+$E$18 -> 0.25 | AA3: =Y3+Z3 -> 24.4900016 | AB3: =100*($E$15*$E$17+($E$16*(AA3/100))/(1-$E$19)) -> 23.08287916 | AC3: =AB3/V3 -> 0.0842869607 | AD3: =$E$6/(1-AC3) -> 9838627.124 | AE3: =IF(AD3=$U$3,"yes","not yet") -> not yet | AF3: =100*(1-AC3) -> 91.57130393 | AI3: 0 | AJ3: 1
B4: !!! | C4: Revenue Deficiency | E4: =SUM('MSW:MF RCY'!E4) -> 680082.5872 | F4: !!!<-- | H4: Yellow cells are input fields. | N4: 2. Between 50 and 125 | Q4: @EXP(5.70827-(.68367*@LN(T))) | U4: =$E$6*1.25 -> 11261698.93 | V4: =100*(+U4/$E$7) -> 273.8606181 | W4: =EXP(5.70827-(0.68367*LN(+V4))) -> 6.495376227 | X4: =(+W4*V4)/100 -> 17.78827749 | Y4: =100*((((X4/100)-((X4/100)-0.03574)*$E$19)-0.03574-0.00619)/0.344) -> 23.77801675 | Z4: =+$E$18 -> 0.25 | AA4: =Y4+Z4 -> 24.02801675 | AB4: =100*($E$15*$E$17+($E$16*(AA4/100))/(1-$E$19)) -> 22.69179667 | AC4: =AB4/V4 -> 0.08285892593 | AD4: =$E$6/(1-AC4) -> 9823307.887 | AE4: =IF(AD4=$U$4,"yes","not yet") -> not yet | AF4: =100*(1-AC4) -> 91.71410741 | AI4: 50 | AJ4: 2
B5: * | C5: Revenue | E5: =SUM('MSW:MF RCY'!E5) -> 9209967.58 | F5: * p/f before rates | H5: Black are formula calculations | N5: 3. Between 125 and 140 | Q5: @EXP(5.69850-(.68367*@LN(T))) | U5: =$E$6*1.25 -> 11261698.93 | V5: =100*(+U5/$E$7) -> 273.8606181 | W5: =EXP(5.6985-(0.68367*LN(V5))) -> 6.432225396 | X5: =(+W5*V5)/100 -> 17.61533223 | Y5: =100*((((X5/100)-((X5/100)-0.03574)*$E$19)-0.03574-0.00619)/0.344) -> 23.46681584 | Z5: =+$E$18 -> 0.25 | AA5: =Y5+Z5 -> 23.71681584 | AB5: =100*($E$15*$E$17+($E$16*(AA5/100))/(1-$E$19)) -> 22.4283568 | AC5: =AB5/V5 -> 0.08189697721 | AD5: =$E$6/(1-AC5) -> 9813015.449 | AE5: =IF(AD5=$U$5,"yes","not yet") -> not yet | AF5: =100*(1-AC5) -> 91.81030228 | AI5: 125 | AJ5: 3
B6: * | C6: Expenses | E6: =SUM('MSW:MF RCY'!E6) -> 9009359.147 | F6: * p/f before rates | N6: 4. greater than 400 | Q6: @EXP(5.69220-(.68367*@LN(T))) | U6: =$E$6*1.25 -> 11261698.93 | V6: =100*(+U6/$E$7) -> 273.8606181 | W6: =EXP(5.6922-(0.68367*LN(V6))) -> 6.391829756 | X6: =(+W6*V6)/100 -> 17.50470448 | Y6: =100*((((X6/100)-((X6/100)-0.03574)*$E$19)-0.03574-0.00619)/0.344) -> 23.26775021 | Z6: =+$E$18 -> 0.25 | AA6: =Y6+Z6 -> 23.51775021 | AB6: =100*($E$15*$E$17+($E$16*(AA6/100))/(1-$E$19)) -> 22.25984244 | AC6: =AB6/V6 -> 0.08128164827 | AD6: =$E$6/(1-AC6) -> 9806442.997 | AE6: =IF(AD6=$U$6,"yes","not yet") -> not yet | AF6: =100*(1-AC6) -> 91.87183517 | AI6: 401 | AJ6: 4
B7: * | C7: Avg. Investment - | E7: =SUM('MSW:MF RCY'!E7) -> 4112200.948 | F7: * p/f before rates | H7: =E4/E5 -> 0.0738420175
C8: curve turnover | E8: =V3 -> 273.8606181 | F8: (calculated) | V8: 2nd Turnover | W8: M | X8: ROR | Y8: ROE | AI8: lookup tables
C9: final turnover | E9: =HLOOKUP($AJ$32,$AJ$26:$AR$30,$E$10+1) -> 240.4343836 | F9: (calculated) | V9: =100*(+AD3/$E$7) -> 239.2545318 | W9: =EXP(5.7226-(0.68367*LN(+V9))) -> 7.226670739 | X9: =(+W9*V9)/100 -> 17.29013724 | Y9: =100*((((X9/100)-((X9/100)-0.03574)*$E$19)-0.03574-0.00619)/0.344) -> 22.88165393 | Z9: =+$E$18 -> 0.25 | AA9: =Y9+Z9 -> 23.13165393 | AB9: =100*($E$15*$E$17+($E$16*(AA9/100))/(1-$E$19)) -> 21.93300165 | AC9: =AB9/V9 -> 0.09167225166 | AD9: =$E$6/(1-AC9) -> 9918621.514 | AE9: =IF(OR(OR(AD9=AD3,AD9=(AD3+1)),AD9=(AD8187-1)),"yes","not yet") -> not yet | AF9: =100*(1-AC9) -> 90.83277483
C10: curve No. used | E10: =VLOOKUP(E8,AI3:AJ6,2) -> 3 | F10: (calculated) | V10: =100*(+AD4/$E$7) -> 238.8820005 | W10: =EXP(5.70827-(0.68367*LN(+V10))) -> 7.131444365 | X10: =(+W10*V10)/100 -> 17.03573696 | Y10: =100*((((X10/100)-((X10/100)-0.03574)*$E$19)-0.03574-0.00619)/0.344) -> 22.42388134 | Z10: =+$E$18 -> 0.25 | AA10: =Y10+Z10 -> 22.67388134 | AB10: =100*($E$15*$E$17+($E$16*(AA10/100))/(1-$E$19)) -> 21.54548494 | AC10: =AB10/V10 -> 0.09019300282 | AD10: =$E$6/(1-AC10) -> 9902494.897 | AE10: =IF(OR(OR(AD10=AD4,AD10=(AD4+1)),AD10=(AD4-1)),"yes","not yet") -> not yet | AF10: =100*(1-AC10) -> 90.98069972
V11: =100*(+AD5/$E$7) -> 238.6317102 | W11: =EXP(5.6985-(0.68367*LN(V11))) -> 7.067172602 | X11: =(+W11*V11)/100 -> 16.86451484 | Y11: =100*((((X11/100)-((X11/100)-0.03574)*$E$19)-0.03574-0.00619)/0.344) -> 22.11578107 | Z11: =+$E$18 -> 0.25 | AA11: =Y11+Z11 -> 22.36578107 | AB11: =100*($E$15*$E$17+($E$16*(AA11/100))/(1-$E$19)) -> 21.28466986 | AC11: =AB11/V11 -> 0.08919464156 | AD11: =$E$6/(1-AC11) -> 9891640.473 | AE11: =IF(OR(OR(AD11=AD5,AD11=(AD5+1)),AD11=(AD5-1)),"yes","not yet") -> not yet | AF11: =100*(1-AC11) -> 91.08053584 | AJ11: 1 | AK11: 2 | AL11: 3 | AM11: 4 | AN11: 5 | AO11: 6 | AP11: 7 | AQ11: 8 | AR11: 9
C12: Company actual | V12: =100*(+AD6/$E$7) -> 238.4718821 | W12: =EXP(5.6922-(0.68367*LN(V12))) -> 7.026006924 | X12: =(+W12*V12)/100 -> 16.75505095 | Y12: =100*((((X12/100)-((X12/100)-0.03574)*$E$19)-0.03574-0.00619)/0.344) -> 21.91880971 | Z12: =+$E$18 -> 0.25 | AA12: =Y12+Z12 -> 22.16880971 | AB12: =100*($E$15*$E$17+($E$16*(AA12/100))/(1-$E$19)) -> 21.11792835 | AC12: =AB12/V12 -> 0.08855521312 | AD12: =$E$6/(1-AC12) -> 9884700.945 | AE12: =IF(OR(OR(AD12=AD6,AD12=(AD6+1)),AD12=(AD6-1)),"yes","not yet") -> not yet | AF12: =100*(1-AC12) -> 91.14447869 | AJ12: =AE3 -> not yet | AK12: =AE9 -> not yet | AL12: =AE15 -> not yet | AM12: =AE21 -> not yet | AN12: =AE27 -> not yet | AO12: =AE33 -> not yet | AP12: =AE39 -> yes | AQ12: =AE45 -> yes | AR12: =AE51 -> yes
C13: capital structure: | E13: !!! | F13: OPERATING RATIO -> | H13: =HLOOKUP($AJ$23,$AJ$17:$AR$21,$E$10+1) -> 91.12194411 | I13: !!!<-- | AJ13: =AE4 -> not yet | AK13: =AE10 -> not yet | AL13: =AE16 -> not yet | AM13: =AE22 -> not yet | AN13: =AE28 -> not yet | AO13: =AE34 -> not yet | AP13: =AE40 -> yes | AQ13: =AE46 -> yes | AR13: =AE52 -> yes
C14: - | D14: - | H14: = | V14: 3rd Turnover | W14: M | X14: ROR | Y14: ROE | AJ14: =AE5 -> not yet | AK14: =AE11 -> not yet | AL14: =AE17 -> not yet | AM14: =AE23 -> not yet | AN14: =AE29 -> not yet | AO14: =AE35 -> not yet | AP14: =AE41 -> yes | AQ14: =AE47 -> yes | AR14: =AE53 -> yes
B15: * | C15: Actual Debt Ratio | E15: 0.476 | F15: Conversion factor data: | V15: =100*(+AD9/$E$7) -> 241.1998256 | W15: =EXP(5.7226-(0.68367*LN(+V15))) -> 7.186772971 | X15: =(+W15*V15)/100 -> 17.33448387 | Y15: =100*((((X15/100)-((X15/100)-0.03574)*$E$19)-0.03574-0.00619)/0.344) -> 22.96145208 | Z15: =+$E$18 -> 0.25 | AA15: =Y15+Z15 -> 23.21145208 | AB15: =100*($E$15*$E$17+($E$16*(AA15/100))/(1-$E$19)) -> 22.00055291 | AC15: =AB15/V15 -> 0.09121297188 | AD15: =$E$6/(1-AC15) -> 9913608.874 | AE15: =IF(OR(OR(AD15=AD9,AD15=(AD9+1)),AD15=(AD1-1)),"yes","not yet") -> not yet | AF15: =100*(1-AC15) -> 90.87870281 | AJ15: =AE6 -> not yet | AK15: =AE12 -> not yet | AL15: =AE18 -> not yet | AM15: =AE24 -> not yet | AN15: =AE30 -> not yet | AO15: =AE36 -> not yet | AP15: =AE42 -> yes | AQ15: =AE48 -> yes | AR15: =AE54 -> yes
B16: * | C16: Actual Equity Ratio | E16: 0.524 | F16: B & O Tax | H16: 0.015 | I16: * | V16: =100*(+AD10/$E$7) -> 240.8076605 | W16: =EXP(5.70827-(0.68367*LN(+V16))) -> 7.092406665 | X16: =(+W16*V16)/100 -> 17.07905856 | Y16: =100*((((X16/100)-((X16/100)-0.03574)*$E$19)-0.03574-0.00619)/0.344) -> 22.50183503 | Z16: =+$E$18 -> 0.25 | AA16: =Y16+Z16 -> 22.75183503 | AB16: =100*($E$15*$E$17+($E$16*(AA16/100))/(1-$E$19)) -> 21.61147483 | AC16: =AB16/V16 -> 0.08974579455 | AD16: =$E$6/(1-AC16) -> 9897629.797 | AE16: =IF(OR(OR(AD16=AD10,AD16=(AD10+1)),AD16=(AD10-1)),"yes","not yet") -> not yet | AF16: =100*(1-AC16) -> 91.02542055
B17: * | C17: Actual Cost of Debt | E17: 0.0494 | F17: WUTC Fee | H17: 0.004275 | I17: * | V17: =100*(+AD11/$E$7) -> 240.5437039 | W17: =EXP(5.6985-(0.68367*LN(V17))) -> 7.028719423 | X17: =(+W17*V17)/100 -> 16.90714204 | Y17: =100*((((X17/100)-((X17/100)-0.03574)*$E$19)-0.03574-0.00619)/0.344) -> 22.19248524 | Z17: =+$E$18 -> 0.25 | AA17: =Y17+Z17 -> 22.44248524 | AB17: =100*($E$15*$E$17+($E$16*(AA17/100))/(1-$E$19)) -> 21.34960198 | AC17: =AB17/V17 -> 0.08875560503 | AD17: =$E$6/(1-AC17) -> 9886874.692 | AE17: =IF(OR(OR(AD17=AD11,AD17=(AD11+1)),AD17=(AD11-1)),"yes","not yet") -> not yet | AF17: =100*(1-AC17) -> 91.1244395 | AJ17: =HLOOKUP(1,$AJ$11:$AR$15,$E$10+1) -> not yet | AK17: =HLOOKUP(2,$AJ$11:$AR$15,$E$10+1) -> not yet | AL17: =HLOOKUP(3,$AJ$11:$AR$15,$E$10+1) -> not yet | AM17: =HLOOKUP(4,$AJ$11:$AR$15,$E$10+1) -> not yet | AN17: =HLOOKUP(5,$AJ$11:$AR$15,$E$10+1) -> not yet | AO17: =HLOOKUP(6,$AJ$11:$AR$15,$E$10+1) -> not yet | AP17: =HLOOKUP(7,$AJ$11:$AR$15,$E$10+1) -> yes | AQ17: =HLOOKUP(8,$AJ$11:$AR$15,$E$10+1) -> yes | AR17: =HLOOKUP(9,$AJ$11:$AR$15,$E$10+1) -> yes
B18: * | C18: Basis Points | E18: 0.25 | F18: City Tax | H18: 0 | I18: * | V18: =100*(+AD12/$E$7) -> 240.3749494 | W18: =EXP(5.6922-(0.68367*LN(V18))) -> 6.987929689 | X18: =(+W18*V18)/100 -> 16.79723245 | Y18: =100*((((X18/100)-((X18/100)-0.03574)*$E$19)-0.03574-0.00619)/0.344) -> 21.99471188 | Z18: =+$E$18 -> 0.25 | AA18: =Y18+Z18 -> 22.24471188 | AB18: =100*($E$15*$E$17+($E$16*(AA18/100))/(1-$E$19)) -> 21.18218156 | AC18: =AB18/V18 -> 0.08812141872 | AD18: =$E$6/(1-AC18) -> 9879998.644 | AE18: =IF(OR(OR(AD18=AD12,AD18=(AD12+1)),AD18=(AD12-1)),"yes","not yet") -> not yet | AF18: =100*(1-AC18) -> 91.18785813 | AI18: 1 | AJ18: =AF3 -> 91.57130393 | AK18: =AF9 -> 90.83277483 | AL18: =AF15 -> 90.87870281 | AM18: =AF21 -> 90.87584208 | AN18: =AF27 -> 90.87602025 | AO18: =AF33 -> 90.87600915 | AP18: =AF39 -> 90.87601 | AQ18: =AF45 -> 90.87601 | AR18: =AF51 -> 90.87601
B19: * | C19: Tax Rate | E19: 0.381 | F19: Bad Debts | H19: 0.006 | I19: * | AI19: 2 | AJ19: =AF4 -> 91.71410741 | AK19: =AF10 -> 90.98069972 | AL19: =AF16 -> 91.02542055 | AM19: =AF22 -> 91.02268928 | AN19: =AF28 -> 91.02285608 | AO19: =AF34 -> 91.02284589 | AP19: =AF40 -> 91.02284665 | AQ19: =AF46 -> 91.02284665 | AR19: =AF52 -> 91.02284665
H20: - | V20: 4th Turnover | W20: M | X20: ROR | Y20: ROE | AI20: 3 | AJ20: =AF5 -> 91.81030228 | AK20: =AF11 -> 91.08053584 | AL20: =AF17 -> 91.1244395 | AM20: =AF23 -> 91.12179401 | AN20: =AF29 -> 91.1219534 | AO20: =AF35 -> 91.1219438 | AP20: =AF41 -> 91.12194411 | AQ20: =AF47 -> 91.12194411 | AR20: =AF53 -> 91.12194411
F21: Revenue Sensitive | H21: =SUM(H16:H19) -> 0.025275 | V21: =100*(+AD15/$E$7) -> 241.0779288 | W21: =EXP(5.7226-(0.68367*LN(+V21))) -> 7.189257136 | X21: =(+W21*V21)/100 -> 17.3317122 | Y21: =100*((((X21/100)-((X21/100)-0.03574)*$E$19)-0.03574-0.00619)/0.344) -> 22.95646469 | Z21: =+$E$18 -> 0.25 | AA21: =Y21+Z21 -> 23.20646469 | AB21: =100*($E$15*$E$17+($E$16*(AA21/100))/(1-$E$19)) -> 21.99633095 | AC21: =AB21/V21 -> 0.09124157924 | AD21: =$E$6/(1-AC21) -> 9913920.951 | AE21: =IF(OR(OR(AD21=AD15,AD21=(AD15+1)),AD21=(AD7-1)),"yes","not yet") -> not yet | AF21: =100*(1-AC21) -> 90.87584208 | AI21: 4 | AJ21: =AF6 -> 91.87183517 | AK21: =AF12 -> 91.14447869 | AL21: =AF18 -> 91.18785813 | AM21: =AF24 -> 91.18526689 | AN21: =AF30 -> 91.18542166 | AO21: =AF36 -> 91.18541242 | AP21: =AF42 -> 91.18541317 | AQ21: =AF48 -> 91.18541317 | AR21: =AF54 -> 91.18541317
V22: =100*(+AD16/$E$7) -> 240.6893516 | W22: =EXP(5.70827-(0.68367*LN(+V22))) -> 7.094789901 | X22: =(+W22*V22)/100 -> 17.07640381 | Y22: =100*((((X22/100)-((X22/100)-0.03574)*$E$19)-0.03574-0.00619)/0.344) -> 22.49705802 | Z22: =+$E$18 -> 0.25 | AA22: =Y22+Z22 -> 22.74705802 | AB22: =100*($E$15*$E$17+($E$16*(AA22/100))/(1-$E$19)) -> 21.60743095 | AC22: =AB22/V22 -> 0.08977310717 | AD22: =$E$6/(1-AC22) -> 9897926.789 | AE22: =IF(OR(OR(AD22=AD16,AD22=(AD16+1)),AD22=(AD16-1)),"yes","not yet") -> not yet | AF22: =100*(1-AC22) -> 91.02268928
F23: Conversion Factor | H23: =((+H13/100)-H21) -> 0.8859444411 | V23: =100*(+AD17/$E$7) -> 240.4278103 | W23: =EXP(5.6985-(0.68367*LN(V23))) -> 7.031035562 | X23: =(+W23*V23)/100 -> 16.90456484 | Y23: =100*((((X23/100)-((X23/100)-0.03574)*$E$19)-0.03574-0.00619)/0.344) -> 22.18784778 | Z23: =+$E$18 -> 0.25 | AA23: =Y23+Z23 -> 22.43784778 | AB23: =100*($E$15*$E$17+($E$16*(AA23/100))/(1-$E$19)) -> 21.34567625 | AC23: =AB23/V23 -> 0.08878205988 | AD23: =$E$6/(1-AC23) -> 9887161.732 | AE23: =IF(OR(OR(AD23=AD17,AD23=(AD17+1)),AD23=(AD17-1)),"yes","not yet") -> not yet | AF23: =100*(1-AC23) -> 91.12179401 | AJ23: yes
V24: =100*(+AD18/$E$7) -> 240.2605994 | W24: =EXP(5.6922-(0.68367*LN(V24))) -> 6.990203299 | X24: =(+W24*V24)/100 -> 16.79470434 | Y24: =100*((((X24/100)-((X24/100)-0.03574)*$E$19)-0.03574-0.00619)/0.344) -> 21.99016276 | Z24: =+$E$18 -> 0.25 | AA24: =Y24+Z24 -> 22.24016276 | AB24: =100*($E$15*$E$17+($E$16*(AA24/100))/(1-$E$19)) -> 21.17833061 | AC24: =AB24/V24 -> 0.08814733112 | AD24: =$E$6/(1-AC24) -> 9880279.407 | AE24: =IF(OR(OR(AD24=AD18,AD24=(AD18+1)),AD24=(AD18-1)),"yes","not yet") -> not yet | AF24: =100*(1-AC24) -> 91.18526689 | AJ24: =HLOOKUP($AJ$23,$AJ$17:$AR$21,$E$10+1) -> 91.12194411
C26: Company Reference | V26: 5th Turnover | W26: M | X26: ROR | Y26: ROE | AJ26: =HLOOKUP(1,$AJ$11:$AR$15,$E$10+1) -> not yet | AK26: =HLOOKUP(2,$AJ$11:$AR$15,$E$10+1) -> not yet | AL26: =HLOOKUP(3,$AJ$11:$AR$15,$E$10+1) -> not yet | AM26: =HLOOKUP(4,$AJ$11:$AR$15,$E$10+1) -> not yet | AN26: =HLOOKUP(5,$AJ$11:$AR$15,$E$10+1) -> not yet | AO26: =HLOOKUP(6,$AJ$11:$AR$15,$E$10+1) -> not yet | AP26: =HLOOKUP(7,$AJ$11:$AR$15,$E$10+1) -> yes | AQ26: =HLOOKUP(8,$AJ$11:$AR$15,$E$10+1) -> yes | AR26: =HLOOKUP(9,$AJ$11:$AR$15,$E$10+1) -> yes
C27: Annl Price Increase (PI) $ | E27: =+E4 -> 680082.5872 | V27: =100*(+AD21/$E$7) -> 241.0855179 | W27: =EXP(5.7226-(0.68367*LN(+V27))) -> 7.189102415 | X27: =(+W27*V27)/100 -> 17.33188479 | Y27: =100*((((X27/100)-((X27/100)-0.03574)*$E$19)-0.03574-0.00619)/0.344) -> 22.95677524 | Z27: =+$E$18 -> 0.25 | AA27: =Y27+Z27 -> 23.20677524 | AB27: =100*($E$15*$E$17+($E$16*(AA27/100))/(1-$E$19)) -> 21.99659384 | AC27: =AB27/V27 -> 0.09123979754 | AD27: =$E$6/(1-AC27) -> 9913901.514 | AE27: =IF(OR(OR(AD27=AD21,AD27=(AD21+1)),AD27=(AD13-1)),"yes","not yet") -> not yet | AF27: =100*(1-AC27) -> 90.87602025 | AI27: 1 | AJ27: =V3 -> 273.8606181 | AK27: =V9 -> 239.2545318 | AL27: =V15 -> 241.1998256 | AM27: =V21 -> 241.0779288 | AN27: =V27 -> 241.0855179 | AO27: =V33 -> 241.0850452 | AP27: =V39 -> 241.0850814 | AQ27: =V45 -> 241.0850814 | AR27: =V51 -> 241.0850814
C28: Monthly PI $ | E28: =+E27/12 -> 56673.54893 | V28: =100*(+AD22/$E$7) -> 240.6965738 | W28: =EXP(5.70827-(0.68367*LN(+V28))) -> 7.094644359 | X28: =(+W28*V28)/100 -> 17.0765659 | Y28: =100*((((X28/100)-((X28/100)-0.03574)*$E$19)-0.03574-0.00619)/0.344) -> 22.49734968 | Z28: =+$E$18 -> 0.25 | AA28: =Y28+Z28 -> 22.74734968 | AB28: =100*($E$15*$E$17+($E$16*(AA28/100))/(1-$E$19)) -> 21.60767785 | AC28: =AB28/V28 -> 0.08977143925 | AD28: =$E$6/(1-AC28) -> 9897908.652 | AE28: =IF(OR(OR(AD28=AD22,AD28=(AD22+1)),AD28=(AD22-1)),"yes","not yet") -> not yet | AF28: =100*(1-AC28) -> 91.02285608 | AI28: 2 | AJ28: =V4 -> 273.8606181 | AK28: =V10 -> 238.8820005 | AL28: =V16 -> 240.8076605 | AM28: =V22 -> 240.6893516 | AN28: =V28 -> 240.6965738 | AO28: =V34 -> 240.6961328 | AP28: =V40 -> 240.6961655 | AQ28: =V46 -> 240.6961655 | AR28: =V52 -> 240.6961655
C29: Percentage PI | E29: =+E4/E5 -> 0.0738420175 | V29: =100*(+AD23/$E$7) -> 240.4347905 | W29: =EXP(5.6985-(0.68367*LN(V29))) -> 7.03089601 | X29: =(+W29*V29)/100 -> 16.90472009 | Y29: =100*((((X29/100)-((X29/100)-0.03574)*$E$19)-0.03574-0.00619)/0.344) -> 22.18812714 | Z29: =+$E$18 -> 0.25 | AA29: =Y29+Z29 -> 22.43812714 | AB29: =100*($E$15*$E$17+($E$16*(AA29/100))/(1-$E$19)) -> 21.34591273 | AC29: =AB29/V29 -> 0.08878046595 | AD29: =$E$6/(1-AC29) -> 9887144.437 | AE29: =IF(OR(OR(AD29=AD23,AD29=(AD23+1)),AD29=(AD23-1)),"yes","not yet") -> not yet | AF29: =100*(1-AC29) -> 91.1219534 | AI29: 3 | AJ29: =V5 -> 273.8606181 | AK29: =V11 -> 238.6317102 | AL29: =V17 -> 240.5437039 | AM29: =V23 -> 240.4278103 | AN29: =V29 -> 240.4347905 | AO29: =V35 -> 240.4343699 | AP29: =V41 -> 240.4343836 | AQ29: =V47 -> 240.4343836 | AR29: =V53 -> 240.4343836
V30: =100*(+AD24/$E$7) -> 240.2674269 | W30: =EXP(5.6922-(0.68367*LN(V30))) -> 6.990067496 | X30: =(+W30*V30)/100 -> 16.79485531 | Y30: =100*((((X30/100)-((X30/100)-0.03574)*$E$19)-0.03574-0.00619)/0.344) -> 21.99043442 | Z30: =+$E$18 -> 0.25 | AA30: =Y30+Z30 -> 22.24043442 | AB30: =100*($E$15*$E$17+($E$16*(AA30/100))/(1-$E$19)) -> 21.17856057 | AC30: =AB30/V30 -> 0.0881457834 | AD30: =$E$6/(1-AC30) -> 9880262.637 | AE30: =IF(OR(OR(AD30=AD24,AD30=(AD24+1)),AD30=(AD24-1)),"yes","not yet") -> not yet | AF30: =100*(1-AC30) -> 91.18542166 | AI30: 4 | AJ30: =V6 -> 273.8606181 | AK30: =V12 -> 238.4718821 | AL30: =V18 -> 240.3749494 | AM30: =V24 -> 240.2605994 | AN30: =V30 -> 240.2674269 | AO30: =V36 -> 240.2670191 | AP30: =V42 -> 240.2670523 | AQ30: =V48 -> 240.2670523 | AR30: =V54 -> 240.2670523
V32: 6th Turnover | W32: M | X32: ROR | Y32: ROE | AJ32: yes
C33: SLOBs | E33: PI $ | F33: PI % | V33: =100*(+AD27/$E$7) -> 241.0850452 | W33: =EXP(5.7226-(0.68367*LN(+V33))) -> 7.189112051 | X33: =(+W33*V33)/100 -> 17.33187404 | Y33: =100*((((X33/100)-((X33/100)-0.03574)*$E$19)-0.03574-0.00619)/0.344) -> 22.9567559 | Z33: =+$E$18 -> 0.25 | AA33: =Y33+Z33 -> 23.2067559 | AB33: =100*($E$15*$E$17+($E$16*(AA33/100))/(1-$E$19)) -> 21.99657747 | AC33: =AB33/V33 -> 0.09123990851 | AD33: =ROUND($E$6/(1-AC33),0) -> 9913903 | AE33: =IF(OR(OR(AD33=AD27,AD33=(AD27+1)),AD33=(AD19-1)),"yes","not yet") -> not yet | AF33: =100*(1-AC33) -> 90.87600915 | AJ33: =HLOOKUP($AJ$32,$AJ$26:$AR$30,$E$10+1) -> 240.4343836
C34: MSW | E34: =MSW!E4 -> 135458.0493 | F34: =+MSW!H6 -> 0.0209067371 | V34: =100*(+AD28/$E$7) -> 240.6961328 | W34: =EXP(5.70827-(0.68367*LN(+V34))) -> 7.094653247 | X34: =(+W34*V34)/100 -> 17.076556 | Y34: =100*((((X34/100)-((X34/100)-0.03574)*$E$19)-0.03574-0.00619)/0.344) -> 22.49733187 | Z34: =+$E$18 -> 0.25 | AA34: =Y34+Z34 -> 22.74733187 | AB34: =100*($E$15*$E$17+($E$16*(AA34/100))/(1-$E$19)) -> 21.60766278 | AC34: =AB34/V34 -> 0.08977154111 | AD34: =ROUND($E$6/(1-AC34),0) -> 9897910 | AE34: =IF(OR(OR(AD34=AD28,AD34=(AD28+1)),AD34=(AD28-1)),"yes","not yet") -> not yet | AF34: =100*(1-AC34) -> 91.02284589
C35: RCY | E35: =RCY!E4 -> 270631.3255 | F35: =+RCY!H6 -> 0.1469801133 | V35: =100*(+AD29/$E$7) -> 240.4343699 | W35: =EXP(5.6985-(0.68367*LN(V35))) -> 7.030904418 | X35: =(+W35*V35)/100 -> 16.90471073 | Y35: =100*((((X35/100)-((X35/100)-0.03574)*$E$19)-0.03574-0.00619)/0.344) -> 22.1881103 | Z35: =+$E$18 -> 0.25 | AA35: =Y35+Z35 -> 22.4381103 | AB35: =100*($E$15*$E$17+($E$16*(AA35/100))/(1-$E$19)) -> 21.34589848 | AC35: =AB35/V35 -> 0.08878056199 | AD35: =ROUND($E$6/(1-AC35),0) -> 9887145 | AE35: =IF(OR(OR(AD35=AD29,AD35=(AD29+1)),AD35=(AD29-1)),"yes","not yet") -> not yet | AF35: =100*(1-AC35) -> 91.1219438 | AJ35: =HLOOKUP(1,$AJ$11:$AR$15,$E$10+1) -> not yet | AK35: =HLOOKUP(2,$AJ$11:$AR$15,$E$10+1) -> not yet | AL35: =HLOOKUP(3,$AJ$11:$AR$15,$E$10+1) -> not yet | AM35: =HLOOKUP(4,$AJ$11:$AR$15,$E$10+1) -> not yet | AN35: =HLOOKUP(5,$AJ$11:$AR$15,$E$10+1) -> not yet | AO35: =HLOOKUP(6,$AJ$11:$AR$15,$E$10+1) -> not yet | AP35: =HLOOKUP(7,$AJ$11:$AR$15,$E$10+1) -> yes | AQ35: =HLOOKUP(8,$AJ$11:$AR$15,$E$10+1) -> yes | AR35: =HLOOKUP(9,$AJ$11:$AR$15,$E$10+1) -> yes
C36: YW | E36: =YW!E4 -> 220282.4871 | F36: =+YW!H6 -> 0.2521965451 | V36: =100*(+AD30/$E$7) -> 240.2670191 | W36: =EXP(5.6922-(0.68367*LN(V36))) -> 6.990075608 | X36: =(+W36*V36)/100 -> 16.7948463 | Y36: =100*((((X36/100)-((X36/100)-0.03574)*$E$19)-0.03574-0.00619)/0.344) -> 21.99041819 | Z36: =+$E$18 -> 0.25 | AA36: =Y36+Z36 -> 22.24041819 | AB36: =100*($E$15*$E$17+($E$16*(AA36/100))/(1-$E$19)) -> 21.17854684 | AC36: =AB36/V36 -> 0.08814587585 | AD36: =ROUND($E$6/(1-AC36),0) -> 9880264 | AE36: =IF(OR(OR(AD36=AD30,AD36=(AD30+1)),AD36=(AD30-1)),"yes","not yet") -> not yet | AF36: =100*(1-AC36) -> 91.18541242 | AI36: 1 | AJ36: =AD3 -> 9838627.124 | AK36: =AD9 -> 9918621.514 | AL36: =AD15 -> 9913608.874 | AM36: =AD21 -> 9913920.951 | AN36: =AD27 -> 9913901.514 | AO36: =AD33 -> 9913903 | AP36: =AD39 -> 9913903 | AQ36: =AD45 -> 9913903 | AR36: =AD51 -> 9913903
C37: MF RCY | E37: ='MF RCY'!E4 -> 53710.72531 | F37: =+'MF RCY'!H6 -> 3.341128464 | AI37: 2 | AJ37: =AD4 -> 9823307.887 | AK37: =AD10 -> 9902494.897 | AL37: =AD16 -> 9897629.797 | AM37: =AD22 -> 9897926.789 | AN37: =AD28 -> 9897908.652 | AO37: =AD34 -> 9897910 | AP37: =AD40 -> 9897910 | AQ37: =AD46 -> 9897910 | AR37: =AD52 -> 9897910
C38: Combined | E38: =+E4 -> 680082.5872 | F38: =+H7 -> 0.0738420175 | V38: 7th turnover | W38: M | X38: ROR | Y38: ROE | AI38: 3 | AJ38: =AD5 -> 9813015.449 | AK38: =AD11 -> 9891640.473 | AL38: =AD17 -> 9886874.692 | AM38: =AD23 -> 9887161.732 | AN38: =AD29 -> 9887144.437 | AO38: =AD35 -> 9887145 | AP38: =AD41 -> 9887145 | AQ38: =AD47 -> 9887145 | AR38: =AD53 -> 9887145
E39: =+E38-SUM(E34:E37) -> 0 | V39: =100*(+AD33/$E$7) -> 241.0850814 | W39: =EXP(5.7226-(0.68367*LN(+V39))) -> 7.189111314 | X39: =(+W39*V39)/100 -> 17.33187486 | Y39: =100*((((X39/100)-((X39/100)-0.03574)*$E$19)-0.03574-0.00619)/0.344) -> 22.95675738 | Z39: =+$E$18 -> 0.25 | AA39: =Y39+Z39 -> 23.20675738 | AB39: =100*($E$15*$E$17+($E$16*(AA39/100))/(1-$E$19)) -> 21.99657872 | AC39: =AB39/V39 -> 0.09123990002 | AD39: =ROUND($E$6/(1-AC39),0) -> 9913903 | AE39: =IF(OR(OR(AD39=AD33,AD39=(AD33+1)),AD39=(AD25-1)),"yes","not yet") -> yes | AF39: =100*(1-AC39) -> 90.87601 | AI39: 4 | AJ39: =AD6 -> 9806442.997 | AK39: =AD12 -> 9884700.945 | AL39: =AD18 -> 9879998.644 | AM39: =AD24 -> 9880279.407 | AN39: =AD30 -> 9880262.637 | AO39: =AD36 -> 9880264 | AP39: =AD42 -> 9880264 | AQ39: =AD48 -> 9880264 | AR39: =AD54 -> 9880264
V40: =100*(+AD34/$E$7) -> 240.6961655 | W40: =EXP(5.70827-(0.68367*LN(+V40))) -> 7.094652586 | X40: =(+W40*V40)/100 -> 17.07655673 | Y40: =100*((((X40/100)-((X40/100)-0.03574)*$E$19)-0.03574-0.00619)/0.344) -> 22.49733319 | Z40: =+$E$18 -> 0.25 | AA40: =Y40+Z40 -> 22.74733319 | AB40: =100*($E$15*$E$17+($E$16*(AA40/100))/(1-$E$19)) -> 21.6076639 | AC40: =AB40/V40 -> 0.08977153353 | AD40: =ROUND($E$6/(1-AC40),0) -> 9897910 | AE40: =IF(OR(OR(AD40=AD34,AD40=(AD34+1)),AD40=(AD34-1)),"yes","not yet") -> yes | AF40: =100*(1-AC40) -> 91.02284665
V41: =100*(+AD35/$E$7) -> 240.4343836 | W41: =EXP(5.6985-(0.68367*LN(V41))) -> 7.030904144 | X41: =(+W41*V41)/100 -> 16.90471104 | Y41: =100*((((X41/100)-((X41/100)-0.03574)*$E$19)-0.03574-0.00619)/0.344) -> 22.18811085 | Z41: =+$E$18 -> 0.25 | AA41: =Y41+Z41 -> 22.43811085 | AB41: =100*($E$15*$E$17+($E$16*(AA41/100))/(1-$E$19)) -> 21.34589894 | AC41: =AB41/V41 -> 0.08878055886 | AD41: =ROUND($E$6/(1-AC41),0) -> 9887145 | AE41: =IF(OR(OR(AD41=AD35,AD41=(AD35+1)),AD41=(AD35-1)),"yes","not yet") -> yes | AF41: =100*(1-AC41) -> 91.12194411 | AJ41: yes
V42: =100*(+AD36/$E$7) -> 240.2670523 | W42: =EXP(5.6922-(0.68367*LN(V42))) -> 6.990074949 | X42: =(+W42*V42)/100 -> 16.79484703 | Y42: =100*((((X42/100)-((X42/100)-0.03574)*$E$19)-0.03574-0.00619)/0.344) -> 21.99041951 | Z42: =+$E$18 -> 0.25 | AA42: =Y42+Z42 -> 22.24041951 | AB42: =100*($E$15*$E$17+($E$16*(AA42/100))/(1-$E$19)) -> 21.17854795 | AC42: =AB42/V42 -> 0.08814586833 | AD42: =ROUND($E$6/(1-AC42),0) -> 9880264 | AE42: =IF(OR(OR(AD42=AD36,AD42=(AD36+1)),AD42=(AD36-1)),"yes","not yet") -> yes | AF42: =100*(1-AC42) -> 91.18541317 | AJ42: =HLOOKUP($AJ$32,$AJ$35:$AR$39,$E$10+1) -> 9887145
V44: 8th turnover | W44: M | X44: ROR | Y44: ROE
V45: =100*(+AD39/$E$7) -> 241.0850814 | W45: =EXP(5.7226-(0.68367*LN(+V45))) -> 7.189111314 | X45: =(+W45*V45)/100 -> 17.33187486 | Y45: =100*((((X45/100)-((X45/100)-0.03574)*$E$19)-0.03574-0.00619)/0.344) -> 22.95675738 | Z45: =+$E$18 -> 0.25 | AA45: =Y45+Z45 -> 23.20675738 | AB45: =100*($E$15*$E$17+($E$16*(AA45/100))/(1-$E$19)) -> 21.99657872 | AC45: =AB45/V45 -> 0.09123990002 | AD45: =ROUND($E$6/(1-AC45),0) -> 9913903 | AE45: =IF(OR(OR(AD45=AD39,AD45=(AD39+1)),AD45=(AD31-1)),"yes","not yet") -> yes | AF45: =100*(1-AC45) -> 90.87601
V46: =100*(+AD40/$E$7) -> 240.6961655 | W46: =EXP(5.70827-(0.68367*LN(+V46))) -> 7.094652586 | X46: =(+W46*V46)/100 -> 17.07655673 | Y46: =100*((((X46/100)-((X46/100)-0.03574)*$E$19)-0.03574-0.00619)/0.344) -> 22.49733319 | Z46: =+$E$18 -> 0.25 | AA46: =Y46+Z46 -> 22.74733319 | AB46: =100*($E$15*$E$17+($E$16*(AA46/100))/(1-$E$19)) -> 21.6076639 | AC46: =AB46/V46 -> 0.08977153353 | AD46: =ROUND($E$6/(1-AC46),0) -> 9897910 | AE46: =IF(OR(OR(AD46=AD40,AD46=(AD40+1)),AD46=(AD40-1)),"yes","not yet") -> yes | AF46: =100*(1-AC46) -> 91.02284665
V47: =100*(+AD41/$E$7) -> 240.4343836 | W47: =EXP(5.6985-(0.68367*LN(V47))) -> 7.030904144 | X47: =(+W47*V47)/100 -> 16.90471104 | Y47: =100*((((X47/100)-((X47/100)-0.03574)*$E$19)-0.03574-0.00619)/0.344) -> 22.18811085 | Z47: =+$E$18 -> 0.25 | AA47: =Y47+Z47 -> 22.43811085 | AB47: =100*($E$15*$E$17+($E$16*(AA47/100))/(1-$E$19)) -> 21.34589894 | AC47: =AB47/V47 -> 0.08878055886 | AD47: =ROUND($E$6/(1-AC47),0) -> 9887145 | AE47: =IF(OR(OR(AD47=AD41,AD47=(AD41+1)),AD47=(AD41-1)),"yes","not yet") -> yes | AF47: =100*(1-AC47) -> 91.12194411
V48: =100*(+AD42/$E$7) -> 240.2670523 | W48: =EXP(5.6922-(0.68367*LN(V48))) -> 6.990074949 | X48: =(+W48*V48)/100 -> 16.79484703 | Y48: =100*((((X48/100)-((X48/100)-0.03574)*$E$19)-0.03574-0.00619)/0.344) -> 21.99041951 | Z48: =+$E$18 -> 0.25 | AA48: =Y48+Z48 -> 22.24041951 | AB48: =100*($E$15*$E$17+($E$16*(AA48/100))/(1-$E$19)) -> 21.17854795 | AC48: =AB48/V48 -> 0.08814586833 | AD48: =ROUND($E$6/(1-AC48),0) -> 9880264 | AE48: =IF(OR(OR(AD48=AD42,AD48=(AD42+1)),AD48=(AD42-1)),"yes","not yet") -> yes | AF48: =100*(1-AC48) -> 91.18541317
V50: 9th turnover | W50: M | X50: ROR | Y50: ROE
V51: =100*(+AD45/$E$7) -> 241.0850814 | W51: =EXP(5.7226-(0.68367*LN(+V51))) -> 7.189111314 | X51: =(+W51*V51)/100 -> 17.33187486 | Y51: =100*((((X51/100)-((X51/100)-0.03574)*$E$19)-0.03574-0.00619)/0.344) -> 22.95675738 | Z51: =+$E$18 -> 0.25 | AA51: =Y51+Z51 -> 23.20675738 | AB51: =100*($E$15*$E$17+($E$16*(AA51/100))/(1-$E$19)) -> 21.99657872 | AC51: =AB51/V51 -> 0.09123990002 | AD51: =ROUND($E$6/(1-AC51),0) -> 9913903 | AE51: =IF(OR(OR(AD51=AD45,AD51=(AD45+1)),AD51=(AD37-1)),"yes","not yet") -> yes | AF51: =100*(1-AC51) -> 90.87601
V52: =100*(+AD46/$E$7) -> 240.6961655 | W52: =EXP(5.70827-(0.68367*LN(+V52))) -> 7.094652586 | X52: =(+W52*V52)/100 -> 17.07655673 | Y52: =100*((((X52/100)-((X52/100)-0.03574)*$E$19)-0.03574-0.00619)/0.344) -> 22.49733319 | Z52: =+$E$18 -> 0.25 | AA52: =Y52+Z52 -> 22.74733319 | AB52: =100*($E$15*$E$17+($E$16*(AA52/100))/(1-$E$19)) -> 21.6076639 | AC52: =AB52/V52 -> 0.08977153353 | AD52: =ROUND($E$6/(1-AC52),0) -> 9897910 | AE52: =IF(OR(OR(AD52=AD46,AD52=(AD46+1)),AD52=(AD46-1)),"yes","not yet") -> yes | AF52: =100*(1-AC52) -> 91.02284665
V53: =100*(+AD47/$E$7) -> 240.4343836 | W53: =EXP(5.6985-(0.68367*LN(V53))) -> 7.030904144 | X53: =(+W53*V53)/100 -> 16.90471104 | Y53: =100*((((X53/100)-((X53/100)-0.03574)*$E$19)-0.03574-0.00619)/0.344) -> 22.18811085 | Z53: =+$E$18 -> 0.25 | AA53: =Y53+Z53 -> 22.43811085 | AB53: =100*($E$15*$E$17+($E$16*(AA53/100))/(1-$E$19)) -> 21.34589894 | AC53: =AB53/V53 -> 0.08878055886 | AD53: =ROUND($E$6/(1-AC53),0) -> 9887145 | AE53: =IF(OR(OR(AD53=AD47,AD53=(AD47+1)),AD53=(AD47-1)),"yes","not yet") -> yes | AF53: =100*(1-AC53) -> 91.12194411
V54: =100*(+AD48/$E$7) -> 240.2670523 | W54: =EXP(5.6922-(0.68367*LN(V54))) -> 6.990074949 | X54: =(+W54*V54)/100 -> 16.79484703 | Y54: =100*((((X54/100)-((X54/100)-0.03574)*$E$19)-0.03574-0.00619)/0.344) -> 21.99041951 | Z54: =+$E$18 -> 0.25 | AA54: =Y54+Z54 -> 22.24041951 | AB54: =100*($E$15*$E$17+($E$16*(AA54/100))/(1-$E$19)) -> 21.17854795 | AC54: =AB54/V54 -> 0.08814586833 | AD54: =ROUND($E$6/(1-AC54),0) -> 9880264 | AE54: =IF(OR(OR(AD54=AD48,AD54=(AD48+1)),AD54=(AD48-1)),"yes","not yet") -> yes | AF54: =100*(1-AC54) -> 91.18541317

Sheet MSW
B1: NEW IMPROVED LURITO - GALLAGHER FORMULA | AE1: !??! | AF1: OP/RATIO | AI1: curve
G2: NOTE: | N2: FORMULAS | U2: 1st Revenue | V2: 1st Turnover | W2: M | X2: ROR | Y2: ROE | AA2: Adj ROE | AB2: Pre Tax ROE | AC2: Adj M | AD2: Revenues | AE2: Decision | AI2: lookup table
B3: !!! | C3: Revenue Requirement | E3: =E5+E4 -> 6614615.875 | F3: !!!<-- | H3: Red numbers are input/linked fields. | N3: 1. less than 50 | Q3: @EXP(5.72260-(.68367*@LN(T))) | U3: =$E$6*1.25 -> 7658664.965 | V3: =100*(+U3/$E$7) -> 379.755584 | W3: =EXP(5.7226-(0.68367*LN(+V3))) -> 5.269434217 | X3: =(+W3*V3)/100 -> 20.01097069 | Y3: =100*((((X3/100)-((X3/100)-0.03574)*$E$19)-0.03574-0.00619)/0.344) -> 27.77757225 | Z3: =+$E$18 -> 0.25 | AA3: =Y3+Z3 -> 28.02757225 | AB3: =100*($E$15*$E$17+($E$16*(AA3/100))/(1-$E$19)) -> 26.07752701 | AC3: =AB3/V3 -> 0.06866923913 | AD3: =$E$6/(1-AC3) -> 6578685.285 | AE3: =IF(AD3=$U$3,"yes","not yet") -> not yet | AF3: =100*(1-AC3) -> 93.13307609 | AI3: 0 | AJ3: 1
B4: !!! | C4: Revenue Deficiency | E4: =(+E6-((H13/100)*E5))/H23 -> 135458.0493 | F4: !!!<-- | H4: Black are formula calculations | N4: 2. Between 50 and 125 | Q4: @EXP(5.70827-(.68367*@LN(T))) | U4: =$E$6*1.25 -> 7658664.965 | V4: =100*(+U4/$E$7) -> 379.755584 | W4: =EXP(5.70827-(0.68367*LN(+V4))) -> 5.194461686 | X4: =(+W4*V4)/100 -> 19.72625831 | Y4: =100*((((X4/100)-((X4/100)-0.03574)*$E$19)-0.03574-0.00619)/0.344) -> 27.26525551 | Z4: =+$E$18 -> 0.25 | AA4: =Y4+Z4 -> 27.51525551 | AB4: =100*($E$15*$E$17+($E$16*(AA4/100))/(1-$E$19)) -> 25.64383723 | AC4: =AB4/V4 -> 0.06752721569 | AD4: =$E$6/(1-AC4) -> 6570628.199 | AE4: =IF(AD4=$U$4,"yes","not yet") -> not yet | AF4: =100*(1-AC4) -> 93.24727843 | AI4: 50 | AJ4: 2
B5: * | C5: Revenue | E5: =Proforma!O20 -> 6479157.826 | F5: * p/f before rates | N5: 3. Between 125 and 140 | Q5: @EXP(5.69850-(.68367*@LN(T))) | U5: =$E$6*1.25 -> 7658664.965 | V5: =100*(+U5/$E$7) -> 379.755584 | W5: =EXP(5.6985-(0.68367*LN(V5))) -> 5.143958903 | X5: =(+W5*V5)/100 -> 19.53447118 | Y5: =100*((((X5/100)-((X5/100)-0.03574)*$E$19)-0.03574-0.00619)/0.344) -> 26.92015017 | Z5: =+$E$18 -> 0.25 | AA5: =Y5+Z5 -> 27.17015017 | AB5: =100*($E$15*$E$17+($E$16*(AA5/100))/(1-$E$19)) -> 25.35169636 | AC5: =AB5/V5 -> 0.06675792912 | AD5: =$E$6/(1-AC5) -> 6565211.924 | AE5: =IF(AD5=$U$5,"yes","not yet") -> not yet | AF5: =100*(1-AC5) -> 93.32420709 | AI5: 125 | AJ5: 3
B6: * | C6: Expenses | E6: =+Proforma!O368 -> 6126931.972 | F6: * p/f before rates | H6: =E4/E5 -> 0.0209067371 | N6: 4. greater than 400 | Q6: @EXP(5.69220-(.68367*@LN(T))) | U6: =$E$6*1.25 -> 7658664.965 | V6: =100*(+U6/$E$7) -> 379.755584 | W6: =EXP(5.6922-(0.68367*LN(V6))) -> 5.11165383 | X6: =(+W6*V6)/100 -> 19.41179086 | Y6: =100*((((X6/100)-((X6/100)-0.03574)*$E$19)-0.03574-0.00619)/0.344) -> 26.69939692 | Z6: =+$E$18 -> 0.25 | AA6: =Y6+Z6 -> 26.94939692 | AB6: =100*($E$15*$E$17+($E$16*(AA6/100))/(1-$E$19)) -> 25.16482285 | AC6: =AB6/V6 -> 0.06626584021 | AD6: =$E$6/(1-AC6) -> 6561751.98 | AE6: =IF(AD6=$U$6,"yes","not yet") -> not yet | AF6: =100*(1-AC6) -> 93.37341598 | AI6: 401 | AJ6: 4
B7: * | C7: Avg. Investment - | E7: ='Staff Avg Invest & Depreac'!R2129+'Staff Avg Invest & Depreac'!R2090 -> 2016735.312 | F7: * p/f before rates
C8: curve turnover | E8: =V3 -> 379.755584 | F8: (calculated) | V8: 2nd Turnover | W8: M | X8: ROR | Y8: ROE | AI8: lookup tables
C9: final turnover | E9: =HLOOKUP($AJ$32,$AJ$26:$AR$30,$E$10+1) -> 327.8031559 | F9: (calculated) | V9: =100*(+AD3/$E$7) -> 326.2046955 | W9: =EXP(5.7226-(0.68367*LN(+V9))) -> 5.846497275 | X9: =(+W9*V9)/100 -> 19.07154863 | Y9: =100*((((X9/100)-((X9/100)-0.03574)*$E$19)-0.03574-0.00619)/0.344) -> 26.08715873 | Z9: =+$E$18 -> 0.25 | AA9: =Y9+Z9 -> 26.33715873 | AB9: =100*($E$15*$E$17+($E$16*(AA9/100))/(1-$E$19)) -> 24.6465469 | AC9: =AB9/V9 -> 0.07555546332 | AD9: =$E$6/(1-AC9) -> 6627690.173 | AE9: =IF(OR(OR(AD9=AD3,AD9=(AD3+1)),AD9=(AD8187-1)),"yes","not yet") -> not yet | AF9: =100*(1-AC9) -> 92.44445367
C10: curve No. used | E10: =VLOOKUP(E8,AI3:AJ6,2) -> 3 | F10: (calculated) | V10: =100*(+AD4/$E$7) -> 325.8051842 | W10: =EXP(5.70827-(0.68367*LN(+V10))) -> 5.768145049 | X10: =(+W10*V10)/100 -> 18.7929156 | Y10: =100*((((X10/100)-((X10/100)-0.03574)*$E$19)-0.03574-0.00619)/0.344) -> 25.58578127 | Z10: =+$E$18 -> 0.25 | AA10: =Y10+Z10 -> 25.83578127 | AB10: =100*($E$15*$E$17+($E$16*(AA10/100))/(1-$E$19)) -> 24.22211752 | AC10: =AB10/V10 -> 0.0743454024 | AD10: =$E$6/(1-AC10) -> 6619026.133 | AE10: =IF(OR(OR(AD10=AD4,AD10=(AD4+1)),AD10=(AD4-1)),"yes","not yet") -> not yet | AF10: =100*(1-AC10) -> 92.56545976
V11: =100*(+AD5/$E$7) -> 325.5366177 | W11: =EXP(5.6985-(0.68367*LN(V11))) -> 5.715285999 | X11: =(+W11*V11)/100 -> 18.60534873 | Y11: =100*((((X11/100)-((X11/100)-0.03574)*$E$19)-0.03574-0.00619)/0.344) -> 25.24826996 | Z11: =+$E$18 -> 0.25 | AA11: =Y11+Z11 -> 25.49826996 | AB11: =100*($E$15*$E$17+($E$16*(AA11/100))/(1-$E$19)) -> 23.9364052 | AC11: =AB11/V11 -> 0.07352907138 | AD11: =$E$6/(1-AC11) -> 6613193.984 | AE11: =IF(OR(OR(AD11=AD5,AD11=(AD5+1)),AD11=(AD5-1)),"yes","not yet") -> not yet | AF11: =100*(1-AC11) -> 92.64709286 | AJ11: 1 | AK11: 2 | AL11: 3 | AM11: 4 | AN11: 5 | AO11: 6 | AP11: 7 | AQ11: 8 | AR11: 9
C12: Company actual | V12: =100*(+AD6/$E$7) -> 325.365056 | W12: =EXP(5.6922-(0.68367*LN(V12))) -> 5.681440085 | X12: =(+W12*V12)/100 -> 18.48542072 | Y12: =100*((((X12/100)-((X12/100)-0.03574)*$E$19)-0.03574-0.00619)/0.344) -> 25.03246925 | Z12: =+$E$18 -> 0.25 | AA12: =Y12+Z12 -> 25.28246925 | AB12: =100*($E$15*$E$17+($E$16*(AA12/100))/(1-$E$19)) -> 23.75372415 | AC12: =AB12/V12 -> 0.07300637763 | AD12: =$E$6/(1-AC12) -> 6609465.075 | AE12: =IF(OR(OR(AD12=AD6,AD12=(AD6+1)),AD12=(AD6-1)),"yes","not yet") -> not yet | AF12: =100*(1-AC12) -> 92.69936224 | AJ12: =AE3 -> not yet | AK12: =AE9 -> not yet | AL12: =AE15 -> not yet | AM12: =AE21 -> not yet | AN12: =AE27 -> not yet | AO12: =AE33 -> not yet | AP12: =AE39 -> yes | AQ12: =AE45 -> yes | AR12: =AE51 -> yes
C13: capital structure: | E13: !!! | F13: OPERATING RATIO -> | H13: =HLOOKUP($AJ$23,$AJ$17:$AR$21,$E$10+1) -> 92.67893691 | I13: !!!<-- | AJ13: =AE4 -> not yet | AK13: =AE10 -> not yet | AL13: =AE16 -> not yet | AM13: =AE22 -> not yet | AN13: =AE28 -> not yet | AO13: =AE34 -> not yet | AP13: =AE40 -> yes | AQ13: =AE46 -> yes | AR13: =AE52 -> yes
C14: - | D14: - | H14: = | V14: 3rd Turnover | W14: M | X14: ROR | Y14: ROE | AJ14: =AE5 -> not yet | AK14: =AE11 -> not yet | AL14: =AE17 -> not yet | AM14: =AE23 -> not yet | AN14: =AE29 -> not yet | AO14: =AE35 -> not yet | AP14: =AE41 -> yes | AQ14: =AE47 -> yes | AR14: =AE53 -> yes
B15: * | C15: Actual Debt Ratio | E15: 0.476 | F15: Conversion factor data: | V15: =100*(+AD9/$E$7) -> 328.6346072 | W15: =EXP(5.7226-(0.68367*LN(+V15))) -> 5.816908381 | X15: =(+W15*V15)/100 -> 19.11637401 | Y15: =100*((((X15/100)-((X15/100)-0.03574)*$E$19)-0.03574-0.00619)/0.344) -> 26.16781835 | Z15: =+$E$18 -> 0.25 | AA15: =Y15+Z15 -> 26.41781835 | AB15: =100*($E$15*$E$17+($E$16*(AA15/100))/(1-$E$19)) -> 24.71482742 | AC15: =AB15/V15 -> 0.07520457943 | AD15: =$E$6/(1-AC15) -> 6625175.51 | AE15: =IF(OR(OR(AD15=AD9,AD15=(AD9+1)),AD15=(AD1-1)),"yes","not yet") -> not yet | AF15: =100*(1-AC15) -> 92.47954206 | AJ15: =AE6 -> not yet | AK15: =AE12 -> not yet | AL15: =AE18 -> not yet | AM15: =AE24 -> not yet | AN15: =AE30 -> not yet | AO15: =AE36 -> not yet | AP15: =AE42 -> yes | AQ15: =AE48 -> yes | AR15: =AE54 -> yes
B16: * | C16: Actual Equity Ratio | E16: 0.524 | F16: B & O Tax | H16: =+'Combined LG'!H16 -> 0.015 | I16: * | V16: =100*(+AD10/$E$7) -> 328.205 | W16: =EXP(5.70827-(0.68367*LN(+V16))) -> 5.739276896 | X16: =(+W16*V16)/100 -> 18.83659374 | Y16: =100*((((X16/100)-((X16/100)-0.03574)*$E$19)-0.03574-0.00619)/0.344) -> 25.66437652 | Z16: =+$E$18 -> 0.25 | AA16: =Y16+Z16 -> 25.91437652 | AB16: =100*($E$15*$E$17+($E$16*(AA16/100))/(1-$E$19)) -> 24.2886505 | AC16: =AB16/V16 -> 0.07400451088 | AD16: =$E$6/(1-AC16) -> 6616589.437 | AE16: =IF(OR(OR(AD16=AD10,AD16=(AD10+1)),AD16=(AD10-1)),"yes","not yet") -> not yet | AF16: =100*(1-AC16) -> 92.59954891
B17: * | C17: Actual Cost of Debt | E17: 0.0494 | F17: WUTC Fee | H17: =+'Combined LG'!H17 -> 0.004275 | I17: * | V17: =100*(+AD11/$E$7) -> 327.9158124 | W17: =EXP(5.6985-(0.68367*LN(V17))) -> 5.686903423 | X17: =(+W17*V17)/100 -> 18.64825556 | Y17: =100*((((X17/100)-((X17/100)-0.03574)*$E$19)-0.03574-0.00619)/0.344) -> 25.3254773 | Z17: =+$E$18 -> 0.25 | AA17: =Y17+Z17 -> 25.5754773 | AB17: =100*($E$15*$E$17+($E$16*(AA17/100))/(1-$E$19)) -> 24.00176327 | AC17: =AB17/V17 -> 0.07319489444 | AD17: =$E$6/(1-AC17) -> 6610809.473 | AE17: =IF(OR(OR(AD17=AD11,AD17=(AD11+1)),AD17=(AD11-1)),"yes","not yet") -> not yet | AF17: =100*(1-AC17) -> 92.68051056 | AJ17: =HLOOKUP(1,$AJ$11:$AR$15,$E$10+1) -> not yet | AK17: =HLOOKUP(2,$AJ$11:$AR$15,$E$10+1) -> not yet | AL17: =HLOOKUP(3,$AJ$11:$AR$15,$E$10+1) -> not yet | AM17: =HLOOKUP(4,$AJ$11:$AR$15,$E$10+1) -> not yet | AN17: =HLOOKUP(5,$AJ$11:$AR$15,$E$10+1) -> not yet | AO17: =HLOOKUP(6,$AJ$11:$AR$15,$E$10+1) -> not yet | AP17: =HLOOKUP(7,$AJ$11:$AR$15,$E$10+1) -> yes | AQ17: =HLOOKUP(8,$AJ$11:$AR$15,$E$10+1) -> yes | AR17: =HLOOKUP(9,$AJ$11:$AR$15,$E$10+1) -> yes
B18: * | C18: Basis Points | E18: 0.25 | F18: City Tax | H18: =+'Combined LG'!H18 -> 0 | I18: * | V18: =100*(+AD12/$E$7) -> 327.7309141 | W18: =EXP(5.6922-(0.68367*LN(V18))) -> 5.653368082 | X18: =(+W18*V18)/100 -> 18.52783489 | Y18: =100*((((X18/100)-((X18/100)-0.03574)*$E$19)-0.03574-0.00619)/0.344) -> 25.10879012 | Z18: =+$E$18 -> 0.25 | AA18: =Y18+Z18 -> 25.35879012 | AB18: =100*($E$15*$E$17+($E$16*(AA18/100))/(1-$E$19)) -> 23.81833179 | AC18: =AB18/V18 -> 0.07267648784 | AD18: =$E$6/(1-AC18) -> 6607113.797 | AE18: =IF(OR(OR(AD18=AD12,AD18=(AD12+1)),AD18=(AD12-1)),"yes","not yet") -> not yet | AF18: =100*(1-AC18) -> 92.73235122 | AI18: 1 | AJ18: =AF3 -> 93.13307609 | AK18: =AF9 -> 92.44445367 | AL18: =AF15 -> 92.47954206 | AM18: =AF21 -> 92.47775158 | AN18: =AF27 -> 92.47784294 | AO18: =AF33 -> 92.47783828 | AP18: =AF39 -> 92.47783882 | AQ18: =AF45 -> 92.47783882 | AR18: =AF51 -> 92.47783882
B19: * | C19: Tax Rate | E19: 0.381 | F19: Bad Debts | H19: =+'Combined LG'!H19 -> 0.006 | I19: * | AI19: 2 | AJ19: =AF4 -> 93.24727843 | AK19: =AF10 -> 92.56545976 | AL19: =AF16 -> 92.59954891 | AM19: =AF22 -> 92.59784212 | AN19: =AF28 -> 92.59792757 | AO19: =AF34 -> 92.59792329 | AP19: =AF40 -> 92.59792379 | AQ19: =AF46 -> 92.59792379 | AR19: =AF52 -> 92.59792379
H20: - | V20: 4th Turnover | W20: M | X20: ROR | Y20: ROE | AI20: 3 | AJ20: =AF5 -> 93.32420709 | AK20: =AF11 -> 92.64709286 | AL20: =AF17 -> 92.68051056 | AM20: =AF23 -> 92.67885895 | AN20: =AF29 -> 92.67894057 | AO20: =AF35 -> 92.67893654 | AP20: =AF41 -> 92.67893691 | AQ20: =AF47 -> 92.67893691 | AR20: =AF53 -> 92.67893691
F21: Revenue Sensitive | H21: =SUM(H16:H19) -> 0.025275 | V21: =100*(+AD15/$E$7) -> 328.5099174 | W21: =EXP(5.7226-(0.68367*LN(+V21))) -> 5.818417749 | X21: =(+W21*V21)/100 -> 19.11407934 | Y21: =100*((((X21/100)-((X21/100)-0.03574)*$E$19)-0.03574-0.00619)/0.344) -> 26.16368928 | Z21: =+$E$18 -> 0.25 | AA21: =Y21+Z21 -> 26.41368928 | AB21: =100*($E$15*$E$17+($E$16*(AA21/100))/(1-$E$19)) -> 24.71133206 | AC21: =AB21/V21 -> 0.07522248415 | AD21: =$E$6/(1-AC21) -> 6625303.78 | AE21: =IF(OR(OR(AD21=AD15,AD21=(AD15+1)),AD21=(AD7-1)),"yes","not yet") -> not yet | AF21: =100*(1-AC21) -> 92.47775158 | AI21: 4 | AJ21: =AF6 -> 93.37341598 | AK21: =AF12 -> 92.69936224 | AL21: =AF18 -> 92.73235122 | AM21: =AF24 -> 92.73073441 | AN21: =AF30 -> 92.73081365 | AO21: =AF36 -> 92.73080976 | AP21: =AF42 -> 92.73081021 | AQ21: =AF48 -> 92.73081021 | AR21: =AF54 -> 92.73081021
V22: =100*(+AD16/$E$7) -> 328.0841762 | W22: =EXP(5.70827-(0.68367*LN(+V22))) -> 5.740721822 | X22: =(+W22*V22)/100 -> 18.8343999 | Y22: =100*((((X22/100)-((X22/100)-0.03574)*$E$19)-0.03574-0.00619)/0.344) -> 25.66042889 | Z22: =+$E$18 -> 0.25 | AA22: =Y22+Z22 -> 25.91042889 | AB22: =100*($E$15*$E$17+($E$16*(AA22/100))/(1-$E$19)) -> 24.28530872 | AC22: =AB22/V22 -> 0.07402157884 | AD22: =$E$6/(1-AC22) -> 6616711.396 | AE22: =IF(OR(OR(AD22=AD16,AD22=(AD16+1)),AD22=(AD16-1)),"yes","not yet") -> not yet | AF22: =100*(1-AC22) -> 92.59784212
F23: Conversion Factor | H23: =((+H13/100)-H21) -> 0.9015143691 | V23: =100*(+AD17/$E$7) -> 327.7975762 | W23: =EXP(5.6985-(0.68367*LN(V23))) -> 5.688305727 | X23: =(+W23*V23)/100 -> 18.6461283 | Y23: =100*((((X23/100)-((X23/100)-0.03574)*$E$19)-0.03574-0.00619)/0.344) -> 25.32164947 | Z23: =+$E$18 -> 0.25 | AA23: =Y23+Z23 -> 25.57164947 | AB23: =100*($E$15*$E$17+($E$16*(AA23/100))/(1-$E$19)) -> 23.99852291 | AC23: =AB23/V23 -> 0.0732114105 | AD23: =$E$6/(1-AC23) -> 6610927.283 | AE23: =IF(OR(OR(AD23=AD17,AD23=(AD17+1)),AD23=(AD17-1)),"yes","not yet") -> not yet | AF23: =100*(1-AC23) -> 92.67885895 | AJ23: yes
V24: =100*(+AD18/$E$7) -> 327.6143258 | W24: =EXP(5.6922-(0.68367*LN(V24))) -> 5.654743459 | X24: =(+W24*V24)/100 -> 18.52574966 | Y24: =100*((((X24/100)-((X24/100)-0.03574)*$E$19)-0.03574-0.00619)/0.344) -> 25.1050379 | Z24: =+$E$18 -> 0.25 | AA24: =Y24+Z24 -> 25.3550379 | AB24: =100*($E$15*$E$17+($E$16*(AA24/100))/(1-$E$19)) -> 23.81515544 | AC24: =AB24/V24 -> 0.07269265587 | AD24: =$E$6/(1-AC24) -> 6607228.995 | AE24: =IF(OR(OR(AD24=AD18,AD24=(AD18+1)),AD24=(AD18-1)),"yes","not yet") -> not yet | AF24: =100*(1-AC24) -> 92.73073441 | AJ24: =HLOOKUP($AJ$23,$AJ$17:$AR$21,$E$10+1) -> 92.67893691
C26: Company Reference | V26: 5th Turnover | W26: M | X26: ROR | Y26: ROE | AJ26: =HLOOKUP(1,$AJ$11:$AR$15,$E$10+1) -> not yet | AK26: =HLOOKUP(2,$AJ$11:$AR$15,$E$10+1) -> not yet | AL26: =HLOOKUP(3,$AJ$11:$AR$15,$E$10+1) -> not yet | AM26: =HLOOKUP(4,$AJ$11:$AR$15,$E$10+1) -> not yet | AN26: =HLOOKUP(5,$AJ$11:$AR$15,$E$10+1) -> not yet | AO26: =HLOOKUP(6,$AJ$11:$AR$15,$E$10+1) -> not yet | AP26: =HLOOKUP(7,$AJ$11:$AR$15,$E$10+1) -> yes | AQ26: =HLOOKUP(8,$AJ$11:$AR$15,$E$10+1) -> yes | AR26: =HLOOKUP(9,$AJ$11:$AR$15,$E$10+1) -> yes
C27: Annl Price Increase (PI) $ | E27: =+E4 -> 135458.0493 | V27: =100*(+AD21/$E$7) -> 328.5162777 | W27: =EXP(5.7226-(0.68367*LN(+V27))) -> 5.818340734 | X27: =(+W27*V27)/100 -> 19.11419641 | Y27: =100*((((X27/100)-((X27/100)-0.03574)*$E$19)-0.03574-0.00619)/0.344) -> 26.16389993 | Z27: =+$E$18 -> 0.25 | AA27: =Y27+Z27 -> 26.41389993 | AB27: =100*($E$15*$E$17+($E$16*(AA27/100))/(1-$E$19)) -> 24.71151037 | AC27: =AB27/V27 -> 0.07522157059 | AD27: =$E$6/(1-AC27) -> 6625297.235 | AE27: =IF(OR(OR(AD27=AD21,AD27=(AD21+1)),AD27=(AD13-1)),"yes","not yet") -> not yet | AF27: =100*(1-AC27) -> 92.47784294 | AI27: 1 | AJ27: =V3 -> 379.755584 | AK27: =V9 -> 326.2046955 | AL27: =V15 -> 328.6346072 | AM27: =V21 -> 328.5099174 | AN27: =V27 -> 328.5162777 | AO27: =V33 -> 328.5159532 | AP27: =V39 -> 328.5159911 | AQ27: =V45 -> 328.5159911 | AR27: =V51 -> 328.5159911
C28: Monthly PI $ | E28: =+E27/12 -> 11288.17077 | V28: =100*(+AD22/$E$7) -> 328.0902236 | W28: =EXP(5.70827-(0.68367*LN(+V28))) -> 5.74064948 | X28: =(+W28*V28)/100 -> 18.83450972 | Y28: =100*((((X28/100)-((X28/100)-0.03574)*$E$19)-0.03574-0.00619)/0.344) -> 25.66062649 | Z28: =+$E$18 -> 0.25 | AA28: =Y28+Z28 -> 25.91062649 | AB28: =100*($E$15*$E$17+($E$16*(AA28/100))/(1-$E$19)) -> 24.285476 | AC28: =AB28/V28 -> 0.07402072434 | AD28: =$E$6/(1-AC28) -> 6616705.29 | AE28: =IF(OR(OR(AD28=AD22,AD28=(AD22+1)),AD28=(AD22-1)),"yes","not yet") -> not yet | AF28: =100*(1-AC28) -> 92.59792757 | AI28: 2 | AJ28: =V4 -> 379.755584 | AK28: =V10 -> 325.8051842 | AL28: =V16 -> 328.205 | AM28: =V22 -> 328.0841762 | AN28: =V28 -> 328.0902236 | AO28: =V34 -> 328.0899208 | AP28: =V40 -> 328.089956 | AQ28: =V46 -> 328.089956 | AR28: =V52 -> 328.089956
C29: Percentage PI | E29: =+E4/(E5-Proforma!O12) -> 0.02217551248 | V29: =100*(+AD23/$E$7) -> 327.8034178 | W29: =EXP(5.6985-(0.68367*LN(V29))) -> 5.688236425 | X29: =(+W29*V29)/100 -> 18.64623341 | Y29: =100*((((X29/100)-((X29/100)-0.03574)*$E$19)-0.03574-0.00619)/0.344) -> 25.32183861 | Z29: =+$E$18 -> 0.25 | AA29: =Y29+Z29 -> 25.57183861 | AB29: =100*($E$15*$E$17+($E$16*(AA29/100))/(1-$E$19)) -> 23.99868303 | AC29: =AB29/V29 -> 0.07321059429 | AD29: =$E$6/(1-AC29) -> 6610921.461 | AE29: =IF(OR(OR(AD29=AD23,AD29=(AD23+1)),AD29=(AD23-1)),"yes","not yet") -> not yet | AF29: =100*(1-AC29) -> 92.67894057 | AI29: 3 | AJ29: =V5 -> 379.755584 | AK29: =V11 -> 325.5366177 | AL29: =V17 -> 327.9158124 | AM29: =V23 -> 327.7975762 | AN29: =V29 -> 327.8034178 | AO29: =V35 -> 327.8031291 | AP29: =V41 -> 327.8031559 | AQ29: =V47 -> 327.8031559 | AR29: =V53 -> 327.8031559
V30: =100*(+AD24/$E$7) -> 327.6200379 | W30: =EXP(5.6922-(0.68367*LN(V30))) -> 5.654676054 | X30: =(+W30*V30)/100 -> 18.52585183 | Y30: =100*((((X30/100)-((X30/100)-0.03574)*$E$19)-0.03574-0.00619)/0.344) -> 25.10522176 | Z30: =+$E$18 -> 0.25 | AA30: =Y30+Z30 -> 25.35522176 | AB30: =100*($E$15*$E$17+($E$16*(AA30/100))/(1-$E$19)) -> 23.81531108 | AC30: =AB30/V30 -> 0.07269186353 | AD30: =$E$6/(1-AC30) -> 6607223.35 | AE30: =IF(OR(OR(AD30=AD24,AD30=(AD24+1)),AD30=(AD24-1)),"yes","not yet") -> not yet | AF30: =100*(1-AC30) -> 92.73081365 | AI30: 4 | AJ30: =V6 -> 379.755584 | AK30: =V12 -> 325.365056 | AL30: =V18 -> 327.7309141 | AM30: =V24 -> 327.6143258 | AN30: =V30 -> 327.6200379 | AO30: =V36 -> 327.619758 | AP30: =V42 -> 327.6197902 | AQ30: =V48 -> 327.6197902 | AR30: =V54 -> 327.6197902
V32: 6th Turnover | W32: M | X32: ROR | Y32: ROE | AJ32: yes
V33: =100*(+AD27/$E$7) -> 328.5159532 | W33: =EXP(5.7226-(0.68367*LN(+V33))) -> 5.818344664 | X33: =(+W33*V33)/100 -> 19.11419043 | Y33: =100*((((X33/100)-((X33/100)-0.03574)*$E$19)-0.03574-0.00619)/0.344) -> 26.16388918 | Z33: =+$E$18 -> 0.25 | AA33: =Y33+Z33 -> 26.41388918 | AB33: =100*($E$15*$E$17+($E$16*(AA33/100))/(1-$E$19)) -> 24.71150128 | AC33: =AB33/V33 -> 0.0752216172 | AD33: =ROUND($E$6/(1-AC33),0) -> 6625298 | AE33: =IF(OR(OR(AD33=AD27,AD33=(AD27+1)),AD33=(AD19-1)),"yes","not yet") -> not yet | AF33: =100*(1-AC33) -> 92.47783828 | AJ33: =HLOOKUP($AJ$32,$AJ$26:$AR$30,$E$10+1) -> 327.8031559
V34: =100*(+AD28/$E$7) -> 328.0899208 | W34: =EXP(5.70827-(0.68367*LN(+V34))) -> 5.740653102 | X34: =(+W34*V34)/100 -> 18.83450422 | Y34: =100*((((X34/100)-((X34/100)-0.03574)*$E$19)-0.03574-0.00619)/0.344) -> 25.6606166 | Z34: =+$E$18 -> 0.25 | AA34: =Y34+Z34 -> 25.9106166 | AB34: =100*($E$15*$E$17+($E$16*(AA34/100))/(1-$E$19)) -> 24.28546762 | AC34: =AB34/V34 -> 0.07402076712 | AD34: =ROUND($E$6/(1-AC34),0) -> 6616706 | AE34: =IF(OR(OR(AD34=AD28,AD34=(AD28+1)),AD34=(AD28-1)),"yes","not yet") -> not yet | AF34: =100*(1-AC34) -> 92.59792329
V35: =100*(+AD29/$E$7) -> 327.8031291 | W35: =EXP(5.6985-(0.68367*LN(V35))) -> 5.68823985 | X35: =(+W35*V35)/100 -> 18.64622822 | Y35: =100*((((X35/100)-((X35/100)-0.03574)*$E$19)-0.03574-0.00619)/0.344) -> 25.32182927 | Z35: =+$E$18 -> 0.25 | AA35: =Y35+Z35 -> 25.57182927 | AB35: =100*($E$15*$E$17+($E$16*(AA35/100))/(1-$E$19)) -> 23.99867511 | AC35: =AB35/V35 -> 0.07321063462 | AD35: =ROUND($E$6/(1-AC35),0) -> 6610922 | AE35: =IF(OR(OR(AD35=AD29,AD35=(AD29+1)),AD35=(AD29-1)),"yes","not yet") -> not yet | AF35: =100*(1-AC35) -> 92.67893654 | AJ35: =HLOOKUP(1,$AJ$11:$AR$15,$E$10+1) -> not yet | AK35: =HLOOKUP(2,$AJ$11:$AR$15,$E$10+1) -> not yet | AL35: =HLOOKUP(3,$AJ$11:$AR$15,$E$10+1) -> not yet | AM35: =HLOOKUP(4,$AJ$11:$AR$15,$E$10+1) -> not yet | AN35: =HLOOKUP(5,$AJ$11:$AR$15,$E$10+1) -> not yet | AO35: =HLOOKUP(6,$AJ$11:$AR$15,$E$10+1) -> not yet | AP35: =HLOOKUP(7,$AJ$11:$AR$15,$E$10+1) -> yes | AQ35: =HLOOKUP(8,$AJ$11:$AR$15,$E$10+1) -> yes | AR35: =HLOOKUP(9,$AJ$11:$AR$15,$E$10+1) -> yes
V36: =100*(+AD30/$E$7) -> 327.619758 | W36: =EXP(5.6922-(0.68367*LN(V36))) -> 5.654679358 | X36: =(+W36*V36)/100 -> 18.52584683 | Y36: =100*((((X36/100)-((X36/100)-0.03574)*$E$19)-0.03574-0.00619)/0.344) -> 25.10521275 | Z36: =+$E$18 -> 0.25 | AA36: =Y36+Z36 -> 25.35521275 | AB36: =100*($E$15*$E$17+($E$16*(AA36/100))/(1-$E$19)) -> 23.81530346 | AC36: =AB36/V36 -> 0.07269190236 | AD36: =ROUND($E$6/(1-AC36),0) -> 6607224 | AE36: =IF(OR(OR(AD36=AD30,AD36=(AD30+1)),AD36=(AD30-1)),"yes","not yet") -> not yet | AF36: =100*(1-AC36) -> 92.73080976 | AI36: 1 | AJ36: =AD3 -> 6578685.285 | AK36: =AD9 -> 6627690.173 | AL36: =AD15 -> 6625175.51 | AM36: =AD21 -> 6625303.78 | AN36: =AD27 -> 6625297.235 | AO36: =AD33 -> 6625298 | AP36: =AD39 -> 6625298 | AQ36: =AD45 -> 6625298 | AR36: =AD51 -> 6625298
AI37: 2 | AJ37: =AD4 -> 6570628.199 | AK37: =AD10 -> 6619026.133 | AL37: =AD16 -> 6616589.437 | AM37: =AD22 -> 6616711.396 | AN37: =AD28 -> 6616705.29 | AO37: =AD34 -> 6616706 | AP37: =AD40 -> 6616706 | AQ37: =AD46 -> 6616706 | AR37: =AD52 -> 6616706
V38: 7th turnover | W38: M | X38: ROR | Y38: ROE | AI38: 3 | AJ38: =AD5 -> 6565211.924 | AK38: =AD11 -> 6613193.984 | AL38: =AD17 -> 6610809.473 | AM38: =AD23 -> 6610927.283 | AN38: =AD29 -> 6610921.461 | AO38: =AD35 -> 6610922 | AP38: =AD41 -> 6610922 | AQ38: =AD47 -> 6610922 | AR38: =AD53 -> 6610922
V39: =100*(+AD33/$E$7) -> 328.5159911 | W39: =EXP(5.7226-(0.68367*LN(+V39))) -> 5.818344205 | X39: =(+W39*V39)/100 -> 19.11419113 | Y39: =100*((((X39/100)-((X39/100)-0.03574)*$E$19)-0.03574-0.00619)/0.344) -> 26.16389043 | Z39: =+$E$18 -> 0.25 | AA39: =Y39+Z39 -> 26.41389043 | AB39: =100*($E$15*$E$17+($E$16*(AA39/100))/(1-$E$19)) -> 24.71150234 | AC39: =AB39/V39 -> 0.07522161175 | AD39: =ROUND($E$6/(1-AC39),0) -> 6625298 | AE39: =IF(OR(OR(AD39=AD33,AD39=(AD33+1)),AD39=(AD25-1)),"yes","not yet") -> yes | AF39: =100*(1-AC39) -> 92.47783882 | AI39: 4 | AJ39: =AD6 -> 6561751.98 | AK39: =AD12 -> 6609465.075 | AL39: =AD18 -> 6607113.797 | AM39: =AD24 -> 6607228.995 | AN39: =AD30 -> 6607223.35 | AO39: =AD36 -> 6607224 | AP39: =AD42 -> 6607224 | AQ39: =AD48 -> 6607224 | AR39: =AD54 -> 6607224
V40: =100*(+AD34/$E$7) -> 328.089956 | W40: =EXP(5.70827-(0.68367*LN(+V40))) -> 5.740652681 | X40: =(+W40*V40)/100 -> 18.83450486 | Y40: =100*((((X40/100)-((X40/100)-0.03574)*$E$19)-0.03574-0.00619)/0.344) -> 25.66061775 | Z40: =+$E$18 -> 0.25 | AA40: =Y40+Z40 -> 25.91061775 | AB40: =100*($E$15*$E$17+($E$16*(AA40/100))/(1-$E$19)) -> 24.2854686 | AC40: =AB40/V40 -> 0.07402076214 | AD40: =ROUND($E$6/(1-AC40),0) -> 6616706 | AE40: =IF(OR(OR(AD40=AD34,AD40=(AD34+1)),AD40=(AD34-1)),"yes","not yet") -> yes | AF40: =100*(1-AC40) -> 92.59792379
V41: =100*(+AD35/$E$7) -> 327.8031559 | W41: =EXP(5.6985-(0.68367*LN(V41))) -> 5.688239532 | X41: =(+W41*V41)/100 -> 18.6462287 | Y41: =100*((((X41/100)-((X41/100)-0.03574)*$E$19)-0.03574-0.00619)/0.344) -> 25.32183013 | Z41: =+$E$18 -> 0.25 | AA41: =Y41+Z41 -> 25.57183013 | AB41: =100*($E$15*$E$17+($E$16*(AA41/100))/(1-$E$19)) -> 23.99867585 | AC41: =AB41/V41 -> 0.07321063089 | AD41: =ROUND($E$6/(1-AC41),0) -> 6610922 | AE41: =IF(OR(OR(AD41=AD35,AD41=(AD35+1)),AD41=(AD35-1)),"yes","not yet") -> yes | AF41: =100*(1-AC41) -> 92.67893691 | AJ41: yes
V42: =100*(+AD36/$E$7) -> 327.6197902 | W42: =EXP(5.6922-(0.68367*LN(V42))) -> 5.654678977 | X42: =(+W42*V42)/100 -> 18.5258474 | Y42: =100*((((X42/100)-((X42/100)-0.03574)*$E$19)-0.03574-0.00619)/0.344) -> 25.10521379 | Z42: =+$E$18 -> 0.25 | AA42: =Y42+Z42 -> 25.35521379 | AB42: =100*($E$15*$E$17+($E$16*(AA42/100))/(1-$E$19)) -> 23.81530434 | AC42: =AB42/V42 -> 0.07269189788 | AD42: =ROUND($E$6/(1-AC42),0) -> 6607224 | AE42: =IF(OR(OR(AD42=AD36,AD42=(AD36+1)),AD42=(AD36-1)),"yes","not yet") -> yes | AF42: =100*(1-AC42) -> 92.73081021 | AJ42: =HLOOKUP($AJ$32,$AJ$35:$AR$39,$E$10+1) -> 6610922
V44: 8th turnover | W44: M | X44: ROR | Y44: ROE
V45: =100*(+AD39/$E$7) -> 328.5159911 | W45: =EXP(5.7226-(0.68367*LN(+V45))) -> 5.818344205 | X45: =(+W45*V45)/100 -> 19.11419113 | Y45: =100*((((X45/100)-((X45/100)-0.03574)*$E$19)-0.03574-0.00619)/0.344) -> 26.16389043 | Z45: =+$E$18 -> 0.25 | AA45: =Y45+Z45 -> 26.41389043 | AB45: =100*($E$15*$E$17+($E$16*(AA45/100))/(1-$E$19)) -> 24.71150234 | AC45: =AB45/V45 -> 0.07522161175 | AD45: =ROUND($E$6/(1-AC45),0) -> 6625298 | AE45: =IF(OR(OR(AD45=AD39,AD45=(AD39+1)),AD45=(AD31-1)),"yes","not yet") -> yes | AF45: =100*(1-AC45) -> 92.47783882
V46: =100*(+AD40/$E$7) -> 328.089956 | W46: =EXP(5.70827-(0.68367*LN(+V46))) -> 5.740652681 | X46: =(+W46*V46)/100 -> 18.83450486 | Y46: =100*((((X46/100)-((X46/100)-0.03574)*$E$19)-0.03574-0.00619)/0.344) -> 25.66061775 | Z46: =+$E$18 -> 0.25 | AA46: =Y46+Z46 -> 25.91061775 | AB46: =100*($E$15*$E$17+($E$16*(AA46/100))/(1-$E$19)) -> 24.2854686 | AC46: =AB46/V46 -> 0.07402076214 | AD46: =ROUND($E$6/(1-AC46),0) -> 6616706 | AE46: =IF(OR(OR(AD46=AD40,AD46=(AD40+1)),AD46=(AD40-1)),"yes","not yet") -> yes | AF46: =100*(1-AC46) -> 92.59792379
V47: =100*(+AD41/$E$7) -> 327.8031559 | W47: =EXP(5.6985-(0.68367*LN(V47))) -> 5.688239532 | X47: =(+W47*V47)/100 -> 18.6462287 | Y47: =100*((((X47/100)-((X47/100)-0.03574)*$E$19)-0.03574-0.00619)/0.344) -> 25.32183013 | Z47: =+$E$18 -> 0.25 | AA47: =Y47+Z47 -> 25.57183013 | AB47: =100*($E$15*$E$17+($E$16*(AA47/100))/(1-$E$19)) -> 23.99867585 | AC47: =AB47/V47 -> 0.07321063089 | AD47: =ROUND($E$6/(1-AC47),0) -> 6610922 | AE47: =IF(OR(OR(AD47=AD41,AD47=(AD41+1)),AD47=(AD41-1)),"yes","not yet") -> yes | AF47: =100*(1-AC47) -> 92.67893691
V48: =100*(+AD42/$E$7) -> 327.6197902 | W48: =EXP(5.6922-(0.68367*LN(V48))) -> 5.654678977 | X48: =(+W48*V48)/100 -> 18.5258474 | Y48: =100*((((X48/100)-((X48/100)-0.03574)*$E$19)-0.03574-0.00619)/0.344) -> 25.10521379 | Z48: =+$E$18 -> 0.25 | AA48: =Y48+Z48 -> 25.35521379 | AB48: =100*($E$15*$E$17+($E$16*(AA48/100))/(1-$E$19)) -> 23.81530434 | AC48: =AB48/V48 -> 0.07269189788 | AD48: =ROUND($E$6/(1-AC48),0) -> 6607224 | AE48: =IF(OR(OR(AD48=AD42,AD48=(AD42+1)),AD48=(AD42-1)),"yes","not yet") -> yes | AF48: =100*(1-AC48) -> 92.73081021
V50: 9th turnover | W50: M | X50: ROR | Y50: ROE
V51: =100*(+AD45/$E$7) -> 328.5159911 | W51: =EXP(5.7226-(0.68367*LN(+V51))) -> 5.818344205 | X51: =(+W51*V51)/100 -> 19.11419113 | Y51: =100*((((X51/100)-((X51/100)-0.03574)*$E$19)-0.03574-0.00619)/0.344) -> 26.16389043 | Z51: =+$E$18 -> 0.25 | AA51: =Y51+Z51 -> 26.41389043 | AB51: =100*($E$15*$E$17+($E$16*(AA51/100))/(1-$E$19)) -> 24.71150234 | AC51: =AB51/V51 -> 0.07522161175 | AD51: =ROUND($E$6/(1-AC51),0) -> 6625298 | AE51: =IF(OR(OR(AD51=AD45,AD51=(AD45+1)),AD51=(AD37-1)),"yes","not yet") -> yes | AF51: =100*(1-AC51) -> 92.47783882
V52: =100*(+AD46/$E$7) -> 328.089956 | W52: =EXP(5.70827-(0.68367*LN(+V52))) -> 5.740652681 | X52: =(+W52*V52)/100 -> 18.83450486 | Y52: =100*((((X52/100)-((X52/100)-0.03574)*$E$19)-0.03574-0.00619)/0.344) -> 25.66061775 | Z52: =+$E$18 -> 0.25 | AA52: =Y52+Z52 -> 25.91061775 | AB52: =100*($E$15*$E$17+($E$16*(AA52/100))/(1-$E$19)) -> 24.2854686 | AC52: =AB52/V52 -> 0.07402076214 | AD52: =ROUND($E$6/(1-AC52),0) -> 6616706 | AE52: =IF(OR(OR(AD52=AD46,AD52=(AD46+1)),AD52=(AD46-1)),"yes","not yet") -> yes | AF52: =100*(1-AC52) -> 92.59792379
V53: =100*(+AD47/$E$7) -> 327.8031559 | W53: =EXP(5.6985-(0.68367*LN(V53))) -> 5.688239532 | X53: =(+W53*V53)/100 -> 18.6462287 | Y53: =100*((((X53/100)-((X53/100)-0.03574)*$E$19)-0.03574-0.00619)/0.344) -> 25.32183013 | Z53: =+$E$18 -> 0.25 | AA53: =Y53+Z53 -> 25.57183013 | AB53: =100*($E$15*$E$17+($E$16*(AA53/100))/(1-$E$19)) -> 23.99867585 | AC53: =AB53/V53 -> 0.07321063089 | AD53: =ROUND($E$6/(1-AC53),0) -> 6610922 | AE53: =IF(OR(OR(AD53=AD47,AD53=(AD47+1)),AD53=(AD47-1)),"yes","not yet") -> yes | AF53: =100*(1-AC53) -> 92.67893691
V54: =100*(+AD48/$E$7) -> 327.6197902 | W54: =EXP(5.6922-(0.68367*LN(V54))) -> 5.654678977 | X54: =(+W54*V54)/100 -> 18.5258474 | Y54: =100*((((X54/100)-((X54/100)-0.03574)*$E$19)-0.03574-0.00619)/0.344) -> 25.10521379 | Z54: =+$E$18 -> 0.25 | AA54: =Y54+Z54 -> 25.35521379 | AB54: =100*($E$15*$E$17+($E$16*(AA54/100))/(1-$E$19)) -> 23.81530434 | AC54: =AB54/V54 -> 0.07269189788 | AD54: =ROUND($E$6/(1-AC54),0) -> 6607224 | AE54: =IF(OR(OR(AD54=AD48,AD54=(AD48+1)),AD54=(AD48-1)),"yes","not yet") -> yes | AF54: =100*(1-AC54) -> 92.73081021

Sheet RCY
B1: NEW IMPROVED LURITO - GALLAGHER FORMULA | AE1: !??! | AF1: OP/RATIO | AI1: curve
G2: NOTE: | N2: FORMULAS | U2: 1st Revenue | V2: 1st Turnover | W2: M | X2: ROR | Y2: ROE | AA2: Adj ROE | AB2: Pre Tax ROE | AC2: Adj M | AD2: Revenues | AE2: Decision | AI2: lookup table
B3: !!! | C3: Revenue Requirement | E3: =E5+E4 -> 2111909.845 | F3: !!!<-- | H3: Red numbers are input/linked fields. | N3: 1. less than 50 | Q3: @EXP(5.72260-(.68367*@LN(T))) | U3: =$E$6*1.25 -> 2322527.967 | V3: =100*(+U3/$E$7) -> 169.1503481 | W3: =EXP(5.7226-(0.68367*LN(+V3))) -> 9.159890275 | X3: =(+W3*V3)/100 -> 15.49398629 | Y3: =100*((((X3/100)-((X3/100)-0.03574)*$E$19)-0.03574-0.00619)/0.344) -> 19.64962649 | Z3: =+$E$18 -> 0.25 | AA3: =Y3+Z3 -> 19.89962649 | AB3: =100*($E$15*$E$17+($E$16*(AA3/100))/(1-$E$19)) -> 19.19700427 | AC3: =AB3/V3 -> 0.113490776 | AD3: =$E$6/(1-AC3) -> 2095886.115 | AE3: =IF(AD3=$U$3,"yes","not yet") -> not yet | AF3: =100*(1-AC3) -> 88.6509224 | AI3: 0 | AJ3: 1
B4: !!! | C4: Revenue Deficiency | E4: =(+E6-((H13/100)*E5))/H23 -> 270631.3255 | F4: !!!<-- | H4: Black are formula calculations | N4: 2. Between 50 and 125 | Q4: @EXP(5.70827-(.68367*@LN(T))) | U4: =$E$6*1.25 -> 2322527.967 | V4: =100*(+U4/$E$7) -> 169.1503481 | W4: =EXP(5.70827-(0.68367*LN(+V4))) -> 9.029565058 | X4: =(+W4*V4)/100 -> 15.27354073 | Y4: =100*((((X4/100)-((X4/100)-0.03574)*$E$19)-0.03574-0.00619)/0.344) -> 19.25295265 | Z4: =+$E$18 -> 0.25 | AA4: =Y4+Z4 -> 19.50295265 | AB4: =100*($E$15*$E$17+($E$16*(AA4/100))/(1-$E$19)) -> 18.86120929 | AC4: =AB4/V4 -> 0.1115055895 | AD4: =$E$6/(1-AC4) -> 2091203.222 | AE4: =IF(AD4=$U$4,"yes","not yet") -> not yet | AF4: =100*(1-AC4) -> 88.84944105 | AI4: 50 | AJ4: 2
B5: * | C5: Revenue | E5: =Proforma!P20 -> 1841278.52 | F5: * p/f before rates | N5: 3. Between 125 and 140 | Q5: @EXP(5.69850-(.68367*@LN(T))) | U5: =$E$6*1.25 -> 2322527.967 | V5: =100*(+U5/$E$7) -> 169.1503481 | W5: =EXP(5.6985-(0.68367*LN(V5))) -> 8.941775756 | X5: =(+W5*V5)/100 -> 15.12504482 | Y5: =100*((((X5/100)-((X5/100)-0.03574)*$E$19)-0.03574-0.00619)/0.344) -> 18.98574635 | Z5: =+$E$18 -> 0.25 | AA5: =Y5+Z5 -> 19.23574635 | AB5: =100*($E$15*$E$17+($E$16*(AA5/100))/(1-$E$19)) -> 18.63501203 | AC5: =AB5/V5 -> 0.1101683339 | AD5: =$E$6/(1-AC5) -> 2088060.522 | AE5: =IF(AD5=$U$5,"yes","not yet") -> not yet | AF5: =100*(1-AC5) -> 88.98316661 | AI5: 125 | AJ5: 3
B6: * | C6: Expenses | E6: =+Proforma!P368 -> 1858022.374 | F6: * p/f before rates | H6: =E4/E5 -> 0.1469801133 | N6: 4. greater than 400 | Q6: @EXP(5.69220-(.68367*@LN(T))) | U6: =$E$6*1.25 -> 2322527.967 | V6: =100*(+U6/$E$7) -> 169.1503481 | W6: =EXP(5.6922-(0.68367*LN(V6))) -> 8.885619647 | X6: =(+W6*V6)/100 -> 15.03005657 | Y6: =100*((((X6/100)-((X6/100)-0.03574)*$E$19)-0.03574-0.00619)/0.344) -> 18.81482272 | Z6: =+$E$18 -> 0.25 | AA6: =Y6+Z6 -> 19.06482272 | AB6: =100*($E$15*$E$17+($E$16*(AA6/100))/(1-$E$19)) -> 18.49032062 | AC6: =AB6/V6 -> 0.1093129327 | AD6: =$E$6/(1-AC6) -> 2086055.183 | AE6: =IF(AD6=$U$6,"yes","not yet") -> not yet | AF6: =100*(1-AC6) -> 89.06870673 | AI6: 401 | AJ6: 4
B7: * | C7: Avg. Investment - | E7: ='Staff Avg Invest & Depreac'!R2116 -> 1373055.387 | F7: * p/f before rates
C8: curve turnover | E8: =V3 -> 169.1503481 | F8: (calculated) | V8: 2nd Turnover | W8: M | X8: ROR | Y8: ROE | AI8: lookup tables
C9: final turnover | E9: =HLOOKUP($AJ$32,$AJ$26:$AR$30,$E$10+1) -> 153.2468406 | F9: (calculated) | V9: =100*(+AD3/$E$7) -> 152.64396 | W9: =EXP(5.7226-(0.68367*LN(+V9))) -> 9.826013432 | X9: =(+W9*V9)/100 -> 14.99881601 | Y9: =100*((((X9/100)-((X9/100)-0.03574)*$E$19)-0.03574-0.00619)/0.344) -> 18.75860788 | Z9: =+$E$18 -> 0.25 | AA9: =Y9+Z9 -> 19.00860788 | AB9: =100*($E$15*$E$17+($E$16*(AA9/100))/(1-$E$19)) -> 18.44273326 | AC9: =AB9/V9 -> 0.1208219 | AD9: =$E$6/(1-AC9) -> 2113362.894 | AE9: =IF(OR(OR(AD9=AD3,AD9=(AD3+1)),AD9=(AD8187-1)),"yes","not yet") -> not yet | AF9: =100*(1-AC9) -> 87.91781
C10: curve No. used | E10: =VLOOKUP(E8,AI3:AJ6,2) -> 3 | F10: (calculated) | V10: =100*(+AD4/$E$7) -> 152.3029036 | W10: =EXP(5.70827-(0.68367*LN(+V10))) -> 9.701034717 | X10: =(+W10*V10)/100 -> 14.77495755 | Y10: =100*((((X10/100)-((X10/100)-0.03574)*$E$19)-0.03574-0.00619)/0.344) -> 18.3557928 | Z10: =+$E$18 -> 0.25 | AA10: =Y10+Z10 -> 18.6057928 | AB10: =100*($E$15*$E$17+($E$16*(AA10/100))/(1-$E$19)) -> 18.10173956 | AC10: =AB10/V10 -> 0.1188535421 | AD10: =$E$6/(1-AC10) -> 2108641.937 | AE10: =IF(OR(OR(AD10=AD4,AD10=(AD4+1)),AD10=(AD4-1)),"yes","not yet") -> not yet | AF10: =100*(1-AC10) -> 88.11464579
V11: =100*(+AD5/$E$7) -> 152.0740199 | W11: =EXP(5.6985-(0.68367*LN(V11))) -> 9.616599852 | X11: =(+W11*V11)/100 -> 14.62434997 | Y11: =100*((((X11/100)-((X11/100)-0.03574)*$E$19)-0.03574-0.00619)/0.344) -> 18.08478673 | Z11: =+$E$18 -> 0.25 | AA11: =Y11+Z11 -> 18.33478673 | AB11: =100*($E$15*$E$17+($E$16*(AA11/100))/(1-$E$19)) -> 17.87232569 | AC11: =AB11/V11 -> 0.1175238591 | AD11: =$E$6/(1-AC11) -> 2105464.712 | AE11: =IF(OR(OR(AD11=AD5,AD11=(AD5+1)),AD11=(AD5-1)),"yes","not yet") -> not yet | AF11: =100*(1-AC11) -> 88.24761409 | AJ11: 1 | AK11: 2 | AL11: 3 | AM11: 4 | AN11: 5 | AO11: 6 | AP11: 7 | AQ11: 8 | AR11: 9
C12: Company actual | V12: =100*(+AD6/$E$7) -> 151.9279705 | W12: =EXP(5.6922-(0.68367*LN(V12))) -> 9.562485257 | X12: =(+W12*V12)/100 -> 14.52808978 | Y12: =100*((((X12/100)-((X12/100)-0.03574)*$E$19)-0.03574-0.00619)/0.344) -> 17.91157435 | Z12: =+$E$18 -> 0.25 | AA12: =Y12+Z12 -> 18.16157435 | AB12: =100*($E$15*$E$17+($E$16*(AA12/100))/(1-$E$19)) -> 17.7256968 | AC12: =AB12/V12 -> 0.1166717145 | AD12: =$E$6/(1-AC12) -> 2103433.575 | AE12: =IF(OR(OR(AD12=AD6,AD12=(AD6+1)),AD12=(AD6-1)),"yes","not yet") -> not yet | AF12: =100*(1-AC12) -> 88.33282855 | AJ12: =AE3 -> not yet | AK12: =AE9 -> not yet | AL12: =AE15 -> not yet | AM12: =AE21 -> not yet | AN12: =AE27 -> not yet | AO12: =AE33 -> not yet | AP12: =AE39 -> yes | AQ12: =AE45 -> yes | AR12: =AE51 -> yes
C13: capital structure: | E13: !!! | F13: OPERATING RATIO -> | H13: =HLOOKUP($AJ$23,$AJ$17:$AR$21,$E$10+1) -> 88.30218697 | I13: !!!<-- | AJ13: =AE4 -> not yet | AK13: =AE10 -> not yet | AL13: =AE16 -> not yet | AM13: =AE22 -> not yet | AN13: =AE28 -> not yet | AO13: =AE34 -> not yet | AP13: =AE40 -> yes | AQ13: =AE46 -> yes | AR13: =AE52 -> yes
C14: - | D14: - | H14: = | V14: 3rd Turnover | W14: M | X14: ROR | Y14: ROE | AJ14: =AE5 -> not yet | AK14: =AE11 -> not yet | AL14: =AE17 -> not yet | AM14: =AE23 -> not yet | AN14: =AE29 -> not yet | AO14: =AE35 -> not yet | AP14: =AE41 -> yes | AQ14: =AE47 -> yes | AR14: =AE53 -> yes
B15: * | C15: Actual Debt Ratio | E15: 0.476 | F15: Conversion factor data: | V15: =100*(+AD9/$E$7) -> 153.9167985 | W15: =EXP(5.7226-(0.68367*LN(+V15))) -> 9.770387036 | X15: =(+W15*V15)/100 -> 15.03826693 | Y15: =100*((((X15/100)-((X15/100)-0.03574)*$E$19)-0.03574-0.00619)/0.344) -> 18.8295966 | Z15: =+$E$18 -> 0.25 | AA15: =Y15+Z15 -> 19.0795966 | AB15: =100*($E$15*$E$17+($E$16*(AA15/100))/(1-$E$19)) -> 18.5028271 | AC15: =AB15/V15 -> 0.1202131754 | AD15: =$E$6/(1-AC15) -> 2111900.658 | AE15: =IF(OR(OR(AD15=AD9,AD15=(AD9+1)),AD15=(AD1-1)),"yes","not yet") -> not yet | AF15: =100*(1-AC15) -> 87.97868246 | AJ15: =AE6 -> not yet | AK15: =AE12 -> not yet | AL15: =AE18 -> not yet | AM15: =AE24 -> not yet | AN15: =AE30 -> not yet | AO15: =AE36 -> not yet | AP15: =AE42 -> yes | AQ15: =AE48 -> yes | AR15: =AE54 -> yes
B16: * | C16: Actual Equity Ratio | E16: 0.524 | F16: B & O Tax | H16: =+'Combined LG'!H16 -> 0.015 | I16: * | V16: =100*(+AD10/$E$7) -> 153.57297 | W16: =EXP(5.70827-(0.68367*LN(+V16))) -> 9.64611276 | X16: =(+W16*V16)/100 -> 14.81382185 | Y16: =100*((((X16/100)-((X16/100)-0.03574)*$E$19)-0.03574-0.00619)/0.344) -> 18.42572595 | Z16: =+$E$18 -> 0.25 | AA16: =Y16+Z16 -> 18.67572595 | AB16: =100*($E$15*$E$17+($E$16*(AA16/100))/(1-$E$19)) -> 18.16093983 | AC16: =AB16/V16 -> 0.1182560957 | AD16: =$E$6/(1-AC16) -> 2107213.177 | AE16: =IF(OR(OR(AD16=AD10,AD16=(AD10+1)),AD16=(AD10-1)),"yes","not yet") -> not yet | AF16: =100*(1-AC16) -> 88.17439043
B17: * | C17: Actual Cost of Debt | E17: 0.0494 | F17: WUTC Fee | H17: =+'Combined LG'!H17 -> 0.004275 | I17: * | V17: =100*(+AD11/$E$7) -> 153.3415718 | W17: =EXP(5.6985-(0.68367*LN(V17))) -> 9.562181748 | X17: =(+W17*V17)/100 -> 14.66279979 | Y17: =100*((((X17/100)-((X17/100)-0.03574)*$E$19)-0.03574-0.00619)/0.344) -> 18.15397404 | Z17: =+$E$18 -> 0.25 | AA17: =Y17+Z17 -> 18.40397404 | AB17: =100*($E$15*$E$17+($E$16*(AA17/100))/(1-$E$19)) -> 17.9308946 | AC17: =AB17/V17 -> 0.1169343342 | AD17: =$E$6/(1-AC17) -> 2104059.127 | AE17: =IF(OR(OR(AD17=AD11,AD17=(AD11+1)),AD17=(AD11-1)),"yes","not yet") -> not yet | AF17: =100*(1-AC17) -> 88.30656658 | AJ17: =HLOOKUP(1,$AJ$11:$AR$15,$E$10+1) -> not yet | AK17: =HLOOKUP(2,$AJ$11:$AR$15,$E$10+1) -> not yet | AL17: =HLOOKUP(3,$AJ$11:$AR$15,$E$10+1) -> not yet | AM17: =HLOOKUP(4,$AJ$11:$AR$15,$E$10+1) -> not yet | AN17: =HLOOKUP(5,$AJ$11:$AR$15,$E$10+1) -> not yet | AO17: =HLOOKUP(6,$AJ$11:$AR$15,$E$10+1) -> not yet | AP17: =HLOOKUP(7,$AJ$11:$AR$15,$E$10+1) -> yes | AQ17: =HLOOKUP(8,$AJ$11:$AR$15,$E$10+1) -> yes | AR17: =HLOOKUP(9,$AJ$11:$AR$15,$E$10+1) -> yes
B18: * | C18: Basis Points | E18: 0.25 | F18: City Tax | H18: =+'Combined LG'!H18 -> 0 | I18: * | V18: =100*(+AD12/$E$7) -> 153.1936435 | W18: =EXP(5.6922-(0.68367*LN(V18))) -> 9.508401446 | X18: =(+W18*V18)/100 -> 14.56626662 | Y18: =100*((((X18/100)-((X18/100)-0.03574)*$E$19)-0.03574-0.00619)/0.344) -> 17.98027045 | Z18: =+$E$18 -> 0.25 | AA18: =Y18+Z18 -> 18.23027045 | AB18: =100*($E$15*$E$17+($E$16*(AA18/100))/(1-$E$19)) -> 17.78384988 | AC18: =AB18/V18 -> 0.1160873877 | AD18: =$E$6/(1-AC18) -> 2102043.061 | AE18: =IF(OR(OR(AD18=AD12,AD18=(AD12+1)),AD18=(AD12-1)),"yes","not yet") -> not yet | AF18: =100*(1-AC18) -> 88.39126123 | AI18: 1 | AJ18: =AF3 -> 88.6509224 | AK18: =AF9 -> 87.91781 | AL18: =AF15 -> 87.97868246 | AM18: =AF21 -> 87.97361955 | AN18: =AF27 -> 87.97404059 | AO18: =AF33 -> 87.97400557 | AP18: =AF39 -> 87.97400873 | AQ18: =AF45 -> 87.97400873 | AR18: =AF51 -> 87.97400873
B19: * | C19: Tax Rate | E19: 0.381 | F19: Bad Debts | H19: =+'Combined LG'!H19 -> 0.006 | I19: * | AI19: 2 | AJ19: =AF4 -> 88.84944105 | AK19: =AF10 -> 88.11464579 | AL19: =AF16 -> 88.17439043 | AM19: =AF22 -> 88.1695245 | AN19: =AF28 -> 88.16992075 | AO19: =AF34 -> 88.16988848 | AP19: =AF40 -> 88.16989189 | AQ19: =AF46 -> 88.16989189 | AR19: =AF52 -> 88.16989189
H20: - | V20: 4th Turnover | W20: M | X20: ROR | Y20: ROE | AI20: 3 | AJ20: =AF5 -> 88.98316661 | AK20: =AF11 -> 88.24761409 | AL20: =AF17 -> 88.30656658 | AM20: =AF23 -> 88.30183367 | AN20: =AF29 -> 88.30221359 | AO20: =AF35 -> 88.30218309 | AP20: =AF41 -> 88.30218697 | AQ20: =AF47 -> 88.3021836 | AR20: =AF53 -> 88.30218697
F21: Revenue Sensitive | H21: =SUM(H16:H19) -> 0.025275 | V21: =100*(+AD15/$E$7) -> 153.8103035 | W21: =EXP(5.7226-(0.68367*LN(+V21))) -> 9.775011428 | X21: =(+W21*V21)/100 -> 15.03497475 | Y21: =100*((((X21/100)-((X21/100)-0.03574)*$E$19)-0.03574-0.00619)/0.344) -> 18.82367258 | Z21: =+$E$18 -> 0.25 | AA21: =Y21+Z21 -> 19.07367258 | AB21: =100*($E$15*$E$17+($E$16*(AA21/100))/(1-$E$19)) -> 18.49781226 | AC21: =AB21/V21 -> 0.1202638045 | AD21: =$E$6/(1-AC21) -> 2112022.198 | AE21: =IF(OR(OR(AD21=AD15,AD21=(AD15+1)),AD21=(AD7-1)),"yes","not yet") -> not yet | AF21: =100*(1-AC21) -> 87.97361955 | AI21: 4 | AJ21: =AF6 -> 89.06870673 | AK21: =AF12 -> 88.33282855 | AL21: =AF18 -> 88.39126123 | AM21: =AF24 -> 88.38661345 | AN21: =AF30 -> 88.38698309 | AO21: =AF36 -> 88.38695369 | AP21: =AF42 -> 88.38695769 | AQ21: =AF48 -> 88.38695434 | AR21: =AF54 -> 88.38695434
V22: =100*(+AD16/$E$7) -> 153.468913 | W22: =EXP(5.70827-(0.68367*LN(+V22))) -> 9.650583744 | X22: =(+W22*V22)/100 -> 14.81064597 | Y22: =100*((((X22/100)-((X22/100)-0.03574)*$E$19)-0.03574-0.00619)/0.344) -> 18.4200112 | Z22: =+$E$18 -> 0.25 | AA22: =Y22+Z22 -> 18.6700112 | AB22: =100*($E$15*$E$17+($E$16*(AA22/100))/(1-$E$19)) -> 18.15610215 | AC22: =AB22/V22 -> 0.118304755 | AD22: =$E$6/(1-AC22) -> 2107329.47 | AE22: =IF(OR(OR(AD22=AD16,AD22=(AD16+1)),AD22=(AD16-1)),"yes","not yet") -> not yet | AF22: =100*(1-AC22) -> 88.1695245
F23: Conversion Factor | H23: =((+H13/100)-H21) -> 0.8577468697 | V23: =100*(+AD17/$E$7) -> 153.2392026 | W23: =EXP(5.6985-(0.68367*LN(V23))) -> 9.566548484 | X23: =(+W23*V23)/100 -> 14.65970262 | Y23: =100*((((X23/100)-((X23/100)-0.03574)*$E$19)-0.03574-0.00619)/0.344) -> 18.14840093 | Z23: =+$E$18 -> 0.25 | AA23: =Y23+Z23 -> 18.39840093 | AB23: =100*($E$15*$E$17+($E$16*(AA23/100))/(1-$E$19)) -> 17.92617681 | AC23: =AB23/V23 -> 0.1169816633 | AD23: =$E$6/(1-AC23) -> 2104171.903 | AE23: =IF(OR(OR(AD23=AD17,AD23=(AD17+1)),AD23=(AD17-1)),"yes","not yet") -> not yet | AF23: =100*(1-AC23) -> 88.30183367 | AJ23: yes
V24: =100*(+AD18/$E$7) -> 153.092372 | W24: =EXP(5.6922-(0.68367*LN(V24))) -> 9.512701187 | X24: =(+W24*V24)/100 -> 14.56321989 | Y24: =100*((((X24/100)-((X24/100)-0.03574)*$E$19)-0.03574-0.00619)/0.344) -> 17.97478812 | Z24: =+$E$18 -> 0.25 | AA24: =Y24+Z24 -> 18.22478812 | AB24: =100*($E$15*$E$17+($E$16*(AA24/100))/(1-$E$19)) -> 17.77920894 | AC24: =AB24/V24 -> 0.1161338655 | AD24: =$E$6/(1-AC24) -> 2102153.597 | AE24: =IF(OR(OR(AD24=AD18,AD24=(AD18+1)),AD24=(AD18-1)),"yes","not yet") -> not yet | AF24: =100*(1-AC24) -> 88.38661345 | AJ24: =HLOOKUP($AJ$23,$AJ$17:$AR$21,$E$10+1) -> 88.30218697
C26: Company Reference | V26: 5th Turnover | W26: M | X26: ROR | Y26: ROE | AJ26: =HLOOKUP(1,$AJ$11:$AR$15,$E$10+1) -> not yet | AK26: =HLOOKUP(2,$AJ$11:$AR$15,$E$10+1) -> not yet | AL26: =HLOOKUP(3,$AJ$11:$AR$15,$E$10+1) -> not yet | AM26: =HLOOKUP(4,$AJ$11:$AR$15,$E$10+1) -> not yet | AN26: =HLOOKUP(5,$AJ$11:$AR$15,$E$10+1) -> not yet | AO26: =HLOOKUP(6,$AJ$11:$AR$15,$E$10+1) -> not yet | AP26: =HLOOKUP(7,$AJ$11:$AR$15,$E$10+1) -> yes | AQ26: =HLOOKUP(8,$AJ$11:$AR$15,$E$10+1) -> yes | AR26: =HLOOKUP(9,$AJ$11:$AR$15,$E$10+1) -> yes
C27: Annl Price Increase (PI) $ | E27: =+E4 -> 270631.3255 | V27: =100*(+AD21/$E$7) -> 153.8191553 | W27: =EXP(5.7226-(0.68367*LN(+V27))) -> 9.774626845 | X27: =(+W27*V27)/100 -> 15.03524845 | Y27: =100*((((X27/100)-((X27/100)-0.03574)*$E$19)-0.03574-0.00619)/0.344) -> 18.82416509 | Z27: =+$E$18 -> 0.25 | AA27: =Y27+Z27 -> 19.07416509 | AB27: =100*($E$15*$E$17+($E$16*(AA27/100))/(1-$E$19)) -> 18.49822919 | AC27: =AB27/V27 -> 0.1202595941 | AD27: =$E$6/(1-AC27) -> 2112012.09 | AE27: =IF(OR(OR(AD27=AD21,AD27=(AD21+1)),AD27=(AD13-1)),"yes","not yet") -> not yet | AF27: =100*(1-AC27) -> 87.97404059 | AI27: 1 | AJ27: =V3 -> 169.1503481 | AK27: =V9 -> 152.64396 | AL27: =V15 -> 153.9167985 | AM27: =V21 -> 153.8103035 | AN27: =V27 -> 153.8191553 | AO27: =V33 -> 153.8184192 | AP27: =V39 -> 153.8184854 | AQ27: =V45 -> 153.8184854 | AR27: =V51 -> 153.8184854
C28: Monthly PI $ | E28: =+E27/12 -> 22552.61046 | V28: =100*(+AD22/$E$7) -> 153.4773827 | W28: =EXP(5.70827-(0.68367*LN(+V28))) -> 9.650219639 | X28: =(+W28*V28)/100 -> 14.81090452 | Y28: =100*((((X28/100)-((X28/100)-0.03574)*$E$19)-0.03574-0.00619)/0.344) -> 18.42047645 | Z28: =+$E$18 -> 0.25 | AA28: =Y28+Z28 -> 18.67047645 | AB28: =100*($E$15*$E$17+($E$16*(AA28/100))/(1-$E$19)) -> 18.15649599 | AC28: =AB28/V28 -> 0.1183007925 | AD28: =$E$6/(1-AC28) -> 2107320 | AE28: =IF(OR(OR(AD28=AD22,AD28=(AD22+1)),AD28=(AD22-1)),"yes","not yet") -> not yet | AF28: =100*(1-AC28) -> 88.16992075 | AI28: 2 | AJ28: =V4 -> 169.1503481 | AK28: =V10 -> 152.3029036 | AL28: =V16 -> 153.57297 | AM28: =V22 -> 153.468913 | AN28: =V28 -> 153.4773827 | AO28: =V34 -> 153.4766929 | AP28: =V40 -> 153.4767658 | AQ28: =V46 -> 153.4767658 | AR28: =V52 -> 153.4767658
C29: Percentage PI | E29: =+E4/E5 -> 0.1469801133 | V29: =100*(+AD23/$E$7) -> 153.2474161 | W29: =EXP(5.6985-(0.68367*LN(V29))) -> 9.566197941 | X29: =(+W29*V29)/100 -> 14.65995117 | Y29: =100*((((X29/100)-((X29/100)-0.03574)*$E$19)-0.03574-0.00619)/0.344) -> 18.14884818 | Z29: =+$E$18 -> 0.25 | AA29: =Y29+Z29 -> 18.39884818 | AB29: =100*($E$15*$E$17+($E$16*(AA29/100))/(1-$E$19)) -> 17.92655542 | AC29: =AB29/V29 -> 0.1169778641 | AD29: =$E$6/(1-AC29) -> 2104162.849 | AE29: =IF(OR(OR(AD29=AD23,AD29=(AD23+1)),AD29=(AD23-1)),"yes","not yet") -> not yet | AF29: =100*(1-AC29) -> 88.30221359 | AI29: 3 | AJ29: =V5 -> 169.1503481 | AK29: =V11 -> 152.0740199 | AL29: =V17 -> 153.3415718 | AM29: =V23 -> 153.2392026 | AN29: =V29 -> 153.2474161 | AO29: =V35 -> 153.2467568 | AP29: =V41 -> 153.2468406 | AQ29: =V47 -> 153.2467678 | AR29: =V53 -> 153.2468406
V30: =100*(+AD24/$E$7) -> 153.1004224 | W30: =EXP(5.6922-(0.68367*LN(V30))) -> 9.512359215 | X30: =(+W30*V30)/100 -> 14.56346213 | Y30: =100*((((X30/100)-((X30/100)-0.03574)*$E$19)-0.03574-0.00619)/0.344) -> 17.97522401 | Z30: =+$E$18 -> 0.25 | AA30: =Y30+Z30 -> 18.22522401 | AB30: =100*($E$15*$E$17+($E$16*(AA30/100))/(1-$E$19)) -> 17.77957794 | AC30: =AB30/V30 -> 0.1161301691 | AD30: =$E$6/(1-AC30) -> 2102144.805 | AE30: =IF(OR(OR(AD30=AD24,AD30=(AD24+1)),AD30=(AD24-1)),"yes","not yet") -> not yet | AF30: =100*(1-AC30) -> 88.38698309 | AI30: 4 | AJ30: =V6 -> 169.1503481 | AK30: =V12 -> 151.9279705 | AL30: =V18 -> 153.1936435 | AM30: =V24 -> 153.092372 | AN30: =V30 -> 153.1004224 | AO30: =V36 -> 153.0997821 | AP30: =V42 -> 153.0998691 | AQ30: =V48 -> 153.0997963 | AR30: =V54 -> 153.0997963
V32: 6th Turnover | W32: M | X32: ROR | Y32: ROE | AJ32: yes
V33: =100*(+AD27/$E$7) -> 153.8184192 | W33: =EXP(5.7226-(0.68367*LN(+V33))) -> 9.774658828 | X33: =(+W33*V33)/100 -> 15.03522569 | Y33: =100*((((X33/100)-((X33/100)-0.03574)*$E$19)-0.03574-0.00619)/0.344) -> 18.82412413 | Z33: =+$E$18 -> 0.25 | AA33: =Y33+Z33 -> 19.07412413 | AB33: =100*($E$15*$E$17+($E$16*(AA33/100))/(1-$E$19)) -> 18.49819451 | AC33: =AB33/V33 -> 0.1202599443 | AD33: =ROUND($E$6/(1-AC33),0) -> 2112013 | AE33: =IF(OR(OR(AD33=AD27,AD33=(AD27+1)),AD33=(AD19-1)),"yes","not yet") -> not yet | AF33: =100*(1-AC33) -> 87.97400557 | AJ33: =HLOOKUP($AJ$32,$AJ$26:$AR$30,$E$10+1) -> 153.2468406
V34: =100*(+AD28/$E$7) -> 153.4766929 | W34: =EXP(5.70827-(0.68367*LN(+V34))) -> 9.65024929 | X34: =(+W34*V34)/100 -> 14.81088347 | Y34: =100*((((X34/100)-((X34/100)-0.03574)*$E$19)-0.03574-0.00619)/0.344) -> 18.42043856 | Z34: =+$E$18 -> 0.25 | AA34: =Y34+Z34 -> 18.67043856 | AB34: =100*($E$15*$E$17+($E$16*(AA34/100))/(1-$E$19)) -> 18.15646392 | AC34: =AB34/V34 -> 0.1183011152 | AD34: =ROUND($E$6/(1-AC34),0) -> 2107321 | AE34: =IF(OR(OR(AD34=AD28,AD34=(AD28+1)),AD34=(AD28-1)),"yes","not yet") -> not yet | AF34: =100*(1-AC34) -> 88.16988848
V35: =100*(+AD29/$E$7) -> 153.2467568 | W35: =EXP(5.6985-(0.68367*LN(V35))) -> 9.56622608 | X35: =(+W35*V35)/100 -> 14.65993122 | Y35: =100*((((X35/100)-((X35/100)-0.03574)*$E$19)-0.03574-0.00619)/0.344) -> 18.14881227 | Z35: =+$E$18 -> 0.25 | AA35: =Y35+Z35 -> 18.39881227 | AB35: =100*($E$15*$E$17+($E$16*(AA35/100))/(1-$E$19)) -> 17.92652503 | AC35: =AB35/V35 -> 0.1169781691 | AD35: =ROUND($E$6/(1-AC35),0) -> 2104164 | AE35: =IF(OR(OR(AD35=AD29,AD35=(AD29+1)),AD35=(AD29-1)),"yes","not yet") -> not yet | AF35: =100*(1-AC35) -> 88.30218309 | AJ35: =HLOOKUP(1,$AJ$11:$AR$15,$E$10+1) -> not yet | AK35: =HLOOKUP(2,$AJ$11:$AR$15,$E$10+1) -> not yet | AL35: =HLOOKUP(3,$AJ$11:$AR$15,$E$10+1) -> not yet | AM35: =HLOOKUP(4,$AJ$11:$AR$15,$E$10+1) -> not yet | AN35: =HLOOKUP(5,$AJ$11:$AR$15,$E$10+1) -> not yet | AO35: =HLOOKUP(6,$AJ$11:$AR$15,$E$10+1) -> not yet | AP35: =HLOOKUP(7,$AJ$11:$AR$15,$E$10+1) -> yes | AQ35: =HLOOKUP(8,$AJ$11:$AR$15,$E$10+1) -> yes | AR35: =HLOOKUP(9,$AJ$11:$AR$15,$E$10+1) -> yes
V36: =100*(+AD30/$E$7) -> 153.0997821 | W36: =EXP(5.6922-(0.68367*LN(V36))) -> 9.512386412 | X36: =(+W36*V36)/100 -> 14.56344287 | Y36: =100*((((X36/100)-((X36/100)-0.03574)*$E$19)-0.03574-0.00619)/0.344) -> 17.97518935 | Z36: =+$E$18 -> 0.25 | AA36: =Y36+Z36 -> 18.22518935 | AB36: =100*($E$15*$E$17+($E$16*(AA36/100))/(1-$E$19)) -> 17.77954859 | AC36: =AB36/V36 -> 0.1161304631 | AD36: =ROUND($E$6/(1-AC36),0) -> 2102146 | AE36: =IF(OR(OR(AD36=AD30,AD36=(AD30+1)),AD36=(AD30-1)),"yes","not yet") -> not yet | AF36: =100*(1-AC36) -> 88.38695369 | AI36: 1 | AJ36: =AD3 -> 2095886.115 | AK36: =AD9 -> 2113362.894 | AL36: =AD15 -> 2111900.658 | AM36: =AD21 -> 2112022.198 | AN36: =AD27 -> 2112012.09 | AO36: =AD33 -> 2112013 | AP36: =AD39 -> 2112013 | AQ36: =AD45 -> 2112013 | AR36: =AD51 -> 2112013
AI37: 2 | AJ37: =AD4 -> 2091203.222 | AK37: =AD10 -> 2108641.937 | AL37: =AD16 -> 2107213.177 | AM37: =AD22 -> 2107329.47 | AN37: =AD28 -> 2107320 | AO37: =AD34 -> 2107321 | AP37: =AD40 -> 2107321 | AQ37: =AD46 -> 2107321 | AR37: =AD52 -> 2107321
V38: 7th turnover | W38: M | X38: ROR | Y38: ROE | AI38: 3 | AJ38: =AD5 -> 2088060.522 | AK38: =AD11 -> 2105464.712 | AL38: =AD17 -> 2104059.127 | AM38: =AD23 -> 2104171.903 | AN38: =AD29 -> 2104162.849 | AO38: =AD35 -> 2104164 | AP38: =AD41 -> 2104163 | AQ38: =AD47 -> 2104164 | AR38: =AD53 -> 2104163
V39: =100*(+AD33/$E$7) -> 153.8184854 | W39: =EXP(5.7226-(0.68367*LN(+V39))) -> 9.77465595 | X39: =(+W39*V39)/100 -> 15.03522774 | Y39: =100*((((X39/100)-((X39/100)-0.03574)*$E$19)-0.03574-0.00619)/0.344) -> 18.82412782 | Z39: =+$E$18 -> 0.25 | AA39: =Y39+Z39 -> 19.07412782 | AB39: =100*($E$15*$E$17+($E$16*(AA39/100))/(1-$E$19)) -> 18.49819763 | AC39: =AB39/V39 -> 0.1202599127 | AD39: =ROUND($E$6/(1-AC39),0) -> 2112013 | AE39: =IF(OR(OR(AD39=AD33,AD39=(AD33+1)),AD39=(AD25-1)),"yes","not yet") -> yes | AF39: =100*(1-AC39) -> 87.97400873 | AI39: 4 | AJ39: =AD6 -> 2086055.183 | AK39: =AD12 -> 2103433.575 | AL39: =AD18 -> 2102043.061 | AM39: =AD24 -> 2102153.597 | AN39: =AD30 -> 2102144.805 | AO39: =AD36 -> 2102146 | AP39: =AD42 -> 2102145 | AQ39: =AD48 -> 2102145 | AR39: =AD54 -> 2102145
V40: =100*(+AD34/$E$7) -> 153.4767658 | W40: =EXP(5.70827-(0.68367*LN(+V40))) -> 9.650246158 | X40: =(+W40*V40)/100 -> 14.81088569 | Y40: =100*((((X40/100)-((X40/100)-0.03574)*$E$19)-0.03574-0.00619)/0.344) -> 18.42044257 | Z40: =+$E$18 -> 0.25 | AA40: =Y40+Z40 -> 18.67044257 | AB40: =100*($E$15*$E$17+($E$16*(AA40/100))/(1-$E$19)) -> 18.15646731 | AC40: =AB40/V40 -> 0.1183010811 | AD40: =ROUND($E$6/(1-AC40),0) -> 2107321 | AE40: =IF(OR(OR(AD40=AD34,AD40=(AD34+1)),AD40=(AD34-1)),"yes","not yet") -> yes | AF40: =100*(1-AC40) -> 88.16989189
V41: =100*(+AD35/$E$7) -> 153.2468406 | W41: =EXP(5.6985-(0.68367*LN(V41))) -> 9.566222504 | X41: =(+W41*V41)/100 -> 14.65993375 | Y41: =100*((((X41/100)-((X41/100)-0.03574)*$E$19)-0.03574-0.00619)/0.344) -> 18.14881684 | Z41: =+$E$18 -> 0.25 | AA41: =Y41+Z41 -> 18.39881684 | AB41: =100*($E$15*$E$17+($E$16*(AA41/100))/(1-$E$19)) -> 17.92652889 | AC41: =AB41/V41 -> 0.1169781303 | AD41: =ROUND($E$6/(1-AC41),0) -> 2104163 | AE41: =IF(OR(OR(AD41=AD35,AD41=(AD35+1)),AD41=(AD35-1)),"yes","not yet") -> yes | AF41: =100*(1-AC41) -> 88.30218697 | AJ41: yes
V42: =100*(+AD36/$E$7) -> 153.0998691 | W42: =EXP(5.6922-(0.68367*LN(V42))) -> 9.512382716 | X42: =(+W42*V42)/100 -> 14.56344549 | Y42: =100*((((X42/100)-((X42/100)-0.03574)*$E$19)-0.03574-0.00619)/0.344) -> 17.97519406 | Z42: =+$E$18 -> 0.25 | AA42: =Y42+Z42 -> 18.22519406 | AB42: =100*($E$15*$E$17+($E$16*(AA42/100))/(1-$E$19)) -> 17.77955258 | AC42: =AB42/V42 -> 0.1161304231 | AD42: =ROUND($E$6/(1-AC42),0) -> 2102145 | AE42: =IF(OR(OR(AD42=AD36,AD42=(AD36+1)),AD42=(AD36-1)),"yes","not yet") -> yes | AF42: =100*(1-AC42) -> 88.38695769 | AJ42: =HLOOKUP($AJ$32,$AJ$35:$AR$39,$E$10+1) -> 2104163
V44: 8th turnover | W44: M | X44: ROR | Y44: ROE
V45: =100*(+AD39/$E$7) -> 153.8184854 | W45: =EXP(5.7226-(0.68367*LN(+V45))) -> 9.77465595 | X45: =(+W45*V45)/100 -> 15.03522774 | Y45: =100*((((X45/100)-((X45/100)-0.03574)*$E$19)-0.03574-0.00619)/0.344) -> 18.82412782 | Z45: =+$E$18 -> 0.25 | AA45: =Y45+Z45 -> 19.07412782 | AB45: =100*($E$15*$E$17+($E$16*(AA45/100))/(1-$E$19)) -> 18.49819763 | AC45: =AB45/V45 -> 0.1202599127 | AD45: =ROUND($E$6/(1-AC45),0) -> 2112013 | AE45: =IF(OR(OR(AD45=AD39,AD45=(AD39+1)),AD45=(AD31-1)),"yes","not yet") -> yes | AF45: =100*(1-AC45) -> 87.97400873
V46: =100*(+AD40/$E$7) -> 153.4767658 | W46: =EXP(5.70827-(0.68367*LN(+V46))) -> 9.650246158 | X46: =(+W46*V46)/100 -> 14.81088569 | Y46: =100*((((X46/100)-((X46/100)-0.03574)*$E$19)-0.03574-0.00619)/0.344) -> 18.42044257 | Z46: =+$E$18 -> 0.25 | AA46: =Y46+Z46 -> 18.67044257 | AB46: =100*($E$15*$E$17+($E$16*(AA46/100))/(1-$E$19)) -> 18.15646731 | AC46: =AB46/V46 -> 0.1183010811 | AD46: =ROUND($E$6/(1-AC46),0) -> 2107321 | AE46: =IF(OR(OR(AD46=AD40,AD46=(AD40+1)),AD46=(AD40-1)),"yes","not yet") -> yes | AF46: =100*(1-AC46) -> 88.16989189
V47: =100*(+AD41/$E$7) -> 153.2467678 | W47: =EXP(5.6985-(0.68367*LN(V47))) -> 9.566225612 | X47: =(+W47*V47)/100 -> 14.65993155 | Y47: =100*((((X47/100)-((X47/100)-0.03574)*$E$19)-0.03574-0.00619)/0.344) -> 18.14881287 | Z47: =+$E$18 -> 0.25 | AA47: =Y47+Z47 -> 18.39881287 | AB47: =100*($E$15*$E$17+($E$16*(AA47/100))/(1-$E$19)) -> 17.92652553 | AC47: =AB47/V47 -> 0.116978164 | AD47: =ROUND($E$6/(1-AC47),0) -> 2104164 | AE47: =IF(OR(OR(AD47=AD41,AD47=(AD41+1)),AD47=(AD41-1)),"yes","not yet") -> yes | AF47: =100*(1-AC47) -> 88.3021836
V48: =100*(+AD42/$E$7) -> 153.0997963 | W48: =EXP(5.6922-(0.68367*LN(V48))) -> 9.51238581 | X48: =(+W48*V48)/100 -> 14.56344329 | Y48: =100*((((X48/100)-((X48/100)-0.03574)*$E$19)-0.03574-0.00619)/0.344) -> 17.97519011 | Z48: =+$E$18 -> 0.25 | AA48: =Y48+Z48 -> 18.22519011 | AB48: =100*($E$15*$E$17+($E$16*(AA48/100))/(1-$E$19)) -> 17.77954924 | AC48: =AB48/V48 -> 0.1161304566 | AD48: =ROUND($E$6/(1-AC48),0) -> 2102145 | AE48: =IF(OR(OR(AD48=AD42,AD48=(AD42+1)),AD48=(AD42-1)),"yes","not yet") -> yes | AF48: =100*(1-AC48) -> 88.38695434
V50: 9th turnover | W50: M | X50: ROR | Y50: ROE
V51: =100*(+AD45/$E$7) -> 153.8184854 | W51: =EXP(5.7226-(0.68367*LN(+V51))) -> 9.77465595 | X51: =(+W51*V51)/100 -> 15.03522774 | Y51: =100*((((X51/100)-((X51/100)-0.03574)*$E$19)-0.03574-0.00619)/0.344) -> 18.82412782 | Z51: =+$E$18 -> 0.25 | AA51: =Y51+Z51 -> 19.07412782 | AB51: =100*($E$15*$E$17+($E$16*(AA51/100))/(1-$E$19)) -> 18.49819763 | AC51: =AB51/V51 -> 0.1202599127 | AD51: =ROUND($E$6/(1-AC51),0) -> 2112013 | AE51: =IF(OR(OR(AD51=AD45,AD51=(AD45+1)),AD51=(AD37-1)),"yes","not yet") -> yes | AF51: =100*(1-AC51) -> 87.97400873
V52: =100*(+AD46/$E$7) -> 153.4767658 | W52: =EXP(5.70827-(0.68367*LN(+V52))) -> 9.650246158 | X52: =(+W52*V52)/100 -> 14.81088569 | Y52: =100*((((X52/100)-((X52/100)-0.03574)*$E$19)-0.03574-0.00619)/0.344) -> 18.42044257 | Z52: =+$E$18 -> 0.25 | AA52: =Y52+Z52 -> 18.67044257 | AB52: =100*($E$15*$E$17+($E$16*(AA52/100))/(1-$E$19)) -> 18.15646731 | AC52: =AB52/V52 -> 0.1183010811 | AD52: =ROUND($E$6/(1-AC52),0) -> 2107321 | AE52: =IF(OR(OR(AD52=AD46,AD52=(AD46+1)),AD52=(AD46-1)),"yes","not yet") -> yes | AF52: =100*(1-AC52) -> 88.16989189
V53: =100*(+AD47/$E$7) -> 153.2468406 | W53: =EXP(5.6985-(0.68367*LN(V53))) -> 9.566222504 | X53: =(+W53*V53)/100 -> 14.65993375 | Y53: =100*((((X53/100)-((X53/100)-0.03574)*$E$19)-0.03574-0.00619)/0.344) -> 18.14881684 | Z53: =+$E$18 -> 0.25 | AA53: =Y53+Z53 -> 18.39881684 | AB53: =100*($E$15*$E$17+($E$16*(AA53/100))/(1-$E$19)) -> 17.92652889 | AC53: =AB53/V53 -> 0.1169781303 | AD53: =ROUND($E$6/(1-AC53),0) -> 2104163 | AE53: =IF(OR(OR(AD53=AD47,AD53=(AD47+1)),AD53=(AD47-1)),"yes","not yet") -> yes | AF53: =100*(1-AC53) -> 88.30218697
V54: =100*(+AD48/$E$7) -> 153.0997963 | W54: =EXP(5.6922-(0.68367*LN(V54))) -> 9.51238581 | X54: =(+W54*V54)/100 -> 14.56344329 | Y54: =100*((((X54/100)-((X54/100)-0.03574)*$E$19)-0.03574-0.00619)/0.344) -> 17.97519011 | Z54: =+$E$18 -> 0.25 | AA54: =Y54+Z54 -> 18.22519011 | AB54: =100*($E$15*$E$17+($E$16*(AA54/100))/(1-$E$19)) -> 17.77954924 | AC54: =AB54/V54 -> 0.1161304566 | AD54: =ROUND($E$6/(1-AC54),0) -> 2102145 | AE54: =IF(OR(OR(AD54=AD48,AD54=(AD48+1)),AD54=(AD48-1)),"yes","not yet") -> yes | AF54: =100*(1-AC54) -> 88.38695434

Sheet YW
B1: NEW IMPROVED LURITO - GALLAGHER FORMULA | AE1: !??! | AF1: OP/RATIO | AI1: curve
G2: NOTE: | N2: FORMULAS | U2: 1st Revenue | V2: 1st Turnover | W2: M | X2: ROR | Y2: ROE | AA2: Adj ROE | AB2: Pre Tax ROE | AC2: Adj M | AD2: Revenues | AE2: Decision | AI2: lookup table
B3: !!! | C3: Revenue Requirement | E3: =E5+E4 -> 1093738.097 | F3: !!!<-- | H3: Red numbers are input/linked fields. | N3: 1. less than 50 | Q3: @EXP(5.72260-(.68367*@LN(T))) | U3: =$E$6*1.25 -> 1201452.638 | V3: =100*(+U3/$E$7) -> 171.3756483 | W3: =EXP(5.7226-(0.68367*LN(+V3))) -> 9.078406262 | X3: =(+W3*V3)/100 -> 15.55817758 | Y3: =100*((((X3/100)-((X3/100)-0.03574)*$E$19)-0.03574-0.00619)/0.344) -> 19.7651335 | Z3: =+$E$18 -> 0.25 | AA3: =Y3+Z3 -> 20.0151335 | AB3: =100*($E$15*$E$17+($E$16*(AA3/100))/(1-$E$19)) -> 19.29478403 | AC3: =AB3/V3 -> 0.1125876647 | AD3: =$E$6/(1-AC3) -> 1083106.548 | AE3: =IF(AD3=$U$3,"yes","not yet") -> not yet | AF3: =100*(1-AC3) -> 88.74123353 | AI3: 0 | AJ3: 1
B4: !!! | C4: Revenue Deficiency | E4: =(+E6-((H13/100)*E5))/H23 -> 220282.4871 | F4: !!!<-- | H4: Black are formula calculations | N4: 2. Between 50 and 125 | Q4: @EXP(5.70827-(.68367*@LN(T))) | U4: =$E$6*1.25 -> 1201452.638 | V4: =100*(+U4/$E$7) -> 171.3756483 | W4: =EXP(5.70827-(0.68367*LN(+V4))) -> 8.949240384 | X4: =(+W4*V4)/100 -> 15.33681872 | Y4: =100*((((X4/100)-((X4/100)-0.03574)*$E$19)-0.03574-0.00619)/0.344) -> 19.36681625 | Z4: =+$E$18 -> 0.25 | AA4: =Y4+Z4 -> 19.61681625 | AB4: =100*($E$15*$E$17+($E$16*(AA4/100))/(1-$E$19)) -> 18.95759786 | AC4: =AB4/V4 -> 0.110620138 | AD4: =$E$6/(1-AC4) -> 1080710.45 | AE4: =IF(AD4=$U$4,"yes","not yet") -> not yet | AF4: =100*(1-AC4) -> 88.9379862 | AI4: 50 | AJ4: 2
B5: * | C5: Revenue | E5: =Proforma!Q20 -> 873455.61 | F5: * p/f before rates | N5: 3. Between 125 and 140 | Q5: @EXP(5.69850-(.68367*@LN(T))) | U5: =$E$6*1.25 -> 1201452.638 | V5: =100*(+U5/$E$7) -> 171.3756483 | W5: =EXP(5.6985-(0.68367*LN(V5))) -> 8.862232033 | X5: =(+W5*V5)/100 -> 15.1877076 | Y5: =100*((((X5/100)-((X5/100)-0.03574)*$E$19)-0.03574-0.00619)/0.344) -> 19.09850292 | Z5: =+$E$18 -> 0.25 | AA5: =Y5+Z5 -> 19.34850292 | AB5: =100*($E$15*$E$17+($E$16*(AA5/100))/(1-$E$19)) -> 18.73046347 | AC5: =AB5/V5 -> 0.1092947782 | AD5: =$E$6/(1-AC5) -> 1079102.364 | AE5: =IF(AD5=$U$5,"yes","not yet") -> not yet | AF5: =100*(1-AC5) -> 89.07052218 | AI5: 125 | AJ5: 3
B6: * | C6: Expenses | E6: =+Proforma!Q368 -> 961162.1108 | F6: * p/f before rates | H6: =E4/E5 -> 0.2521965451 | N6: 4. greater than 400 | Q6: @EXP(5.69220-(.68367*@LN(T))) | U6: =$E$6*1.25 -> 1201452.638 | V6: =100*(+U6/$E$7) -> 171.3756483 | W6: =EXP(5.6922-(0.68367*LN(V6))) -> 8.806575474 | X6: =(+W6*V6)/100 -> 15.09232581 | Y6: =100*((((X6/100)-((X6/100)-0.03574)*$E$19)-0.03574-0.00619)/0.344) -> 18.92687115 | Z6: =+$E$18 -> 0.25 | AA6: =Y6+Z6 -> 19.17687115 | AB6: =100*($E$15*$E$17+($E$16*(AA6/100))/(1-$E$19)) -> 18.58517261 | AC6: =AB6/V6 -> 0.1084469864 | AD6: =$E$6/(1-AC6) -> 1078076.229 | AE6: =IF(AD6=$U$6,"yes","not yet") -> not yet | AF6: =100*(1-AC6) -> 89.15530136 | AI6: 401 | AJ6: 4
B7: * | C7: Avg. Investment - | E7: ='Staff Avg Invest & Depreac'!R2103 -> 701063.8037 | F7: * p/f before rates
C8: curve turnover | E8: =V3 -> 171.3756483 | F8: (calculated) | V8: 2nd Turnover | W8: M | X8: ROR | Y8: ROE | AI8: lookup tables
C9: final turnover | E9: =HLOOKUP($AJ$32,$AJ$26:$AR$30,$E$10+1) -> 155.1127008 | F9: (calculated) | V9: =100*(+AD3/$E$7) -> 154.4947182 | W9: =EXP(5.7226-(0.68367*LN(+V9))) -> 9.745385345 | X9: =(+W9*V9)/100 -> 15.05610562 | Y9: =100*((((X9/100)-((X9/100)-0.03574)*$E$19)-0.03574-0.00619)/0.344) -> 18.86169587 | Z9: =+$E$18 -> 0.25 | AA9: =Y9+Z9 -> 19.11169587 | AB9: =100*($E$15*$E$17+($E$16*(AA9/100))/(1-$E$19)) -> 18.52999999 | AC9: =AB9/V9 -> 0.1199393754 | AD9: =$E$6/(1-AC9) -> 1092154.431 | AE9: =IF(OR(OR(AD9=AD3,AD9=(AD3+1)),AD9=(AD8187-1)),"yes","not yet") -> not yet | AF9: =100*(1-AC9) -> 88.00606246
C10: curve No. used | E10: =VLOOKUP(E8,AI3:AJ6,2) -> 3 | F10: (calculated) | V10: =100*(+AD4/$E$7) -> 154.1529379 | W10: =EXP(5.70827-(0.68367*LN(+V10))) -> 9.621286585 | X10: =(+W10*V10)/100 -> 14.83149593 | Y10: =100*((((X10/100)-((X10/100)-0.03574)*$E$19)-0.03574-0.00619)/0.344) -> 18.45752902 | Z10: =+$E$18 -> 0.25 | AA10: =Y10+Z10 -> 18.70752902 | AB10: =100*($E$15*$E$17+($E$16*(AA10/100))/(1-$E$19)) -> 18.18786198 | AC10: =AB10/V10 -> 0.1179858278 | AD10: =$E$6/(1-AC10) -> 1089735.45 | AE10: =IF(OR(OR(AD10=AD4,AD10=(AD4+1)),AD10=(AD4-1)),"yes","not yet") -> not yet | AF10: =100*(1-AC10) -> 88.20141722
V11: =100*(+AD5/$E$7) -> 153.92356 | W11: =EXP(5.6985-(0.68367*LN(V11))) -> 9.537448984 | X11: =(+W11*V11)/100 -> 14.68038101 | Y11: =100*((((X11/100)-((X11/100)-0.03574)*$E$19)-0.03574-0.00619)/0.344) -> 18.18561001 | Z11: =+$E$18 -> 0.25 | AA11: =Y11+Z11 -> 18.43561001 | AB11: =100*($E$15*$E$17+($E$16*(AA11/100))/(1-$E$19)) -> 17.95767529 | AC11: =AB11/V11 -> 0.11666619 | AD11: =$E$6/(1-AC11) -> 1088107.463 | AE11: =IF(OR(OR(AD11=AD5,AD11=(AD5+1)),AD11=(AD5-1)),"yes","not yet") -> not yet | AF11: =100*(1-AC11) -> 88.333381 | AJ11: 1 | AK11: 2 | AL11: 3 | AM11: 4 | AN11: 5 | AO11: 6 | AP11: 7 | AQ11: 8 | AR11: 9
C12: Company actual | V12: =100*(+AD6/$E$7) -> 153.7771916 | W12: =EXP(5.6922-(0.68367*LN(V12))) -> 9.483718341 | X12: =(+W12*V12)/100 -> 14.58379573 | Y12: =100*((((X12/100)-((X12/100)-0.03574)*$E$19)-0.03574-0.00619)/0.344) -> 18.01181266 | Z12: =+$E$18 -> 0.25 | AA12: =Y12+Z12 -> 18.26181266 | AB12: =100*($E$15*$E$17+($E$16*(AA12/100))/(1-$E$19)) -> 17.8105512 | AC12: =AB12/V12 -> 0.1158204999 | AD12: =$E$6/(1-AC12) -> 1087066.722 | AE12: =IF(OR(OR(AD12=AD6,AD12=(AD6+1)),AD12=(AD6-1)),"yes","not yet") -> not yet | AF12: =100*(1-AC12) -> 88.41795001 | AJ12: =AE3 -> not yet | AK12: =AE9 -> not yet | AL12: =AE15 -> not yet | AM12: =AE21 -> not yet | AN12: =AE27 -> not yet | AO12: =AE33 -> not yet | AP12: =AE39 -> not yet | AQ12: =AE45 -> yes | AR12: =AE51 -> not yet
C13: capital structure: | E13: !!! | F13: OPERATING RATIO -> | H13: =HLOOKUP($AJ$23,$AJ$17:$AR$21,$E$10+1) -> 88.38768195 | I13: !!!<-- | AJ13: =AE4 -> not yet | AK13: =AE10 -> not yet | AL13: =AE16 -> not yet | AM13: =AE22 -> not yet | AN13: =AE28 -> not yet | AO13: =AE34 -> not yet | AP13: =AE40 -> yes | AQ13: =AE46 -> yes | AR13: =AE52 -> yes
C14: - | D14: - | H14: = | V14: 3rd Turnover | W14: M | X14: ROR | Y14: ROE | AJ14: =AE5 -> not yet | AK14: =AE11 -> not yet | AL14: =AE17 -> not yet | AM14: =AE23 -> not yet | AN14: =AE29 -> not yet | AO14: =AE35 -> not yet | AP14: =AE41 -> yes | AQ14: =AE47 -> yes | AR14: =AE53 -> yes
B15: * | C15: Actual Debt Ratio | E15: 0.476 | F15: Conversion factor data: | V15: =100*(+AD9/$E$7) -> 155.7853116 | W15: =EXP(5.7226-(0.68367*LN(+V15))) -> 9.690116645 | X15: =(+W15*V15)/100 -> 15.09577841 | Y15: =100*((((X15/100)-((X15/100)-0.03574)*$E$19)-0.03574-0.00619)/0.344) -> 18.93308382 | Z15: =+$E$18 -> 0.25 | AA15: =Y15+Z15 -> 19.18308382 | AB15: =100*($E$15*$E$17+($E$16*(AA15/100))/(1-$E$19)) -> 18.5904318 | AC15: =AB15/V15 -> 0.1193336625 | AD15: =$E$6/(1-AC15) -> 1091403.259 | AE15: =IF(OR(OR(AD15=AD9,AD15=(AD9+1)),AD15=(AD1-1)),"yes","not yet") -> not yet | AF15: =100*(1-AC15) -> 88.06663375 | AJ15: =AE6 -> not yet | AK15: =AE12 -> not yet | AL15: =AE18 -> not yet | AM15: =AE24 -> not yet | AN15: =AE30 -> not yet | AO15: =AE36 -> not yet | AP15: =AE42 -> yes | AQ15: =AE48 -> yes | AR15: =AE54 -> yes
B16: * | C16: Actual Equity Ratio | E16: 0.524 | F16: B & O Tax | H16: =+'Combined LG'!H16 -> 0.015 | I16: * | V16: =100*(+AD10/$E$7) -> 155.4402672 | W16: =EXP(5.70827-(0.68367*LN(+V16))) -> 9.566738892 | X16: =(+W16*V16)/100 -> 14.8705645 | Y16: =100*((((X16/100)-((X16/100)-0.03574)*$E$19)-0.03574-0.00619)/0.344) -> 18.52782972 | Z16: =+$E$18 -> 0.25 | AA16: =Y16+Z16 -> 18.77782972 | AB16: =100*($E$15*$E$17+($E$16*(AA16/100))/(1-$E$19)) -> 18.2473734 | AC16: =AB16/V16 -> 0.1173915468 | AD16: =$E$6/(1-AC16) -> 1089001.705 | AE16: =IF(OR(OR(AD16=AD10,AD16=(AD10+1)),AD16=(AD10-1)),"yes","not yet") -> not yet | AF16: =100*(1-AC16) -> 88.26084532
B17: * | C17: Actual Cost of Debt | E17: 0.0494 | F17: WUTC Fee | H17: =+'Combined LG'!H17 -> 0.004275 | I17: * | V17: =100*(+AD11/$E$7) -> 155.2080505 | W17: =EXP(5.6985-(0.68367*LN(V17))) -> 9.483415173 | X17: =(+W17*V17)/100 -> 14.71902381 | Y17: =100*((((X17/100)-((X17/100)-0.03574)*$E$19)-0.03574-0.00619)/0.344) -> 18.2551446 | Z17: =+$E$18 -> 0.25 | AA17: =Y17+Z17 -> 18.5051446 | AB17: =100*($E$15*$E$17+($E$16*(AA17/100))/(1-$E$19)) -> 18.01653817 | AC17: =AB17/V17 -> 0.1160799205 | AD17: =$E$6/(1-AC17) -> 1087385.764 | AE17: =IF(OR(OR(AD17=AD11,AD17=(AD11+1)),AD17=(AD11-1)),"yes","not yet") -> not yet | AF17: =100*(1-AC17) -> 88.39200795 | AJ17: =HLOOKUP(1,$AJ$11:$AR$15,$E$10+1) -> not yet | AK17: =HLOOKUP(2,$AJ$11:$AR$15,$E$10+1) -> not yet | AL17: =HLOOKUP(3,$AJ$11:$AR$15,$E$10+1) -> not yet | AM17: =HLOOKUP(4,$AJ$11:$AR$15,$E$10+1) -> not yet | AN17: =HLOOKUP(5,$AJ$11:$AR$15,$E$10+1) -> not yet | AO17: =HLOOKUP(6,$AJ$11:$AR$15,$E$10+1) -> not yet | AP17: =HLOOKUP(7,$AJ$11:$AR$15,$E$10+1) -> yes | AQ17: =HLOOKUP(8,$AJ$11:$AR$15,$E$10+1) -> yes | AR17: =HLOOKUP(9,$AJ$11:$AR$15,$E$10+1) -> yes
B18: * | C18: Basis Points | E18: 0.25 | F18: City Tax | H18: =+'Combined LG'!H18 -> 0 | I18: * | V18: =100*(+AD12/$E$7) -> 155.0595989 | W18: =EXP(5.6922-(0.68367*LN(V18))) -> 9.430024773 | X18: =(+W18*V18)/100 -> 14.62215859 | Y18: =100*((((X18/100)-((X18/100)-0.03574)*$E$19)-0.03574-0.00619)/0.344) -> 18.0808435 | Z18: =+$E$18 -> 0.25 | AA18: =Y18+Z18 -> 18.3308435 | AB18: =100*($E$15*$E$17+($E$16*(AA18/100))/(1-$E$19)) -> 17.86898765 | AC18: =AB18/V18 -> 0.1152394807 | AD18: =$E$6/(1-AC18) -> 1086352.849 | AE18: =IF(OR(OR(AD18=AD12,AD18=(AD12+1)),AD18=(AD12-1)),"yes","not yet") -> not yet | AF18: =100*(1-AC18) -> 88.47605193 | AI18: 1 | AJ18: =AF3 -> 88.74123353 | AK18: =AF9 -> 88.00606246 | AL18: =AF15 -> 88.06663375 | AM18: =AF21 -> 88.06163485 | AN18: =AF27 -> 88.06204735 | AO18: =AF33 -> 88.06201331 | AP18: =AF39 -> 88.06201929 | AQ18: =AF45 -> 88.06201264 | AR18: =AF51 -> 88.06201929
B19: * | C19: Tax Rate | E19: 0.381 | F19: Bad Debts | H19: =+'Combined LG'!H19 -> 0.006 | I19: * | AI19: 2 | AJ19: =AF4 -> 88.9379862 | AK19: =AF10 -> 88.20141722 | AL19: =AF16 -> 88.26084532 | AM19: =AF22 -> 88.25604241 | AN19: =AF28 -> 88.25643052 | AO19: =AF34 -> 88.25639916 | AP19: =AF40 -> 88.25640453 | AQ19: =AF46 -> 88.25640453 | AR19: =AF52 -> 88.25640453
H20: - | V20: 4th Turnover | W20: M | X20: ROR | Y20: ROE | AI20: 3 | AJ20: =AF5 -> 89.07052218 | AK20: =AF11 -> 88.333381 | AL20: =AF17 -> 88.39200795 | AM20: =AF23 -> 88.38733725 | AN20: =AF29 -> 88.3877093 | AO20: =AF35 -> 88.38767966 | AP20: =AF41 -> 88.38768195 | AQ20: =AF47 -> 88.38768195 | AR20: =AF53 -> 88.38768195
F21: Revenue Sensitive | H21: =SUM(H16:H19) -> 0.025275 | V21: =100*(+AD15/$E$7) -> 155.6781641 | W21: =EXP(5.7226-(0.68367*LN(+V21))) -> 9.69467578 | X21: =(+W21*V21)/100 -> 15.09249327 | Y21: =100*((((X21/100)-((X21/100)-0.03574)*$E$19)-0.03574-0.00619)/0.344) -> 18.92717249 | Z21: =+$E$18 -> 0.25 | AA21: =Y21+Z21 -> 19.17717249 | AB21: =100*($E$15*$E$17+($E$16*(AA21/100))/(1-$E$19)) -> 18.58542769 | AC21: =AB21/V21 -> 0.1193836515 | AD21: =$E$6/(1-AC21) -> 1091465.213 | AE21: =IF(OR(OR(AD21=AD15,AD21=(AD15+1)),AD21=(AD7-1)),"yes","not yet") -> not yet | AF21: =100*(1-AC21) -> 88.06163485 | AI21: 4 | AJ21: =AF6 -> 89.15530136 | AK21: =AF12 -> 88.41795001 | AL21: =AF18 -> 88.47605193 | AM21: =AF24 -> 88.4714658 | AN21: =AF30 -> 88.47182774 | AO21: =AF36 -> 88.47179918 | AP21: =AF42 -> 88.47180099 | AQ21: =AF48 -> 88.47180099 | AR21: =AF54 -> 88.47180099
V22: =100*(+AD16/$E$7) -> 155.3356056 | W22: =EXP(5.70827-(0.68367*LN(+V22))) -> 9.571145257 | X22: =(+W22*V22)/100 -> 14.86739645 | Y22: =100*((((X22/100)-((X22/100)-0.03574)*$E$19)-0.03574-0.00619)/0.344) -> 18.52212908 | Z22: =+$E$18 -> 0.25 | AA22: =Y22+Z22 -> 18.77212908 | AB22: =100*($E$15*$E$17+($E$16*(AA22/100))/(1-$E$19)) -> 18.24254765 | AC22: =AB22/V22 -> 0.1174395759 | AD22: =$E$6/(1-AC22) -> 1089060.969 | AE22: =IF(OR(OR(AD22=AD16,AD22=(AD16+1)),AD22=(AD16-1)),"yes","not yet") -> not yet | AF22: =100*(1-AC22) -> 88.25604241
F23: Conversion Factor | H23: =((+H13/100)-H21) -> 0.8586018195 | V23: =100*(+AD17/$E$7) -> 155.1051071 | W23: =EXP(5.6985-(0.68367*LN(V23))) -> 9.487717844 | X23: =(+W23*V23)/100 -> 14.71593493 | Y23: =100*((((X23/100)-((X23/100)-0.03574)*$E$19)-0.03574-0.00619)/0.344) -> 18.24958639 | Z23: =+$E$18 -> 0.25 | AA23: =Y23+Z23 -> 18.49958639 | AB23: =100*($E$15*$E$17+($E$16*(AA23/100))/(1-$E$19)) -> 18.01183301 | AC23: =AB23/V23 -> 0.1161266275 | AD23: =$E$6/(1-AC23) -> 1087443.225 | AE23: =IF(OR(OR(AD23=AD17,AD23=(AD17+1)),AD23=(AD17-1)),"yes","not yet") -> not yet | AF23: =100*(1-AC23) -> 88.38733725 | AJ23: yes
V24: =100*(+AD18/$E$7) -> 154.9577718 | W24: =EXP(5.6922-(0.68367*LN(V24))) -> 9.434260854 | X24: =(+W24*V24)/100 -> 14.6191204 | Y24: =100*((((X24/100)-((X24/100)-0.03574)*$E$19)-0.03574-0.00619)/0.344) -> 18.07537654 | Z24: =+$E$18 -> 0.25 | AA24: =Y24+Z24 -> 18.32537654 | AB24: =100*($E$15*$E$17+($E$16*(AA24/100))/(1-$E$19)) -> 17.86435972 | AC24: =AB24/V24 -> 0.115285342 | AD24: =$E$6/(1-AC24) -> 1086409.163 | AE24: =IF(OR(OR(AD24=AD18,AD24=(AD18+1)),AD24=(AD18-1)),"yes","not yet") -> not yet | AF24: =100*(1-AC24) -> 88.4714658 | AJ24: =HLOOKUP($AJ$23,$AJ$17:$AR$21,$E$10+1) -> 88.38768195
C26: Company Reference | V26: 5th Turnover | W26: M | X26: ROR | Y26: ROE | AJ26: =HLOOKUP(1,$AJ$11:$AR$15,$E$10+1) -> not yet | AK26: =HLOOKUP(2,$AJ$11:$AR$15,$E$10+1) -> not yet | AL26: =HLOOKUP(3,$AJ$11:$AR$15,$E$10+1) -> not yet | AM26: =HLOOKUP(4,$AJ$11:$AR$15,$E$10+1) -> not yet | AN26: =HLOOKUP(5,$AJ$11:$AR$15,$E$10+1) -> not yet | AO26: =HLOOKUP(6,$AJ$11:$AR$15,$E$10+1) -> not yet | AP26: =HLOOKUP(7,$AJ$11:$AR$15,$E$10+1) -> yes | AQ26: =HLOOKUP(8,$AJ$11:$AR$15,$E$10+1) -> yes | AR26: =HLOOKUP(9,$AJ$11:$AR$15,$E$10+1) -> yes
C27: Annl Price Increase (PI) $ | E27: =+E4 -> 220282.4871 | V27: =100*(+AD21/$E$7) -> 155.6870013 | W27: =EXP(5.7226-(0.68367*LN(+V27))) -> 9.694299556 | X27: =(+W27*V27)/100 -> 15.09276428 | Y27: =100*((((X27/100)-((X27/100)-0.03574)*$E$19)-0.03574-0.00619)/0.344) -> 18.92766014 | Z27: =+$E$18 -> 0.25 | AA27: =Y27+Z27 -> 19.17766014 | AB27: =100*($E$15*$E$17+($E$16*(AA27/100))/(1-$E$19)) -> 18.58584051 | AC27: =AB27/V27 -> 0.1193795265 | AD27: =$E$6/(1-AC27) -> 1091460.101 | AE27: =IF(OR(OR(AD27=AD21,AD27=(AD21+1)),AD27=(AD13-1)),"yes","not yet") -> not yet | AF27: =100*(1-AC27) -> 88.06204735 | AI27: 1 | AJ27: =V3 -> 171.3756483 | AK27: =V9 -> 154.4947182 | AL27: =V15 -> 155.7853116 | AM27: =V21 -> 155.6781641 | AN27: =V27 -> 155.6870013 | AO27: =V33 -> 155.6862721 | AP27: =V39 -> 155.6864003 | AQ27: =V45 -> 155.6862577 | AR27: =V51 -> 155.6864003
C28: Monthly PI $ | E28: =+E27/12 -> 18356.87393 | V28: =100*(+AD22/$E$7) -> 155.344059 | W28: =EXP(5.70827-(0.68367*LN(+V28))) -> 9.570789174 | X28: =(+W28*V28)/100 -> 14.86765239 | Y28: =100*((((X28/100)-((X28/100)-0.03574)*$E$19)-0.03574-0.00619)/0.344) -> 18.52258961 | Z28: =+$E$18 -> 0.25 | AA28: =Y28+Z28 -> 18.77258961 | AB28: =100*($E$15*$E$17+($E$16*(AA28/100))/(1-$E$19)) -> 18.24293751 | AC28: =AB28/V28 -> 0.1174356948 | AD28: =$E$6/(1-AC28) -> 1089056.18 | AE28: =IF(OR(OR(AD28=AD22,AD28=(AD22+1)),AD28=(AD22-1)),"yes","not yet") -> not yet | AF28: =100*(1-AC28) -> 88.25643052 | AI28: 2 | AJ28: =V4 -> 171.3756483 | AK28: =V10 -> 154.1529379 | AL28: =V16 -> 155.4402672 | AM28: =V22 -> 155.3356056 | AN28: =V28 -> 155.344059 | AO28: =V34 -> 155.3433759 | AP28: =V40 -> 155.3434929 | AQ28: =V46 -> 155.3434929 | AR28: =V52 -> 155.3434929
C29: Percentage PI | E29: =+E4/E5 -> 0.2521965451 | V29: =100*(+AD23/$E$7) -> 155.1133034 | W29: =EXP(5.6985-(0.68367*LN(V29))) -> 9.487375091 | X29: =(+W29*V29)/100 -> 14.71618091 | Y29: =100*((((X29/100)-((X29/100)-0.03574)*$E$19)-0.03574-0.00619)/0.344) -> 18.25002903 | Z29: =+$E$18 -> 0.25 | AA29: =Y29+Z29 -> 18.50002903 | AB29: =100*($E$15*$E$17+($E$16*(AA29/100))/(1-$E$19)) -> 18.01220771 | AC29: =AB29/V29 -> 0.116122907 | AD29: =$E$6/(1-AC29) -> 1087438.648 | AE29: =IF(OR(OR(AD29=AD23,AD29=(AD23+1)),AD29=(AD23-1)),"yes","not yet") -> not yet | AF29: =100*(1-AC29) -> 88.3877093 | AI29: 3 | AJ29: =V5 -> 171.3756483 | AK29: =V11 -> 153.92356 | AL29: =V17 -> 155.2080505 | AM29: =V23 -> 155.1051071 | AN29: =V29 -> 155.1133034 | AO29: =V35 -> 155.1126505 | AP29: =V41 -> 155.1127008 | AQ29: =V47 -> 155.1127008 | AR29: =V53 -> 155.1127008
V30: =100*(+AD24/$E$7) -> 154.9658044 | W30: =EXP(5.6922-(0.68367*LN(V30))) -> 9.433926521 | X30: =(+W30*V30)/100 -> 14.61936012 | Y30: =100*((((X30/100)-((X30/100)-0.03574)*$E$19)-0.03574-0.00619)/0.344) -> 18.07580789 | Z30: =+$E$18 -> 0.25 | AA30: =Y30+Z30 -> 18.32580789 | AB30: =100*($E$15*$E$17+($E$16*(AA30/100))/(1-$E$19)) -> 17.86472487 | AC30: =AB30/V30 -> 0.1152817226 | AD30: =$E$6/(1-AC30) -> 1086404.718 | AE30: =IF(OR(OR(AD30=AD24,AD30=(AD24+1)),AD30=(AD24-1)),"yes","not yet") -> not yet | AF30: =100*(1-AC30) -> 88.47182774 | AI30: 4 | AJ30: =V6 -> 171.3756483 | AK30: =V12 -> 153.7771916 | AL30: =V18 -> 155.0595989 | AM30: =V24 -> 154.9577718 | AN30: =V30 -> 154.9658044 | AO30: =V36 -> 154.9651704 | AP30: =V42 -> 154.9652106 | AQ30: =V48 -> 154.9652106 | AR30: =V54 -> 154.9652106
V32: 6th Turnover | W32: M | X32: ROR | Y32: ROE | AJ32: yes
V33: =100*(+AD27/$E$7) -> 155.6862721 | W33: =EXP(5.7226-(0.68367*LN(+V33))) -> 9.694330601 | X33: =(+W33*V33)/100 -> 15.09274192 | Y33: =100*((((X33/100)-((X33/100)-0.03574)*$E$19)-0.03574-0.00619)/0.344) -> 18.9276199 | Z33: =+$E$18 -> 0.25 | AA33: =Y33+Z33 -> 19.1776199 | AB33: =100*($E$15*$E$17+($E$16*(AA33/100))/(1-$E$19)) -> 18.58580644 | AC33: =AB33/V33 -> 0.1193798669 | AD33: =ROUND($E$6/(1-AC33),0) -> 1091461 | AE33: =IF(OR(OR(AD33=AD27,AD33=(AD27+1)),AD33=(AD19-1)),"yes","not yet") -> not yet | AF33: =100*(1-AC33) -> 88.06201331 | AJ33: =HLOOKUP($AJ$32,$AJ$26:$AR$30,$E$10+1) -> 155.1127008
V34: =100*(+AD28/$E$7) -> 155.3433759 | W34: =EXP(5.70827-(0.68367*LN(+V34))) -> 9.570817948 | X34: =(+W34*V34)/100 -> 14.8676317 | Y34: =100*((((X34/100)-((X34/100)-0.03574)*$E$19)-0.03574-0.00619)/0.344) -> 18.5225524 | Z34: =+$E$18 -> 0.25 | AA34: =Y34+Z34 -> 18.7725524 | AB34: =100*($E$15*$E$17+($E$16*(AA34/100))/(1-$E$19)) -> 18.242906 | AC34: =AB34/V34 -> 0.1174360084 | AD34: =ROUND($E$6/(1-AC34),0) -> 1089057 | AE34: =IF(OR(OR(AD34=AD28,AD34=(AD28+1)),AD34=(AD28-1)),"yes","not yet") -> not yet | AF34: =100*(1-AC34) -> 88.25639916
V35: =100*(+AD29/$E$7) -> 155.1126505 | W35: =EXP(5.6985-(0.68367*LN(V35))) -> 9.487402394 | X35: =(+W35*V35)/100 -> 14.71616132 | Y35: =100*((((X35/100)-((X35/100)-0.03574)*$E$19)-0.03574-0.00619)/0.344) -> 18.24999377 | Z35: =+$E$18 -> 0.25 | AA35: =Y35+Z35 -> 18.49999377 | AB35: =100*($E$15*$E$17+($E$16*(AA35/100))/(1-$E$19)) -> 18.01217786 | AC35: =AB35/V35 -> 0.1161232034 | AD35: =ROUND($E$6/(1-AC35),0) -> 1087439 | AE35: =IF(OR(OR(AD35=AD29,AD35=(AD29+1)),AD35=(AD29-1)),"yes","not yet") -> not yet | AF35: =100*(1-AC35) -> 88.38767966 | AJ35: =HLOOKUP(1,$AJ$11:$AR$15,$E$10+1) -> not yet | AK35: =HLOOKUP(2,$AJ$11:$AR$15,$E$10+1) -> not yet | AL35: =HLOOKUP(3,$AJ$11:$AR$15,$E$10+1) -> not yet | AM35: =HLOOKUP(4,$AJ$11:$AR$15,$E$10+1) -> not yet | AN35: =HLOOKUP(5,$AJ$11:$AR$15,$E$10+1) -> not yet | AO35: =HLOOKUP(6,$AJ$11:$AR$15,$E$10+1) -> not yet | AP35: =HLOOKUP(7,$AJ$11:$AR$15,$E$10+1) -> yes | AQ35: =HLOOKUP(8,$AJ$11:$AR$15,$E$10+1) -> yes | AR35: =HLOOKUP(9,$AJ$11:$AR$15,$E$10+1) -> yes
V36: =100*(+AD30/$E$7) -> 154.9651704 | W36: =EXP(5.6922-(0.68367*LN(V36))) -> 9.433952907 | X36: =(+W36*V36)/100 -> 14.6193412 | Y36: =100*((((X36/100)-((X36/100)-0.03574)*$E$19)-0.03574-0.00619)/0.344) -> 18.07577384 | Z36: =+$E$18 -> 0.25 | AA36: =Y36+Z36 -> 18.32577384 | AB36: =100*($E$15*$E$17+($E$16*(AA36/100))/(1-$E$19)) -> 17.86469605 | AC36: =AB36/V36 -> 0.1152820082 | AD36: =ROUND($E$6/(1-AC36),0) -> 1086405 | AE36: =IF(OR(OR(AD36=AD30,AD36=(AD30+1)),AD36=(AD30-1)),"yes","not yet") -> not yet | AF36: =100*(1-AC36) -> 88.47179918 | AI36: 1 | AJ36: =AD3 -> 1083106.548 | AK36: =AD9 -> 1092154.431 | AL36: =AD15 -> 1091403.259 | AM36: =AD21 -> 1091465.213 | AN36: =AD27 -> 1091460.101 | AO36: =AD33 -> 1091461 | AP36: =AD39 -> 1091460 | AQ36: =AD45 -> 1091461 | AR36: =AD51 -> 1091460
AI37: 2 | AJ37: =AD4 -> 1080710.45 | AK37: =AD10 -> 1089735.45 | AL37: =AD16 -> 1089001.705 | AM37: =AD22 -> 1089060.969 | AN37: =AD28 -> 1089056.18 | AO37: =AD34 -> 1089057 | AP37: =AD40 -> 1089057 | AQ37: =AD46 -> 1089057 | AR37: =AD52 -> 1089057
V38: 7th turnover | W38: M | X38: ROR | Y38: ROE | AI38: 3 | AJ38: =AD5 -> 1079102.364 | AK38: =AD11 -> 1088107.463 | AL38: =AD17 -> 1087385.764 | AM38: =AD23 -> 1087443.225 | AN38: =AD29 -> 1087438.648 | AO38: =AD35 -> 1087439 | AP38: =AD41 -> 1087439 | AQ38: =AD47 -> 1087439 | AR38: =AD53 -> 1087439
V39: =100*(+AD33/$E$7) -> 155.6864003 | W39: =EXP(5.7226-(0.68367*LN(+V39))) -> 9.694325141 | X39: =(+W39*V39)/100 -> 15.09274585 | Y39: =100*((((X39/100)-((X39/100)-0.03574)*$E$19)-0.03574-0.00619)/0.344) -> 18.92762698 | Z39: =+$E$18 -> 0.25 | AA39: =Y39+Z39 -> 19.17762698 | AB39: =100*($E$15*$E$17+($E$16*(AA39/100))/(1-$E$19)) -> 18.58581243 | AC39: =AB39/V39 -> 0.1193798071 | AD39: =ROUND($E$6/(1-AC39),0) -> 1091460 | AE39: =IF(OR(OR(AD39=AD33,AD39=(AD33+1)),AD39=(AD25-1)),"yes","not yet") -> not yet | AF39: =100*(1-AC39) -> 88.06201929 | AI39: 4 | AJ39: =AD6 -> 1078076.229 | AK39: =AD12 -> 1087066.722 | AL39: =AD18 -> 1086352.849 | AM39: =AD24 -> 1086409.163 | AN39: =AD30 -> 1086404.718 | AO39: =AD36 -> 1086405 | AP39: =AD42 -> 1086405 | AQ39: =AD48 -> 1086405 | AR39: =AD54 -> 1086405
V40: =100*(+AD34/$E$7) -> 155.3434929 | W40: =EXP(5.70827-(0.68367*LN(+V40))) -> 9.570813021 | X40: =(+W40*V40)/100 -> 14.86763524 | Y40: =100*((((X40/100)-((X40/100)-0.03574)*$E$19)-0.03574-0.00619)/0.344) -> 18.52255877 | Z40: =+$E$18 -> 0.25 | AA40: =Y40+Z40 -> 18.77255877 | AB40: =100*($E$15*$E$17+($E$16*(AA40/100))/(1-$E$19)) -> 18.2429114 | AC40: =AB40/V40 -> 0.1174359547 | AD40: =ROUND($E$6/(1-AC40),0) -> 1089057 | AE40: =IF(OR(OR(AD40=AD34,AD40=(AD34+1)),AD40=(AD34-1)),"yes","not yet") -> yes | AF40: =100*(1-AC40) -> 88.25640453
V41: =100*(+AD35/$E$7) -> 155.1127008 | W41: =EXP(5.6985-(0.68367*LN(V41))) -> 9.487400293 | X41: =(+W41*V41)/100 -> 14.71616283 | Y41: =100*((((X41/100)-((X41/100)-0.03574)*$E$19)-0.03574-0.00619)/0.344) -> 18.24999648 | Z41: =+$E$18 -> 0.25 | AA41: =Y41+Z41 -> 18.49999648 | AB41: =100*($E$15*$E$17+($E$16*(AA41/100))/(1-$E$19)) -> 18.01218016 | AC41: =AB41/V41 -> 0.1161231805 | AD41: =ROUND($E$6/(1-AC41),0) -> 1087439 | AE41: =IF(OR(OR(AD41=AD35,AD41=(AD35+1)),AD41=(AD35-1)),"yes","not yet") -> yes | AF41: =100*(1-AC41) -> 88.38768195 | AJ41: yes
V42: =100*(+AD36/$E$7) -> 154.9652106 | W42: =EXP(5.6922-(0.68367*LN(V42))) -> 9.433951234 | X42: =(+W42*V42)/100 -> 14.6193424 | Y42: =100*((((X42/100)-((X42/100)-0.03574)*$E$19)-0.03574-0.00619)/0.344) -> 18.075776 | Z42: =+$E$18 -> 0.25 | AA42: =Y42+Z42 -> 18.325776 | AB42: =100*($E$15*$E$17+($E$16*(AA42/100))/(1-$E$19)) -> 17.86469788 | AC42: =AB42/V42 -> 0.1152819901 | AD42: =ROUND($E$6/(1-AC42),0) -> 1086405 | AE42: =IF(OR(OR(AD42=AD36,AD42=(AD36+1)),AD42=(AD36-1)),"yes","not yet") -> yes | AF42: =100*(1-AC42) -> 88.47180099 | AJ42: =HLOOKUP($AJ$32,$AJ$35:$AR$39,$E$10+1) -> 1087439
V44: 8th turnover | W44: M | X44: ROR | Y44: ROE
V45: =100*(+AD39/$E$7) -> 155.6862577 | W45: =EXP(5.7226-(0.68367*LN(+V45))) -> 9.694331214 | X45: =(+W45*V45)/100 -> 15.09274147 | Y45: =100*((((X45/100)-((X45/100)-0.03574)*$E$19)-0.03574-0.00619)/0.344) -> 18.92761911 | Z45: =+$E$18 -> 0.25 | AA45: =Y45+Z45 -> 19.17761911 | AB45: =100*($E$15*$E$17+($E$16*(AA45/100))/(1-$E$19)) -> 18.58580577 | AC45: =AB45/V45 -> 0.1193798736 | AD45: =ROUND($E$6/(1-AC45),0) -> 1091461 | AE45: =IF(OR(OR(AD45=AD39,AD45=(AD39+1)),AD45=(AD31-1)),"yes","not yet") -> yes | AF45: =100*(1-AC45) -> 88.06201264
V46: =100*(+AD40/$E$7) -> 155.3434929 | W46: =EXP(5.70827-(0.68367*LN(+V46))) -> 9.570813021 | X46: =(+W46*V46)/100 -> 14.86763524 | Y46: =100*((((X46/100)-((X46/100)-0.03574)*$E$19)-0.03574-0.00619)/0.344) -> 18.52255877 | Z46: =+$E$18 -> 0.25 | AA46: =Y46+Z46 -> 18.77255877 | AB46: =100*($E$15*$E$17+($E$16*(AA46/100))/(1-$E$19)) -> 18.2429114 | AC46: =AB46/V46 -> 0.1174359547 | AD46: =ROUND($E$6/(1-AC46),0) -> 1089057 | AE46: =IF(OR(OR(AD46=AD40,AD46=(AD40+1)),AD46=(AD40-1)),"yes","not yet") -> yes | AF46: =100*(1-AC46) -> 88.25640453
V47: =100*(+AD41/$E$7) -> 155.1127008 | W47: =EXP(5.6985-(0.68367*LN(V47))) -> 9.487400293 | X47: =(+W47*V47)/100 -> 14.71616283 | Y47: =100*((((X47/100)-((X47/100)-0.03574)*$E$19)-0.03574-0.00619)/0.344) -> 18.24999648 | Z47: =+$E$18 -> 0.25 | AA47: =Y47+Z47 -> 18.49999648 | AB47: =100*($E$15*$E$17+($E$16*(AA47/100))/(1-$E$19)) -> 18.01218016 | AC47: =AB47/V47 -> 0.1161231805 | AD47: =ROUND($E$6/(1-AC47),0) -> 1087439 | AE47: =IF(OR(OR(AD47=AD41,AD47=(AD41+1)),AD47=(AD41-1)),"yes","not yet") -> yes | AF47: =100*(1-AC47) -> 88.38768195
V48: =100*(+AD42/$E$7) -> 154.9652106 | W48: =EXP(5.6922-(0.68367*LN(V48))) -> 9.433951234 | X48: =(+W48*V48)/100 -> 14.6193424 | Y48: =100*((((X48/100)-((X48/100)-0.03574)*$E$19)-0.03574-0.00619)/0.344) -> 18.075776 | Z48: =+$E$18 -> 0.25 | AA48: =Y48+Z48 -> 18.325776 | AB48: =100*($E$15*$E$17+($E$16*(AA48/100))/(1-$E$19)) -> 17.86469788 | AC48: =AB48/V48 -> 0.1152819901 | AD48: =ROUND($E$6/(1-AC48),0) -> 1086405 | AE48: =IF(OR(OR(AD48=AD42,AD48=(AD42+1)),AD48=(AD42-1)),"yes","not yet") -> yes | AF48: =100*(1-AC48) -> 88.47180099
V50: 9th turnover | W50: M | X50: ROR | Y50: ROE
V51: =100*(+AD45/$E$7) -> 155.6864003 | W51: =EXP(5.7226-(0.68367*LN(+V51))) -> 9.694325141 | X51: =(+W51*V51)/100 -> 15.09274585 | Y51: =100*((((X51/100)-((X51/100)-0.03574)*$E$19)-0.03574-0.00619)/0.344) -> 18.92762698 | Z51: =+$E$18 -> 0.25 | AA51: =Y51+Z51 -> 19.17762698 | AB51: =100*($E$15*$E$17+($E$16*(AA51/100))/(1-$E$19)) -> 18.58581243 | AC51: =AB51/V51 -> 0.1193798071 | AD51: =ROUND($E$6/(1-AC51),0) -> 1091460 | AE51: =IF(OR(OR(AD51=AD45,AD51=(AD45+1)),AD51=(AD37-1)),"yes","not yet") -> not yet | AF51: =100*(1-AC51) -> 88.06201929
V52: =100*(+AD46/$E$7) -> 155.3434929 | W52: =EXP(5.70827-(0.68367*LN(+V52))) -> 9.570813021 | X52: =(+W52*V52)/100 -> 14.86763524 | Y52: =100*((((X52/100)-((X52/100)-0.03574)*$E$19)-0.03574-0.00619)/0.344) -> 18.52255877 | Z52: =+$E$18 -> 0.25 | AA52: =Y52+Z52 -> 18.77255877 | AB52: =100*($E$15*$E$17+($E$16*(AA52/100))/(1-$E$19)) -> 18.2429114 | AC52: =AB52/V52 -> 0.1174359547 | AD52: =ROUND($E$6/(1-AC52),0) -> 1089057 | AE52: =IF(OR(OR(AD52=AD46,AD52=(AD46+1)),AD52=(AD46-1)),"yes","not yet") -> yes | AF52: =100*(1-AC52) -> 88.25640453
V53: =100*(+AD47/$E$7) -> 155.1127008 | W53: =EXP(5.6985-(0.68367*LN(V53))) -> 9.487400293 | X53: =(+W53*V53)/100 -> 14.71616283 | Y53: =100*((((X53/100)-((X53/100)-0.03574)*$E$19)-0.03574-0.00619)/0.344) -> 18.24999648 | Z53: =+$E$18 -> 0.25 | AA53: =Y53+Z53 -> 18.49999648 | AB53: =100*($E$15*$E$17+($E$16*(AA53/100))/(1-$E$19)) -> 18.01218016 | AC53: =AB53/V53 -> 0.1161231805 | AD53: =ROUND($E$6/(1-AC53),0) -> 1087439 | AE53: =IF(OR(OR(AD53=AD47,AD53=(AD47+1)),AD53=(AD47-1)),"yes","not yet") -> yes | AF53: =100*(1-AC53) -> 88.38768195
V54: =100*(+AD48/$E$7) -> 154.9652106 | W54: =EXP(5.6922-(0.68367*LN(V54))) -> 9.433951234 | X54: =(+W54*V54)/100 -> 14.6193424 | Y54: =100*((((X54/100)-((X54/100)-0.03574)*$E$19)-0.03574-0.00619)/0.344) -> 18.075776 | Z54: =+$E$18 -> 0.25 | AA54: =Y54+Z54 -> 18.325776 | AB54: =100*($E$15*$E$17+($E$16*(AA54/100))/(1-$E$19)) -> 17.86469788 | AC54: =AB54/V54 -> 0.1152819901 | AD54: =ROUND($E$6/(1-AC54),0) -> 1086405 | AE54: =IF(OR(OR(AD54=AD48,AD54=(AD48+1)),AD54=(AD48-1)),"yes","not yet") -> yes | AF54: =100*(1-AC54) -> 88.47180099

Sheet MF RCY
B1: NEW IMPROVED LURITO - GALLAGHER FORMULA | AE1: !??! | AF1: OP/RATIO | AI1: curve
G2: NOTE: | N2: FORMULAS | U2: 1st Revenue | V2: 1st Turnover | W2: M | X2: ROR | Y2: ROE | AA2: Adj ROE | AB2: Pre Tax ROE | AC2: Adj M | AD2: Revenues | AE2: Decision | AI2: lookup table
B3: !!! | C3: Revenue Requirement | E3: =E5+E4 -> 69786.34943 | F3: !!!<-- | H3: Red numbers are input/linked fields. | N3: 1. less than 50 | Q3: @EXP(5.72260-(.68367*@LN(T))) | U3: =$E$6*1.25 -> 79053.36321 | V3: =100*(+U3/$E$7) -> 370.3350387 | W3: =EXP(5.7226-(0.68367*LN(+V3))) -> 5.360710971 | X3: =(+W3*V3)/100 -> 19.85259105 | Y3: =100*((((X3/100)-((X3/100)-0.03574)*$E$19)-0.03574-0.00619)/0.344) -> 27.49258099 | Z3: =+$E$18 -> 0.25 | AA3: =Y3+Z3 -> 27.74258099 | AB3: =100*($E$15*$E$17+($E$16*(AA3/100))/(1-$E$19)) -> 25.83627431 | AC3: =AB3/V3 -> 0.06976459587 | AD3: =$E$6/(1-AC3) -> 67985.68436 | AE3: =IF(AD3=$U$3,"yes","not yet") -> not yet | AF3: =100*(1-AC3) -> 93.02354041 | AI3: 0 | AJ3: 1
B4: !!! | C4: Revenue Deficiency | E4: =(+E6-((H13/100)*E5))/H23 -> 53710.72531 | F4: !!!<-- | H4: Black are formula calculations | N4: 2. Between 50 and 125 | Q4: @EXP(5.70827-(.68367*@LN(T))) | U4: =$E$6*1.25 -> 79053.36321 | V4: =100*(+U4/$E$7) -> 370.3350387 | W4: =EXP(5.70827-(0.68367*LN(+V4))) -> 5.284439772 | X4: =(+W4*V4)/100 -> 19.57013207 | Y4: =100*((((X4/100)-((X4/100)-0.03574)*$E$19)-0.03574-0.00619)/0.344) -> 26.98431905 | Z4: =+$E$18 -> 0.25 | AA4: =Y4+Z4 -> 27.23431905 | AB4: =100*($E$15*$E$17+($E$16*(AA4/100))/(1-$E$19)) -> 25.40601703 | AC4: =AB4/V4 -> 0.06860279038 | AD4: =$E$6/(1-AC4) -> 67900.88043 | AE4: =IF(AD4=$U$4,"yes","not yet") -> not yet | AF4: =100*(1-AC4) -> 93.13972096 | AI4: 50 | AJ4: 2
B5: * | C5: Revenue | E5: =Proforma!R20 -> 16075.62412 | F5: * p/f before rates | N5: 3. Between 125 and 140 | Q5: @EXP(5.69850-(.68367*@LN(T))) | U5: =$E$6*1.25 -> 79053.36321 | V5: =100*(+U5/$E$7) -> 370.3350387 | W5: =EXP(5.6985-(0.68367*LN(V5))) -> 5.233062183 | X5: =(+W5*V5)/100 -> 19.37986286 | Y5: =100*((((X5/100)-((X5/100)-0.03574)*$E$19)-0.03574-0.00619)/0.344) -> 26.64194509 | Z5: =+$E$18 -> 0.25 | AA5: =Y5+Z5 -> 26.89194509 | AB5: =100*($E$15*$E$17+($E$16*(AA5/100))/(1-$E$19)) -> 25.11618835 | AC5: =AB5/V5 -> 0.06782017828 | AD5: =$E$6/(1-AC5) -> 67843.87421 | AE5: =IF(AD5=$U$5,"yes","not yet") -> not yet | AF5: =100*(1-AC5) -> 93.21798217 | AI5: 125 | AJ5: 3
B6: * | C6: Expenses | E6: =+Proforma!R368 -> 63242.69057 | F6: * p/f before rates | H6: =E4/E5 -> 3.341128464 | N6: 4. greater than 400 | Q6: @EXP(5.69220-(.68367*@LN(T))) | U6: =$E$6*1.25 -> 79053.36321 | V6: =100*(+U6/$E$7) -> 370.3350387 | W6: =EXP(5.6922-(0.68367*LN(V6))) -> 5.200197524 | X6: =(+W6*V6)/100 -> 19.25815351 | Y6: =100*((((X6/100)-((X6/100)-0.03574)*$E$19)-0.03574-0.00619)/0.344) -> 26.42293902 | Z6: =+$E$18 -> 0.25 | AA6: =Y6+Z6 -> 26.67293902 | AB6: =100*($E$15*$E$17+($E$16*(AA6/100))/(1-$E$19)) -> 24.93079388 | AC6: =AB6/V6 -> 0.06731956545 | AD6: =$E$6/(1-AC6) -> 67807.45926 | AE6: =IF(AD6=$U$6,"yes","not yet") -> not yet | AF6: =100*(1-AC6) -> 93.26804346 | AI6: 401 | AJ6: 4
B7: * | C7: Avg. Investment - | E7: ='Staff Avg Invest & Depreac'!R2143 -> 21346.44442 | F7: * p/f before rates
C8: curve turnover | E8: =V3 -> 370.3350387 | F8: (calculated) | V8: 2nd Turnover | W8: M | X8: ROR | Y8: ROE | AI8: lookup tables
C9: final turnover | E9: =HLOOKUP($AJ$32,$AJ$26:$AR$30,$E$10+1) -> 320.0533009 | F9: (calculated) | V9: =100*(+AD3/$E$7) -> 318.4871589 | W9: =EXP(5.7226-(0.68367*LN(+V9))) -> 5.942986512 | X9: =(+W9*V9)/100 -> 18.9276489 | Y9: =100*((((X9/100)-((X9/100)-0.03574)*$E$19)-0.03574-0.00619)/0.344) -> 25.82822287 | Z9: =+$E$18 -> 0.25 | AA9: =Y9+Z9 -> 26.07822287 | AB9: =100*($E$15*$E$17+($E$16*(AA9/100))/(1-$E$19)) -> 24.4273508 | AC9: =AB9/V9 -> 0.07669807123 | AD9: =$E$6/(1-AC9) -> 68496.21841 | AE9: =IF(OR(OR(AD9=AD3,AD9=(AD3+1)),AD9=(AD8187-1)),"yes","not yet") -> not yet | AF9: =100*(1-AC9) -> 92.33019288
C10: curve No. used | E10: =VLOOKUP(E8,AI3:AJ6,2) -> 3 | F10: (calculated) | V10: =100*(+AD4/$E$7) -> 318.0898847 | W10: =EXP(5.70827-(0.68367*LN(+V10))) -> 5.863432101 | X10: =(+W10*V10)/100 -> 18.65098441 | Y10: =100*((((X10/100)-((X10/100)-0.03574)*$E$19)-0.03574-0.00619)/0.344) -> 25.33038764 | Z10: =+$E$18 -> 0.25 | AA10: =Y10+Z10 -> 25.58038764 | AB10: =100*($E$15*$E$17+($E$16*(AA10/100))/(1-$E$19)) -> 24.00592 | AC10: =AB10/V10 -> 0.07546898271 | AD10: =$E$6/(1-AC10) -> 68405.15827 | AE10: =IF(OR(OR(AD10=AD4,AD10=(AD4+1)),AD10=(AD4-1)),"yes","not yet") -> not yet | AF10: =100*(1-AC10) -> 92.45310173
V11: =100*(+AD5/$E$7) -> 317.8228321 | W11: =EXP(5.6985-(0.68367*LN(V11))) -> 5.809760404 | X11: =(+W11*V11)/100 -> 18.46474506 | Y11: =100*((((X11/100)-((X11/100)-0.03574)*$E$19)-0.03574-0.00619)/0.344) -> 24.99526509 | Z11: =+$E$18 -> 0.25 | AA11: =Y11+Z11 -> 25.24526509 | AB11: =100*($E$15*$E$17+($E$16*(AA11/100))/(1-$E$19)) -> 23.72222983 | AC11: =AB11/V11 -> 0.07463979121 | AD11: =$E$6/(1-AC11) -> 68343.86217 | AE11: =IF(OR(OR(AD11=AD5,AD11=(AD5+1)),AD11=(AD5-1)),"yes","not yet") -> not yet | AF11: =100*(1-AC11) -> 92.53602088 | AJ11: 1 | AK11: 2 | AL11: 3 | AM11: 4 | AN11: 5 | AO11: 6 | AP11: 7 | AQ11: 8 | AR11: 9
C12: Company actual | V12: =100*(+AD6/$E$7) -> 317.6522419 | W12: =EXP(5.6922-(0.68367*LN(V12))) -> 5.77539347 | X12: =(+W12*V12)/100 -> 18.34566683 | Y12: =100*((((X12/100)-((X12/100)-0.03574)*$E$19)-0.03574-0.00619)/0.344) -> 24.78099352 | Z12: =+$E$18 -> 0.25 | AA12: =Y12+Z12 -> 25.03099352 | AB12: =100*($E$15*$E$17+($E$16*(AA12/100))/(1-$E$19)) -> 23.54084324 | AC12: =AB12/V12 -> 0.07410885281 | AD12: =$E$6/(1-AC12) -> 68304.67141 | AE12: =IF(OR(OR(AD12=AD6,AD12=(AD6+1)),AD12=(AD6-1)),"yes","not yet") -> not yet | AF12: =100*(1-AC12) -> 92.58911472 | AJ12: =AE3 -> not yet | AK12: =AE9 -> not yet | AL12: =AE15 -> not yet | AM12: =AE21 -> not yet | AN12: =AE27 -> not yet | AO12: =AE33 -> not yet | AP12: =AE39 -> yes | AQ12: =AE45 -> yes | AR12: =AE51 -> yes
C13: capital structure: | E13: !!! | F13: OPERATING RATIO -> | H13: =HLOOKUP($AJ$23,$AJ$17:$AR$21,$E$10+1) -> 92.56857491 | I13: !!!<-- | AJ13: =AE4 -> not yet | AK13: =AE10 -> not yet | AL13: =AE16 -> not yet | AM13: =AE22 -> not yet | AN13: =AE28 -> not yet | AO13: =AE34 -> not yet | AP13: =AE40 -> yes | AQ13: =AE46 -> yes | AR13: =AE52 -> yes
C14: - | D14: - | H14: = | V14: 3rd Turnover | W14: M | X14: ROR | Y14: ROE | AJ14: =AE5 -> not yet | AK14: =AE11 -> not yet | AL14: =AE17 -> not yet | AM14: =AE23 -> not yet | AN14: =AE29 -> not yet | AO14: =AE35 -> not yet | AP14: =AE41 -> yes | AQ14: =AE47 -> yes | AR14: =AE53 -> yes
B15: * | C15: Actual Debt Ratio | E15: 0.476 | F15: Conversion factor data: | V15: =100*(+AD9/$E$7) -> 320.8788174 | W15: =EXP(5.7226-(0.68367*LN(+V15))) -> 5.912666963 | X15: =(+W15*V15)/100 -> 18.97249583 | Y15: =100*((((X15/100)-((X15/100)-0.03574)*$E$19)-0.03574-0.00619)/0.344) -> 25.90892127 | Z15: =+$E$18 -> 0.25 | AA15: =Y15+Z15 -> 26.15892127 | AB15: =100*($E$15*$E$17+($E$16*(AA15/100))/(1-$E$19)) -> 24.49566414 | AC15: =AB15/V15 -> 0.07633929951 | AD15: =$E$6/(1-AC15) -> 68469.61285 | AE15: =IF(OR(OR(AD15=AD9,AD15=(AD9+1)),AD15=(AD1-1)),"yes","not yet") -> not yet | AF15: =100*(1-AC15) -> 92.36607005 | AJ15: =AE6 -> not yet | AK15: =AE12 -> not yet | AL15: =AE18 -> not yet | AM15: =AE24 -> not yet | AN15: =AE30 -> not yet | AO15: =AE36 -> not yet | AP15: =AE42 -> yes | AQ15: =AE48 -> yes | AR15: =AE54 -> yes
B16: * | C16: Actual Equity Ratio | E16: 0.524 | F16: B & O Tax | H16: =+'Combined LG'!H16 -> 0.015 | I16: * | V16: =100*(+AD10/$E$7) -> 320.4522352 | W16: =EXP(5.70827-(0.68367*LN(+V16))) -> 5.833846038 | X16: =(+W16*V16)/100 -> 18.69469002 | Y16: =100*((((X16/100)-((X16/100)-0.03574)*$E$19)-0.03574-0.00619)/0.344) -> 25.40903234 | Z16: =+$E$18 -> 0.25 | AA16: =Y16+Z16 -> 25.65903234 | AB16: =100*($E$15*$E$17+($E$16*(AA16/100))/(1-$E$19)) -> 24.07249484 | AC16: =AB16/V16 -> 0.07512038363 | AD16: =$E$6/(1-AC16) -> 68379.37549 | AE16: =IF(OR(OR(AD16=AD10,AD16=(AD10+1)),AD16=(AD10-1)),"yes","not yet") -> not yet | AF16: =100*(1-AC16) -> 92.48796164
B17: * | C17: Actual Cost of Debt | E17: 0.0494 | F17: WUTC Fee | H17: =+'Combined LG'!H17 -> 0.004275 | I17: * | V17: =100*(+AD11/$E$7) -> 320.1650862 | W17: =EXP(5.6985-(0.68367*LN(V17))) -> 5.780668736 | X17: =(+W17*V17)/100 -> 18.50768304 | Y17: =100*((((X17/100)-((X17/100)-0.03574)*$E$19)-0.03574-0.00619)/0.344) -> 25.07252849 | Z17: =+$E$18 -> 0.25 | AA17: =Y17+Z17 -> 25.32252849 | AB17: =100*($E$15*$E$17+($E$16*(AA17/100))/(1-$E$19)) -> 23.78763537 | AC17: =AB17/V17 -> 0.07429803059 | AD17: =$E$6/(1-AC17) -> 68318.63025 | AE17: =IF(OR(OR(AD17=AD11,AD17=(AD11+1)),AD17=(AD11-1)),"yes","not yet") -> not yet | AF17: =100*(1-AC17) -> 92.57019694 | AJ17: =HLOOKUP(1,$AJ$11:$AR$15,$E$10+1) -> not yet | AK17: =HLOOKUP(2,$AJ$11:$AR$15,$E$10+1) -> not yet | AL17: =HLOOKUP(3,$AJ$11:$AR$15,$E$10+1) -> not yet | AM17: =HLOOKUP(4,$AJ$11:$AR$15,$E$10+1) -> not yet | AN17: =HLOOKUP(5,$AJ$11:$AR$15,$E$10+1) -> not yet | AO17: =HLOOKUP(6,$AJ$11:$AR$15,$E$10+1) -> not yet | AP17: =HLOOKUP(7,$AJ$11:$AR$15,$E$10+1) -> yes | AQ17: =HLOOKUP(8,$AJ$11:$AR$15,$E$10+1) -> yes | AR17: =HLOOKUP(9,$AJ$11:$AR$15,$E$10+1) -> yes
B18: * | C18: Basis Points | E18: 0.25 | F18: City Tax | H18: =+'Combined LG'!H18 -> 0 | I18: * | V18: =100*(+AD12/$E$7) -> 319.9814923 | W18: =EXP(5.6922-(0.68367*LN(V18))) -> 5.746618111 | X18: =(+W18*V18)/100 -> 18.38811439 | Y18: =100*((((X18/100)-((X18/100)-0.03574)*$E$19)-0.03574-0.00619)/0.344) -> 24.85737443 | Z18: =+$E$18 -> 0.25 | AA18: =Y18+Z18 -> 25.10737443 | AB18: =100*($E$15*$E$17+($E$16*(AA18/100))/(1-$E$19)) -> 23.60550172 | AC18: =AB18/V18 -> 0.07377145956 | AD18: =$E$6/(1-AC18) -> 68279.79036 | AE18: =IF(OR(OR(AD18=AD12,AD18=(AD12+1)),AD18=(AD12-1)),"yes","not yet") -> not yet | AF18: =100*(1-AC18) -> 92.62285404 | AI18: 1 | AJ18: =AF3 -> 93.02354041 | AK18: =AF9 -> 92.33019288 | AL18: =AF15 -> 92.36607005 | AM18: =AF21 -> 92.3642109 | AN18: =AF27 -> 92.36430724 | AO18: =AF33 -> 92.36430225 | AP18: =AF39 -> 92.36430786 | AQ18: =AF45 -> 92.36430786 | AR18: =AF51 -> 92.36430786
B19: * | C19: Tax Rate | E19: 0.381 | F19: Bad Debts | H19: =+'Combined LG'!H19 -> 0.006 | I19: * | AI19: 2 | AJ19: =AF4 -> 93.13972096 | AK19: =AF10 -> 92.45310173 | AL19: =AF16 -> 92.48796164 | AM19: =AF22 -> 92.48618924 | AN19: =AF28 -> 92.48627935 | AO19: =AF34 -> 92.48627477 | AP19: =AF40 -> 92.48630095 | AQ19: =AF46 -> 92.48630095 | AR19: =AF52 -> 92.48630095
H20: - | V20: 4th Turnover | W20: M | X20: ROR | Y20: ROE | AI20: 3 | AJ20: =AF5 -> 93.21798217 | AK20: =AF11 -> 92.53602088 | AL20: =AF17 -> 92.57019694 | AM20: =AF23 -> 92.56848178 | AN20: =AF29 -> 92.56856785 | AO20: =AF35 -> 92.56856353 | AP20: =AF41 -> 92.56857491 | AQ20: =AF47 -> 92.56857491 | AR20: =AF53 -> 92.56857491
F21: Revenue Sensitive | H21: =SUM(H16:H19) -> 0.025275 | V21: =100*(+AD15/$E$7) -> 320.7541804 | W21: =EXP(5.7226-(0.68367*LN(+V21))) -> 5.914237607 | X21: =(+W21*V21)/100 -> 18.97016436 | Y21: =100*((((X21/100)-((X21/100)-0.03574)*$E$19)-0.03574-0.00619)/0.344) -> 25.90472599 | Z21: =+$E$18 -> 0.25 | AA21: =Y21+Z21 -> 26.15472599 | AB21: =100*($E$15*$E$17+($E$16*(AA21/100))/(1-$E$19)) -> 24.49211273 | AC21: =AB21/V21 -> 0.07635789095 | AD21: =$E$6/(1-AC21) -> 68470.99103 | AE21: =IF(OR(OR(AD21=AD15,AD21=(AD15+1)),AD21=(AD7-1)),"yes","not yet") -> not yet | AF21: =100*(1-AC21) -> 92.3642109 | AI21: 4 | AJ21: =AF6 -> 93.26804346 | AK21: =AF12 -> 92.58911472 | AL21: =AF18 -> 92.62285404 | AM21: =AF24 -> 92.62117497 | AN21: =AF30 -> 92.62125853 | AO21: =AF36 -> 92.62125437 | AP21: =AF42 -> 92.62125663 | AQ21: =AF48 -> 92.62125663 | AR21: =AF54 -> 92.62125663
V22: =100*(+AD16/$E$7) -> 320.3314526 | W22: =EXP(5.70827-(0.68367*LN(+V22))) -> 5.835349804 | X22: =(+W22*V22)/100 -> 18.69246079 | Y22: =100*((((X22/100)-((X22/100)-0.03574)*$E$19)-0.03574-0.00619)/0.344) -> 25.40502101 | Z22: =+$E$18 -> 0.25 | AA22: =Y22+Z22 -> 25.65502101 | AB22: =100*($E$15*$E$17+($E$16*(AA22/100))/(1-$E$19)) -> 24.06909915 | AC22: =AB22/V22 -> 0.07513810759 | AD22: =$E$6/(1-AC22) -> 68380.6859 | AE22: =IF(OR(OR(AD22=AD16,AD22=(AD16+1)),AD22=(AD16-1)),"yes","not yet") -> not yet | AF22: =100*(1-AC22) -> 92.48618924
F23: Conversion Factor | H23: =((+H13/100)-H21) -> 0.9004107491 | V23: =100*(+AD17/$E$7) -> 320.0468842 | W23: =EXP(5.6985-(0.68367*LN(V23))) -> 5.782128258 | X23: =(+W23*V23)/100 -> 18.50552133 | Y23: =100*((((X23/100)-((X23/100)-0.03574)*$E$19)-0.03574-0.00619)/0.344) -> 25.06863867 | Z23: =+$E$18 -> 0.25 | AA23: =Y23+Z23 -> 25.31863867 | AB23: =100*($E$15*$E$17+($E$16*(AA23/100))/(1-$E$19)) -> 23.78434252 | AC23: =AB23/V23 -> 0.07431518224 | AD23: =$E$6/(1-AC23) -> 68319.8961 | AE23: =IF(OR(OR(AD23=AD17,AD23=(AD17+1)),AD23=(AD17-1)),"yes","not yet") -> not yet | AF23: =100*(1-AC23) -> 92.56848178 | AJ23: yes
V24: =100*(+AD18/$E$7) -> 319.864934 | W24: =EXP(5.6922-(0.68367*LN(V24))) -> 5.748049673 | X24: =(+W24*V24)/100 -> 18.38599529 | Y24: =100*((((X24/100)-((X24/100)-0.03574)*$E$19)-0.03574-0.00619)/0.344) -> 24.8535613 | Z24: =+$E$18 -> 0.25 | AA24: =Y24+Z24 -> 25.1035613 | AB24: =100*($E$15*$E$17+($E$16*(AA24/100))/(1-$E$19)) -> 23.6022738 | AC24: =AB24/V24 -> 0.07378825025 | AD24: =$E$6/(1-AC24) -> 68281.02816 | AE24: =IF(OR(OR(AD24=AD18,AD24=(AD18+1)),AD24=(AD18-1)),"yes","not yet") -> not yet | AF24: =100*(1-AC24) -> 92.62117497 | AJ24: =HLOOKUP($AJ$23,$AJ$17:$AR$21,$E$10+1) -> 92.56857491
C25: Company Reference
C26: Annl Price Increase (PI) $ | E26: =+E4 -> 53710.72531 | V26: 5th Turnover | W26: M | X26: ROR | Y26: ROE | AJ26: =HLOOKUP(1,$AJ$11:$AR$15,$E$10+1) -> not yet | AK26: =HLOOKUP(2,$AJ$11:$AR$15,$E$10+1) -> not yet | AL26: =HLOOKUP(3,$AJ$11:$AR$15,$E$10+1) -> not yet | AM26: =HLOOKUP(4,$AJ$11:$AR$15,$E$10+1) -> not yet | AN26: =HLOOKUP(5,$AJ$11:$AR$15,$E$10+1) -> not yet | AO26: =HLOOKUP(6,$AJ$11:$AR$15,$E$10+1) -> not yet | AP26: =HLOOKUP(7,$AJ$11:$AR$15,$E$10+1) -> yes | AQ26: =HLOOKUP(8,$AJ$11:$AR$15,$E$10+1) -> yes | AR26: =HLOOKUP(9,$AJ$11:$AR$15,$E$10+1) -> yes
C27: Monthly PI $ | E27: =+E26/12 -> 4475.893776 | V27: =100*(+AD21/$E$7) -> 320.7606367 | W27: =EXP(5.7226-(0.68367*LN(+V27))) -> 5.914156222 | X27: =(+W27*V27)/100 -> 18.97028515 | Y27: =100*((((X27/100)-((X27/100)-0.03574)*$E$19)-0.03574-0.00619)/0.344) -> 25.90494334 | Z27: =+$E$18 -> 0.25 | AA27: =Y27+Z27 -> 26.15494334 | AB27: =100*($E$15*$E$17+($E$16*(AA27/100))/(1-$E$19)) -> 24.49229672 | AC27: =AB27/V27 -> 0.07635692762 | AD27: =$E$6/(1-AC27) -> 68470.91962 | AE27: =IF(OR(OR(AD27=AD21,AD27=(AD21+1)),AD27=(AD13-1)),"yes","not yet") -> not yet | AF27: =100*(1-AC27) -> 92.36430724 | AI27: 1 | AJ27: =V3 -> 370.3350387 | AK27: =V9 -> 318.4871589 | AL27: =V15 -> 320.8788174 | AM27: =V21 -> 320.7541804 | AN27: =V27 -> 320.7606367 | AO27: =V33 -> 320.7603021 | AP27: =V39 -> 320.7606787 | AQ27: =V45 -> 320.7606787 | AR27: =V51 -> 320.7606787
C28: Percentage PI | E28: =+E4/E5 -> 3.341128464 | V28: =100*(+AD22/$E$7) -> 320.3375914 | W28: =EXP(5.70827-(0.68367*LN(+V28))) -> 5.835273352 | X28: =(+W28*V28)/100 -> 18.69257411 | Y28: =100*((((X28/100)-((X28/100)-0.03574)*$E$19)-0.03574-0.00619)/0.344) -> 25.40522492 | Z28: =+$E$18 -> 0.25 | AA28: =Y28+Z28 -> 25.65522492 | AB28: =100*($E$15*$E$17+($E$16*(AA28/100))/(1-$E$19)) -> 24.06927175 | AC28: =AB28/V28 -> 0.07513720651 | AD28: =$E$6/(1-AC28) -> 68380.61928 | AE28: =IF(OR(OR(AD28=AD22,AD28=(AD22+1)),AD28=(AD22-1)),"yes","not yet") -> not yet | AF28: =100*(1-AC28) -> 92.48627935 | AI28: 2 | AJ28: =V4 -> 370.3350387 | AK28: =V10 -> 318.0898847 | AL28: =V16 -> 320.4522352 | AM28: =V22 -> 320.3314526 | AN28: =V28 -> 320.3375914 | AO28: =V34 -> 320.3372793 | AP28: =V40 -> 320.3390628 | AQ28: =V46 -> 320.3390628 | AR28: =V52 -> 320.3390628
V29: =100*(+AD23/$E$7) -> 320.0528142 | W29: =EXP(5.6985-(0.68367*LN(V29))) -> 5.782055014 | X29: =(+W29*V29)/100 -> 18.50562979 | Y29: =100*((((X29/100)-((X29/100)-0.03574)*$E$19)-0.03574-0.00619)/0.344) -> 25.06883384 | Z29: =+$E$18 -> 0.25 | AA29: =Y29+Z29 -> 25.31883384 | AB29: =100*($E$15*$E$17+($E$16*(AA29/100))/(1-$E$19)) -> 23.78450774 | AC29: =AB29/V29 -> 0.07431432153 | AD29: =$E$6/(1-AC29) -> 68319.83257 | AE29: =IF(OR(OR(AD29=AD23,AD29=(AD23+1)),AD29=(AD23-1)),"yes","not yet") -> not yet | AF29: =100*(1-AC29) -> 92.56856785 | AI29: 3 | AJ29: =V5 -> 370.3350387 | AK29: =V11 -> 317.8228321 | AL29: =V17 -> 320.1650862 | AM29: =V23 -> 320.0468842 | AN29: =V29 -> 320.0528142 | AO29: =V35 -> 320.0525166 | AP29: =V41 -> 320.0533009 | AQ29: =V47 -> 320.0533009 | AR29: =V53 -> 320.0533009
C30: Annual MF RCY Yards | E30: =SUMIFS('Com Lifts'!$A:$A,'Com Lifts'!$F:$F,"U") -> 10516.71096 | V30: =100*(+AD24/$E$7) -> 319.8707326 | W30: =EXP(5.6922-(0.68367*LN(V30))) -> 5.747978434 | X30: =(+W30*V30)/100 -> 18.38610073 | Y30: =100*((((X30/100)-((X30/100)-0.03574)*$E$19)-0.03574-0.00619)/0.344) -> 24.85375102 | Z30: =+$E$18 -> 0.25 | AA30: =Y30+Z30 -> 25.10375102 | AB30: =100*($E$15*$E$17+($E$16*(AA30/100))/(1-$E$19)) -> 23.6024344 | AC30: =AB30/V30 -> 0.07378741471 | AD30: =$E$6/(1-AC30) -> 68280.96656 | AE30: =IF(OR(OR(AD30=AD24,AD30=(AD24+1)),AD30=(AD24-1)),"yes","not yet") -> not yet | AF30: =100*(1-AC30) -> 92.62125853 | AI30: 4 | AJ30: =V6 -> 370.3350387 | AK30: =V12 -> 317.6522419 | AL30: =V18 -> 319.9814923 | AM30: =V24 -> 319.864934 | AN30: =V30 -> 319.8707326 | AO30: =V36 -> 319.8704441 | AP30: =V42 -> 319.8706007 | AQ30: =V48 -> 319.8706007 | AR30: =V54 -> 319.8706007
C31: MF RCY Revenue/Yd | E31: =E3/E30 -> 6.635758052
V32: 6th Turnover | W32: M | X32: ROR | Y32: ROE | AJ32: yes
V33: =100*(+AD27/$E$7) -> 320.7603021 | W33: =EXP(5.7226-(0.68367*LN(+V33))) -> 5.914160439 | X33: =(+W33*V33)/100 -> 18.97027889 | Y33: =100*((((X33/100)-((X33/100)-0.03574)*$E$19)-0.03574-0.00619)/0.344) -> 25.90493208 | Z33: =+$E$18 -> 0.25 | AA33: =Y33+Z33 -> 26.15493208 | AB33: =100*($E$15*$E$17+($E$16*(AA33/100))/(1-$E$19)) -> 24.49228719 | AC33: =AB33/V33 -> 0.07635697754 | AD33: =ROUND($E$6/(1-AC33),0) -> 68471 | AE33: =IF(OR(OR(AD33=AD27,AD33=(AD27+1)),AD33=(AD19-1)),"yes","not yet") -> not yet | AF33: =100*(1-AC33) -> 92.36430225 | AJ33: =HLOOKUP($AJ$32,$AJ$26:$AR$30,$E$10+1) -> 320.0533009
V34: =100*(+AD28/$E$7) -> 320.3372793 | W34: =EXP(5.70827-(0.68367*LN(+V34))) -> 5.835277239 | X34: =(+W34*V34)/100 -> 18.69256834 | Y34: =100*((((X34/100)-((X34/100)-0.03574)*$E$19)-0.03574-0.00619)/0.344) -> 25.40521455 | Z34: =+$E$18 -> 0.25 | AA34: =Y34+Z34 -> 25.65521455 | AB34: =100*($E$15*$E$17+($E$16*(AA34/100))/(1-$E$19)) -> 24.06926298 | AC34: =AB34/V34 -> 0.07513725232 | AD34: =ROUND($E$6/(1-AC34),0) -> 68381 | AE34: =IF(OR(OR(AD34=AD28,AD34=(AD28+1)),AD34=(AD28-1)),"yes","not yet") -> not yet | AF34: =100*(1-AC34) -> 92.48627477
V35: =100*(+AD29/$E$7) -> 320.0525166 | W35: =EXP(5.6985-(0.68367*LN(V35))) -> 5.78205869 | X35: =(+W35*V35)/100 -> 18.50562435 | Y35: =100*((((X35/100)-((X35/100)-0.03574)*$E$19)-0.03574-0.00619)/0.344) -> 25.06882404 | Z35: =+$E$18 -> 0.25 | AA35: =Y35+Z35 -> 25.31882404 | AB35: =100*($E$15*$E$17+($E$16*(AA35/100))/(1-$E$19)) -> 23.78449945 | AC35: =AB35/V35 -> 0.07431436472 | AD35: =ROUND($E$6/(1-AC35),0) -> 68320 | AE35: =IF(OR(OR(AD35=AD29,AD35=(AD29+1)),AD35=(AD29-1)),"yes","not yet") -> not yet | AF35: =100*(1-AC35) -> 92.56856353 | AJ35: =HLOOKUP(1,$AJ$11:$AR$15,$E$10+1) -> not yet | AK35: =HLOOKUP(2,$AJ$11:$AR$15,$E$10+1) -> not yet | AL35: =HLOOKUP(3,$AJ$11:$AR$15,$E$10+1) -> not yet | AM35: =HLOOKUP(4,$AJ$11:$AR$15,$E$10+1) -> not yet | AN35: =HLOOKUP(5,$AJ$11:$AR$15,$E$10+1) -> not yet | AO35: =HLOOKUP(6,$AJ$11:$AR$15,$E$10+1) -> not yet | AP35: =HLOOKUP(7,$AJ$11:$AR$15,$E$10+1) -> yes | AQ35: =HLOOKUP(8,$AJ$11:$AR$15,$E$10+1) -> yes | AR35: =HLOOKUP(9,$AJ$11:$AR$15,$E$10+1) -> yes
V36: =100*(+AD30/$E$7) -> 319.8704441 | W36: =EXP(5.6922-(0.68367*LN(V36))) -> 5.747981979 | X36: =(+W36*V36)/100 -> 18.38609548 | Y36: =100*((((X36/100)-((X36/100)-0.03574)*$E$19)-0.03574-0.00619)/0.344) -> 24.85374158 | Z36: =+$E$18 -> 0.25 | AA36: =Y36+Z36 -> 25.10374158 | AB36: =100*($E$15*$E$17+($E$16*(AA36/100))/(1-$E$19)) -> 23.60242641 | AC36: =AB36/V36 -> 0.07378745628 | AD36: =ROUND($E$6/(1-AC36),0) -> 68281 | AE36: =IF(OR(OR(AD36=AD30,AD36=(AD30+1)),AD36=(AD30-1)),"yes","not yet") -> not yet | AF36: =100*(1-AC36) -> 92.62125437 | AI36: 1 | AJ36: =AD3 -> 67985.68436 | AK36: =AD9 -> 68496.21841 | AL36: =AD15 -> 68469.61285 | AM36: =AD21 -> 68470.99103 | AN36: =AD27 -> 68470.91962 | AO36: =AD33 -> 68471 | AP36: =AD39 -> 68471 | AQ36: =AD45 -> 68471 | AR36: =AD51 -> 68471
AI37: 2 | AJ37: =AD4 -> 67900.88043 | AK37: =AD10 -> 68405.15827 | AL37: =AD16 -> 68379.37549 | AM37: =AD22 -> 68380.6859 | AN37: =AD28 -> 68380.61928 | AO37: =AD34 -> 68381 | AP37: =AD40 -> 68381 | AQ37: =AD46 -> 68381 | AR37: =AD52 -> 68381
V38: 7th turnover | W38: M | X38: ROR | Y38: ROE | AI38: 3 | AJ38: =AD5 -> 67843.87421 | AK38: =AD11 -> 68343.86217 | AL38: =AD17 -> 68318.63025 | AM38: =AD23 -> 68319.8961 | AN38: =AD29 -> 68319.83257 | AO38: =AD35 -> 68320 | AP38: =AD41 -> 68320 | AQ38: =AD47 -> 68320 | AR38: =AD53 -> 68320
V39: =100*(+AD33/$E$7) -> 320.7606787 | W39: =EXP(5.7226-(0.68367*LN(+V39))) -> 5.914155692 | X39: =(+W39*V39)/100 -> 18.97028594 | Y39: =100*((((X39/100)-((X39/100)-0.03574)*$E$19)-0.03574-0.00619)/0.344) -> 25.90494475 | Z39: =+$E$18 -> 0.25 | AA39: =Y39+Z39 -> 26.15494475 | AB39: =100*($E$15*$E$17+($E$16*(AA39/100))/(1-$E$19)) -> 24.49229792 | AC39: =AB39/V39 -> 0.07635692135 | AD39: =ROUND($E$6/(1-AC39),0) -> 68471 | AE39: =IF(OR(OR(AD39=AD33,AD39=(AD33+1)),AD39=(AD25-1)),"yes","not yet") -> yes | AF39: =100*(1-AC39) -> 92.36430786 | AI39: 4 | AJ39: =AD6 -> 67807.45926 | AK39: =AD12 -> 68304.67141 | AL39: =AD18 -> 68279.79036 | AM39: =AD24 -> 68281.02816 | AN39: =AD30 -> 68280.96656 | AO39: =AD36 -> 68281 | AP39: =AD42 -> 68281 | AQ39: =AD48 -> 68281 | AR39: =AD54 -> 68281
V40: =100*(+AD34/$E$7) -> 320.3390628 | W40: =EXP(5.70827-(0.68367*LN(+V40))) -> 5.835255027 | X40: =(+W40*V40)/100 -> 18.69260127 | Y40: =100*((((X40/100)-((X40/100)-0.03574)*$E$19)-0.03574-0.00619)/0.344) -> 25.40527379 | Z40: =+$E$18 -> 0.25 | AA40: =Y40+Z40 -> 25.65527379 | AB40: =100*($E$15*$E$17+($E$16*(AA40/100))/(1-$E$19)) -> 24.06931313 | AC40: =AB40/V40 -> 0.07513699053 | AD40: =ROUND($E$6/(1-AC40),0) -> 68381 | AE40: =IF(OR(OR(AD40=AD34,AD40=(AD34+1)),AD40=(AD34-1)),"yes","not yet") -> yes | AF40: =100*(1-AC40) -> 92.48630095
V41: =100*(+AD35/$E$7) -> 320.0533009 | W41: =EXP(5.6985-(0.68367*LN(V41))) -> 5.782049002 | X41: =(+W41*V41)/100 -> 18.50563869 | Y41: =100*((((X41/100)-((X41/100)-0.03574)*$E$19)-0.03574-0.00619)/0.344) -> 25.06884986 | Z41: =+$E$18 -> 0.25 | AA41: =Y41+Z41 -> 25.31884986 | AB41: =100*($E$15*$E$17+($E$16*(AA41/100))/(1-$E$19)) -> 23.7845213 | AC41: =AB41/V41 -> 0.07431425088 | AD41: =ROUND($E$6/(1-AC41),0) -> 68320 | AE41: =IF(OR(OR(AD41=AD35,AD41=(AD35+1)),AD41=(AD35-1)),"yes","not yet") -> yes | AF41: =100*(1-AC41) -> 92.56857491 | AJ41: yes
V42: =100*(+AD36/$E$7) -> 319.8706007 | W42: =EXP(5.6922-(0.68367*LN(V42))) -> 5.747980055 | X42: =(+W42*V42)/100 -> 18.38609833 | Y42: =100*((((X42/100)-((X42/100)-0.03574)*$E$19)-0.03574-0.00619)/0.344) -> 24.8537467 | Z42: =+$E$18 -> 0.25 | AA42: =Y42+Z42 -> 25.1037467 | AB42: =100*($E$15*$E$17+($E$16*(AA42/100))/(1-$E$19)) -> 23.60243075 | AC42: =AB42/V42 -> 0.07378743371 | AD42: =ROUND($E$6/(1-AC42),0) -> 68281 | AE42: =IF(OR(OR(AD42=AD36,AD42=(AD36+1)),AD42=(AD36-1)),"yes","not yet") -> yes | AF42: =100*(1-AC42) -> 92.62125663 | AJ42: =HLOOKUP($AJ$32,$AJ$35:$AR$39,$E$10+1) -> 68320
V44: 8th turnover | W44: M | X44: ROR | Y44: ROE
V45: =100*(+AD39/$E$7) -> 320.7606787 | W45: =EXP(5.7226-(0.68367*LN(+V45))) -> 5.914155692 | X45: =(+W45*V45)/100 -> 18.97028594 | Y45: =100*((((X45/100)-((X45/100)-0.03574)*$E$19)-0.03574-0.00619)/0.344) -> 25.90494475 | Z45: =+$E$18 -> 0.25 | AA45: =Y45+Z45 -> 26.15494475 | AB45: =100*($E$15*$E$17+($E$16*(AA45/100))/(1-$E$19)) -> 24.49229792 | AC45: =AB45/V45 -> 0.07635692135 | AD45: =ROUND($E$6/(1-AC45),0) -> 68471 | AE45: =IF(OR(OR(AD45=AD39,AD45=(AD39+1)),AD45=(AD31-1)),"yes","not yet") -> yes | AF45: =100*(1-AC45) -> 92.36430786
V46: =100*(+AD40/$E$7) -> 320.3390628 | W46: =EXP(5.70827-(0.68367*LN(+V46))) -> 5.835255027 | X46: =(+W46*V46)/100 -> 18.69260127 | Y46: =100*((((X46/100)-((X46/100)-0.03574)*$E$19)-0.03574-0.00619)/0.344) -> 25.40527379 | Z46: =+$E$18 -> 0.25 | AA46: =Y46+Z46 -> 25.65527379 | AB46: =100*($E$15*$E$17+($E$16*(AA46/100))/(1-$E$19)) -> 24.06931313 | AC46: =AB46/V46 -> 0.07513699053 | AD46: =ROUND($E$6/(1-AC46),0) -> 68381 | AE46: =IF(OR(OR(AD46=AD40,AD46=(AD40+1)),AD46=(AD40-1)),"yes","not yet") -> yes | AF46: =100*(1-AC46) -> 92.48630095
V47: =100*(+AD41/$E$7) -> 320.0533009 | W47: =EXP(5.6985-(0.68367*LN(V47))) -> 5.782049002 | X47: =(+W47*V47)/100 -> 18.50563869 | Y47: =100*((((X47/100)-((X47/100)-0.03574)*$E$19)-0.03574-0.00619)/0.344) -> 25.06884986 | Z47: =+$E$18 -> 0.25 | AA47: =Y47+Z47 -> 25.31884986 | AB47: =100*($E$15*$E$17+($E$16*(AA47/100))/(1-$E$19)) -> 23.7845213 | AC47: =AB47/V47 -> 0.07431425088 | AD47: =ROUND($E$6/(1-AC47),0) -> 68320 | AE47: =IF(OR(OR(AD47=AD41,AD47=(AD41+1)),AD47=(AD41-1)),"yes","not yet") -> yes | AF47: =100*(1-AC47) -> 92.56857491
V48: =100*(+AD42/$E$7) -> 319.8706007 | W48: =EXP(5.6922-(0.68367*LN(V48))) -> 5.747980055 | X48: =(+W48*V48)/100 -> 18.38609833 | Y48: =100*((((X48/100)-((X48/100)-0.03574)*$E$19)-0.03574-0.00619)/0.344) -> 24.8537467 | Z48: =+$E$18 -> 0.25 | AA48: =Y48+Z48 -> 25.1037467 | AB48: =100*($E$15*$E$17+($E$16*(AA48/100))/(1-$E$19)) -> 23.60243075 | AC48: =AB48/V48 -> 0.07378743371 | AD48: =ROUND($E$6/(1-AC48),0) -> 68281 | AE48: =IF(OR(OR(AD48=AD42,AD48=(AD42+1)),AD48=(AD42-1)),"yes","not yet") -> yes | AF48: =100*(1-AC48) -> 92.62125663
V50: 9th turnover | W50: M | X50: ROR | Y50: ROE
V51: =100*(+AD45/$E$7) -> 320.7606787 | W51: =EXP(5.7226-(0.68367*LN(+V51))) -> 5.914155692 | X51: =(+W51*V51)/100 -> 18.97028594 | Y51: =100*((((X51/100)-((X51/100)-0.03574)*$E$19)-0.03574-0.00619)/0.344) -> 25.90494475 | Z51: =+$E$18 -> 0.25 | AA51: =Y51+Z51 -> 26.15494475 | AB51: =100*($E$15*$E$17+($E$16*(AA51/100))/(1-$E$19)) -> 24.49229792 | AC51: =AB51/V51 -> 0.07635692135 | AD51: =ROUND($E$6/(1-AC51),0) -> 68471 | AE51: =IF(OR(OR(AD51=AD45,AD51=(AD45+1)),AD51=(AD37-1)),"yes","not yet") -> yes | AF51: =100*(1-AC51) -> 92.36430786
V52: =100*(+AD46/$E$7) -> 320.3390628 | W52: =EXP(5.70827-(0.68367*LN(+V52))) -> 5.835255027 | X52: =(+W52*V52)/100 -> 18.69260127 | Y52: =100*((((X52/100)-((X52/100)-0.03574)*$E$19)-0.03574-0.00619)/0.344) -> 25.40527379 | Z52: =+$E$18 -> 0.25 | AA52: =Y52+Z52 -> 25.65527379 | AB52: =100*($E$15*$E$17+($E$16*(AA52/100))/(1-$E$19)) -> 24.06931313 | AC52: =AB52/V52 -> 0.07513699053 | AD52: =ROUND($E$6/(1-AC52),0) -> 68381 | AE52: =IF(OR(OR(AD52=AD46,AD52=(AD46+1)),AD52=(AD46-1)),"yes","not yet") -> yes | AF52: =100*(1-AC52) -> 92.48630095
V53: =100*(+AD47/$E$7) -> 320.0533009 | W53: =EXP(5.6985-(0.68367*LN(V53))) -> 5.782049002 | X53: =(+W53*V53)/100 -> 18.50563869 | Y53: =100*((((X53/100)-((X53/100)-0.03574)*$E$19)-0.03574-0.00619)/0.344) -> 25.06884986 | Z53: =+$E$18 -> 0.25 | AA53: =Y53+Z53 -> 25.31884986 | AB53: =100*($E$15*$E$17+($E$16*(AA53/100))/(1-$E$19)) -> 23.7845213 | AC53: =AB53/V53 -> 0.07431425088 | AD53: =ROUND($E$6/(1-AC53),0) -> 68320 | AE53: =IF(OR(OR(AD53=AD47,AD53=(AD47+1)),AD53=(AD47-1)),"yes","not yet") -> yes | AF53: =100*(1-AC53) -> 92.56857491
V54: =100*(+AD48/$E$7) -> 319.8706007 | W54: =EXP(5.6922-(0.68367*LN(V54))) -> 5.747980055 | X54: =(+W54*V54)/100 -> 18.38609833 | Y54: =100*((((X54/100)-((X54/100)-0.03574)*$E$19)-0.03574-0.00619)/0.344) -> 24.8537467 | Z54: =+$E$18 -> 0.25 | AA54: =Y54+Z54 -> 25.1037467 | AB54: =100*($E$15*$E$17+($E$16*(AA54/100))/(1-$E$19)) -> 23.60243075 | AC54: =AB54/V54 -> 0.07378743371 | AD54: =ROUND($E$6/(1-AC54),0) -> 68281 | AE54: =IF(OR(OR(AD54=AD48,AD54=(AD48+1)),AD54=(AD48-1)),"yes","not yet") -> yes | AF54: =100*(1-AC54) -> 92.62125663

Sheet Alloc Summary
B8: Allocations
C9: Truck Hours | D9: Actual | E9: =+Proforma!J5 -> Pay Diff Adj | F9: Container Count | G9: Revenue | H9: =+Proforma!J6 -> Prev Alloc Costs
B10: Regulated | C10: ='Truck Hrs Sum'!E29 -> 0.3273525406 | D10: =SUMIF(Proforma!$H$8:$H$370,$D$9,Proforma!$K$8:$K$370)/SUMIF(Proforma!$H$8:$H$370,$D$9,Proforma!$F$8:$F$370) -> 0.2195601707 | F10: ='Container Counts'!$H$116 -> 0.3732 | G10: =+Proforma!K20/Proforma!F20 -> 0.2356269928 | H10: =(SUMIF(Proforma!$H$8:$H$370,$C$9,Proforma!$K$8:$K$370)+SUMIF(Proforma!$H$8:$H$370,$F$9,Proforma!$K$8:$K$370)+SUMIF(Proforma!$H$8:$H$370,$G$9,Proforma!$K$8:$K$370))/(SUMIF(Proforma!$H$8:$H$370,$C$9,Proforma!$F$8:$F$370)+SUMIF(Proforma!$H$8:$H$370,$F$9,Proforma!$F$8:$F$370)+SUMIF(Proforma!$H$8:$H$370,$G$9,Proforma!$F$8:$F$370)) -> 0.3109901869
B11: Unregulated | C11: =1-C10 -> 0.6726474594 | D11: =1-D10 -> 0.7804398293 | F11: =1-F10 -> 0.6268 | G11: =1-G10 -> 0.7643730072 | H11: =1-H10 -> 0.6890098131
B12: Of Total $ | C12: =SUMIF(Proforma!$H$8:$H$370,C$9,Proforma!$F$8:$F$370)/1000 -> 10438.1561 | D12: =SUMIF(Proforma!$H$8:$H$370,D$9,Proforma!$F$8:$F$370)/1000 -> 62813.36752 | E12: =SUMIF(Proforma!$H$8:$H$370,E$9,Proforma!$F$8:$F$370)/1000 -> 0 | F12: =SUMIF(Proforma!$H$8:$H$370,F$9,Proforma!$F$8:$F$370)/1000 -> 310.503322 | G12: =SUMIF(Proforma!$H$8:$H$370,G$9,Proforma!$F$8:$F$370)/1000 -> 2522.57295 | H12: =SUMIF(Proforma!$H$8:$H$370,H$9,Proforma!$F$8:$F$370)/1000 -> 967.2009269
B13: Of Non-Regulated | C13: =SUMIF(Proforma!$H$8:$H$370,C$9,Proforma!$J$8:$J$370)/1000 -> 7021.199182 | D13: =SUMIF(Proforma!$H$8:$H$370,D$9,Proforma!$J$8:$J$370)/1000 -> 47043.35879 | E13: =SUMIF(Proforma!$H$8:$H$370,E$9,Proforma!$J$8:$J$370)/1000 -> 0 | F13: =SUMIF(Proforma!$H$8:$H$370,F$9,Proforma!$J$8:$J$370)/1000 -> 194.6234822 | G13: =SUMIF(Proforma!$H$8:$H$370,G$9,Proforma!$J$8:$J$370)/1000 -> 1928.186671 | H13: =SUMIF(Proforma!$H$8:$H$370,H$9,Proforma!$J$8:$J$370)/1000 -> 666.4109298
B14: Of Regulated | C14: =SUMIF(Proforma!$H$8:$H$370,C$9,Proforma!$K$8:$K$370)/1000 -> 3416.956918 | D14: =SUMIF(Proforma!$H$8:$H$370,D$9,Proforma!$K$8:$K$370)/1000 -> 13791.31369 | E14: =SUMIF(Proforma!$H$8:$H$370,E$9,Proforma!$K$8:$K$370)/1000 -> 0 | F14: =SUMIF(Proforma!$H$8:$H$370,F$9,Proforma!$K$8:$K$370)/1000 -> 115.8798398 | G14: =SUMIF(Proforma!$H$8:$H$370,G$9,Proforma!$K$8:$K$370)/1000 -> 594.3862783 | H14: =SUMIF(Proforma!$H$8:$H$370,H$9,Proforma!$K$8:$K$370)/1000 -> 300.7899971
C16: =+C9 -> Truck Hours | D16: Actual | E16: Pay Diff Adj | F16: Container Count | G16: Revenue | H16: Prev Alloc Costs
B17: Garbage | C17: ='Truck Hrs Sum'!H25 -> 0.5953306321 | D17: =SUMIF(Proforma!$M$8:$M$3685,D$16,Proforma!$O$8:$O$370)/SUMIF(Proforma!$M$8:$M$3685,D$16,Proforma!$K$8:$K$370) -> 0.7156037881 | E17: ='Truck Hrs Sum'!E43 -> 0.6321760842 | F17: ='Container Counts'!H119 -> 0.4189555928 | G17: =+Proforma!O$20/Proforma!$K$20 -> 0.703494097 | H17: =(SUMIF(Proforma!$M$8:$M$370,$C$16,Proforma!$O$8:$O$370)+SUMIF(Proforma!$M$8:$M$370,$E$16,Proforma!$O$8:$O$370)+SUMIF(Proforma!$M$8:$M$370,$F$16,Proforma!$O$8:$O$370)+SUMIF(Proforma!$M$8:$M$370,$G$16,Proforma!$O$8:$O$370))/(SUMIF(Proforma!$M$8:$M$370,$C$16,Proforma!$K$8:$K$370)+SUMIF(Proforma!$M$8:$M$370,$E$16,Proforma!$K$8:$K$370)+SUMIF(Proforma!$M$8:$M$370,$F$16,Proforma!$K$8:$K$370)+SUMIF(Proforma!$M$8:$M$370,$G$16,Proforma!$K$8:$K$370)) -> 0.618104205
B18: Recycle | C18: ='Truck Hrs Sum'!H26 -> 0.2670333622 | D18: =SUMIF(Proforma!$M$8:$M$3685,D$16,Proforma!$P$8:$P$370)/SUMIF(Proforma!$M$8:$M$3685,D$16,Proforma!$K$8:$K$370) -> 0.1875513582 | E18: ='Truck Hrs Sum'!E44 -> 0.2360890118 | F18: ='Container Counts'!H120 -> 0.4139772865 | G18: =+Proforma!P$20/Proforma!$K$20 -> 0.1999223672 | H18: =(SUMIF(Proforma!$M$8:$M$370,$C$16,Proforma!$P$8:$P$370)+SUMIF(Proforma!$M$8:$M$370,$E$16,Proforma!$P$8:$P$370)+SUMIF(Proforma!$M$8:$M$370,$F$16,Proforma!$P$8:$P$370)+SUMIF(Proforma!$M$8:$M$370,$G$16,Proforma!$P$8:$P$370))/(SUMIF(Proforma!$M$8:$M$370,$C$16,Proforma!$K$8:$K$370)+SUMIF(Proforma!$M$8:$M$370,$E$16,Proforma!$K$8:$K$370)+SUMIF(Proforma!$M$8:$M$370,$F$16,Proforma!$K$8:$K$370)+SUMIF(Proforma!$M$8:$M$370,$G$16,Proforma!$K$8:$K$370)) -> 0.2512913288
B19: Yardwaste | C19: ='Truck Hrs Sum'!H27 -> 0.1364891562 | D19: =SUMIF(Proforma!$M$8:$M$3685,D$16,Proforma!$Q$8:$Q$370)/SUMIF(Proforma!$M$8:$M$3685,D$16,Proforma!$K$8:$K$370) -> 0.09152920574 | E19: ='Truck Hrs Sum'!E45 -> 0.1306372254 | F19: ='Container Counts'!H121 -> 0.1609306667 | G19: =+Proforma!Q$20/Proforma!$K$20 -> 0.09483807651 | H19: =(SUMIF(Proforma!$M$8:$M$370,$C$16,Proforma!$Q$8:$Q$370)+SUMIF(Proforma!$M$8:$M$370,$E$16,Proforma!$Q$8:$Q$370)+SUMIF(Proforma!$M$8:$M$370,$F$16,Proforma!$Q$8:$Q$370)+SUMIF(Proforma!$M$8:$M$370,$G$16,Proforma!$Q$8:$Q$370))/(SUMIF(Proforma!$M$8:$M$370,$C$16,Proforma!$K$8:$K$370)+SUMIF(Proforma!$M$8:$M$370,$E$16,Proforma!$K$8:$K$370)+SUMIF(Proforma!$M$8:$M$370,$F$16,Proforma!$K$8:$K$370)+SUMIF(Proforma!$M$8:$M$370,$G$16,Proforma!$K$8:$K$370)) -> 0.1292475266
B20: Multi-family Recycle | C20: ='Truck Hrs Sum'!H28 -> 0.00114684945 | D20: =SUMIF(Proforma!$M$8:$M$3685,D$16,Proforma!$R$8:$R$370)/SUMIF(Proforma!$M$8:$M$3685,D$16,Proforma!$K$8:$K$370) -> 0.005315647967 | E20: ='Truck Hrs Sum'!E46 -> 0.00109767863 | F20: ='Container Counts'!H122 -> 0.006136453994 | G20: =+Proforma!R$20/Proforma!$K$20 -> 0.00174545936 | H20: =(SUMIF(Proforma!$M$8:$M$370,$C$16,Proforma!$R$8:$R$370)+SUMIF(Proforma!$M$8:$M$370,$E$16,Proforma!$R$8:$R$370)+SUMIF(Proforma!$M$8:$M$370,$F$16,Proforma!$R$8:$R$370)+SUMIF(Proforma!$M$8:$M$370,$G$16,Proforma!$R$8:$R$370))/(SUMIF(Proforma!$M$8:$M$370,$C$16,Proforma!$K$8:$K$370)+SUMIF(Proforma!$M$8:$M$370,$E$16,Proforma!$K$8:$K$370)+SUMIF(Proforma!$M$8:$M$370,$F$16,Proforma!$K$8:$K$370)+SUMIF(Proforma!$M$8:$M$370,$G$16,Proforma!$K$8:$K$370)) -> 0.001356939566
B21: =+B14 -> Of Regulated | C21: =SUMIF(Proforma!$M$8:$M$3685,C$16,Proforma!$K$8:$K$370)/1000 -> 2056.163556 | D21: =SUMIF(Proforma!$M$8:$M$3685,D$16,Proforma!$K$8:$K$370)/1000 -> 13791.31369 | E21: =SUMIF(Proforma!$M$8:$M$3685,E$16,Proforma!$K$8:$K$370)/1000 -> 1360.793362 | F21: =SUMIF(Proforma!$M$8:$M$3685,F$16,Proforma!$K$8:$K$370)/1000 -> 115.8798398 | G21: =SUMIF(Proforma!$M$8:$M$3685,G$16,Proforma!$K$8:$K$370)/1000 -> 594.3862783 | H21: =SUMIF(Proforma!$M$8:$M$3685,H$16,Proforma!$K$8:$K$370)/1000 -> 300.7899971
B22: Of MSW | C22: =SUMIF(Proforma!$M$8:$M$3685,C$16,Proforma!$O$8:$O$370)/1000 -> 1224.097149 | D22: =SUMIF(Proforma!$M$8:$M$3685,D$16,Proforma!$O$8:$O$370)/1000 -> 9869.116322 | E22: =SUMIF(Proforma!$M$8:$M$3685,E$16,Proforma!$O$8:$O$370)/1000 -> 860.2610192 | F22: =SUMIF(Proforma!$M$8:$M$3685,F$16,Proforma!$O$8:$O$370)/1000 -> 48.54850696 | G22: =SUMIF(Proforma!$M$8:$M$3685,G$16,Proforma!$O$8:$O$370)/1000 -> 418.1472381 | H22: =SUMIF(Proforma!$M$8:$M$3685,H$16,Proforma!$O$8:$O$370)/1000 -> 185.919562
B23: Of RCY | C23: =SUMIF(Proforma!$M$8:$M$3685,C$16,Proforma!$P$8:$P$370)/1000 -> 549.0642675 | D23: =SUMIF(Proforma!$M$8:$M$3685,D$16,Proforma!$P$8:$P$370)/1000 -> 2586.579615 | E23: =SUMIF(Proforma!$M$8:$M$3685,E$16,Proforma!$P$8:$P$370)/1000 -> 321.2683601 | F23: =SUMIF(Proforma!$M$8:$M$3685,F$16,Proforma!$P$8:$P$370)/1000 -> 47.97162162 | G23: =SUMIF(Proforma!$M$8:$M$3685,G$16,Proforma!$P$8:$P$370)/1000 -> 118.8311118 | H23: =SUMIF(Proforma!$M$8:$M$3685,H$16,Proforma!$P$8:$P$370)/1000 -> 75.58591805
B24: Of YW | C24: =SUMIF(Proforma!$M$8:$M$3685,C$16,Proforma!$Q$8:$Q$370)/1000 -> 280.6440287 | D24: =SUMIF(Proforma!$M$8:$M$3685,D$16,Proforma!$Q$8:$Q$370)/1000 -> 1262.307989 | E24: =SUMIF(Proforma!$M$8:$M$3685,E$16,Proforma!$Q$8:$Q$370)/1000 -> 177.7702692 | F24: =SUMIF(Proforma!$M$8:$M$3685,F$16,Proforma!$Q$8:$Q$370)/1000 -> 18.64861987 | G24: =SUMIF(Proforma!$M$8:$M$3685,G$16,Proforma!$Q$8:$Q$370)/1000 -> 56.37045134 | H24: =SUMIF(Proforma!$M$8:$M$3685,H$16,Proforma!$Q$8:$Q$370)/1000 -> 38.87636314
B25: Of MF RCY | C25: =SUMIF(Proforma!$M$8:$M$3685,C$16,Proforma!$R$8:$R$370)/1000 -> 2.358110042 | D25: =SUMIF(Proforma!$M$8:$M$3685,D$16,Proforma!$R$8:$R$370)/1000 -> 73.3097686 | E25: =SUMIF(Proforma!$M$8:$M$3685,E$16,Proforma!$R$8:$R$370)/1000 -> 1.493713794 | F25: =SUMIF(Proforma!$M$8:$M$3685,F$16,Proforma!$R$8:$R$370)/1000 -> 0.7110913055 | G25: =SUMIF(Proforma!$M$8:$M$3685,G$16,Proforma!$R$8:$R$370)/1000 -> 1.037477093 | H25: =SUMIF(Proforma!$M$8:$M$3685,H$16,Proforma!$R$8:$R$370)/1000 -> 0.408153848

Sheet Proforma
A1: Allocation Worksheet
A2: General Rate Case | J2: Revenue | K2: =+'Alloc Summary'!G10 -> 0.2356269928 | O2: =+'Alloc Summary'!$G17 -> 0.703494097 | P2: =+'Alloc Summary'!$G18 -> 0.1999223672 | Q2: =+'Alloc Summary'!$G19 -> 0.09483807651 | R2: =+'Alloc Summary'!$G20 -> 0.00174545936
J3: Truck Hours | K3: =+'Alloc Summary'!C10 -> 0.3273525406 | O3: =+'Alloc Summary'!$C17 -> 0.5953306321 | P3: =+'Alloc Summary'!$C18 -> 0.2670333622 | Q3: =+'Alloc Summary'!$C19 -> 0.1364891562 | R3: =+'Alloc Summary'!$C20 -> 0.00114684945
J4: Container Count | K4: =+'Alloc Summary'!F10 -> 0.3732 | O4: =+'Alloc Summary'!$F17 -> 0.4189555928 | P4: =+'Alloc Summary'!$F18 -> 0.4139772865 | Q4: =+'Alloc Summary'!$F19 -> 0.1609306667 | R4: =+'Alloc Summary'!$F20 -> 0.006136453994
J5: Pay Diff Adj | K5: =+'Alloc Summary'!E10 -> 0 | O5: ='Alloc Summary'!E17 -> 0.6321760842 | P5: ='Alloc Summary'!E18 -> 0.2360890118 | Q5: ='Alloc Summary'!E19 -> 0.1306372254 | R5: ='Alloc Summary'!E20 -> 0.00109767863
J6: Prev Alloc Costs | K6: =+'Alloc Summary'!H10 -> 0.3109901869 | O6: =+'Alloc Summary'!$H17 -> 0.618104205 | P6: =+'Alloc Summary'!$H18 -> 0.2512913288 | Q6: =+'Alloc Summary'!$H19 -> 0.1292475266 | R6: =+'Alloc Summary'!$H20 -> 0.001356939566
C8: Division | D8: Restating | E8: Proforma | F8: Adjusted | H8: Allocation | J8: Unregulated | K8: Regulated | M8: Allocation | O8: Regulated | P8: Regulated | Q8: Regulated | R8: =+Q8 -> Regulated
A9: Account # | B9: Account Description | C9: Total | D9: Adjustment | E9: Adjustment | F9: Proforma | H9: Methodology | J9: Operations | K9: Operations | M9: Methodology | O9: Garbage | P9: Recycle | Q9: Yardwaste | R9: MF Recycle
A10: REVENUE
A11: 3011** | B11: =+'P&L - ITD3 (Acct Desc)'!$A$89 -> Ind O/S | C11: =+VLOOKUP($B11,'P&L - ITD3 (Acct Desc)'!A$1:N$1408,2,FALSE) -> 9154483.15 | D11: =+'PR Restate'!$G11 -> -5318611.48 | E11: =+'PF Adj'!$G11 -> 0 | F11: =SUM(C11:E11) -> 3835871.67 | H11: Actual | J11: =F11-K11 -> 3657284.53 | K11: ='Revenue Lookup'!Q64 -> 178587.14 | M11: =H11 -> Actual | O11: =K11-SUM(P11:R11) -> 178587.14 | P11: 0 | Q11: 0 | R11: =SUM('IND (+MF) Price Out Staff'!J8:J9) -> 0
B12: Disposal Pass Through | D12: =+'PR Restate'!$G12 -> 5318611.48 | E12: =+'PF Adj'!$G12 -> 0 | F12: =SUM(C12:E12) -> 5318611.48 | H12: Actual | J12: =F12-K12 -> 4947905.46 | K12: =-'Revenue Lookup'!Q49 -> 370706.02 | M12: Actual | O12: =K12-SUM(P12:R12) -> 370706.02 | P12: 0 | Q12: 0 | R12: 0
A13: 3012** | B13: =+'P&L - ITD3 (Acct Desc)'!$A$173 -> Com O/S | C13: =+VLOOKUP($B13,'P&L - ITD3 (Acct Desc)'!A$1:N$1408,2,FALSE) -> 11728699.51 | D13: =+'PR Restate'!$G13 -> 0 | E13: =+'PF Adj'!$G13 -> 0 | F13: =SUM(C13:E13) -> 11728699.51 | H13: Actual | J13: 10580264.67 | K13: =+'Revenue Lookup'!Q42-SUM('Revenue Lookup'!Q33:Q39) -> 1148434.84 | M13: Actual | O13: =K13-SUM(P13:R13) -> 1132359.216 | P13: 0 | Q13: 0 | R13: =SUM('Comm (+MF) Price Out Staff'!O8:O9) -> 16075.62412
A14: 3013** | B14: =+'P&L - ITD3 (Acct Desc)'!$A$251 -> Resi O/S | C14: =+VLOOKUP($B14,'P&L - ITD3 (Acct Desc)'!A$1:N$1408,2,FALSE) -> 16628490.33 | D14: =+'PR Restate'!$G14 -> 0 | E14: =+'PF Adj'!$G14 -> 0 | F14: =SUM(C14:E14) -> 16628490.33 | H14: Actual | J14: 9116250.75 | K14: ='Revenue Lookup'!Q21 -> 7512239.58 | M14: Actual | O14: =K14-SUM(P14:R14) -> 4797505.45 | P14: =+'Price Out Summ'!C11 -> 1841278.52 | Q14: =+'Price Out Summ'!C13 -> 873455.61 | R14: 0
A16: 3111** | B16: =+'P&L - ITD3 (Acct Desc)'!$A$430 -> Ind I/C | C16: =+VLOOKUP($B16,'P&L - ITD3 (Acct Desc)'!A$1:N$1408,2,FALSE) -> 60859.28 | D16: =+'PR Restate'!$G16 -> 0 | E16: =+'PF Adj'!$G16 -> 0 | F16: =SUM(C16:E16) -> 60859.28 | H16: Actual | J16: 60859.28 | K16: 0 | M16: =H16 -> Actual | O16: =K16-SUM(P16:R16) -> 0 | P16: 0 | Q16: 0 | R16: 0
A17: 3112** | B17: =+'P&L - ITD3 (Acct Desc)'!$A$433 -> Com I/C | C17: =+VLOOKUP($B17,'P&L - ITD3 (Acct Desc)'!A$1:N$1408,2,FALSE) -> 411066.03 | D17: =+'PR Restate'!$G17 -> 0 | E17: =+'PF Adj'!$G17 -> 0 | F17: =SUM(C17:E17) -> 411066.03 | H17: Actual | J17: 411066.03 | K17: 0 | M17: Actual | O17: 0 | P17: 0 | Q17: 0 | R17: 0
A18: 3113** | B18: =+'P&L - ITD3 (Acct Desc)'!$A$436 -> Resi I/C | C18: =+VLOOKUP($B18,'P&L - ITD3 (Acct Desc)'!A$1:N$1408,2,FALSE) -> 1103466.68 | D18: =+'PR Restate'!$G18 -> 0 | E18: =+'PF Adj'!$G18 -> 0 | F18: =SUM(C18:E18) -> 1103466.68 | H18: Actual | J18: 1103466.68 | K18: 0 | M18: Actual | O18: 0 | P18: 0 | Q18: 0 | R18: 0
B20: =+'P&L - ITD3 (Acct Desc)'!$A$444 -> Gross Revenue | C20: =+VLOOKUP($B20,'P&L - ITD3 (Acct Desc)'!A$1:N$1408,2,FALSE) -> 39087064.98 | D20: =SUM(D11:D19) -> 0 | E20: =SUM(E11:E19) -> 0 | F20: =SUM(C20:E20) -> 39087064.98 | J20: 29877097.4 | K20: =SUM(K11:K19) -> 9209967.58 | O20: =SUM(O11:O19) -> 6479157.826 | P20: =SUM(P11:P19) -> 1841278.52 | Q20: 873455.61 | R20: 16075.62412
A21: Check | C21: =+C20-SUM(C11:C19) -> 0
B22: =+'P&L - ITD3 (Acct Desc)'!$A$445 -> Disposal O/S | C22: =+VLOOKUP($B22,'P&L - ITD3 (Acct Desc)'!A$1:N$1408,2,FALSE) -> 12534483.73 | D22: =+'PR Restate'!$G22 -> 0 | E22: =+'PF Adj'!$G22 -> 0 | F22: =SUM(C22:E22) -> 12534483.73 | H22: Actual | J22: =F22-K22 -> 9682228.593 | K22: =+'Disposal Summary (with IC)'!S123-K23 -> 2852255.137 | M22: =H22 -> Actual | O22: =K22-SUM(P22:R22) -> 2852255.137 | P22: 0 | Q22: 0 | R22: 0
B23: =+'P&L - ITD3 (Acct Desc)'!$A$447 -> Diverted O/S | C23: =+VLOOKUP($B23,'P&L - ITD3 (Acct Desc)'!A$1:N$1408,2,FALSE) -> 0 | D23: =+'PR Restate'!$G23 -> 4015129.74 | E23: =+'PF Adj'!$G23 -> 0 | F23: =SUM(C23:E23) -> 4015129.74 | H23: Actual | J23: 3145498.127 | K23: =+'Disposal Summary (with IC)'!S117+'Disposal Summary (with IC)'!S119+'Disposal Summary (with IC)'!S110 -> 869631.6127 | M23: Actual | O23: =K23-SUM(P23:R23) -> 0 | P23: =+'Disposal Summary (with IC)'!S119 -> 533008.7286 | Q23: =+'Disposal Summary (with IC)'!S117 -> 281803.4718 | R23: =+'Disposal Summary (with IC)'!S110 -> 54819.41233
A24: =+'P&L - ITD3 (Acct #)'!$A$464 -> 4X0 410000 | B24: Disposal I/C | C24: =+VLOOKUP($A24,'P&L - ITD3 (Acct Desc)'!A$1:N$1408,2,FALSE) -> 27129.23 | D24: =+'PR Restate'!$G24 -> 0 | E24: =+'PF Adj'!$G24 -> 0 | F24: =SUM(C24:E24) -> 27129.23 | H24: Actual | J24: 27129.23 | K24: 0 | M24: Actual | O24: 0 | P24: 0 | Q24: 0 | R24: 0
A26: Subtotal | B26: Total Tipping & Disposal Costs | C26: =SUM(C22:C25) -> 12561612.96 | D26: =SUM(D22:D25) -> 4015129.74 | E26: 0 | F26: =SUM(C26:E26) -> 16576742.7 | J26: =F26-K26 -> 12854855.95 | K26: =SUM(K22:K25) -> 3721886.749 | O26: =SUM(O22:O25) -> 2852255.137 | P26: =SUM(P22:P25) -> 533008.7286 | Q26: =SUM(Q22:Q25) -> 281803.4718 | R26: =SUM(R22:R25) -> 54819.41233
A28: Subtotal | B28: =+'P&L - ITD3 (Acct Desc)'!$A$466 -> COGS SOM | C28: =+VLOOKUP($B28,'P&L - ITD3 (Acct Desc)'!A$1:N$1408,2,FALSE) -> 4015129.74 | D28: =+'PR Restate'!$G28 -> -4015129.74 | E28: =+'PF Adj'!$G28 -> 0 | F28: =SUM(C28:E28) -> 0 | H28: Actual | J28: =F28-K28 -> 0 | K28: 0 | M28: =H28 -> Actual | O28: =K28-SUM(P28:R28) -> 0 | P28: 0 | Q28: 0 | R28: 0
A29: Subtotal | B29: =+'P&L - ITD3 (Acct Desc)'!$A$486 -> Fees, Taxes, Royalties | C29: =+VLOOKUP($B29,'P&L - ITD3 (Acct Desc)'!A$1:N$1408,2,FALSE) -> 2799391.42 | D29: =+'PR Restate'!$G29 -> 0 | E29: =+'PF Adj'!$G29 -> 0 | F29: =SUM(C29:E29) -> 2799391.42 | H29: Actual | J29: 2760018.809 | K29: =+K20*'Combined LG'!$H$17 -> 39372.6114 | M29: Actual | O29: 27698.39971 | P29: =+P20*'Combined LG'!$H$17 -> 7871.465673 | Q29: =+Q20*'Combined LG'!$H$17 -> 3734.022733 | R29: =+R20*'Combined LG'!$H$17 -> 68.72329311
A30: Subtotal | B30: =+'P&L - ITD3 (Acct Desc)'!$A$495 -> COGS Other | C30: =+VLOOKUP($B30,'P&L - ITD3 (Acct Desc)'!A$1:N$1408,2,FALSE) -> -33227.72 | D30: =+'PR Restate'!$G30 -> 0 | E30: =+'PF Adj'!$G30 -> 0 | F30: =SUM(C30:E30) -> -33227.72 | H30: Actual | J30: -33227.72 | K30: 0 | M30: Actual | O30: 0 | P30: 0 | Q30: 0 | R30: 0
B32: =+'P&L - ITD3 (Acct Desc)'!$A$496 -> Revenue Reduction | C32: =+VLOOKUP($B32,'P&L - ITD3 (Acct Desc)'!A$1:N$1408,2,FALSE) -> 19342906.4 | D32: =SUM(D26:D31) -> 0 | E32: =SUM(E26:E31) -> 0 | F32: =SUM(C32:E32) -> 19342906.4 | J32: =F32-K32 -> 15581647.04 | K32: =SUM(K26:K31) -> 3761259.361 | O32: =SUM(O26:O31) -> 2879953.536 | P32: =SUM(P26:P31) -> 540880.1943 | Q32: 285537.4946 | R32: 54888.13562
A33: Check | C33: =+C32-SUM(C26:C30) -> 0 | F33: =SUM(C33:E33) -> 0
B34: =+'P&L - ITD3 (Acct Desc)'!$A$497 -> NET REVENUE | C34: =+VLOOKUP($B34,'P&L - ITD3 (Acct Desc)'!A$1:N$1408,2,FALSE) -> 19744158.58 | D34: =D20-D32 -> 0 | E34: =E20-E32 -> 0 | F34: =SUM(C34:E34) -> 19744158.58 | J34: =F34-K34 -> 14295450.36 | K34: =K20-K32 -> 5448708.219 | O34: =O20-O32 -> 3599204.29 | P34: 1300398.326 | Q34: 587918.1154 | R34: -38812.5115
A36: EXPENSES
A39: =+'P&L - ITD3 (Acct #)'!$A$508 -> 500 500010 | B39: =+'P&L - ITD3 (Acct Desc)'!$A$508 -> 500010 Drivers | C39: =+VLOOKUP($B39,'P&L - ITD3 (Acct Desc)'!A$1:N$1408,2,FALSE) -> 3972172.23 | D39: ='Staff Compare and Adjustments'!H11 -> -160327.01 | E39: =+'PF Adj'!$G39 -> 193413.8127 | F39: =SUM(C39:E39) -> 4005259.033 | H39: Truck Hours | J39: =F39-K39 -> 2694127.313 | K39: =F39*VLOOKUP(H39,$J$2:$K$6,2,FALSE) -> 1311131.72 | M39: Pay Diff Adj | O39: =K39-SUM(P39:R39) -> 828866.1166 | P39: =$K39*VLOOKUP($M39,$J$2:$R$6,MATCH(P$9,$J$9:$R$9,0),FALSE) -> 309543.7921 | Q39: =$K39*VLOOKUP($M39,$J$2:$R$6,MATCH(Q$9,$J$9:$R$9,0),FALSE) -> 171282.61 | R39: 1439.201271
A40: =+'P&L - ITD3 (Acct #)'!$A$514 -> 500 500020 | B40: =+'P&L - ITD3 (Acct Desc)'!$A$514 -> 500020 Collection Helper | C40: =+VLOOKUP($B40,'P&L - ITD3 (Acct Desc)'!A$1:N$1408,2,FALSE) -> 0 | D40: =+'PR Restate'!$G40 -> 0 | E40: =+'PF Adj'!$G40 -> 0 | F40: 0 | H40: Truck Hours | J40: =F40-K40 -> 0 | K40: =F40*VLOOKUP(H40,$J$2:$K$6,2,FALSE) -> 0 | M40: Pay Diff Adj | O40: =K40-SUM(P40:R40) -> 0 | P40: =$K40*VLOOKUP($M40,$J$2:$R$6,MATCH(P$9,$J$9:$R$9,0),FALSE) -> 0 | Q40: 0 | R40: 0
A41: =+'P&L - ITD3 (Acct #)'!$A$520 -> 500 500030 | B41: =+'P&L - ITD3 (Acct Desc)'!$A$520 -> 500030 Operators | C41: =+VLOOKUP($B41,'P&L - ITD3 (Acct Desc)'!A$1:N$1408,2,FALSE) -> 0 | D41: =+'PR Restate'!$G41 -> 0 | E41: =+'PF Adj'!$G41 -> 0 | F41: 0 | H41: Truck Hours | J41: 0 | K41: 0 | M41: Pay Diff Adj | O41: 0 | P41: 0 | Q41: 0 | R41: 0
A42: =+'P&L - ITD3 (Acct #)'!$A$526 -> 500 500040 | B42: =+'P&L - ITD3 (Acct Desc)'!$A$526 -> 500040 Secondary | C42: =+VLOOKUP($B42,'P&L - ITD3 (Acct Desc)'!A$1:N$1408,2,FALSE) -> 0 | D42: =+'PR Restate'!$G42 -> 0 | E42: =+'PF Adj'!$G42 -> 0 | F42: 0 | H42: Truck Hours | J42: 0 | K42: 0 | M42: Pay Diff Adj | O42: 0 | P42: 0 | Q42: 0 | R42: 0
A43: =+'P&L - ITD3 (Acct #)'!$A$532 -> 500 500050 | B43: =+'P&L - ITD3 (Acct Desc)'!$A$532 -> 500050 Container Delivery | C43: =+VLOOKUP($B43,'P&L - ITD3 (Acct Desc)'!A$1:N$1408,2,FALSE) -> 152501.19 | D43: ='Staff Compare and Adjustments'!H12 -> -794.28 | E43: =+'PF Adj'!$G43 -> 0 | F43: 151706.91 | H43: Truck Hours | J43: 102045.2676 | K43: 49661.64241 | M43: Pay Diff Adj | O43: 31394.90263 | P43: 11724.56808 | Q43: 6487.659171 | R43: 54.51252362
A44: =+'P&L - ITD3 (Acct #)'!$A$533 -> 500055 0000 | B44: =+'P&L - ITD3 (Acct Desc)'!$A$533 -> Temp Labor-Oper Labor | C44: =+VLOOKUP($B44,'P&L - ITD3 (Acct Desc)'!A$1:N$1408,2,FALSE) -> 8898.6 | D44: =+'PR Restate'!$G44 -> 0 | E44: =+'PF Adj'!$G44 -> 0 | F44: 8898.6 | H44: Truck Hours | J44: 5985.620683 | K44: 2912.979317 | M44: =H44 -> Truck Hours | O44: 1734.185818 | P44: 777.8626612 | Q44: 397.5900891 | R44: 3.340748727
A45: =+'P&L - ITD3 (Acct #)'!$A$536 -> 500170 0000 | B45: =+'P&L - ITD3 (Acct Desc)'!$A$536 -> Payroll Taxes - Oper Labor | C45: =+VLOOKUP($B45,'P&L - ITD3 (Acct Desc)'!A$1:N$1408,2,FALSE) -> 380139.49 | D45: ='Staff Compare and Adjustments'!H15 -> -15548.07 | E45: =+'PF Adj'!$G45 -> 16313.32668 | F45: 380904.7467 | H45: Truck Hours | J45: 256214.6101 | K45: 124690.1365 | M45: Truck Hours | O45: 74231.85781 | P45: 33296.42639 | Q45: 17018.85152 | R45: 143.0008145
A46: =+'P&L - ITD3 (Acct #)'!$A$537 -> 500172 0000 | B46: =+'P&L - ITD3 (Acct Desc)'!$A$537 -> Personal Time - Oper Labor | C46: =+VLOOKUP($B46,'P&L - ITD3 (Acct Desc)'!A$1:N$1408,2,FALSE) -> 6051.38 | D46: =+'PR Restate'!$G46 -> 0 | E46: =+'PF Adj'!$G46 -> 0 | F46: 6051.38 | H46: Truck Hours | J46: 4070.445383 | K46: 1980.934617 | M46: Truck Hours | O46: 1179.311058 | P46: 528.975631 | Q46: 270.3760943 | R46: 2.271833775
A47: =+'P&L - ITD3 (Acct #)'!$A$540 -> 500173 0000 | B47: =+'P&L - ITD3 (Acct Desc)'!$A$540 -> Holiday Pay - Oper Labor | C47: =+VLOOKUP($B47,'P&L - ITD3 (Acct Desc)'!A$1:N$1408,2,FALSE) -> 116310.13 | D47: ='Staff Compare and Adjustments'!H17 -> -1766.64 | E47: =+'PF Adj'!$G47 -> 0 | F47: 114543.49 | H47: Truck Hours | J47: 77047.38754 | K47: 37496.10246 | M47: Truck Hours | O47: 22322.57838 | P47: 10012.71031 | Q47: 5117.811385 | R47: 43.00238447
A48: =+'P&L - ITD3 (Acct #)'!$A$541 -> 500174 0000 | B48: =+'P&L - ITD3 (Acct Desc)'!$A$541 -> Vacation/Sick - Oper Labor | C48: =+VLOOKUP($B48,'P&L - ITD3 (Acct Desc)'!A$1:N$1408,2,FALSE) -> 293078.76 | D48: ='Staff Compare and Adjustments'!H18 -> -844.96 | E48: =+'PF Adj'!$G48 -> 0 | F48: 292233.8 | H48: Truck Hours | J48: 196570.3231 | K48: 95663.47687 | M48: Truck Hours | O48: 56951.39816 | P48: 25545.33987 | Q48: 13057.02724 | R48: 109.7116058
A49: =+'P&L - ITD3 (Acct #)'!$A$547 -> 500 500175 | B49: =+'P&L - ITD3 (Acct Desc)'!$A$547 -> 500175 Benefits Non-Corp - Oper Labor | C49: =+VLOOKUP($B49,'P&L - ITD3 (Acct Desc)'!A$1:N$1408,2,FALSE) -> 1791732.61 | D49: =+'PR Restate'!$G49 -> 0 | E49: =+'PF Adj'!$G49 -> 132448.8419 | F49: 1924181.452 | H49: Truck Hours | J49: 1294295.765 | K49: 629885.6868 | M49: Truck Hours | O49: 374990.2441 | P49: 168200.4927 | Q49: 85972.56589 | R49: 722.3840533
A50: =+'P&L - ITD3 (Acct #)'!$A$548 -> 500176 0000 | B50: =+'P&L - ITD3 (Acct Desc)'!$A$548 -> Benefits Corp - Oper Labor | C50: =+VLOOKUP($B50,'P&L - ITD3 (Acct Desc)'!A$1:N$1408,2,FALSE) -> 0 | D50: =+'PR Restate'!$G50 -> 0 | E50: =+'PF Adj'!$G50 -> 0 | F50: 0 | H50: Truck Hours | J50: =F50-K50 -> 0 | K50: =F50*VLOOKUP(H50,$J$2:$K$6,2,FALSE) -> 0 | M50: Truck Hours | O50: 0 | P50: 0 | Q50: 0 | R50: 0
A51: =+'P&L - ITD3 (Acct #)'!$A$551 -> 500188 0000 | B51: =+'P&L - ITD3 (Acct Desc)'!$A$551 -> Uniforms & Safety - Oper Labor | C51: =+VLOOKUP($B51,'P&L - ITD3 (Acct Desc)'!A$1:N$1408,2,FALSE) -> 6626.09 | D51: =+'PR Restate'!$G51 -> 0 | E51: =+'PF Adj'!$G51 -> 0 | F51: 6626.09 | H51: Truck Hours | J51: =F51-K51 -> 4457.022605 | K51: =F51*VLOOKUP(H51,$J$2:$K$6,2,FALSE) -> 2169.067395 | M51: Truck Hours | O51: 1291.312264 | P51: 579.2133595 | Q51: 296.0541785 | R51: 2.487593749
A52: =+'P&L - ITD3 (Acct #)'!$A$553 -> 500998 0000 | B52: =+'P&L - ITD3 (Acct Desc)'!$A$553 -> Oper Labor Alloc-In | C52: =+VLOOKUP($B52,'P&L - ITD3 (Acct Desc)'!A$1:N$1408,2,FALSE) -> 48343.21 | D52: =+'PR Restate'!$G52 -> 0 | E52: =+'PF Adj'!$G52 -> 0 | F52: 48343.21 | H52: Truck Hours | J52: 32517.93739 | K52: 15825.27261 | M52: Truck Hours | O52: 9421.269548 | P52: 4225.875753 | Q52: 2159.978105 | R52: 18.14920519
A53: =+'P&L - ITD3 (Acct #)'!$A$557 -> 500999 0000 | B53: =+'P&L - ITD3 (Acct Desc)'!$A$557 -> Oper Labor Alloc-Out | C53: =+VLOOKUP($B53,'P&L - ITD3 (Acct Desc)'!A$1:N$1408,2,FALSE) -> 0 | D53: =+'PR Restate'!$G53 -> 0 | E53: =+'PF Adj'!$G53 -> 0 | F53: 0 | H53: Truck Hours | J53: 0 | K53: 0 | M53: Truck Hours | O53: 0 | P53: 0 | Q53: 0 | R53: 0
A54: =+'P&L - ITD3 (Acct #)'!$A$558 -> Operating Labor | B54: =+'P&L - ITD3 (Acct Desc)'!$A$558 -> Operating Labor | C54: =+VLOOKUP($B54,'P&L - ITD3 (Acct Desc)'!A$1:N$1408,2,FALSE) -> 6775853.69 | D54: =SUM(D38:D53) -> -179280.96 | E54: =SUM(E38:E53) -> 342175.9812 | F54: 6938748.711 | J54: =SUM(J38:J53) -> 4667331.692 | K54: 2271417.019 | O54: =SUM(O38:O53) -> 1402383.176 | P54: =SUM(P38:P53) -> 564435.2568 | Q54: =SUM(Q38:Q53) -> 302060.5237 | R54: =SUM(R38:R53) -> 2538.062034
A55: Check | C55: =+C54-SUM(C39:C53) -> 0 | F55: 0
A56: =+'P&L - ITD3 (Acct #)'!$A$565 -> 510 510010 | B56: =+'P&L - ITD3 (Acct Desc)'!$A$565 -> 510010 Mgr/Supervision | C56: =+VLOOKUP($B56,'P&L - ITD3 (Acct Desc)'!A$1:N$1408,2,FALSE) -> 349868.81 | D56: ='Staff Compare and Adjustments'!H23 -> -40000 | E56: =+'PF Adj'!$G56 -> 69450.68197 | F56: 379319.492 | H56: Truck Hours | J56: =F56-K56 -> 255148.2926 | K56: =F56*VLOOKUP(H56,$J$2:$K$6,2,FALSE) -> 124171.1994 | M56: =H56 -> Truck Hours | O56: =K56-SUM(P56:R56) -> 73922.91862 | P56: =$K56*VLOOKUP($M56,$J$2:$R$6,MATCH(P$9,$J$9:$R$9,0),FALSE) -> 33157.85286 | Q56: 16948.02223 | R56: 142.4056717
A57: =+'P&L - ITD3 (Acct #)'!$A$572 -> 510 510020 | B57: =+'P&L - ITD3 (Acct Desc)'!$A$572 -> 510020 Dispatchers | C57: =+VLOOKUP($B57,'P&L - ITD3 (Acct Desc)'!A$1:N$1408,2,FALSE) -> 199834.28 | D57: ='Staff Compare and Adjustments'!H24 -> -7111.03 | E57: =+'PF Adj'!$G57 -> 0 | F57: 192723.25 | H57: Truck Hours | J57: 129634.8045 | K57: 63088.44551 | M57: Truck Hours | O57: 37558.48415 | P57: 16846.71972 | Q57: 8610.888694 | R57: 72.35294902
A58: =+'P&L - ITD3 (Acct #)'!$A$573 -> 510055 0000 | B58: =+'P&L - ITD3 (Acct Desc)'!$A$573 -> Temporary Labor - Sup Labor | C58: =+VLOOKUP($B58,'P&L - ITD3 (Acct Desc)'!A$1:N$1408,2,FALSE) -> 2065.26 | D58: =+'PR Restate'!$G58 -> 0 | E58: =+'PF Adj'!$G58 -> 0 | F58: 2065.26 | H58: Truck Hours | J58: 1389.191892 | K58: 676.0681079 | M58: Truck Hours | O58: 402.4840541 | P58: 180.5327399 | Q58: 92.27596558 | R58: 0.7753483376
A59: =+'P&L - ITD3 (Acct #)'!$A$575 -> 510061 0000 | B59: =+'P&L - ITD3 (Acct Desc)'!$A$575 -> Bonus Pay Corp - Sup Labor | C59: =+VLOOKUP($B59,'P&L - ITD3 (Acct Desc)'!A$1:N$1408,2,FALSE) -> 11759.12 | D59: =+'PR Restate'!$G59 -> -11759.12 | E59: =+'PF Adj'!$G59 -> 0 | F59: 0 | H59: Truck Hours | J59: 0 | K59: 0 | M59: Truck Hours | O59: 0 | P59: 0 | Q59: 0 | R59: 0
A60: =+'P&L - ITD3 (Acct #)'!$A$576 -> 510170 0000 | B60: =+'P&L - ITD3 (Acct Desc)'!$A$576 -> Payroll Taxes - Sup Labor | C60: =+VLOOKUP($B60,'P&L - ITD3 (Acct Desc)'!A$1:N$1408,2,FALSE) -> 47575.21 | D60: ='Staff Compare and Adjustments'!H28 -> -4321.81 | E60: =+'PF Adj'!$G60 -> 5857.759835 | F60: 49111.15983 | H60: Truck Hours | J60: 33034.49689 | K60: 16076.66294 | M60: Truck Hours | O60: 9570.929912 | P60: 4293.005358 | Q60: 2194.290159 | R60: 18.43751205
A61: =+'P&L - ITD3 (Acct #)'!$A$577 -> 510172 0000 | B61: =+'P&L - ITD3 (Acct Desc)'!$A$577 -> Personal Time - Sup Labor | C61: =+VLOOKUP($B61,'P&L - ITD3 (Acct Desc)'!A$1:N$1408,2,FALSE) -> -20 | D61: =+'PR Restate'!$G61 -> 0 | E61: =+'PF Adj'!$G61 -> 0 | F61: -20 | H61: Truck Hours | J61: -13.45294919 | K61: -6.547050811 | M61: Truck Hours | O61: -3.897659898 | P61: -1.748280991 | Q61: -0.8936014408 | R61: -0.00750848162
A62: =+'P&L - ITD3 (Acct #)'!$A$580 -> 510173 0000 | B62: =+'P&L - ITD3 (Acct Desc)'!$A$580 -> Holiday Pay - Sup Labor | C62: =+VLOOKUP($B62,'P&L - ITD3 (Acct Desc)'!A$1:N$1408,2,FALSE) -> 4743.92 | D62: ='Staff Compare and Adjustments'!H30 -> -362 | E62: =+'PF Adj'!$G62 -> 0 | F62: 4381.92 | H62: Truck Hours | J62: 2947.487355 | K62: 1434.432645 | M62: Truck Hours | O62: 853.961693 | P62: 383.0413719 | Q62: 195.7845013 | R62: 1.645078289
A63: =+'P&L - ITD3 (Acct #)'!$A$581 -> 510174 0000 | B63: =+'P&L - ITD3 (Acct Desc)'!$A$581 -> Vacation/Sick - Sup Labor | C63: =+VLOOKUP($B63,'P&L - ITD3 (Acct Desc)'!A$1:N$1408,2,FALSE) -> 5261.02 | D63: ='Staff Compare and Adjustments'!H31 -> -360 | E63: =+'PF Adj'!$G63 -> 0 | F63: 4901.02 | H63: Truck Hours | J63: 3296.658652 | K63: 1604.361348 | M63: Truck Hours | O63: 955.1254557 | P63: 428.418005 | Q63: 218.9779267 | R63: 1.83996093
A64: =+'P&L - ITD3 (Acct #)'!$A$587 -> 510176 0000 | B64: =+'P&L - ITD3 (Acct Desc)'!$A$587 -> Benefits Corp - Sup Labor | C64: =+VLOOKUP($B64,'P&L - ITD3 (Acct Desc)'!A$1:N$1408,2,FALSE) -> 33053.65 | E64: =+'PF Adj'!$G64 -> 23014.03458 | F64: 56067.68458 | H64: Truck Hours | J64: 37713.78559 | K64: 18353.89899 | M64: Truck Hours | O64: 10926.63829 | P64: 4901.103357 | Q64: 2505.108186 | R64: 21.04915896
A65: =+'P&L - ITD3 (Acct #)'!$A$588 -> 510177 0000 | B65: =+'P&L - ITD3 (Acct Desc)'!$A$588 -> Employer 401k - Sup Labor | C65: =+VLOOKUP($B65,'P&L - ITD3 (Acct Desc)'!A$1:N$1408,2,FALSE) -> 6635.57 | D65: ='Staff Compare and Adjustments'!H33 -> -7995.21 | E65: =+'PF Adj'!$G65 -> 0 | F65: -1359.64 | H65: Truck Hours | J65: =F65-K65 -> -914.5583918 | K65: =F65*VLOOKUP(H65,$J$2:$K$6,2,FALSE) -> -445.0816082 | M65: Truck Hours | O65: -264.9707152 | P65: -118.8516383 | Q65: -60.74881315 | R65: -0.5104415975
A66: =+'P&L - ITD3 (Acct #)'!$A$590 -> 510188 0000 | B66: =+'P&L - ITD3 (Acct Desc)'!$A$590 -> Uniforms & Safety - Sup Labor | C66: =+VLOOKUP($B66,'P&L - ITD3 (Acct Desc)'!A$1:N$1408,2,FALSE) -> 5532.37 | D66: =+'PR Restate'!$G66 -> 0 | E66: =+'PF Adj'!$G66 -> 0 | F66: 5532.37 | H66: Truck Hours | J66: =F66-K66 -> 3721.334625 | K66: =F66*VLOOKUP(H66,$J$2:$K$6,2,FALSE) -> 1811.035375 | M66: Truck Hours | O66: 1078.164835 | P66: 483.6068652 | Q66: 247.1866902 | R66: 2.076984923
A67: =+'P&L - ITD3 (Acct #)'!$A$602 -> 510 510998 | B67: =+'P&L - ITD3 (Acct Desc)'!$A$602 -> 510998 Ops Supv Alloc-In | C67: =+VLOOKUP($B67,'P&L - ITD3 (Acct Desc)'!A$1:N$1408,2,FALSE) -> 530310.73 | D67: =+'PR Restate'!$G67 -> 0 | E67: =+'PF Adj'!$G67 -> 0 | F67: 530310.73 | H67: Truck Hours | J67: 356712.1653 | K67: 173598.5647 | M67: Truck Hours | O67: 103348.5433 | P67: 46356.60842 | Q67: 23694.32162 | R67: 199.0914185
A68: =+'P&L - ITD3 (Acct #)'!$A$603 -> 510999 0000 | B68: =+'P&L - ITD3 (Acct Desc)'!$A$603 -> Ops Supv Alloc-Out | C68: =+VLOOKUP($B68,'P&L - ITD3 (Acct Desc)'!A$1:N$1408,2,FALSE) -> -525179.19 | D68: =+'PR Restate'!$G68 -> 0 | E68: =+'PF Adj'!$G68 -> 0 | F68: -525179.19 | H68: Truck Hours | J68: -353260.4479 | K68: -171918.7421 | M68: =H68 -> Truck Hours | O68: -102348.4934 | P68: -45908.03973 | Q68: -23465.04404 | R68: -197.1649148
B69: =+'P&L - ITD3 (Acct Desc)'!$A$604 -> Oper Supervisory Labor | C69: =+VLOOKUP($B69,'P&L - ITD3 (Acct Desc)'!A$1:N$1408,2,FALSE) -> 671440.75 | D69: =SUM(D56:D68) -> -71909.17 | E69: =SUM(E56:E68) -> 98322.47638 | F69: 697854.0564 | J69: =SUM(J56:J68) -> 469409.7581 | K69: 228444.2983 | O69: =SUM(O56:O68) -> 135999.8885 | P69: =SUM(P56:P68) -> 61002.24905 | Q69: =SUM(Q56:Q68) -> 31180.16951 | R69: =SUM(R56:R68) -> 261.9912178
A70: Check | C70: =+C69-SUM(C56:C68) -> 0 | F70: =+F69/C69-1 -> 0.03933825342
A71: =+'P&L - ITD3 (Acct #)'!$A$611 -> 520 520010 | B71: =+'P&L - ITD3 (Acct Desc)'!$A$611 -> 520010 TShop Mgr/Supv-Default | C71: =+VLOOKUP($B71,'P&L - ITD3 (Acct Desc)'!A$1:N$1408,2,FALSE) -> 82027.4 | D71: =+'PR Restate'!$G71 -> 0 | E71: =+'PF Adj'!$G71 -> 1384.194832 | F71: =SUM(C71:E71) -> 83411.59483 | H71: Truck Hours | J71: =F71-K71 -> 56106.59735 | K71: =F71*VLOOKUP(H71,$J$2:$K$6,2,FALSE) -> 27304.99748 | M71: Truck Hours | O71: =K71-SUM(P71:R71) -> 16255.50141 | P71: =$K71*VLOOKUP($M71,$J$2:$R$6,MATCH(P$9,$J$9:$R$9,0),FALSE) -> 7291.345282 | Q71: 3726.836066 | R71: 31.31472134
A72: =+'P&L - ITD3 (Acct #)'!$A$618 -> 520 520020 | B72: =+'P&L - ITD3 (Acct Desc)'!$A$618 -> 520020 TShop Mech/Welder-Default | C72: =+VLOOKUP($B72,'P&L - ITD3 (Acct Desc)'!A$1:N$1408,2,FALSE) -> 257793.04 | D72: ='Staff Compare and Adjustments'!H39 -> -1444.94 | E72: =+'PF Adj'!$G72 -> 0 | F72: 256348.1 | H72: Truck Hours | J72: 172431.8982 | K72: 83916.2018 | M72: =H72 -> Truck Hours | O72: 49957.88547 | P72: 22408.42551 | Q72: 11453.65158 | R72: 96.23924986
A73: =+'P&L - ITD3 (Acct #)'!$A$625 -> 520 520030 | B73: =+'P&L - ITD3 (Acct Desc)'!$A$625 -> 520030 TShop Support-Default | C73: =+VLOOKUP($B73,'P&L - ITD3 (Acct Desc)'!A$1:N$1408,2,FALSE) -> 16262.29 | D73: =+'PR Restate'!$G73 -> 0 | E73: =+'PF Adj'!$G73 -> 0 | F73: 16262.29 | H73: Truck Hours | J73: 10938.78805 | K73: 5323.501947 | M73: Truck Hours | O73: 3169.243779 | P73: 1421.552624 | Q73: 726.6002887 | R73: 6.105255278
A74: =+'P&L - ITD3 (Acct #)'!$A$626 -> 520055 0000 | B74: =+'P&L - ITD3 (Acct Desc)'!$A$626 -> TShop Temp Labor | C74: =+VLOOKUP($B74,'P&L - ITD3 (Acct Desc)'!A$1:N$1408,2,FALSE) -> 0 | D74: =+'PR Restate'!$G74 -> 0 | E74: =+'PF Adj'!$G74 -> 0 | F74: 0 | H74: Truck Hours | J74: 0 | K74: 0 | M74: Truck Hours | O74: 0 | P74: 0 | Q74: 0 | R74: 0
A75: =+'P&L - ITD3 (Acct #)'!$A$627 -> 520060 0000 | B75: =+'P&L - ITD3 (Acct Desc)'!$A$627 -> TShop Bonus Non-Corp | C75: =+VLOOKUP($B75,'P&L - ITD3 (Acct Desc)'!A$1:N$1408,2,FALSE) -> 0 | D75: =+'PR Restate'!$G75 -> 0 | E75: =+'PF Adj'!$G75 -> 0 | F75: 0 | H75: Truck Hours | J75: 0 | K75: 0 | M75: Truck Hours | O75: 0 | P75: 0 | Q75: 0 | R75: 0
A76: =+'P&L - ITD3 (Acct #)'!$A$628 -> 520061 0000 | B76: =+'P&L - ITD3 (Acct Desc)'!$A$628 -> TShop Bonus Pay Corp | C76: =+VLOOKUP($B76,'P&L - ITD3 (Acct Desc)'!A$1:N$1408,2,FALSE) -> 0 | D76: =+'PR Restate'!$G76 -> 0 | E76: =+'PF Adj'!$G76 -> 0 | F76: 0 | H76: Truck Hours | J76: 0 | K76: 0 | M76: Truck Hours | O76: 0 | P76: 0 | Q76: 0 | R76: 0
A77: =+'P&L - ITD3 (Acct #)'!$A$629 -> 520170 0000 | B77: =+'P&L - ITD3 (Acct Desc)'!$A$629 -> TShop Payroll Tax | C77: =+VLOOKUP($B77,'P&L - ITD3 (Acct Desc)'!A$1:N$1408,2,FALSE) -> 32524.61 | D77: ='Staff Compare and Adjustments'!H44 -> -136.36 | E77: =+'PF Adj'!$G77 -> 116.7487584 | F77: 32504.99876 | H77: Truck Hours | J77: 21864.40483 | K77: 10640.59392 | M77: Truck Hours | O77: 6334.671507 | P77: 2841.393571 | Q77: 1452.325686 | R77: 12.20315929
A78: =+'P&L - ITD3 (Acct #)'!$A$630 -> 520172 0000 | B78: =+'P&L - ITD3 (Acct Desc)'!$A$630 -> TShop Personal Time | C78: =+VLOOKUP($B78,'P&L - ITD3 (Acct Desc)'!A$1:N$1408,2,FALSE) -> 0 | D78: =+'PR Restate'!$G78 -> 0 | E78: =+'PF Adj'!$G78 -> 0 | F78: 0 | H78: Truck Hours | J78: 0 | K78: 0 | M78: Truck Hours | O78: 0 | P78: 0 | Q78: 0 | R78: 0
A79: =+'P&L - ITD3 (Acct #)'!$A$633 -> 520173 0000 | B79: =+'P&L - ITD3 (Acct Desc)'!$A$633 -> TShop Holiday Pay | C79: =+VLOOKUP($B79,'P&L - ITD3 (Acct Desc)'!A$1:N$1408,2,FALSE) -> 8849.36 | D79: =+'PR Restate'!$G79 -> 0 | E79: =+'PF Adj'!$G79 -> 0 | F79: 8849.36 | H79: Truck Hours | J79: 5952.499522 | K79: 2896.860478 | M79: Truck Hours | O79: 1724.58978 | P79: 773.5583934 | Q79: 395.3900423 | R79: 3.322262846
A80: =+'P&L - ITD3 (Acct #)'!$A$634 -> 520174 0000 | B80: =+'P&L - ITD3 (Acct Desc)'!$A$634 -> TShop Vacation/Sick | C80: =+VLOOKUP($B80,'P&L - ITD3 (Acct Desc)'!A$1:N$1408,2,FALSE) -> 17229.69 | D80: =+'PR Restate'!$G80 -> 0 | E80: =+'PF Adj'!$G80 -> 0 | F80: 17229.69 | H80: Truck Hours | J80: 11589.50721 | K80: 5640.182794 | M80: Truck Hours | O80: 3357.773588 | P80: 1506.116975 | Q80: 769.8237904 | R80: 6.468440534
A81: =+'P&L - ITD3 (Acct #)'!$A$639 -> 520 520175 | B81: =+'P&L - ITD3 (Acct Desc)'!$A$639 -> 520175 TShop Benefits Non-Corp | C81: =+VLOOKUP($B81,'P&L - ITD3 (Acct Desc)'!A$1:N$1408,2,FALSE) -> 141355.24 | D81: =+'PR Restate'!$G81 -> 0 | E81: =+'PF Adj'!$G81 -> 11972.8 | F81: 153328.04 | H81: Truck Hours | J81: 103135.7166 | K81: 50192.32343 | M81: Truck Hours | O81: 29881.02764 | P81: 13403.02488 | Q81: 6850.707873 | R81: 57.56303851
A82: =+'P&L - ITD3 (Acct #)'!$A$640 -> 520176 0000 | B82: =+'P&L - ITD3 (Acct Desc)'!$A$640 -> TShop Benefits Corp | C82: =+VLOOKUP($B82,'P&L - ITD3 (Acct Desc)'!A$1:N$1408,2,FALSE) -> 12599.77 | D82: =+'PR Restate'!$G82 -> 0 | E82: =+'PF Adj'!$G82 -> 0 | F82: 12599.77 | H82: Truck Hours | J82: 8475.20328 | K82: 4124.56672 | M82: Truck Hours | O82: 2455.480913 | P82: 1101.396919 | Q82: 562.9586313 | R82: 4.730257073
A83: =+'P&L - ITD3 (Acct #)'!$A$641 -> 520177 0000 | B83: =+'P&L - ITD3 (Acct Desc)'!$A$641 -> TShop Employer 401k | C83: =+VLOOKUP($B83,'P&L - ITD3 (Acct Desc)'!A$1:N$1408,2,FALSE) -> 164.7 | D83: =+'PR Restate'!$G83 -> 0 | E83: =+'PF Adj'!$G83 -> 0 | F83: 164.7 | H83: Truck Hours | J83: =F83-K83 -> 110.7850366 | K83: =F83*VLOOKUP(H83,$J$2:$K$6,2,FALSE) -> 53.91496343 | M83: Truck Hours | O83: 32.09722926 | P83: 14.39709396 | Q83: 7.358807865 | R83: 0.06183234614
A84: =+'P&L - ITD3 (Acct #)'!$A$643 -> 520188 0000 | B84: =+'P&L - ITD3 (Acct Desc)'!$A$643 -> TShop Uniforms & Safety | C84: =+VLOOKUP($B84,'P&L - ITD3 (Acct Desc)'!A$1:N$1408,2,FALSE) -> 400 | D84: =+'PR Restate'!$G84 -> 0 | E84: =+'PF Adj'!$G84 -> 0 | F84: 400 | H84: Truck Hours | J84: =F84-K84 -> 269.0589838 | K84: =F84*VLOOKUP(H84,$J$2:$K$6,2,FALSE) -> 130.9410162 | M84: Truck Hours | O84: 77.95319796 | P84: 34.96561981 | Q84: 17.87202882 | R84: 0.1501696324
A85: =+'P&L - ITD3 (Acct #)'!$A$644 -> 520998 0000 | B85: =+'P&L - ITD3 (Acct Desc)'!$A$644 -> TShop Labor Alloc-In | C85: =+VLOOKUP($B85,'P&L - ITD3 (Acct Desc)'!A$1:N$1408,2,FALSE) -> 0 | D85: =+'PR Restate'!$G85 -> 0 | E85: =+'PF Adj'!$G85 -> 0 | F85: 0 | H85: Truck Hours | J85: 0 | K85: 0 | M85: Truck Hours | O85: 0 | P85: 0 | Q85: 0 | R85: 0
A86: =+'P&L - ITD3 (Acct #)'!$A$645 -> 520999 0000 | B86: =+'P&L - ITD3 (Acct Desc)'!$A$645 -> TShop Labor Alloc-Out | C86: =+VLOOKUP($B86,'P&L - ITD3 (Acct Desc)'!A$1:N$1408,2,FALSE) -> -569206.1 | D86: =+'PR Restate'!$G86 -> 0 | E86: =+'PF Adj'!$G86 -> 0 | F86: -569206.1 | H86: Truck Hours | J86: -382875.0371 | K86: -186331.0629 | M86: Truck Hours | O86: -110928.5895 | P86: -49756.61022 | Q86: -25432.16955 | R86: -213.693677
B87: =+'P&L - ITD3 (Acct Desc)'!$A$646 -> Truck/Equipment Shop Labor | C87: =+VLOOKUP($B87,'P&L - ITD3 (Acct Desc)'!A$1:N$1408,2,FALSE) -> 0 | D87: =SUM(D71:D86) -> -1581.3 | E87: =SUM(E71:E86) -> 13473.74359 | F87: 11892.44359 | J87: =SUM(J71:J86) -> 7999.421968 | K87: 3893.021623 | O87: =SUM(O71:O86) -> 2317.635024 | P87: =SUM(P71:P86) -> 1039.566653 | Q87: =SUM(Q71:Q86) -> 531.3552364 | R87: =SUM(R71:R86) -> 4.464709706
A88: Check | C88: =+C87-SUM(C71:C86) -> 0
A89: =+'P&L - ITD3 (Acct #)'!$A$660 -> 525 525020 | B89: =+'P&L - ITD3 (Acct Desc)'!$A$660 -> 525020 CShop Mech/Welder-Default | C89: =+VLOOKUP($B89,'P&L - ITD3 (Acct Desc)'!A$1:N$1408,2,FALSE) -> 50422.64 | D89: =+'PR Restate'!$G89 -> 0 | E89: =+'PF Adj'!$G89 -> 12247.68192 | F89: =SUM(C89:E89) -> 62670.32192 | H89: Container Count | J89: =F89-K89 -> 39281.75778 | K89: =F89*VLOOKUP(H89,$J$2:$K$6,2,FALSE) -> 23388.56414 | M89: =H89 -> Container Count | O89: =K89-SUM(P89:R89) -> 9798.769755 | P89: =$K89*VLOOKUP($M89,$J$2:$R$6,MATCH(P$9,$J$9:$R$9,0),FALSE) -> 9682.334318 | Q89: 3763.937221 | R89: 143.5228478
A90: =+'P&L - ITD3 (Acct #)'!$A$667 -> 525 525030 | B90: =+'P&L - ITD3 (Acct Desc)'!$A$667 -> 525030 CShop Support-Default | C90: =+VLOOKUP($B90,'P&L - ITD3 (Acct Desc)'!A$1:N$1408,2,FALSE) -> 10167.68 | D90: =+'PR Restate'!$G90 -> 0 | E90: =+'PF Adj'!$G90 -> 0 | F90: 10167.68 | H90: Container Count | J90: 6373.101824 | K90: 3794.578176 | M90: Container Count | O90: 1589.759749 | P90: 1570.869177 | Q90: 610.6639958 | R90: 23.2852544
A91: =+'P&L - ITD3 (Acct #)'!$A$668 -> 525055 0000 | B91: =+'P&L - ITD3 (Acct Desc)'!$A$668 -> CShop Temp Labor | C91: =+VLOOKUP($B91,'P&L - ITD3 (Acct Desc)'!A$1:N$1408,2,FALSE) -> 0 | D91: =+'PR Restate'!$G91 -> 0 | E91: =+'PF Adj'!$G91 -> 0 | F91: 0 | H91: Container Count | J91: 0 | K91: 0 | M91: Container Count | O91: 0 | P91: 0 | Q91: 0 | R91: 0
A92: =+'P&L - ITD3 (Acct #)'!$A$669 -> 525060 0000 | B92: =+'P&L - ITD3 (Acct Desc)'!$A$669 -> CShop Bonus Pay Non-Corp | C92: =+VLOOKUP($B92,'P&L - ITD3 (Acct Desc)'!A$1:N$1408,2,FALSE) -> 0 | D92: =+'PR Restate'!$G92 -> 0 | E92: =+'PF Adj'!$G92 -> 0 | F92: 0 | H92: Container Count | J92: 0 | K92: 0 | M92: Container Count | O92: 0 | P92: 0 | Q92: 0 | R92: 0
A93: =+'P&L - ITD3 (Acct #)'!$A$670 -> 525061 0000 | B93: =+'P&L - ITD3 (Acct Desc)'!$A$670 -> CShop Bonus Pay Corp | C93: =+VLOOKUP($B93,'P&L - ITD3 (Acct Desc)'!A$1:N$1408,2,FALSE) -> 0 | D93: =+'PR Restate'!$G93 -> 0 | E93: =+'PF Adj'!$G93 -> 0 | F93: 0 | H93: Container Count | J93: 0 | K93: 0 | M93: Container Count | O93: 0 | P93: 0 | Q93: 0 | R93: 0
A94: =+'P&L - ITD3 (Acct #)'!$A$671 -> 525170 0000 | B94: =+'P&L - ITD3 (Acct Desc)'!$A$671 -> CShop Payroll Tax | C94: =+VLOOKUP($B94,'P&L - ITD3 (Acct Desc)'!A$1:N$1408,2,FALSE) -> 5854.68 | D94: =+'PR Restate'!$G94 -> 0 | E94: =+'PF Adj'!$G94 -> 1033.020515 | F94: 6887.700515 | H94: Container Count | J94: 4317.210683 | K94: 2570.489832 | M94: Container Count | O94: 1076.921091 | P94: 1064.124406 | Q94: 413.6706425 | R94: 15.7736926
A95: =+'P&L - ITD3 (Acct #)'!$A$672 -> 525172 0000 | B95: =+'P&L - ITD3 (Acct Desc)'!$A$672 -> CShop Personal Time | C95: =+VLOOKUP($B95,'P&L - ITD3 (Acct Desc)'!A$1:N$1408,2,FALSE) -> 0 | D95: =+'PR Restate'!$G95 -> 0 | E95: =+'PF Adj'!$G95 -> 0 | F95: 0 | H95: Container Count | J95: 0 | K95: 0 | M95: Container Count | O95: 0 | P95: 0 | Q95: 0 | R95: 0
A96: =+'P&L - ITD3 (Acct #)'!$A$675 -> 525173 0000 | B96: =+'P&L - ITD3 (Acct Desc)'!$A$675 -> CShop Holiday Pay | C96: =+VLOOKUP($B96,'P&L - ITD3 (Acct Desc)'!A$1:N$1408,2,FALSE) -> 1545.06 | D96: =+'PR Restate'!$G96 -> 0 | E96: =+'PF Adj'!$G96 -> 0 | F96: 1545.06 | H96: Container Count | J96: 968.443608 | K96: 576.616392 | M96: Container Count | O96: 241.5766623 | P96: 238.7060893 | Q96: 92.7952604 | R96: 3.538379962
A97: =+'P&L - ITD3 (Acct #)'!$A$676 -> 525174 0000 | B97: =+'P&L - ITD3 (Acct Desc)'!$A$676 -> CShop Vacation/Sick | C97: =+VLOOKUP($B97,'P&L - ITD3 (Acct Desc)'!A$1:N$1408,2,FALSE) -> 1802.38 | D97: =+'PR Restate'!$G97 -> 0 | E97: =+'PF Adj'!$G97 -> 0 | F97: 1802.38 | H97: Container Count | J97: 1129.731784 | K97: 672.648216 | M97: Container Count | O97: 281.8097321 | P97: 278.4610832 | Q97: 108.2497259 | R97: 4.127674832
A98: =+'P&L - ITD3 (Acct #)'!$A$681 -> 525 525175 | B98: =+'P&L - ITD3 (Acct Desc)'!$A$681 -> 525175 CShop Benefits Non-Corp | C98: =+VLOOKUP($B98,'P&L - ITD3 (Acct Desc)'!A$1:N$1408,2,FALSE) -> 22644.63 | D98: =+'PR Restate'!$G98 -> 0 | E98: =+'PF Adj'!$G98 -> 11472.56955 | F98: 34117.19955 | H98: Container Count | J98: 21384.66068 | K98: 12732.53887 | M98: Container Count | O98: 5334.36837 | P98: 5270.981892 | Q98: 2049.055969 | R98: 78.132639
A99: =+'P&L - ITD3 (Acct #)'!$A$682 -> 525176 0000 | B99: =+'P&L - ITD3 (Acct Desc)'!$A$682 -> CShop Benefits Corp | C99: =+VLOOKUP($B99,'P&L - ITD3 (Acct Desc)'!A$1:N$1408,2,FALSE) -> 3695.86 | D99: =+'PR Restate'!$G99 -> 0 | E99: =+'PF Adj'!$G99 -> 0 | F99: 3695.86 | H99: Container Count | J99: 2316.565048 | K99: 1379.294952 | M99: Container Count | O99: 577.8633343 | P99: 570.9967815 | Q99: 221.9708562 | R99: 8.463980017
A100: =+'P&L - ITD3 (Acct #)'!$A$685 -> 525188 0000 | B100: =+'P&L - ITD3 (Acct Desc)'!$A$685 -> CShop Uniforms & Safety | C100: =+VLOOKUP($B100,'P&L - ITD3 (Acct Desc)'!A$1:N$1408,2,FALSE) -> 100 | D100: =+'PR Restate'!$G100 -> 0 | E100: =+'PF Adj'!$G100 -> 0 | F100: 100 | H100: Container Count | J100: 62.68 | K100: 37.32 | M100: Container Count | O100: 15.63542272 | P100: 15.44963233 | Q100: 6.005932482 | R100: 0.2290124631
A101: =+'P&L - ITD3 (Acct #)'!$A$686 -> 525998 0000 | B101: =+'P&L - ITD3 (Acct Desc)'!$A$686 -> CShop Labor Alloc-In | C101: =+VLOOKUP($B101,'P&L - ITD3 (Acct Desc)'!A$1:N$1408,2,FALSE) -> 49117.73 | D101: =+'PR Restate'!$G101 -> 0 | E101: =+'PF Adj'!$G101 -> 0 | F101: 49117.73 | H101: Container Count | J101: 30786.99316 | K101: 18330.73684 | M101: Container Count | O101: 7679.764718 | P101: 7588.508694 | Q101: 2949.9777 | R101: 112.4857233
A102: =+'P&L - ITD3 (Acct #)'!$A$687 -> 525999 0000 | B102: =+'P&L - ITD3 (Acct Desc)'!$A$687 -> CShop Labor Alloc-Out | C102: =+VLOOKUP($B102,'P&L - ITD3 (Acct Desc)'!A$1:N$1408,2,FALSE) -> -145350.66 | D102: =+'PR Restate'!$G102 -> 0 | E102: =+'PF Adj'!$G102 -> 0 | F102: -145350.66 | H102: Container Count | J102: -91105.79369 | K102: -54244.86631 | M102: Container Count | O102: -22726.19012 | P102: -22456.14256 | Q102: -8729.662501 | R102: -332.8711265
B103: =+'P&L - ITD3 (Acct Desc)'!$A$688 -> Container Shop Labor | C103: =+VLOOKUP($B103,'P&L - ITD3 (Acct Desc)'!A$1:N$1408,2,FALSE) -> 2.182787284e-11 | D103: =SUM(D89:D102) -> 0 | E103: =SUM(E89:E102) -> 24753.27198 | F103: 24753.27198 | J103: =SUM(J89:J102) -> 15515.35088 | K103: 9237.921104 | O103: =SUM(O89:O102) -> 3870.278713 | P103: =SUM(P89:P102) -> 3824.289511 | Q103: =SUM(Q89:Q102) -> 1486.664802 | R103: =SUM(R89:R102) -> 56.68807785
A104: Check | C104: =+C103-SUM(C89:C102) -> 2.182787284e-11
A105: =+'P&L - ITD3 (Acct #)'!$A$689 -> 530010 0000 | B105: =+'P&L - ITD3 (Acct Desc)'!$A$689 -> Fuel | C105: =+VLOOKUP($B105,'P&L - ITD3 (Acct Desc)'!A$1:N$1408,2,FALSE) -> 544366.2 | D105: =+'PR Restate'!$G105 -> 0 | E105: ='Staff Compare and Adjustments'!J66 -> -30522.31264 | F105: =SUM(C105:E105) -> 513843.8874 | H105: Truck Hours | J105: =F105-K105 -> 345635.7854 | K105: =F105*VLOOKUP(H105,$J$2:$K$6,2,FALSE) -> 168208.102 | M105: =H105 -> Truck Hours | O105: =K105-SUM(P105:R105) -> 100139.4357 | P105: =$K105*VLOOKUP($M105,$J$2:$R$6,MATCH(P$9,$J$9:$R$9,0),FALSE) -> 44917.17502 | Q105: 22958.5819 | R105: 192.9093692
A106: =+'P&L - ITD3 (Acct #)'!$A$690 -> 530010 0010 | B106: =+'P&L - ITD3 (Acct Desc)'!$A$690 -> CNG/LNG | C106: =+VLOOKUP($B106,'P&L - ITD3 (Acct Desc)'!A$1:N$1408,2,FALSE) -> 538848.25 | D106: =+'PR Restate'!$G106 -> 66362.651 | E106: ='Staff Compare and Adjustments'!J67 -> -136157.3299 | F106: 469053.5711 | H106: Truck Hours | J106: 315507.6929 | K106: 153545.8782 | M106: Truck Hours | O106: 91410.5647 | P106: 41001.8721 | Q106: 20957.34735 | R106: 176.0940059
A107: =+'P&L - ITD3 (Acct #)'!$A$691 -> 530010 0020 | B107: =+'P&L - ITD3 (Acct Desc)'!$A$691 -> CNG/LNG Tax Credit | C107: =+VLOOKUP($B107,'P&L - ITD3 (Acct Desc)'!A$1:N$1408,2,FALSE) -> -198760.75 | D107: =+'PR Restate'!$G107 -> 198760.75 | E107: =+'PF Adj'!$G107 -> 0 | F107: 0 | H107: Truck Hours | J107: 0 | K107: 0 | M107: Truck Hours | O107: 0 | P107: 0 | Q107: 0 | R107: 0
A108: =+'P&L - ITD3 (Acct #)'!$A$693 -> 530015 0000 | B108: =+'P&L - ITD3 (Acct Desc)'!$A$693 -> Oil/Lubricants | C108: =+VLOOKUP($B108,'P&L - ITD3 (Acct Desc)'!A$1:N$1408,2,FALSE) -> 51497.32 | D108: =+'PR Restate'!$G108 -> 0 | E108: =+'PF Adj'!$G108 -> 0 | F108: 51497.32 | H108: Truck Hours | J108: 34639.54147 | K108: 16857.77853 | M108: Truck Hours | O108: 10035.95195 | P108: 4501.589281 | Q108: 2300.903967 | R108: 19.33333404
A109: =+'P&L - ITD3 (Acct #)'!$A$694 -> 530030 0000 | B109: =+'P&L - ITD3 (Acct Desc)'!$A$694 -> Truck/Equip Licenses | C109: =+VLOOKUP($B109,'P&L - ITD3 (Acct Desc)'!A$1:N$1408,2,FALSE) -> 65879 | D109: =+'PR Restate'!$G109 -> 0 | E109: =+'PF Adj'!$G109 -> 0 | F109: 65879 | H109: Truck Hours | J109: 44313.34198 | K109: 21565.65802 | M109: Truck Hours | O109: 12838.69682 | P109: 5758.750169 | Q109: 2943.478466 | R109: 24.73256303
A110: =+'P&L - ITD3 (Acct #)'!$A$697 -> 530060 0000 | B110: =+'P&L - ITD3 (Acct Desc)'!$A$697 -> Equip Rental-3rd Party | C110: =+VLOOKUP($B110,'P&L - ITD3 (Acct Desc)'!A$1:N$1408,2,FALSE) -> 8237.36 | D110: =+'PR Restate'!$G110 -> 0 | E110: =+'PF Adj'!$G110 -> 0 | F110: 8237.36 | H110: Prev Alloc Costs | J110: 5675.621874 | K110: 2561.738126 | M110: Prev Alloc Costs | O110: 1583.421108 | P110: 643.7425778 | Q110: 331.0983166 | R110: 3.476123821
A111: =+'P&L - ITD3 (Acct #)'!$A$701 -> 530064 0000 | B111: =+'P&L - ITD3 (Acct Desc)'!$A$701 -> Truck/Equip Rental | C111: =+VLOOKUP($B111,'P&L - ITD3 (Acct Desc)'!A$1:N$1408,2,FALSE) -> 4612.67 | D111: =+'PR Restate'!$G111 -> 0 | E111: =+'PF Adj'!$G111 -> 0 | F111: 4612.67 | H111: Prev Alloc Costs | J111: 3178.174894 | K111: 1434.495106 | M111: Prev Alloc Costs | O111: 886.6674569 | P111: 360.4761813 | Q111: 185.4049443 | R111: 1.946523166
A112: =+'P&L - ITD3 (Acct #)'!$A$704 -> 530067 0000 | B112: =+'P&L - ITD3 (Acct Desc)'!$A$704 -> Lease Sales Tax Expense | C112: =+VLOOKUP($B112,'P&L - ITD3 (Acct Desc)'!A$1:N$1408,2,FALSE) -> 3003.51 | D112: =+'PR Restate'!$G112 -> 0 | E112: =+'PF Adj'!$G112 -> 0 | F112: 3003.51 | H112: Prev Alloc Costs | J112: 2069.447864 | K112: 934.0621364 | M112: Prev Alloc Costs | O112: 577.3477342 | P112: 234.7217154 | Q112: 120.7252208 | R112: 1.26746587
A113: =+'P&L - ITD3 (Acct #)'!$A$706 -> 530070 0000 | B113: =+'P&L - ITD3 (Acct Desc)'!$A$706 -> Operating Taxes | C113: =+VLOOKUP($B113,'P&L - ITD3 (Acct Desc)'!A$1:N$1408,2,FALSE) -> 2446 | D113: =+'PR Restate'!$G113 -> 0 | E113: =+'PF Adj'!$G113 -> 0 | F113: 2446 | H113: Prev Alloc Costs | J113: 1685.318003 | K113: 760.6819972 | M113: Prev Alloc Costs | O113: 470.1807412 | P113: 191.1527899 | Q113: 98.31626666 | R113: 1.032199499
A114: =+'P&L - ITD3 (Acct #)'!$A$744 -> 530 530998 | B114: =+'P&L - ITD3 (Acct Desc)'!$A$744 -> 530998 Operating Alloc-In | C114: =+VLOOKUP($B114,'P&L - ITD3 (Acct Desc)'!A$1:N$1408,2,FALSE) -> 20669.39 | D114: =+'PR Restate'!$G114 -> 0 | E114: =+'PF Adj'!$G114 -> 0 | F114: 20669.39 | H114: Prev Alloc Costs | J114: 14241.41254 | K114: 6427.97746 | M114: Prev Alloc Costs | O114: 3973.159898 | P114: 1615.294997 | Q114: 830.8001877 | R114: 8.722376944
A115: =+'P&L - ITD3 (Acct #)'!$A$745 -> 530999 0000 | B115: =+'P&L - ITD3 (Acct Desc)'!$A$745 -> Operating Alloc-Out | C115: =+VLOOKUP($B115,'P&L - ITD3 (Acct Desc)'!A$1:N$1408,2,FALSE) -> -20669.39 | D115: =+'PR Restate'!$G115 -> 0 | E115: =+'PF Adj'!$G115 -> 0 | F115: -20669.39 | H115: Prev Alloc Costs | J115: -14241.41254 | K115: -6427.97746 | M115: Prev Alloc Costs | O115: -3973.159898 | P115: -1615.294997 | Q115: -830.8001877 | R115: -8.722376944
B116: =+'P&L - ITD3 (Acct Desc)'!$A$748 -> Truck/Equipment Operating | C116: =+VLOOKUP($B116,'P&L - ITD3 (Acct Desc)'!A$1:N$1408,2,FALSE) -> 1020129.56 | D116: =SUM(D105:D115) -> 265123.401 | E116: =SUM(E105:E115) -> -166679.6425 | F116: 1118573.318 | J116: =SUM(J105:J115) -> 752704.9244 | K116: 365868.394 | O116: =SUM(O105:O115) -> 217942.2662 | P116: =SUM(P105:P115) -> 97609.47983 | Q116: =SUM(Q105:Q115) -> 49895.85643 | R116: =SUM(R105:R115) -> 420.7915845
A117: Check | C117: =+C116-SUM(C105:C115) -> 0
A118: =+'P&L - ITD3 (Acct #)'!$A$749 -> 540010 0000 | B118: =+'P&L - ITD3 (Acct Desc)'!$A$749 -> Parts & Matls | C118: =+VLOOKUP($B118,'P&L - ITD3 (Acct Desc)'!A$1:N$1408,2,FALSE) -> 522012.54 | D118: =+'PR Restate'!$G118 -> 0 | E118: =+'PF Adj'!$G118 -> 0 | F118: =SUM(C118:E118) -> 522012.54 | H118: Truck Hours | J118: =F118-K118 -> 351130.4088 | K118: =F118*VLOOKUP(H118,$J$2:$K$6,2,FALSE) -> 170882.1312 | M118: =H118 -> Truck Hours | O118: =K118-SUM(P118:R118) -> 101731.3672 | P118: =$K118*VLOOKUP($M118,$J$2:$R$6,MATCH(P$9,$J$9:$R$9,0),FALSE) -> 45631.23003 | Q118: 23323.55789 | R118: 195.9760781
A119: =+'P&L - ITD3 (Acct #)'!$A$750 -> 540012 0000 | B119: =+'P&L - ITD3 (Acct Desc)'!$A$750 -> Parts X-Factor | C119: =+VLOOKUP($B119,'P&L - ITD3 (Acct Desc)'!A$1:N$1408,2,FALSE) -> 0 | D119: =+'PR Restate'!$G119 -> 0 | E119: =+'PF Adj'!$G119 -> 0 | F119: 0 | H119: Truck Hours | J119: 0 | K119: 0 | M119: Truck Hours | O119: 0 | P119: 0 | Q119: 0 | R119: 0
A120: =+'P&L - ITD3 (Acct #)'!$A$751 -> 540014 0000 | B120: =+'P&L - ITD3 (Acct Desc)'!$A$751 -> Purchase Discounts | C120: =+VLOOKUP($B120,'P&L - ITD3 (Acct Desc)'!A$1:N$1408,2,FALSE) -> 0 | D120: =+'PR Restate'!$G120 -> 0 | E120: =+'PF Adj'!$G120 -> 0 | F120: 0 | H120: Truck Hours | J120: 0 | K120: 0 | M120: Truck Hours | O120: 0 | P120: 0 | Q120: 0 | R120: 0
A121: =+'P&L - ITD3 (Acct #)'!$A$752 -> 540020 0000 | B121: =+'P&L - ITD3 (Acct Desc)'!$A$752 -> Truck/Equip Supplies | C121: =+VLOOKUP($B121,'P&L - ITD3 (Acct Desc)'!A$1:N$1408,2,FALSE) -> 570.87 | D121: =+'PR Restate'!$G121 -> 0 | E121: =+'PF Adj'!$G121 -> 0 | F121: 570.87 | H121: Truck Hours | J121: 383.9942552 | K121: 186.8757448 | M121: Truck Hours | O121: 111.2528553 | P121: 49.90205846 | Q121: 25.50651273 | R121: 0.2143183451
A122: =+'P&L - ITD3 (Acct #)'!$A$753 -> 540030 0000 | B122: =+'P&L - ITD3 (Acct Desc)'!$A$753 -> New Tire Expense | C122: =+VLOOKUP($B122,'P&L - ITD3 (Acct Desc)'!A$1:N$1408,2,FALSE) -> 162720.3 | D122: =+'PR Restate'!$G122 -> 0 | E122: =+'PF Adj'!$G122 -> 0 | F122: 162720.3 | H122: Truck Hours | J122: 109453.3964 | K122: 53266.9036 | M122: Truck Hours | O122: 31711.4194 | P122: 14224.04036 | Q122: 7270.354726 | R122: 61.08911909
A123: =+'P&L - ITD3 (Acct #)'!$A$754 -> 540031 0000 | B123: =+'P&L - ITD3 (Acct Desc)'!$A$754 -> Tire Repair | C123: =+VLOOKUP($B123,'P&L - ITD3 (Acct Desc)'!A$1:N$1408,2,FALSE) -> 62159.16 | D123: =+'PR Restate'!$G123 -> 0 | E123: =+'PF Adj'!$G123 -> 0 | F123: 62159.16 | H123: Truck Hours | J123: 41811.20106 | K123: 20347.95894 | M123: Truck Hours | O123: 12113.76326 | P123: 5433.583891 | Q123: 2777.275747 | R123: 23.33604552
A124: =+'P&L - ITD3 (Acct #)'!$A$755 -> 540032 0000 | B124: =+'P&L - ITD3 (Acct Desc)'!$A$755 -> Tires X-Factor | C124: =+VLOOKUP($B124,'P&L - ITD3 (Acct Desc)'!A$1:N$1408,2,FALSE) -> 0 | D124: =+'PR Restate'!$G124 -> 0 | E124: =+'PF Adj'!$G124 -> 0 | F124: 0 | H124: Truck Hours | J124: 0 | K124: 0 | M124: Truck Hours | O124: 0 | P124: 0 | Q124: 0 | R124: 0
A125: =+'P&L - ITD3 (Acct #)'!$A$757 -> 540040 0000 | B125: =+'P&L - ITD3 (Acct Desc)'!$A$757 -> O/S Repair-Coll Equip | C125: =+VLOOKUP($B125,'P&L - ITD3 (Acct Desc)'!A$1:N$1408,2,FALSE) -> 9095.35 | D125: =+'PR Restate'!$G125 -> 0 | E125: =+'PF Adj'!$G125 -> 0 | F125: 9095.35 | H125: Truck Hours | J125: 6117.96407 | K125: 2977.38593 | M125: Truck Hours | O125: 1772.529048 | P125: 795.0613754 | Q125: 406.3808932 | R125: 3.414613415
A126: =+'P&L - ITD3 (Acct #)'!$A$758 -> 540040 0010 | B126: =+'P&L - ITD3 (Acct Desc)'!$A$758 -> O/S Repair-Engine Rebuilds | C126: =+VLOOKUP($B126,'P&L - ITD3 (Acct Desc)'!A$1:N$1408,2,FALSE) -> 0 | D126: =+'PR Restate'!$G126 -> 0 | E126: =+'PF Adj'!$G126 -> 0 | F126: 0 | H126: Truck Hours | J126: 0 | K126: 0 | M126: Truck Hours | O126: 0 | P126: 0 | Q126: 0 | R126: 0
A127: =+'P&L - ITD3 (Acct #)'!$A$760 -> 540050 0000 | B127: =+'P&L - ITD3 (Acct Desc)'!$A$760 -> Towing | C127: =+VLOOKUP($B127,'P&L - ITD3 (Acct Desc)'!A$1:N$1408,2,FALSE) -> 11617.97 | D127: =+'PR Restate'!$G127 -> 0 | E127: =+'PF Adj'!$G127 -> 0 | F127: 11617.97 | H127: Truck Hours | J127: 7814.798004 | K127: 3803.171996 | M127: Truck Hours | O127: 2264.144788 | P127: 1015.573805 | Q127: 519.0917366 | R127: 4.361665711
A128: =+'P&L - ITD3 (Acct #)'!$A$761 -> 540060 0000 | B128: =+'P&L - ITD3 (Acct Desc)'!$A$761 -> O/S Repair-Heavy Equip | C128: =+VLOOKUP($B128,'P&L - ITD3 (Acct Desc)'!A$1:N$1408,2,FALSE) -> 0 | D128: =+'PR Restate'!$G128 -> 0 | E128: =+'PF Adj'!$G128 -> 0 | F128: 0 | H128: Truck Hours | J128: 0 | K128: 0 | M128: Truck Hours | O128: 0 | P128: 0 | Q128: 0 | R128: 0
A129: =+'P&L - ITD3 (Acct #)'!$A$762 -> 540070 0000 | B129: =+'P&L - ITD3 (Acct Desc)'!$A$762 -> O/S Repair-Proc Equip | C129: =+VLOOKUP($B129,'P&L - ITD3 (Acct Desc)'!A$1:N$1408,2,FALSE) -> -245.01 | D129: =+'PR Restate'!$G129 -> 0 | E129: =+'PF Adj'!$G129 -> 0 | F129: -245.01 | H129: Truck Hours | J129: -164.805354 | K129: -80.20464596 | M129: Truck Hours | O129: -47.74828258 | P129: -21.41731628 | Q129: -10.94706445 | R129: -0.09198265409
A130: =+'P&L - ITD3 (Acct #)'!$A$763 -> 540075 0000 | B130: =+'P&L - ITD3 (Acct Desc)'!$A$763 -> Warranty Recovery | C130: =+VLOOKUP($B130,'P&L - ITD3 (Acct Desc)'!A$1:N$1408,2,FALSE) -> -13271.92 | D130: =+'PR Restate'!$G130 -> 0 | E130: =+'PF Adj'!$G130 -> 0 | F130: -13271.92 | H130: Truck Hours | J130: -8927.32327 | K130: -4344.59673 | M130: Truck Hours | O130: -2586.471518 | P130: -1160.152272 | Q130: -592.9903417 | R130: -4.982598369
A131: =+'P&L - ITD3 (Acct #)'!$A$764 -> 540090 0000 | B131: =+'P&L - ITD3 (Acct Desc)'!$A$764 -> Truck & Equip Washing | C131: =+VLOOKUP($B131,'P&L - ITD3 (Acct Desc)'!A$1:N$1408,2,FALSE) -> 17632.18 | D131: =+'PR Restate'!$G131 -> 0 | E131: =+'PF Adj'!$G131 -> 0 | F131: 17632.18 | H131: Truck Hours | J131: 11860.24108 | K131: 5771.938918 | M131: Truck Hours | O131: 3436.212045 | P131: 1541.300256 | Q131: 787.8070726 | R131: 6.619544973
A132: =+'P&L - ITD3 (Acct #)'!$A$765 -> 540095 0000 | B132: =+'P&L - ITD3 (Acct Desc)'!$A$765 -> Other Repairs & Maint | C132: =+VLOOKUP($B132,'P&L - ITD3 (Acct Desc)'!A$1:N$1408,2,FALSE) -> 0 | D132: =+'PR Restate'!$G132 -> 0 | E132: =+'PF Adj'!$G132 -> 0 | F132: 0 | H132: Truck Hours | J132: 0 | K132: 0 | M132: Truck Hours | O132: 0 | P132: 0 | Q132: 0 | R132: 0
A133: =+'P&L - ITD3 (Acct #)'!$A$767 -> 540991 0000 | B133: =+'P&L - ITD3 (Acct Desc)'!$A$767 -> T/E Damage-Acc/A&M Contra | C133: =+VLOOKUP($B133,'P&L - ITD3 (Acct Desc)'!A$1:N$1408,2,FALSE) -> -12783.31 | D133: =+'PR Restate'!$G133 -> 0 | E133: =+'PF Adj'!$G133 -> 0 | F133: -12783.31 | H133: Truck Hours | J133: -8598.660995 | K133: -4184.649005 | M133: Truck Hours | O133: -2491.249738 | P133: -1117.440894 | Q133: -571.1592117 | R133: -4.799162409
A134: =+'P&L - ITD3 (Acct #)'!$A$798 -> 540 540997 | B134: =+'P&L - ITD3 (Acct Desc)'!$A$798 -> 540997 TShop Labor Alloc-In. | C134: =+VLOOKUP($B134,'P&L - ITD3 (Acct Desc)'!A$1:N$1408,2,FALSE) -> 569206.1 | D134: =+'PR Restate'!$G134 -> 0 | E134: =+'PF Adj'!$G134 -> 0 | F134: 569206.1 | H134: Truck Hours | J134: 382875.0371 | K134: 186331.0629 | M134: Truck Hours | O134: 110928.5895 | P134: 49756.61022 | Q134: 25432.16955 | R134: 213.693677
A135: =+'P&L - ITD3 (Acct #)'!$A$827 -> 540 540998 | B135: =+'P&L - ITD3 (Acct Desc)'!$A$827 -> 540998 Trk/Equip Expense Alloc-In | C135: =+VLOOKUP($B135,'P&L - ITD3 (Acct Desc)'!A$1:N$1408,2,FALSE) -> 271224.6 | D135: =+'PR Restate'!$G135 -> 0 | E135: =+'PF Adj'!$G135 -> 0 | F135: 271224.6 | H135: Truck Hours | J135: 182438.5381 | K135: 88786.06187 | M135: Truck Hours | O135: 52857.06234 | P135: 23708.84062 | Q135: 12118.33467 | R135: 101.8242462
A136: =+'P&L - ITD3 (Acct #)'!$A$828 -> 540999 0000 | B136: =+'P&L - ITD3 (Acct Desc)'!$A$828 -> Trk/Equip Expense Alloc-Out | C136: =+VLOOKUP($B136,'P&L - ITD3 (Acct Desc)'!A$1:N$1408,2,FALSE) -> -6285.37 | F136: -6285.37 | H136: Truck Hours | J136: -4227.838162 | K136: -2057.531838 | M136: Truck Hours | O136: -1224.91173 | P136: -549.4296445 | Q136: -280.8307844 | R136: -2.359679256
B137: =+'P&L - ITD3 (Acct Desc)'!$A$831 -> Truck/Equipment Maintenance | C137: =+VLOOKUP($B137,'P&L - ITD3 (Acct Desc)'!A$1:N$1408,2,FALSE) -> 1593653.46 | D137: =SUM(D118:D136) -> 0 | E137: =SUM(E118:E136) -> 0 | F137: 1593653.46 | J137: =SUM(J118:J136) -> 1071966.951 | K137: 521686.5089 | O137: =SUM(O118:O136) -> 310575.9591 | P137: =SUM(P118:P136) -> 139307.7025 | Q137: =SUM(Q118:Q136) -> 71204.5514 | R137: =SUM(R118:R136) -> 598.2958857
A138: Check | C138: =+C137-SUM(C118:C136) -> 0
A139: =+'P&L - ITD3 (Acct #)'!$A$832 -> 545010 0000 | B139: =+'P&L - ITD3 (Acct Desc)'!$A$832 -> Cont/Comp Parts & Matls | C139: =+VLOOKUP($B139,'P&L - ITD3 (Acct Desc)'!A$1:N$1408,2,FALSE) -> 2069.36 | D139: =+'PR Restate'!$G139 -> 0 | E139: =+'PF Adj'!$G139 -> 0 | F139: =SUM(C139:E139) -> 2069.36 | H139: Container Count | J139: =F139-K139 -> 1297.074848 | K139: =F139*VLOOKUP(H139,$J$2:$K$6,2,FALSE) -> 772.285152 | M139: =H139 -> Container Count | O139: =K139-SUM(P139:R139) -> 323.5531837 | P139: =$K139*VLOOKUP($M139,$J$2:$R$6,MATCH(P$9,$J$9:$R$9,0),FALSE) -> 319.7085116 | Q139: 124.2843644 | R139: 4.739092305
A140: =+'P&L - ITD3 (Acct #)'!$A$833 -> 545015 0000 | B140: =+'P&L - ITD3 (Acct Desc)'!$A$833 -> Cont/Comp Lids | C140: =+VLOOKUP($B140,'P&L - ITD3 (Acct Desc)'!A$1:N$1408,2,FALSE) -> 0 | D140: =+'PR Restate'!$G140 -> 0 | E140: =+'PF Adj'!$G140 -> 0 | F140: 0 | H140: Container Count | J140: 0 | K140: 0 | M140: Container Count | O140: 0 | P140: 0 | Q140: 0 | R140: 0
A141: =+'P&L - ITD3 (Acct #)'!$A$834 -> 545020 0000 | B141: =+'P&L - ITD3 (Acct Desc)'!$A$834 -> Cont/Comp Paint | C141: =+VLOOKUP($B141,'P&L - ITD3 (Acct Desc)'!A$1:N$1408,2,FALSE) -> 0 | D141: =+'PR Restate'!$G141 -> 0 | E141: =+'PF Adj'!$G141 -> 0 | F141: 0 | H141: Container Count | J141: 0 | K141: 0 | M141: Container Count | O141: 0 | P141: 0 | Q141: 0 | R141: 0
A142: =+'P&L - ITD3 (Acct #)'!$A$835 -> 545025 0000 | B142: =+'P&L - ITD3 (Acct Desc)'!$A$835 -> Cont/Comp Steel | C142: =+VLOOKUP($B142,'P&L - ITD3 (Acct Desc)'!A$1:N$1408,2,FALSE) -> 0 | D142: =+'PR Restate'!$G142 -> 0 | E142: =+'PF Adj'!$G142 -> 0 | F142: 0 | H142: Container Count | J142: 0 | K142: 0 | M142: Container Count | O142: 0 | P142: 0 | Q142: 0 | R142: 0
A143: =+'P&L - ITD3 (Acct #)'!$A$836 -> 545030 0000 | B143: =+'P&L - ITD3 (Acct Desc)'!$A$836 -> Cont/Comp Tires/Casters/Wheels | C143: =+VLOOKUP($B143,'P&L - ITD3 (Acct Desc)'!A$1:N$1408,2,FALSE) -> 1548.43 | D143: =+'PR Restate'!$G143 -> 0 | E143: =+'PF Adj'!$G143 -> 0 | F143: 1548.43 | H143: Container Count | J143: 970.555924 | K143: 577.874076 | M143: Container Count | O143: 242.1035761 | P143: 239.2267419 | Q143: 92.99766033 | R143: 3.546097682
A144: =+'P&L - ITD3 (Acct #)'!$A$837 -> 545035 0000 | B144: =+'P&L - ITD3 (Acct Desc)'!$A$837 -> Cont/Comp Supplies | C144: =+VLOOKUP($B144,'P&L - ITD3 (Acct Desc)'!A$1:N$1408,2,FALSE) -> 0 | D144: =+'PR Restate'!$G144 -> 0 | E144: =+'PF Adj'!$G144 -> 0 | F144: 0 | H144: Container Count | J144: 0 | K144: 0 | M144: Container Count | O144: 0 | P144: 0 | Q144: 0 | R144: 0
A145: =+'P&L - ITD3 (Acct #)'!$A$838 -> 545040 0000 | B145: =+'P&L - ITD3 (Acct Desc)'!$A$838 -> Cont/Comp O/S Repairs | C145: =+VLOOKUP($B145,'P&L - ITD3 (Acct Desc)'!A$1:N$1408,2,FALSE) -> 0 | D145: =+'PR Restate'!$G145 -> 0 | E145: =+'PF Adj'!$G145 -> 0 | F145: 0 | H145: Container Count | J145: 0 | K145: 0 | M145: Container Count | O145: 0 | P145: 0 | Q145: 0 | R145: 0
A146: =+'P&L - ITD3 (Acct #)'!$A$839 -> 545041 0000 | B146: =+'P&L - ITD3 (Acct Desc)'!$A$839 -> Cont/Comp Repairs | C146: =+VLOOKUP($B146,'P&L - ITD3 (Acct Desc)'!A$1:N$1408,2,FALSE) -> 0 | D146: =+'PR Restate'!$G146 -> 0 | E146: =+'PF Adj'!$G146 -> 0 | F146: 0 | H146: Container Count | J146: 0 | K146: 0 | M146: Container Count | O146: 0 | P146: 0 | Q146: 0 | R146: 0
A147: =+'P&L - ITD3 (Acct #)'!$A$840 -> 545041 5543 | B147: =+'P&L - ITD3 (Acct Desc)'!$A$840 -> Billed Cont/Comp Repairs | C147: =+VLOOKUP($B147,'P&L - ITD3 (Acct Desc)'!A$1:N$1408,2,FALSE) -> 0 | D147: =+'PR Restate'!$G147 -> 0 | E147: =+'PF Adj'!$G147 -> 0 | F147: 0 | H147: Container Count | J147: 0 | K147: 0 | M147: Container Count | O147: 0 | P147: 0 | Q147: 0 | R147: 0
A148: =+'P&L - ITD3 (Acct #)'!$A$841 -> 545041 5593 | B148: =+'P&L - ITD3 (Acct Desc)'!$A$841 -> Offset Cont/Comp Repairs | C148: =+VLOOKUP($B148,'P&L - ITD3 (Acct Desc)'!A$1:N$1408,2,FALSE) -> 0 | D148: =+'PR Restate'!$G148 -> 0 | E148: =+'PF Adj'!$G148 -> 0 | F148: 0 | H148: Container Count | J148: 0 | K148: 0 | M148: Container Count | O148: 0 | P148: 0 | Q148: 0 | R148: 0
A149: =+'P&L - ITD3 (Acct #)'!$A$842 -> 545 545041 | B149: =+'P&L - ITD3 (Acct Desc)'!$A$842 -> 545041 Billed C&C Repairs | C149: =+VLOOKUP($B149,'P&L - ITD3 (Acct Desc)'!A$1:N$1408,2,FALSE) -> 0 | D149: =+'PR Restate'!$G149 -> 0 | E149: =+'PF Adj'!$G149 -> 0 | F149: 0 | H149: Container Count | J149: 0 | K149: 0 | M149: Container Count | O149: 0 | P149: 0 | Q149: 0 | R149: 0
A150: =+'P&L - ITD3 (Acct #)'!$A$843 -> 545050 0000 | B150: =+'P&L - ITD3 (Acct Desc)'!$A$843 -> Cont/Comp Equip Rental | C150: =+VLOOKUP($B150,'P&L - ITD3 (Acct Desc)'!A$1:N$1408,2,FALSE) -> 0 | D150: =+'PR Restate'!$G150 -> 0 | E150: =+'PF Adj'!$G150 -> 0 | F150: 0 | H150: Container Count | J150: 0 | K150: 0 | M150: Container Count | O150: 0 | P150: 0 | Q150: 0 | R150: 0
A151: =+'P&L - ITD3 (Acct #)'!$A$844 -> 545075 0000 | B151: =+'P&L - ITD3 (Acct Desc)'!$A$844 -> Cont/Comp Warranty Recovery | C151: =+VLOOKUP($B151,'P&L - ITD3 (Acct Desc)'!A$1:N$1408,2,FALSE) -> 0 | D151: =+'PR Restate'!$G151 -> 0 | E151: =+'PF Adj'!$G151 -> 0 | F151: 0 | H151: Container Count | J151: 0 | K151: 0 | M151: Container Count | O151: 0 | P151: 0 | Q151: 0 | R151: 0
A152: =+'P&L - ITD3 (Acct #)'!$A$845 -> 545090 0000 | B152: =+'P&L - ITD3 (Acct Desc)'!$A$845 -> Cont/Comp Equip Wash | C152: =+VLOOKUP($B152,'P&L - ITD3 (Acct Desc)'!A$1:N$1408,2,FALSE) -> 0 | D152: =+'PR Restate'!$G152 -> 0 | E152: =+'PF Adj'!$G152 -> 0 | F152: 0 | H152: Container Count | J152: 0 | K152: 0 | M152: Container Count | O152: 0 | P152: 0 | Q152: 0 | R152: 0
A153: =+'P&L - ITD3 (Acct #)'!$A$846 -> 545095 0000 | B153: =+'P&L - ITD3 (Acct Desc)'!$A$846 -> Cont/Comp Other Maint | C153: =+VLOOKUP($B153,'P&L - ITD3 (Acct Desc)'!A$1:N$1408,2,FALSE) -> -2464.2 | D153: =+'PR Restate'!$G153 -> 0 | E153: =+'PF Adj'!$G153 -> 0 | F153: -2464.2 | H153: Container Count | J153: -1544.56056 | K153: -919.63944 | M153: Container Count | O153: -385.2880868 | P153: -380.7098399 | Q153: -147.9981882 | R153: -5.643325115
A154: =+'P&L - ITD3 (Acct #)'!$A$877 -> 545 545997 | B154: =+'P&L - ITD3 (Acct Desc)'!$A$877 -> 545997 CShop Labor Alloc-In | C154: =+VLOOKUP($B154,'P&L - ITD3 (Acct Desc)'!A$1:N$1408,2,FALSE) -> 145350.66 | D154: =+'PR Restate'!$G154 -> 0 | E154: =+'PF Adj'!$G154 -> 0 | F154: 145350.66 | H154: Container Count | J154: 91105.79369 | K154: 54244.86631 | M154: Container Count | O154: 22726.19012 | P154: 22456.14256 | Q154: 8729.662501 | R154: 332.8711265
A155: =+'P&L - ITD3 (Acct #)'!$A$886 -> 545 545998 | B155: =+'P&L - ITD3 (Acct Desc)'!$A$886 -> 545998 Cont/Comp Expense Alloc-In | C155: =+VLOOKUP($B155,'P&L - ITD3 (Acct Desc)'!A$1:N$1408,2,FALSE) -> 108407.79 | D155: =+'PR Restate'!$G155 -> 0 | E155: =+'PF Adj'!$G155 -> 0 | F155: 108407.79 | H155: Container Count | J155: 67950.00277 | K155: 40457.78723 | M155: Container Count | O155: 16950.01623 | P155: 16748.60497 | Q155: 6510.898672 | R155: 248.26735
A156: =+'P&L - ITD3 (Acct #)'!$A$887 -> 545999 0000 | B156: =+'P&L - ITD3 (Acct Desc)'!$A$887 -> Cont/Comp Expense Alloc-Out | C156: =+VLOOKUP($B156,'P&L - ITD3 (Acct Desc)'!A$1:N$1408,2,FALSE) -> -56012.79 | D156: =+'PR Restate'!$G156 -> 0 | E156: =+'PF Adj'!$G156 -> 0 | F156: -56012.79 | H156: Container Count | J156: -35108.81677 | K156: -20903.97323 | M156: Container Count | O156: -8757.836496 | P156: -8653.770114 | Q156: -3364.090349 | R156: -128.27627
B157: =+'P&L - ITD3 (Acct Desc)'!$A$888 -> Cont/Comp Maintenance | C157: =+VLOOKUP($B157,'P&L - ITD3 (Acct Desc)'!A$1:N$1408,2,FALSE) -> 198899.25 | D157: =SUM(D139:D156) -> 0 | E157: =SUM(E139:E156) -> 0 | F157: 198899.25 | J157: =SUM(J139:J156) -> 124670.0499 | K157: 74229.2001 | O157: =SUM(O139:O156) -> 31098.73853 | P157: =SUM(P139:P156) -> 30729.20283 | Q157: =SUM(Q139:Q156) -> 11945.75466 | R157: =SUM(R139:R156) -> 455.5040714
A158: Check | C158: =+C157-SUM(C139:C156) -> 0
A159: =+'P&L - ITD3 (Acct #)'!$A$905 -> 565000 0000 | B159: =+'P&L - ITD3 (Acct Desc)'!$A$905 -> Corp Ins-Fixed W/C | C159: =+VLOOKUP($B159,'P&L - ITD3 (Acct Desc)'!A$1:N$1408,2,FALSE) -> 0 | D159: =+'PR Restate'!$G159 -> 0 | E159: =+'PF Adj'!$G159 -> 0 | F159: =SUM(C159:E159) -> 0 | H159: Prev Alloc Costs | J159: =F159-K159 -> 0 | K159: =F159*VLOOKUP(H159,$J$2:$K$6,2,FALSE) -> 0 | M159: =H159 -> Prev Alloc Costs | O159: =K159-SUM(P159:R159) -> 0 | P159: =$K159*VLOOKUP($M159,$J$2:$R$6,MATCH(P$9,$J$9:$R$9,0),FALSE) -> 0 | Q159: 0 | R159: 0
A160: =+'P&L - ITD3 (Acct #)'!$A$906 -> 565002 0000 | B160: =+'P&L - ITD3 (Acct Desc)'!$A$906 -> Corp Ins-Fixed AL/GL | C160: =+VLOOKUP($B160,'P&L - ITD3 (Acct Desc)'!A$1:N$1408,2,FALSE) -> 221815.88 | D160: =+'PR Restate'!$G160 -> 0 | E160: =+'PF Adj'!$G160 -> 0 | F160: 221815.88 | H160: Prev Alloc Costs | J160: 152833.318 | K160: 68982.56199 | M160: Prev Alloc Costs | O160: 42638.41164 | P160: 17334.71967 | Q160: 8915.825514 | R160: 93.60516772
A161: =+'P&L - ITD3 (Acct #)'!$A$915 -> 565006 0000 | B161: =+'P&L - ITD3 (Acct Desc)'!$A$915 -> AW Self Ins WC/Premium Exp | C161: =+VLOOKUP($B161,'P&L - ITD3 (Acct Desc)'!A$1:N$1408,2,FALSE) -> -3485.55 | D161: =+'PR Restate'!$G161 -> 0 | E161: =+'PF Adj'!$G161 -> 0 | F161: -3485.55 | H161: Truck Hours | J161: =F161-K161 -> -2344.546352 | K161: =F161*VLOOKUP(H161,$J$2:$K$6,2,FALSE) -> -1141.003648 | M161: Truck Hours | O161: -679.2744229 | P161: -304.6860403 | Q161: -155.7346251 | R161: -1.308559406
A162: =+'P&L - ITD3 (Acct #)'!$A$916 -> 565008 0000 | B162: =+'P&L - ITD3 (Acct Desc)'!$A$916 -> Corp Ins-Fixed Other | C162: =+VLOOKUP($B162,'P&L - ITD3 (Acct Desc)'!A$1:N$1408,2,FALSE) -> 99219.2 | D162: =+'PR Restate'!$G162 -> 0 | E162: =+'PF Adj'!$G162 -> 0 | F162: 99219.2 | H162: Truck Hours | J162: 66739.54281 | K162: 32479.65719 | M162: Truck Hours | O162: 19336.13485 | P162: 8673.152063 | Q162: 4433.121004 | R162: 37.24927698
A163: =+'P&L - ITD3 (Acct #)'!$A$918 -> 565010 0000 | B163: =+'P&L - ITD3 (Acct Desc)'!$A$918 -> Corp Ins-Occur W/C | C163: =+VLOOKUP($B163,'P&L - ITD3 (Acct Desc)'!A$1:N$1408,2,FALSE) -> 0 | D163: =+'PR Restate'!$G163 -> 0 | E163: =+'PF Adj'!$G163 -> 0 | F163: 0 | H163: Prev Alloc Costs | J163: 0 | K163: 0 | M163: Prev Alloc Costs | O163: 0 | P163: 0 | Q163: 0 | R163: 0
A164: =+'P&L - ITD3 (Acct #)'!$A$919 -> 565012 0000 | B164: =+'P&L - ITD3 (Acct Desc)'!$A$919 -> Corp Ins-Occur AL/GL | C164: =+VLOOKUP($B164,'P&L - ITD3 (Acct Desc)'!A$1:N$1408,2,FALSE) -> 87405.05 | D164: =+'PR Restate'!$G164 -> 0 | E164: =+'PF Adj'!$G164 -> 0 | F164: 87405.05 | H164: Prev Alloc Costs | J164: 60222.93716 | K164: 27182.11284 | M164: Prev Alloc Costs | O164: 16801.37825 | P164: 6830.629255 | Q164: 3513.220852 | R164: 36.8844844
A165: =+'P&L - ITD3 (Acct #)'!$A$927 -> 565030 0000 | B165: =+'P&L - ITD3 (Acct Desc)'!$A$927 -> Non-Corp Ins-W/C | C165: =+VLOOKUP($B165,'P&L - ITD3 (Acct Desc)'!A$1:N$1408,2,FALSE) -> 204587.54 | D165: ='Staff Compare and Adjustments'!H114+'Staff Compare and Adjustments'!J114 -> 0 | E165: =+'PF Adj'!$G165 -> -4038.467854 | F165: 200549.0721 | H165: Prev Alloc Costs | J165: 138180.2787 | K165: 62368.79344 | M165: Prev Alloc Costs | O165: 38550.41349 | P165: 15672.73698 | Q165: 8061.012288 | R165: 84.63068349
A166: =+'P&L - ITD3 (Acct #)'!$A$928 -> 565032 0000 | B166: =+'P&L - ITD3 (Acct Desc)'!$A$928 -> Non-Corp Ins-AL/GL | C166: =+VLOOKUP($B166,'P&L - ITD3 (Acct Desc)'!A$1:N$1408,2,FALSE) -> 0 | D166: =+'PR Restate'!$G166 -> 0 | E166: =+'PF Adj'!$G166 -> 0 | F166: 0 | H166: Prev Alloc Costs | J166: 0 | K166: 0 | M166: Prev Alloc Costs | O166: 0 | P166: 0 | Q166: 0 | R166: 0
A167: =+'P&L - ITD3 (Acct #)'!$A$929 -> 565040 0000 | B167: =+'P&L - ITD3 (Acct Desc)'!$A$929 -> Damage-RSG Prop Non-AM | C167: =+VLOOKUP($B167,'P&L - ITD3 (Acct Desc)'!A$1:N$1408,2,FALSE) -> 12617.93 | D167: =+'PR Restate'!$G167 -> 0 | E167: =+'PF Adj'!$G167 -> 0 | F167: 12617.93 | H167: Prev Alloc Costs | J167: 8693.877591 | K167: 3924.052409 | M167: Prev Alloc Costs | O167: 2425.473295 | P167: 986.0803443 | Q167: 507.1740681 | R167: 5.324701973
A168: =+'P&L - ITD3 (Acct #)'!$A$930 -> 565041 0000 | B168: =+'P&L - ITD3 (Acct Desc)'!$A$930 -> Damage-RSG Prop AM | C168: =+VLOOKUP($B168,'P&L - ITD3 (Acct Desc)'!A$1:N$1408,2,FALSE) -> 0 | D168: =+'PR Restate'!$G168 -> 0 | E168: =+'PF Adj'!$G168 -> 0 | F168: 0 | H168: Prev Alloc Costs | J168: 0 | K168: 0 | M168: Prev Alloc Costs | O168: 0 | P168: 0 | Q168: 0 | R168: 0
A169: =+'P&L - ITD3 (Acct #)'!$A$931 -> 565042 0000 | B169: =+'P&L - ITD3 (Acct Desc)'!$A$931 -> Damage-3rd Party Property | C169: =+VLOOKUP($B169,'P&L - ITD3 (Acct Desc)'!A$1:N$1408,2,FALSE) -> 0 | D169: =+'PR Restate'!$G169 -> 0 | E169: =+'PF Adj'!$G169 -> 0 | F169: 0 | H169: Prev Alloc Costs | J169: 0 | K169: 0 | M169: Prev Alloc Costs | O169: 0 | P169: 0 | Q169: 0 | R169: 0
A170: =+'P&L - ITD3 (Acct #)'!$A$932 -> 565045 0000 | B170: =+'P&L - ITD3 (Acct Desc)'!$A$932 -> Surety Cost | C170: =+VLOOKUP($B170,'P&L - ITD3 (Acct Desc)'!A$1:N$1408,2,FALSE) -> 400 | D170: =+'PR Restate'!$G170 -> 0 | E170: =+'PF Adj'!$G170 -> 0 | F170: 400 | H170: Prev Alloc Costs | J170: 275.6039252 | K170: 124.3960748 | M170: Prev Alloc Costs | O170: 76.88973691 | P170: 31.25965493 | Q170: 16.07788498 | R170: 0.1687979557
A171: =+'P&L - ITD3 (Acct #)'!$A$933 -> 565080 0000 | B171: =+'P&L - ITD3 (Acct Desc)'!$A$933 -> Hiring, Training & Safety | C171: =+VLOOKUP($B171,'P&L - ITD3 (Acct Desc)'!A$1:N$1408,2,FALSE) -> 3586.75 | D171: =+'PR Restate'!$G171 -> 0 | E171: =+'PF Adj'!$G171 -> 0 | F171: 3586.75 | H171: Prev Alloc Costs | J171: 2471.305947 | K171: 1115.444053 | M171: Prev Alloc Costs | O171: 689.4606596 | P171: 280.3014183 | Q171: 144.1683849 | R171: 1.513590169
A172: =+'P&L - ITD3 (Acct #)'!$A$934 -> 565081 0000 | B172: =+'P&L - ITD3 (Acct Desc)'!$A$934 -> Safety Equipment | C172: =+VLOOKUP($B172,'P&L - ITD3 (Acct Desc)'!A$1:N$1408,2,FALSE) -> 13796.3 | D172: =+'PR Restate'!$G172 -> 0 | E172: =+'PF Adj'!$G172 -> 0 | F172: 13796.3 | H172: Prev Alloc Costs | J172: 9505.786084 | K172: 4290.513916 | M172: Prev Alloc Costs | O172: 2651.984693 | P172: 1078.168943 | Q172: 554.5383114 | R172: 5.821968091
A173: =+'P&L - ITD3 (Acct #)'!$A$935 -> 565082 0000 | B173: =+'P&L - ITD3 (Acct Desc)'!$A$935 -> Safety Incentive Program | C173: =+VLOOKUP($B173,'P&L - ITD3 (Acct Desc)'!A$1:N$1408,2,FALSE) -> 34744.3 | D173: =+'PR Restate'!$G173 -> 0 | E173: =+'PF Adj'!$G173 -> 0 | F173: 34744.3 | H173: Prev Alloc Costs | J173: 23939.16365 | K173: 10805.13635 | M173: Prev Alloc Costs | O173: 6678.700215 | P173: 2715.237072 | Q173: 1396.537148 | R173: 14.66191703
A174: =+'P&L - ITD3 (Acct #)'!$A$936 -> 565083 0000 | B174: =+'P&L - ITD3 (Acct Desc)'!$A$936 -> Medical/Physicals | C174: =+VLOOKUP($B174,'P&L - ITD3 (Acct Desc)'!A$1:N$1408,2,FALSE) -> 5756.46 | D174: =+'PR Restate'!$G174 -> 0 | E174: =+'PF Adj'!$G174 -> 0 | F174: 5756.46 | H174: Prev Alloc Costs | J174: 3966.257429 | K174: 1790.202571 | M174: Prev Alloc Costs | O174: 1106.531737 | P174: 449.862383 | Q174: 231.3792545 | R174: 2.4291967
A175: =+'P&L - ITD3 (Acct #)'!$A$968 -> 565 565998 | B175: =+'P&L - ITD3 (Acct Desc)'!$A$968 -> 565998 Insurance Alloc-In | C175: =+VLOOKUP($B175,'P&L - ITD3 (Acct Desc)'!A$1:N$1408,2,FALSE) -> 374811.74 | D175: =+'PR Restate'!$G175 -> 0 | E175: =+'PF Adj'!$G175 -> 0 | F175: 374811.74 | H175: Prev Alloc Costs | J175: 258248.9669 | K175: 116562.7731 | M175: Prev Alloc Costs | O175: 72047.9402 | P175: 29291.21414 | Q175: 15065.45011 | R175: 158.1686387
A176: =+'P&L - ITD3 (Acct #)'!$A$969 -> 565999 0000 | B176: =+'P&L - ITD3 (Acct Desc)'!$A$969 -> Insurance Alloc-Out | C176: =+VLOOKUP($B176,'P&L - ITD3 (Acct Desc)'!A$1:N$1408,2,FALSE) -> -374811.74 | D176: =+'PR Restate'!$G176 -> 0 | E176: =+'PF Adj'!$G176 -> 0 | F176: -374811.74 | H176: Prev Alloc Costs | J176: -258248.9669 | K176: -116562.7731 | M176: Prev Alloc Costs | O176: -72047.9402 | P176: -29291.21414 | Q176: -15065.45011 | R176: -158.1686387
B177: =+'P&L - ITD3 (Acct Desc)'!$A$972 -> Insurance/Risk Expense | C177: =+VLOOKUP($B177,'P&L - ITD3 (Acct Desc)'!A$1:N$1408,2,FALSE) -> 680443.86 | D177: =SUM(D159:D176) -> 0 | E177: =SUM(E159:E176) -> -4038.467854 | F177: 676405.3921 | J177: =SUM(J159:J176) -> 464483.525 | K177: 211921.8672 | O177: =SUM(O159:O176) -> 130276.1041 | P177: =SUM(P159:P176) -> 53747.46174 | Q177: =SUM(Q159:Q176) -> 27617.32008 | R177: =SUM(R159:R176) -> 280.9812251
A178: Check | C178: =+C177-SUM(C159:C176) -> 0
A179: =+'P&L - ITD3 (Acct #)'!$A$973 -> 570000 0000 | B179: =+'P&L - ITD3 (Acct Desc)'!$A$973 -> Fac Maint-Parts & Supplies | C179: =+VLOOKUP($B179,'P&L - ITD3 (Acct Desc)'!A$1:N$1408,2,FALSE) -> 666.22 | D179: =+'PR Restate'!$G179 -> 0 | E179: =+'PF Adj'!$G179 -> 0 | F179: =SUM(C179:E179) -> 666.22 | H179: Revenue | J179: =F179-K179 -> 509.2405848 | K179: =F179*VLOOKUP(H179,$J$2:$K$6,2,FALSE) -> 156.9794152 | M179: =H179 -> Revenue | O179: =K179-SUM(P179:R179) -> 110.4340919 | P179: =$K179*VLOOKUP($M179,$J$2:$R$6,MATCH(P$9,$J$9:$R$9,0),FALSE) -> 31.38369627 | Q179: =$K179*VLOOKUP($M179,$J$2:$R$6,MATCH(Q$9,$J$9:$R$9,0),FALSE) -> 14.88762579 | R179: =$K179*VLOOKUP($M179,$J$2:$R$6,MATCH(R$9,$J$9:$R$9,0),FALSE) -> 0.2740011895
A180: =+'P&L - ITD3 (Acct #)'!$A$974 -> 570005 0000 | B180: =+'P&L - ITD3 (Acct Desc)'!$A$974 -> Fac Maint-O/S Repair | C180: =+VLOOKUP($B180,'P&L - ITD3 (Acct Desc)'!A$1:N$1408,2,FALSE) -> 3025.59 | D180: =+'PR Restate'!$G180 -> 0 | E180: =+'PF Adj'!$G180 -> 0 | F180: 3025.59 | H180: Revenue | J180: 2312.679327 | K180: 712.9106733 | M180: Revenue | O180: 501.5284503 | P180: 142.5267894 | Q180: 67.61107697 | R180: 1.244356608
A181: =+'P&L - ITD3 (Acct #)'!$A$977 -> 570010 0000 | B181: =+'P&L - ITD3 (Acct Desc)'!$A$977 -> Security | C181: =+VLOOKUP($B181,'P&L - ITD3 (Acct Desc)'!A$1:N$1408,2,FALSE) -> 181.02 | D181: =+'PR Restate'!$G181 -> 0 | E181: =+'PF Adj'!$G181 -> 0 | F181: 181.02 | H181: Revenue | J181: 138.3668018 | K181: 42.65319824 | M181: Revenue | O181: 30.00627318 | P181: 8.527328359 | Q181: 4.045147278 | R181: 0.07444942411
A182: =+'P&L - ITD3 (Acct #)'!$A$978 -> 570020 0000 | B182: =+'P&L - ITD3 (Acct Desc)'!$A$978 -> Lease/Rent | C182: =+VLOOKUP($B182,'P&L - ITD3 (Acct Desc)'!A$1:N$1408,2,FALSE) -> 236833.2 | D182: =+'PR Restate'!$G182 -> 0 | E182: =+'PF Adj'!$G182 -> 0 | F182: 236833.2 | H182: Revenue | J182: 181028.9053 | K182: 55804.29472 | M182: Revenue | O182: 39257.99192 | P182: 11156.5267 | Q182: 5292.371972 | R182: 97.40412855
A183: =+'P&L - ITD3 (Acct #)'!$A$979 -> 570030 0000 | B183: =+'P&L - ITD3 (Acct Desc)'!$A$979 -> Utilities | C183: =+VLOOKUP($B183,'P&L - ITD3 (Acct Desc)'!A$1:N$1408,2,FALSE) -> 5881.55 | D183: =+'PR Restate'!$G183 -> 0 | E183: ='Staff Compare and Adjustments'!J128 -> 37912.80226 | F183: 43794.35226 | H183: Revenue | J183: 33475.22073 | K183: 10319.13153 | M183: Revenue | O183: 7259.448114 | P183: 2063.025202 | Q183: 978.6465852 | R183: 18.01162471
A184: =+'P&L - ITD3 (Acct #)'!$A$980 -> 570040 0000 | B184: =+'P&L - ITD3 (Acct Desc)'!$A$980 -> Property Taxes | C184: =+VLOOKUP($B184,'P&L - ITD3 (Acct Desc)'!A$1:N$1408,2,FALSE) -> 33012.18 | D184: =+'PR Restate'!$G184 -> 0 | E184: =+'PF Adj'!$G184 -> 0 | F184: 33012.18 | H184: Revenue | J184: 25233.6193 | K184: 7778.5607 | M184: Revenue | O184: 5472.171536 | P184: 1555.108268 | Q184: 737.7037348 | R184: 13.57716158
A185: =+'P&L - ITD3 (Acct #)'!$A$981 -> 570050 0000 | B185: =+'P&L - ITD3 (Acct Desc)'!$A$981 -> Scale Repairs | C185: =+VLOOKUP($B185,'P&L - ITD3 (Acct Desc)'!A$1:N$1408,2,FALSE) -> 0 | D185: =+'PR Restate'!$G185 -> 0 | E185: =+'PF Adj'!$G185 -> 0 | F185: 0 | H185: Revenue | J185: 0 | K185: 0 | M185: Revenue | O185: 0 | P185: 0 | Q185: 0 | R185: 0
A186: =+'P&L - ITD3 (Acct #)'!$A$982 -> 570090 0000 | B186: =+'P&L - ITD3 (Acct Desc)'!$A$982 -> Miscellaneous Facility Exp | C186: =+VLOOKUP($B186,'P&L - ITD3 (Acct Desc)'!A$1:N$1408,2,FALSE) -> 44209.93 | D186: =+'PR Restate'!$G186 -> 0 | E186: =+'PF Adj'!$G186 -> 0 | F186: 44209.93 | H186: Revenue | J186: 33792.87714 | K186: 10417.05286 | M186: Revenue | O186: 7328.335194 | P186: 2082.601866 | Q186: 987.9332561 | R186: 18.18254242
A187: =+'P&L - ITD3 (Acct #)'!$A$983 -> 570990 0000 | B187: =+'P&L - ITD3 (Acct Desc)'!$A$983 -> Occupancy/Facility contra | C187: =+VLOOKUP($B187,'P&L - ITD3 (Acct Desc)'!A$1:N$1408,2,FALSE) -> 0 | D187: =+'PR Restate'!$G187 -> 0 | E187: =+'PF Adj'!$G187 -> 0 | F187: 0 | H187: Revenue | J187: 0 | K187: 0 | M187: Revenue | O187: 0 | P187: 0 | Q187: 0 | R187: 0
A188: =+'P&L - ITD3 (Acct #)'!$A$995 -> 570 570998 | B188: =+'P&L - ITD3 (Acct Desc)'!$A$995 -> 570998 Facility Alloc-In | C188: =+VLOOKUP($B188,'P&L - ITD3 (Acct Desc)'!A$1:N$1408,2,FALSE) -> 461604.17 | D188: =+'PR Restate'!$G188 -> 0 | E188: =+'PF Adj'!$G188 -> 0 | F188: 461604.17 | H188: Revenue | J188: 352837.7675 | K188: 108766.4025 | M188: Revenue | O188: 76516.52208 | P188: 21744.83665 | Q188: 10315.1964 | R188: 189.8473352
A189: =+'P&L - ITD3 (Acct #)'!$A$996 -> 570999 0000 | B189: =+'P&L - ITD3 (Acct Desc)'!$A$996 -> Facility Alloc-Out | C189: =+VLOOKUP($B189,'P&L - ITD3 (Acct Desc)'!A$1:N$1408,2,FALSE) -> -392706.93 | D189: =+'PR Restate'!$G189 -> 0 | E189: =+'PF Adj'!$G189 -> 0 | F189: -392706.93 | H189: Revenue | J189: -300174.577 | K189: -92532.35298 | M189: Revenue | O189: -65095.9641 | P189: -18499.28705 | Q189: -8775.590372 | R189: -161.5114616
B190: =+'P&L - ITD3 (Acct Desc)'!$A$997 -> Occupancy/Facility Expense | C190: =+VLOOKUP($B190,'P&L - ITD3 (Acct Desc)'!A$1:N$1408,2,FALSE) -> 392706.93 | D190: =SUM(D179:D189) -> 0 | E190: =SUM(E179:E189) -> 37912.80226 | F190: 430619.7323 | J190: =SUM(J179:J189) -> 329154.0997 | K190: 101465.6326 | O190: =SUM(O179:O189) -> 71380.47356 | P190: =SUM(P179:P189) -> 20285.24945 | Q190: =SUM(Q179:Q189) -> 9622.805425 | R190: =SUM(R179:R189) -> 177.1041381
A191: Check | C191: =+C190-SUM(C179:C189) -> 0
A192: =+'P&L - ITD3 (Acct #)'!$A$998 -> 595010 0000 | B192: =+'P&L - ITD3 (Acct Desc)'!$A$998 -> Permit Fees | C192: =+VLOOKUP($B192,'P&L - ITD3 (Acct Desc)'!A$1:N$1408,2,FALSE) -> 1722763.86 | D192: =+'PR Restate'!$G192 -> 0 | E192: =+'PF Adj'!$G192 -> 0 | F192: =SUM(C192:E192) -> 1722763.86 | H192: Actual | J192: =F192-K192 -> 1584614.346 | K192: =K20*'Combined LG'!$H$16 -> 138149.5137 | M192: =H192 -> Actual | O192: =O20*'Combined LG'!$H$16 -> 97187.36739 | P192: =P20*'Combined LG'!$H$16 -> 27619.1778 | Q192: =Q20*'Combined LG'!$H$16 -> 13101.83415 | R192: =R20*'Combined LG'!$H$16 -> 241.1343618
A193: =+'P&L - ITD3 (Acct #)'!$A$1000 -> 595020 0000 | B193: =+'P&L - ITD3 (Acct Desc)'!$A$1000 -> Operations Communications Cost | C193: =+VLOOKUP($B193,'P&L - ITD3 (Acct Desc)'!A$1:N$1408,2,FALSE) -> 18324.07 | D193: =+'PR Restate'!$G193 -> 0 | E193: =+'PF Adj'!$G193 -> 0 | F193: 18324.07 | H193: Prev Alloc Costs | J193: 12625.46405 | K193: =F193*VLOOKUP(H193,$J$2:$K$6,2,FALSE) -> 5698.605955 | M193: Prev Alloc Costs | O193: =K193-SUM(P193:R193) -> 3522.332303 | P193: =$K193*VLOOKUP($M193,$J$2:$R$6,MATCH(P$9,$J$9:$R$9,0),FALSE) -> 1432.010263 | Q193: 736.5307246 | R193: 7.732663891
A194: =+'P&L - ITD3 (Acct #)'!$A$1001 -> 595020 0010 | B194: =+'P&L - ITD3 (Acct Desc)'!$A$1001 -> Local/Long Distance-Ops | C194: =+VLOOKUP($B194,'P&L - ITD3 (Acct Desc)'!A$1:N$1408,2,FALSE) -> 0 | D194: =+'PR Restate'!$G194 -> 0 | E194: =+'PF Adj'!$G194 -> 0 | F194: 0 | H194: Prev Alloc Costs | J194: 0 | K194: 0 | M194: Prev Alloc Costs | O194: 0 | P194: 0 | Q194: 0 | R194: 0
A195: =+'P&L - ITD3 (Acct #)'!$A$1002 -> 595020 0011 | B195: =+'P&L - ITD3 (Acct Desc)'!$A$1002 -> SIP-Ops | C195: =+VLOOKUP($B195,'P&L - ITD3 (Acct Desc)'!A$1:N$1408,2,FALSE) -> 0 | D195: =+'PR Restate'!$G195 -> 0 | E195: =+'PF Adj'!$G195 -> 0 | F195: 0 | H195: Prev Alloc Costs | J195: 0 | K195: 0 | M195: Prev Alloc Costs | O195: 0 | P195: 0 | Q195: 0 | R195: 0
A196: =+'P&L - ITD3 (Acct #)'!$A$1003 -> 595020 0020 | B196: =+'P&L - ITD3 (Acct Desc)'!$A$1003 -> Smartphones-Ops | C196: =+VLOOKUP($B196,'P&L - ITD3 (Acct Desc)'!A$1:N$1408,2,FALSE) -> 0 | D196: =+'PR Restate'!$G196 -> 0 | E196: =+'PF Adj'!$G196 -> 0 | F196: 0 | H196: Prev Alloc Costs | J196: 0 | K196: 0 | M196: Prev Alloc Costs | O196: 0 | P196: 0 | Q196: 0 | R196: 0
A197: =+'P&L - ITD3 (Acct #)'!$A$1004 -> 595020 0021 | B197: =+'P&L - ITD3 (Acct Desc)'!$A$1004 -> Tablets-Ops | C197: =+VLOOKUP($B197,'P&L - ITD3 (Acct Desc)'!A$1:N$1408,2,FALSE) -> 0 | D197: =+'PR Restate'!$G197 -> 0 | E197: =+'PF Adj'!$G197 -> 0 | F197: 0 | H197: Prev Alloc Costs | J197: 0 | K197: 0 | M197: Prev Alloc Costs | O197: 0 | P197: 0 | Q197: 0 | R197: 0
A198: =+'P&L - ITD3 (Acct #)'!$A$1005 -> 595020 0022 | B198: =+'P&L - ITD3 (Acct Desc)'!$A$1005 -> Standard Phones-Ops | C198: =+VLOOKUP($B198,'P&L - ITD3 (Acct Desc)'!A$1:N$1408,2,FALSE) -> 0 | D198: =+'PR Restate'!$G198 -> 0 | E198: =+'PF Adj'!$G198 -> 0 | F198: 0 | H198: Prev Alloc Costs | J198: 0 | K198: 0 | M198: Prev Alloc Costs | O198: 0 | P198: 0 | Q198: 0 | R198: 0
A199: =+'P&L - ITD3 (Acct #)'!$A$1006 -> 595020 0023 | B199: =+'P&L - ITD3 (Acct Desc)'!$A$1006 -> Data Devices-Ops | C199: =+VLOOKUP($B199,'P&L - ITD3 (Acct Desc)'!A$1:N$1408,2,FALSE) -> 0 | D199: =+'PR Restate'!$G199 -> 0 | E199: =+'PF Adj'!$G199 -> 0 | F199: 0 | H199: Prev Alloc Costs | J199: 0 | K199: 0 | M199: Prev Alloc Costs | O199: 0 | P199: 0 | Q199: 0 | R199: 0
A200: =+'P&L - ITD3 (Acct #)'!$A$1007 -> 595020 0030 | B200: =+'P&L - ITD3 (Acct Desc)'!$A$1007 -> Conferencing-Ops | C200: =+VLOOKUP($B200,'P&L - ITD3 (Acct Desc)'!A$1:N$1408,2,FALSE) -> 0 | D200: =+'PR Restate'!$G200 -> 0 | E200: =+'PF Adj'!$G200 -> 0 | F200: 0 | H200: Prev Alloc Costs | J200: 0 | K200: 0 | M200: Prev Alloc Costs | O200: 0 | P200: 0 | Q200: 0 | R200: 0
A201: =+'P&L - ITD3 (Acct #)'!$A$1010 -> 595030 0000 | B201: =+'P&L - ITD3 (Acct Desc)'!$A$1010 -> Container Property Taxes | C201: =+VLOOKUP($B201,'P&L - ITD3 (Acct Desc)'!A$1:N$1408,2,FALSE) -> 86850.8 | D201: =+'PR Restate'!$G201 -> 0 | E201: =+'PF Adj'!$G201 -> 0 | F201: 86850.8 | H201: Container Count | J201: =F201-K201 -> 54438.08144 | K201: =F201*VLOOKUP(H201,$J$2:$K$6,2,FALSE) -> 32412.71856 | M201: Container Count | O201: 13579.48972 | P201: 13418.12928 | Q201: 5216.200408 | R201: 198.8991563
A202: =+'P&L - ITD3 (Acct #)'!$A$1011 -> 595040 0000 | B202: =+'P&L - ITD3 (Acct Desc)'!$A$1011 -> State Franchise Tax | C202: =+VLOOKUP($B202,'P&L - ITD3 (Acct Desc)'!A$1:N$1408,2,FALSE) -> 0 | D202: =+'PR Restate'!$G202 -> 0 | E202: =+'PF Adj'!$G202 -> 0 | F202: 0 | H202: Prev Alloc Costs | J202: 0 | K202: 0 | M202: Prev Alloc Costs | O202: 0 | P202: 0 | Q202: 0 | R202: 0
A203: =+'P&L - ITD3 (Acct #)'!$A$1012 -> 595080 0000 | B203: =+'P&L - ITD3 (Acct Desc)'!$A$1012 -> Towing Non-Maintenance | C203: =+VLOOKUP($B203,'P&L - ITD3 (Acct Desc)'!A$1:N$1408,2,FALSE) -> 459.34 | D203: =+'PR Restate'!$G203 -> 0 | E203: =+'PF Adj'!$G203 -> 0 | F203: 459.34 | H203: Prev Alloc Costs | J203: 316.4897675 | K203: 142.8502325 | M203: Prev Alloc Costs | O203: 88.29632938 | P203: 35.89702474 | Q203: 18.46303922 | R203: 0.1938391324
A204: =+'P&L - ITD3 (Acct #)'!$A$1013 -> 595090 0000 | B204: =+'P&L - ITD3 (Acct Desc)'!$A$1013 -> Other Operating Misc | C204: =+VLOOKUP($B204,'P&L - ITD3 (Acct Desc)'!A$1:N$1408,2,FALSE) -> 2998.04 | D204: =+'PR Restate'!$G204 -> 0 | E204: =+'PF Adj'!$G204 -> 0 | F204: 2998.04 | H204: Prev Alloc Costs | J204: 2065.67898 | K204: 932.36102 | M204: Prev Alloc Costs | O204: 576.2962671 | P204: 234.2942397 | Q204: 120.5053557 | R204: 1.265157558
A205: =+'P&L - ITD3 (Acct #)'!$A$1014 -> 595105 0000 | B205: =+'P&L - ITD3 (Acct Desc)'!$A$1014 -> GOE Vehicle Mileage | C205: =+VLOOKUP($B205,'P&L - ITD3 (Acct Desc)'!A$1:N$1408,2,FALSE) -> 427.84 | D205: =+'PR Restate'!$G205 -> 0 | E205: =+'PF Adj'!$G205 -> 0 | F205: 427.84 | H205: Prev Alloc Costs | J205: 294.7859584 | K205: 133.0540416 | M205: Prev Alloc Costs | O205: 82.2412626 | P205: 33.43532691 | Q205: 17.19690578 | R205: 0.1805462934
A206: =+'P&L - ITD3 (Acct #)'!$A$1015 -> 595106 0000 | B206: =+'P&L - ITD3 (Acct Desc)'!$A$1015 -> GOE Travel Expenses | C206: =+VLOOKUP($B206,'P&L - ITD3 (Acct Desc)'!A$1:N$1408,2,FALSE) -> 3361.47 | D206: =+'PR Restate'!$G206 -> 0 | E206: =+'PF Adj'!$G206 -> 0 | F206: 3361.47 | H206: Prev Alloc Costs | J206: 2316.085816 | K206: 1045.384184 | M206: Prev Alloc Costs | O206: 646.1563598 | P206: 262.6959806 | Q206: 135.1133201 | R206: 1.41852316
A207: =+'P&L - ITD3 (Acct #)'!$A$1016 -> 595108 0000 | B207: =+'P&L - ITD3 (Acct Desc)'!$A$1016 -> GOE Meals & Entertainmnt(100%) | C207: =+VLOOKUP($B207,'P&L - ITD3 (Acct Desc)'!A$1:N$1408,2,FALSE) -> 0 | D207: =+'PR Restate'!$G207 -> 0 | E207: =+'PF Adj'!$G207 -> 0 | F207: 0 | H207: Prev Alloc Costs | J207: 0 | K207: 0 | M207: Prev Alloc Costs | O207: 0 | P207: 0 | Q207: 0 | R207: 0
A208: =+'P&L - ITD3 (Acct #)'!$A$1017 -> 595109 0000 | B208: =+'P&L - ITD3 (Acct Desc)'!$A$1017 -> GOE Meals & Entertainment(50%) | C208: =+VLOOKUP($B208,'P&L - ITD3 (Acct Desc)'!A$1:N$1408,2,FALSE) -> 3120.12 | D208: =+'PR Restate'!$G208 -> 0 | E208: =+'PF Adj'!$G208 -> 0 | F208: 3120.12 | H208: Prev Alloc Costs | J208: 2149.793298 | K208: 970.3267021 | M208: Prev Alloc Costs | O208: =K208-SUM(P208:R208) -> 599.7630148 | P208: 243.8346863 | Q208: 125.4123262 | R208: 1.316674694
A209: =+'P&L - ITD3 (Acct #)'!$A$1018 -> 595990 0000 | B209: =+'P&L - ITD3 (Acct Desc)'!$A$1018 -> Other Oper Contra | C209: =+VLOOKUP($B209,'P&L - ITD3 (Acct Desc)'!A$1:N$1408,2,FALSE) -> 0 | D209: =+'PR Restate'!$G209 -> 0 | E209: =+'PF Adj'!$G209 -> 0 | F209: 0 | H209: Prev Alloc Costs | J209: 0 | K209: 0 | M209: Prev Alloc Costs | O209: 0 | P209: 0 | Q209: 0 | R209: 0
... 155 more rows

Sheet Staff Compare and Adjustments
B1: Key
C2: Company adjusted to zero
A3: Scott | C3: Payroll accounts
A4: Ann | C4: Depreac
A5: Scott | C5: Fuel
A6: Scott | C6: O/H
A7: Scott | C7: L&I
A8: Scott/Ann | C8: Accounts to check starting with most material
A10: Staff | B10: Acct # | C10: Acct Name | D10: TG-131329 | E10: New Filing | F10: Difference | H10: Staff Restate | I10: Reference | J10: Staff Proforma | K10: Reference | L10: Notes
A11: Scott | B11: 500010 | C11: Drivers | D11: 3508572 | E11: 3972172.23 | F11: =E11-D11 -> 463600.23 | G11: =F11/D11 -> 0.1321335945 | H11: ='Staff PR Restating Adjustment'!M39 -> -160327.01 | I11: See Staff PR Restating Adjustment | J11: ='PF Adj'!G39 -> 193413.8127 | K11: see Staff Summary Calc & Lookup
A12: Scott | B12: 500050 | C12: Container Delivery | D12: 1 | E12: 152501.19 | F12: =E12-D12 -> 152500.19 | G12: =F12/D12 -> 152500.19 | H12: ='Staff PR Restating Adjustment'!M43 -> -794.28 | I12: See Staff PR Restating Adjustment
A13: Scott | B13: 500055 | C13: Temp Labor-Oper Labor | D13: 3848 | E13: 8898.6 | F13: 5050.6 | G13: 1.312525988
B14: 500060 | C14: Bonus Pay Non-Corp-Oper Labor | D14: 7800 | F14: -7800 | G14: -1
A15: Scott | B15: 500170 | C15: Payroll Taxes - Oper Labor | D15: 333022 | E15: 380139.49 | F15: 47117.49 | G15: 0.1414846166 | H15: ='Staff PR Restating Adjustment'!M60 -> -15548.07 | I15: See Staff PR Restating Adjustment | J15: ='PF Adj'!G45 -> 16313.32668 | K15: see Staff Summary Calc & Lookup
A16: Scott | B16: 500172 | C16: Personal Time - Oper Labor | D16: 4313 | E16: 6051.38 | F16: 1738.38 | G16: 0.4030558776
A17: Scott | B17: 500173 | C17: Holiday Pay - Oper Labor | D17: 104157 | E17: 116310.13 | F17: 12153.13 | G17: 0.116680876 | H17: ='Staff PR Restating Adjustment'!M62 -> -1766.64 | I17: See Staff PR Restating Adjustment
A18: Scott | B18: 500174 | C18: Vacation/Sick - Oper Labor | D18: 247928 | E18: 293078.76 | F18: 45150.76 | G18: 0.1821123875 | H18: ='Staff PR Restating Adjustment'!M65 -> -844.96 | I18: See Staff PR Restating Adjustment
A19: Scott | B19: 500175 | C19: Benefits Non-Corp - Oper Labor | D19: 1507058 | E19: 1791732.61 | F19: 284674.61 | G19: 0.1888942629 | J19: ='PF Adj'!G49 -> 132448.8419 | K19: see Staff Summary Calc & Lookup
B20: 500177 | C20: Employer 401k - Oper Labor | D20: -101 | E20: 0 | F20: 101 | G20: -1
B21: 500188 | C21: Uniforms & Safety - Oper Labor | D21: 4992 | E21: 6626.09 | F21: 1634.09 | G21: 0.3273417468
B22: 500998 | C22: Oper Labor Alloc-In | D22: 225799 | E22: 48343.21 | F22: -177455.79 | G22: -0.7859015762
A23: Scott | B23: 510010 | C23: Mgr/Supervision | D23: 140945 | E23: 349868.81 | F23: 208923.81 | G23: 1.482307354 | H23: ='Staff PR Restating Adjustment'!M66 -> -40000 | I23: See Staff PR Restating Adjustment | J23: ='PF Adj'!G56 -> 69450.68197 | K23: see Staff Summary Calc & Lookup
A24: Scott | B24: 510020 | C24: Ops Support | D24: 140729 | E24: 199834.28 | F24: 59105.28 | G24: 0.4199936047 | H24: ='Staff PR Restating Adjustment'!M70 -> -7111.03 | I24: See Staff PR Restating Adjustment
A25: Scott | B25: 510055 | C25: Temporary Labor - Sup Labor | D25: 387 | E25: 2065.26 | F25: 1678.26 | G25: 4.336589147
B26: 510060 | C26: Bonus Pay Non-Corp - Sup Labor | D26: 500 | F26: -500 | G26: -1
B27: 510061 | C27: Bonus Pay Corp - Sup Labor | D27: -118 | E27: 11759.12 | F27: 11877.12 | G27: -100.6535593
A28: Scott | B28: 510170 | C28: Payroll Taxes - Sup Labor | D28: 26069 | E28: 47575.21 | F28: 21506.21 | G28: 0.8249725728 | H28: ='Staff PR Restating Adjustment'!M73 -> -4321.81 | I28: See Staff PR Restating Adjustment | J28: ='PF Adj'!G60 -> 5857.759835 | K28: see Staff Summary Calc & Lookup
A29: Scott | B29: 510172 | C29: Personal Time - Sup Labor | E29: -20 | F29: -20
A30: Scott | B30: 510173 | C30: Holiday Pay - Sup Labor | D30: 2890 | E30: 4743.92 | F30: 1853.92 | G30: 0.6414948097 | H30: ='Staff PR Restating Adjustment'!M74 -> -362 | I30: See Staff PR Restating Adjustment
A31: Scott | B31: 510174 | C31: Vacation/Sick - Sup Labor | D31: 8195 | E31: 5261.02 | F31: -2933.98 | G31: -0.3580207444 | H31: ='Staff PR Restating Adjustment'!M75 -> -360 | I31: See Staff PR Restating Adjustment
A32: Scott | B32: 510176 | C32: Benefits Corp - Sup Labor | D32: 11958 | E32: 33053.65 | F32: 21095.65 | G32: 1.764145342 | J32: ='PF Adj'!G64 -> 23014.03458 | K32: see Staff Summary Calc & Lookup
A33: Scott | B33: 510177 | C33: Employer 401k - Sup Labor | D33: 2104 | E33: 6635.57 | F33: 4531.57 | G33: 2.153788023 | H33: ='Staff PR Restating Adjustment'!M77 -> -7995.21 | I33: See Staff PR Restating Adjustment
B34: 510188 | C34: Uniforms & Safety - Sup Labor | E34: 5532.37 | F34: 5532.37
B35: 510998 | C35: Ops Supv Alloc-In | D35: 263324 | E35: 530310.73 | F35: 266986.73 | G35: 1.013909594
B36: 510999 | C36: Ops Supv Alloc-Out | D36: -222536 | E36: -525179.19 | F36: -302643.19 | G36: 1.359974072
F37: 0
A38: Scott | B38: 520010 | C38: TShop Mgr/Supv | D38: 3788 | E38: 82027.4 | F38: 78239.4 | G38: 20.65454065 | J38: ='PF Adj'!G71 -> 1384.194832 | K38: see Staff Summary Calc & Lookup
A39: Scott | B39: 520020 | C39: TShop Mech/Welder | D39: 248674 | E39: 257793.04 | F39: 9119.04 | G39: 0.03667066119 | H39: ='Staff PR Restating Adjustment'!M79 -> -1444.94 | I39: See Staff PR Restating Adjustment
A40: Scott | B40: 520030 | C40: TShop Support | D40: 21889 | E40: 16262.29 | F40: -5626.71 | G40: -0.2570565124
B41: 520055 | C41: TShop Temp Labor | D41: 738 | E41: 0 | F41: -738 | G41: -1
B42: 520060 | C42: TShop Bonus Non-Corp | E42: 0 | F42: 0
B43: 520061 | C43: TShop Bonus Pay Corp | D43: 0 | E43: 0 | F43: 0
A44: Scott | B44: 520170 | C44: TShop Payroll Tax | D44: 27218 | E44: 32524.61 | F44: 5306.61 | G44: 0.1949669336 | H44: ='Staff PR Restating Adjustment'!M80 -> -136.36 | I44: See Staff PR Restating Adjustment | J44: ='PF Adj'!G77 -> 116.7487584 | K44: see Staff Summary Calc & Lookup
B45: 520172 | C45: TShop Personal Time | D45: 780 | E45: 0 | F45: -780 | G45: -1
A46: Scott | B46: 520173 | C46: TShop Holiday Pay | D46: 11019 | E46: 8849.36 | F46: -2169.64 | G46: -0.1968999002
A47: Scott | B47: 520174 | C47: TShop Vacation/Sick | D47: 20380 | E47: 17229.69 | F47: -3150.31 | G47: -0.1545785083
A48: Scott | B48: 520175 | C48: TShop Benefits Non-Corp | D48: 123213 | E48: 141355.24 | F48: 18142.24 | G48: 0.1472429046 | J48: ='PF Adj'!G81 -> 11972.8 | K48: see Staff Summary Calc & Lookup
A49: Scott | B49: 520176 | C49: TShop Benefits Corp | D49: 4421 | E49: 12599.77 | F49: 8178.77 | G49: 1.849981905
A50: Scott | B50: 520177 | C50: TShop Employer 401k | E50: 164.7 | F50: 164.7
B51: 520188 | C51: TShop Uniforms & Safety | D51: 1344 | E51: 400 | F51: -944 | G51: -0.7023809524
B52: 520999 | C52: TShop Labor Alloc-Out | D52: -463467 | E52: -569206.1 | F52: -105739.1 | G52: 0.2281480666
F53: 0
A54: Scott | B54: 525020 | C54: CShop Mech/Welder | D54: 6997 | E54: 50422.64 | F54: 43425.64 | G54: 6.20632271 | J54: ='PF Adj'!G89 -> 12247.68192 | K54: see Staff Summary Calc & Lookup
A55: Scott | B55: 525030 | C55: CShop Support | D55: 15905 | E55: 10167.68 | F55: -5737.32 | G55: -0.3607243005
B56: 525055 | C56: CShop Temp Labor | D56: -458 | E56: 0 | F56: 458 | G56: -1
A57: Scott | B57: 525170 | C57: CShop Payroll Tax | D57: 2346 | E57: 5854.68 | F57: 3508.68 | G57: 1.495601023 | J57: ='PF Adj'!G94 -> 1033.020515 | K57: see Staff Summary Calc & Lookup
A58: Scott | B58: 525173 | C58: CShop Holiday Pay | D58: 742 | E58: 1545.06 | F58: 803.06 | G58: 1.082291105
A59: Scott | B59: 525174 | C59: CShop Vacation/Sick | D59: 859 | E59: 1802.38 | F59: 943.38 | G59: 1.098230501
A60: Scott | B60: 252175 | C60: CShop Benefits Non-Corp | E60: 22644.63 | F60: 22644.63 | J60: ='PF Adj'!G98 -> 11472.56955 | K60: see Staff Summary Calc & Lookup
A61: Scott | B61: 525176 | C61: CShop Benefits Corp | D61: 2536 | E61: 3695.86 | F61: 1159.86 | G61: 0.4573580442
B62: 525188 | C62: CShop Uniforms & Safety | E62: 100 | F62: 100
B63: 525998 | C63: CShop Labor Alloc-In | D63: 106684 | E63: 49117.73 | F63: -57566.27 | G63: -0.5395960969
B64: 525999 | C64: CShop Labor Alloc-Out | D64: -135613 | E64: -145350.66 | F64: -9737.66 | G64: 0.07180476798
F65: 0
A66: Scott | B66: 530010 | C66: Fuel | D66: 870904 | E66: 544366.2 | F66: -326537.8 | G66: =SUM(F66:F67)/D66 -> 0.2437816912 | J66: ='Staff Fuel Calcs.'!D26-E66 -> -30522.31264 | K66: Staff Fuel Calc
A67: Scott | C67: CNG/LNG | E67: 538848.25 | F67: 538848.25 | J67: ='Staff Fuel Calcs.'!I42-E67 -> -136157.3299 | K67: Staff Fuel Calc
C68: CNG/LNG Tax Credit | E68: -198760.75 | F68: -198760.75
B69: 530015 | C69: Oil/Lubricants | D69: 47200 | E69: 51497.32 | F69: 4297.32 | G69: 0.09104491525
B70: 530030 | C70: Truck/Equip Licenses | D70: 59892 | E70: 65879 | F70: 5987 | G70: 0.09996326721
B71: 530060 | C71: Equip Rental-3rd Party | D71: 0 | E71: 8237.36 | F71: 8237.36
B72: 530064 | C72: Truck/Equip Rental | E72: 4612.67 | F72: 4612.67
B73: 530065 | C73: HENS Lease Expense | D73: 64688 | F73: -64688 | G73: -1
B74: 530067 | C74: Lease Sales Tax Expense | D74: 5952 | E74: 3003.51 | F74: -2948.49 | G74: -0.4953780242
B75: 530068 | C75: Lease Allocation | D75: -64688 | F75: 64688 | G75: -1
B76: 530070 | C76: Operating Taxes | D76: 2692 | E76: 2446 | F76: =E76-D76 -> -246 | G76: =F76/D76 -> -0.09138187221
B77: 530095 | C77: Other Equip Operating Exp | D77: 0 | F77: 0
B78: 530998 | C78: Operating Alloc-In | D78: 61382 | E78: 20669.39 | F78: -40712.61 | G78: -0.663266267
B79: 530999 | C79: Operating Alloc-Out | D79: -9234 | E79: -20669.39 | F79: -11435.39 | G79: 1.238400476
F80: 0
A81: Scott | B81: 540010 | C81: Parts & Matls | D81: 356483 | E81: 522012.54 | F81: 165529.54 | G81: 0.4643406277 | L81: Staff agrees with
B82: 540014 | C82: Purchase Discounts | D82: -833 | E82: 0 | F82: 833 | G82: -1
B83: 540020 | C83: Truck/Equip Supplies | D83: 1029 | E83: 570.87 | F83: -458.13 | G83: -0.4452186589
A84: Scott | B84: 540030 | C84: New Tire Expense | D84: 191861 | E84: 162720.3 | F84: -29140.7 | G84: =SUM(F84:F85)/D84 -> 0.172095736 | L84: Staff agrees with
A85: Scott | B85: 540031 | C85: Tire Repair | E85: 62159.16 | F85: 62159.16 | L85: Staff agrees with
B86: 540040 | C86: O/S Repair-Coll Equip | D86: 6443 | E86: 9095.35 | F86: 2652.35 | G86: 0.4116638212
A87: Scott | B87: 540050 | C87: Towing | D87: 2398 | E87: 11617.97 | F87: 9219.97 | G87: 3.844858215 | L87: Staff agrees with
B88: 540060 | C88: O/S Repair-Proc Equip | E88: -245.01 | F88: -245.01
B89: 540070 | C89: Warranty Recovery | E89: -13271.92 | F89: -13271.92
B90: 540090 | C90: Truck & Equip Washing | D90: 13488 | E90: 17632.18 | F90: 4144.18 | G90: 0.3072494069
B91: 540095 | C91: Other Repairs & Maint | D91: -2813 | E91: 0 | F91: 2813 | G91: -1
B92: 540991 | C92: T/E Damage-Acc/A&M Contra | D92: -13699 | E92: -12783.31 | F92: 915.69 | G92: -0.06684356522
B93: 540997 | C93: TShop Labor Alloc-In. | D93: 463467 | E93: 569206.1 | F93: 105739.1 | G93: 0.2281480666
B94: 540998 | C94: Trk/Equip Expense Alloc-In | D94: 299199 | E94: 271224.6 | F94: -27974.4 | G94: -0.0934976387
B95: 540999 | C95: Trk/Equip Expense Alloc-Out | D95: -16222 | E95: -6285.37 | F95: 9936.63 | G95: -0.6125403773
F96: 0
B97: 545010 | C97: Cont/Comp Parts & Matls | D97: 0 | E97: 2069.36 | F97: 2069.36
B98: 545015 | C98: Cont/Comp Lids | D98: 0 | E98: 0 | F98: 0
B99: 545020 | C99: Cont/Comp Paint | D99: 0 | E99: 0 | F99: 0
B100: 545025 | C100: Cont/Comp Steel | D100: 0 | E100: 0 | F100: 0
B101: 545030 | C101: Cont/Comp Tires/Casters/Wheels | D101: 0 | E101: 1548.43 | F101: 1548.43
B102: 545035 | C102: Cont/Comp Supplies | D102: 0 | E102: 0 | F102: 0
B103: 545040 | C103: Cont/Comp O/S Repairs | D103: 0 | E103: 0 | F103: 0
B104: 545090 | C104: Cont/Comp Equip Wash | D104: 0 | E104: 0 | F104: 0
B105: 545095 | C105: Cont/Comp Other Maint | D105: 39227 | E105: -2464.2 | F105: -41691.2 | G105: -1.062818977
B106: 545997 | C106: CShop Labor Alloc-In | D106: 135613 | E106: 145350.66 | F106: 9737.66 | G106: 0.07180476798
B107: 545998 | C107: Cont/Comp Expense Alloc-In | D107: 67674 | E107: 108407.79 | F107: 40733.79 | G107: 0.6019119603
B108: 545999 | C108: Cont/Comp Expense Alloc-Out | D108: -33838 | E108: -56012.79 | F108: -22174.79 | G108: 0.6553221231
F109: 0
A110: Scott | B110: 565002 | C110: Corp Ins-Fixed AL/GL | D110: 224439 | E110: 221815.88 | F110: -2623.12 | G110: -0.01168745182
A111: Scott | B111: 565006 | C111: AW Self Ins WC/Premium Exp | D111: 577273 | E111: -3485.55 | F111: -580758.55 | G111: -1.006037958
A112: Scott | B112: 565008 | C112: Corp Ins-Fixed Other | D112: 91945 | E112: 99219.2 | F112: 7274.2 | G112: 0.07911468813
A113: Scott | B113: 565012 | C113: Corp Ins-Occur AL/GL | D113: 83438 | E113: 87405.05 | F113: 3967.05 | G113: 0.04754488363
A114: Scott | B114: 565030 | C114: Non-Corp Ins-W/C | D114: 201807 | E114: 204587.54 | F114: 2780.54 | G114: 0.01377821384 | H114: ='Staff L&I RETRO Credit JE'!Z39 -> -61028.279 | I114: See Staff L&I retro calculation | J114: =-H114 -> 61028.279 | K114: Per Docket TC-001846 out of period non-recurring expense
B115: 565040 | C115: Damage-RSG Prop Non-AM | D115: 14079 | E115: 12617.93 | F115: -1461.07 | G115: -0.1037765466
B116: 565045 | C116: Surety Cost | D116: 400 | E116: 400 | F116: 0 | G116: 0
B117: 565080 | C117: Hiring, Training & Safety | D117: 1360 | E117: 3586.75 | F117: 2226.75 | G117: 1.637316176
A118: Scott | B118: 565081 | C118: Safety Equipment | D118: 791 | E118: 13796.3 | F118: 13005.3 | G118: 16.44159292
B119: 565082 | C119: Safety Incentive Program | D119: 23237 | E119: 34744.3 | F119: 11507.3 | G119: 0.4952145286
B120: 565083 | C120: Medical/Physicals | D120: 1374 | E120: 5756.46 | F120: 4382.46 | G120: 3.189563319
B121: 565998 | C121: Insurance Alloc-In | D121: 803031 | E121: 374811.74 | F121: -428219.26 | G121: -0.53325371
B122: 565999 | C122: Insurance Alloc-Out | D122: -803031 | E122: -374811.74 | F122: 428219.26 | G122: -0.53325371
F123: 0
B124: 570000 | C124: Fac Maint-Parts & Supplies | D124: 1139 | E124: 666.22 | F124: -472.78 | G124: -0.4150834065
B125: 570005 | C125: Fac Maint-O/S Repair | D125: 9546 | E125: 3025.59 | F125: -6520.41 | G125: -0.6830515399
B126: 570010 | C126: Security | D126: 0 | E126: 181.02 | F126: 181.02
B127: 570020 | C127: Lease/Rent | D127: 230586 | E127: 236833.2 | F127: 6247.2 | G127: 0.02709271161
B128: 570030 | C128: Utilities | D128: 1850 | E128: 5881.55 | F128: 4031.55 | G128: 2.179216216 | J128: ='Staff Fuel Calcs.'!L42 -> 37912.80226 | K128: Staff Fuel Calc
B129: 570040 | C129: Property Taxes | D129: 30299 | E129: 33012.18 | F129: 2713.18 | G129: 0.08954684973
A130: Scott | B130: 570090 | C130: Miscellaneous Exp | D130: 0 | E130: 44209.93 | F130: 44209.93 | L130: This expense isallowed by staff. Staff recommends changing account to Container Shop Rent (52 Dawson Street is consolidated container shop).
B131: 570998 | C131: Facility Alloc-In | D131: 345858 | E131: 461604.17 | F131: 115746.17 | G131: 0.3346638505
B132: 570999 | C132: Facility Alloc-Out | D132: -309641 | E132: -392706.93 | F132: -83065.93 | G132: 0.2682652814
F133: 0
B134: 595010 | C134: Permit Fees | D134: 1727219 | E134: 1722763.86 | F134: -4455.14 | G134: -0.002579371811
B135: 595015 | C135: Overweight Fine/Othr Penalty | D135: 0 | F135: 0
B136: 595020 | C136: Operations Communications Cost | D136: 41906 | E136: 18324.07 | F136: -23581.93 | G136: -0.562733976
A137: Scott | B137: 595030 | C137: Container Property Taxes | D137: -338 | E137: 86850.8 | F137: 87188.8 | G137: =F137/D137*-1 -> 257.9550296 | K137: Staff agrees with Balance
B138: 595080 | C138: Towing Non-Maintenance | D138: 1026 | E138: 459.34 | F138: -566.66 | G138: -0.5523001949
B139: 595090 | C139: Other Operating Misc | D139: -215998 | E139: 2998.04 | F139: 218996.04 | G139: =F139/D139*-1 -> 1.013879943
C140: GOE Vehicle Mileage | E140: 427.84 | F140: =E140-D140 -> 427.84
B141: 595106 | C141: GOE Travel Expenses | D141: 495 | E141: 3361.47 | F141: 2866.47 | G141: =F141/D141 -> 5.790848485
B142: 595109 | C142: GOE Meals & Entertainment(50%) | D142: 168 | E142: 3120.12 | F142: 2952.12 | G142: 17.57214286
B143: 595998 | C143: Other Operating Alloc-In | D143: 43433 | E143: 118140.14 | F143: 74707.14 | G143: 1.720054797
B144: 595999 | C144: Other Operating Alloc-Out | D144: -43433 | E144: -118140.14 | F144: -74707.14 | G144: 1.720054797
F145: 0
C146: GROSS OPERATING EXPENSE | D146: =+SUM(D11:D145) -> 11954354 | E146: =+SUM(E11:E145) -> 13171433.04 | F146: =E146-D146 -> 1217079.04 | G146: =F146/D146 -> 0.1018105236
A148: Ann | B148: 600010 | C148: Depr-Vehicles | D148: 1126483 | E148: 1694379.92 | F148: 567896.92 | G148: 0.5041327033 | I148: See Staff Avg Invest & Depreac | K148: See Staff Avg Invest & Depreac
A149: Ann | B149: 600020 | C149: Depr-Cont/Comp | D149: 883972 | E149: 801924.92 | F149: -82047.08 | G149: -0.0928163788 | I149: See Staff Avg Invest & Depreac | K149: See Staff Avg Invest & Depreac
A150: Ann | B150: 600030 | C150: Depr-Heavy Mach & Equip | D150: 6552 | E150: 6554.35 | F150: 2.35 | G150: 0.0003586691087 | I150: See Staff Avg Invest & Depreac | K150: See Staff Avg Invest & Depreac
A151: Ann | C151: Depr-Shop Equip | E151: 483.41 | F151: 483.41 | I151: See Staff Avg Invest & Depreac | K151: See Staff Avg Invest & Depreac
A152: Ann | B152: 600070 | C152: Depr-Bldg & Imp | D152: 71674 | E152: 157289.68 | F152: 85615.68 | G152: 1.194515166 | I152: See Staff Avg Invest & Depreac | K152: See Staff Avg Invest & Depreac
B153: 600090 | C153: Depr-Computer Equip | D153: 1904 | E153: 0 | F153: -1904 | G153: -1
B154: 600200 | C154: Depr-HENS | D154: 356 | E154: 0 | F154: -356 | G154: -1
B155: 600998 | C155: Depr Alloc-In | D155: 83725 | E155: 169829.14 | F155: 86104.14 | G155: 1.028416124
B156: 600999 | C156: Depr Alloc-Out | D156: -83725 | E156: -169829.14 | F156: -86104.14 | G156: 1.028416124
F157: 0
B158: 710000 | C158: Sales Mgr/Supv | D158: 21095 | E158: 14170.62 | F158: -6924.38 | G158: -0.328247452
B159: 710005 | C159: Sales Rep 710005 | D159: 67295 | E159: 52507.28 | F159: -14787.72 | G159: -0.2197447061
B160: 710020 | C160: Marketing Staff | D160: 9695 | E160: 99647.74 | F160: 89952.74 | G160: 9.278260959
A161: Scott | B161: 710030 | C161: Cust Service | D161: 299820 | E161: 455245.71 | F161: 155425.71 | G161: 0.518396738 | H161: =E161*-1 -> -455245.71 | I161: Zeroing ledger to Proforma Customer Service Center Expenses | J161: =' Staff Cust Serv Calc Summary'!G14 -> 364544.4889 | K161: See Customer Service Staff
B162: 710055 | C162: Temporary Labor - Sales | D162: 40796 | E162: 18900.61 | F162: -21895.39 | G162: -0.5367043338
B163: 710060 | C163: Bonus Pay Non-Corp-Sales | D163: 437 | E163: 0 | F163: -437 | G163: -1
B164: 710061 | C164: Bonus Pay Corp-Sales | D164: 3209 | E164: 9593.79 | F164: 6384.79 | G164: 1.989650982
B165: 710062 | C165: Commission | D165: 56825 | E165: 93556.08 | F165: 36731.08 | G165: 0.6463894413
A166: Scott | B166: 710170 | C166: Payroll Taxes - Sales | D166: 42893 | E166: 65001.21 | F166: 22108.21 | G166: 0.5154269927 | H166: =E166*-1 -> -65001.21 | I166: Zeroing ledger to Proforma Customer Service Center Expenses | J166: =' Staff Cust Serv Calc Summary'!G15 -> 36346.28736 | K166: See Customer Service Staff
A167: Scott | B167: 710172 | C167: Personal Time - Sales | E167: 360 | F167: 360 | H167: =E167*-1 -> -360 | I167: Zeroing ledger to Proforma Customer Service Center Expenses | J167: =' Staff Cust Serv Calc Summary'!G16 -> 2015.687625 | K167: See Customer Service Staff
A168: Scott | B168: 710173 | C168: Holiday Pay - Sales | D168: 7351 | E168: 12853.78 | F168: 5502.78 | G168: 0.748575704 | H168: -12853.78 | I168: Zeroing ledger to Proforma Customer Service Center Expenses | J168: =' Staff Cust Serv Calc Summary'!G17 -> 10858.47473 | K168: See Customer Service Staff
A169: Scott | B169: 710174 | C169: Vacation/Sick - Sales | D169: 10554 | E169: 18600.09 | F169: 8046.09 | G169: 0.7623735077 | H169: -18600.09 | I169: Zeroing ledger to Proforma Customer Service Center Expenses | J169: =' Staff Cust Serv Calc Summary'!G18 -> 13417.45545 | K169: See Customer Service Staff
A170: Scott | B170: 710176 | C170: Benefits Corp-Sales | D170: 48578 | E170: 87647.24 | F170: 39069.24 | G170: 0.8042578945 | H170: -87647.24 | I170: Zeroing ledger to Proforma Customer Service Center Expenses | J170: =' Staff Cust Serv Calc Summary'!G19 -> 90251.77615 | K170: See Customer Service Staff
A171: Scott | B171: 710177 | C171: Employer 401k - Sales | D171: 3270 | E171: 5917.66 | F171: 2647.66 | G171: 0.8096819572 | H171: -5917.66 | I171: Zeroing ledger to Proforma Customer Service Center Expenses | J171: =' Staff Cust Serv Calc Summary'!G20 -> 4611.023253 | K171: See Customer Service Staff
B172: 711002 | C172: Recruiting - Sales | D172: 2808 | E172: 0 | F172: -2808 | G172: -1
B173: 711004 | C173: Employee Activities - Sales | D173: 615 | E173: 0 | F173: -615 | G173: -1
B174: 711005 | C174: Vehicle Mileage - Sales | D174: 6392 | E174: 6420.28 | F174: 28.28 | G174: 0.00442428035
B175: 711006 | C175: Travel - Sales | D175: 2490 | E175: 8392.02 | F175: 5902.02 | G175: 2.370289157
B176: 711009 | C176: Meals & Entert (50%)-Sales | D176: 1608 | E176: 7657.56 | F176: 6049.56 | G176: 3.762164179 | H176: =E176*-1 -> -7657.56 | I176: Zeroing due to Customer Service Center
B177: 711010 | C177: Office Supplies - Sales | D177: 1413 | E177: 3047.33 | F177: 1634.33 | G177: 1.156638358 | H177: =E177*-1 -> -3047.33 | I177: Zeroing due to Customer Service Center
C178: Postage - Sales | E178: 14.8 | F178: 14.8 | H178: =E178*-1 -> -14.8 | I178: Zeroing due to Customer Service Center
A179: Scott | B179: 711014 | C179: Dues & Subscriptions - Sales | D179: 6974 | E179: 13376.55 | F179: 6402.55 | G179: 0.9180599369 | H179: -13376.55 | I179: See 4176 1-12, 2014 GL290 Staff Copy Tab"711014 Dues & Sub - sales" | L179: Dissallow all Chamber, Kiwanas, and Town association dues
C180: Telephone - Sales | E180: 711.8 | F180: 711.8 | H180: =E180*-1 -> -711.8 | I180: Zeroing due to Customer Service Center
B181: 711028 | C181: Advertising - Sales | D181: 20250 | E181: 0 | F181: -20250 | G181: -1
C182: Advert Yellow Pages/Online - Sales | E182: 1378.86 | F182: 1378.86
C183: Advert Direct Mail - Sales | E183: 0 | F183: 0
C184: Advert Media - Sales | E184: 1968.75 | F184: 1968.75
C185: Advert Promotional - Sales | E185: 1200 | F185: 1200
C186: Advert Collateral - Sales | E186: 0 | F186: 0
C187: Advert Sponsorships - Sales | E187: 18026.2 | F187: 18026.2
C188: Advert Other - Sales | E188: 1000 | F188: 1000
C189: Drug Testing - Sales | E189: 0 | F189: 0
C190: Outside Training - Sales | E190: 0 | F190: 0
A191: Scott | B191: 711095 | C191: Sales & Mkting Misc | D191: 42193 | E191: 23355.31 | F191: -18837.69 | G191: -0.4464648164 | H191: =E191*-1 -> -23355.31 | I191: Zeroing due to Customer Service Center
A192: Scott | B192: 750000 | C192: G&A Mgrs & Supv | E192: 138994.6 | F192: 138994.6 | J192: ='PF Adj'!G282 -> 42414.43448 | K192: see Staff Summary Calc & Lookup
A193: Scott | B193: 750005 | C193: G&A Support Labor | D193: 105966 | E193: 99306.84 | F193: -6659.16 | G193: -0.06284242115 | H193: ='Staff PR Restating Adjustment'!M82 -> -27533.54 | I193: See Staff PR Restating Adjustment
A194: Scott | B194: 750055 | C194: Temporary Labor-G&A | D194: 6803 | E194: 8263.27 | F194: 1460.27 | G194: 0.2146508893
A195: Scott | B195: 750170 | C195: Payroll Taxes - G&A | D195: 7438 | E195: 18204.05 | F195: 10766.05 | G195: 1.447438828 | H195: ='Staff PR Restating Adjustment'!M84 -> -3002.51 | I195: See Staff PR Restating Adjustment | J195: ='PF Adj'!G286 -> 7887.033745 | K195: see Staff Summary Calc & Lookup
A196: Scott | B196: 750173 | C196: Holiday Pay - G&A | D196: 1653 | E196: 1942 | F196: 289 | G196: 0.1748336358 | H196: ='Staff PR Restating Adjustment'!M85 -> -800 | I196: See Staff PR Restating Adjustment
A197: Scott | B197: 750174 | C197: Vacation/Sick - G&A | D197: 3109 | E197: 2037.48 | F197: -1071.52 | G197: -0.3446510132 | H197: ='Staff PR Restating Adjustment'!M86 -> -801.25 | I197: See Staff PR Restating Adjustment
A198: Scott | B198: 750176 | C198: Benefits Corp-G&A | D198: 15408 | E198: 39621.21 | F198: 24213.21 | G198: 1.571470016 | H198: ='Staff PR Restating Adjustment'!M87 -> -9693.46 | I198: See Staff PR Restating Adjustment | J198: ='PF Adj'!G290 -> 14456.99783 | K198: see Staff Summary Calc & Lookup
A199: Scott | B199: 750177 | C199: Employer 401K-G&A | D199: 133 | E199: 5943.27 | F199: 5810.27 | G199: 43.6862406
B200: 751102 | C200: Recruiting - G&A | D200: 45 | F200: -45 | G200: -1
A201: Scott | B201: 751104 | C201: Employee Activities - G&A | D201: 2977 | E201: 13351.08 | F201: 10374.08 | G201: 3.48474303 | J201: =4266.21-E201 -> -9084.87 | K201: See 4176 2014 GL290 Staff, tab Acct 751104 Employee Activities | L201: Staff allowed costs for safety banquet
B202: 751105 | C202: Vehicle Mileage - G&A | D202: 1873 | E202: 1386.56 | F202: -486.44 | G202: -0.2597116925
... 49 more rows

Sheet Staff Avg Invest & Depreac
C1: WM Spokane
C2: Straight-Line Depreciation Schedule
E5: First Year | G5: Second Year
E6: Mo | F6: Yr | G6: Mo | H6: Yr
E7: 12 | F7: 2014 | G7: =12-E7 -> 0 | H7: =F7+1 -> 2015
C9: Asset Description | D9: Date in Service | F9: Original Asset Cost | G9: Salvage Value | H9: Service Life | I9: Fully Depreciated | J9: Asset Disposal | M9: Depreciable Cost | N9: Test Year Depreciation | P9: Accumulated Depreciation | R9: Average Investment | S9: Disposal Year Depreciation | T9: Total Year Depreciation | U9: LOS Allocation | V9: Total Allocated Year Depreciation | W9: Regulated Allocation | X9: Allocated Accumulated Depreciation | Z9: Purchase Date | AA9: End of Test Period | AB9: Date Fully Depreciated | AC9: Beging of Test Period | AD9: Disposition Date
A10: Operation | B10: Asset # | C10: List | D10: Mo | E10: Yr | F10: $ | G10: % | H10: Yrs | I10: Yr | J10: Mo. | K10: Yr. | L10: $ | M10: $ | N10: Monthly | O10: Yearly | P10: Beginning | Q10: Ending | R10: $ | S10: $ | T10: $ | U10: % | V10: $ | W10: % | X10: Beginning | Y10: Ending | Z10: A | AA10: B | AB10: C | AC10: D | AD10: E
C11: Land
B12: 315202 | I12: =E12+H12 -> 0 | L12: 0 | M12: =F12-F12*G12 -> 0 | N12: 0 | O12: =IF(L12>0,0,IF(OR(Z12>AA12,AB12<AC12),0,IF(AND(AB12>=AC12,AB12<=AA12),N12*((AB12-AC12)*12),IF(AND(AC12<=Z12,AA12>=Z12),((AA12-Z12)*12)*N12,IF(AB12>AA12,12*N12,0))))) -> 0 | P12: 0 | Q12: 0 | R12: =IF(L12>0,(F12-Y12)/2,IF(Z12>=AC12,(((F12*U12)*W12)-Q12)/2,((((F12*U12)*W12)-Y12)+(((F12*U12)*W12)-Q12))/2)) -> 0 | S12: =IF(L12=0,0,IF(AND(AD12>=AC12,AD12<=AB12),((AD12-AC12)*12)*N12,0)) -> 0 | T12: =IF(S12>0,S12,O12) -> 0 | U12: 1 | V12: =U12*(O12+S12)*W12 -> 0 | W12: 0.164 | X12: =P12*U12 -> 0 | Y12: =X12*W12 -> 0 | Z12: =$E12+(($D12-1)/12) -> -0.08333333333 | AA12: =($H$7+1)-($E$7/12) -> 2015 | AB12: =$I12+(($D12-1)/12) -> -0.08333333333 | AC12: =$F$7+($G$7/12) -> 2014 | AD12: =$K12+(($J12-1)/12) -> -0.08333333333
B13: 375934 | I13: =E13+H13 -> 0 | L13: 0 | M13: =F13-F13*G13 -> 0 | N13: 0 | O13: =IF(L13>0,0,IF(OR(Z13>AA13,AB13<AC13),0,IF(AND(AB13>=AC13,AB13<=AA13),N13*((AB13-AC13)*12),IF(AND(AC13<=Z13,AA13>=Z13),((AA13-Z13)*12)*N13,IF(AB13>AA13,12*N13,0))))) -> 0 | P13: 0 | Q13: 0 | R13: =IF(L13>0,(F13-Y13)/2,IF(Z13>=AC13,(((F13*U13)*W13)-Q13)/2,((((F13*U13)*W13)-Y13)+(((F13*U13)*W13)-Q13))/2)) -> 0 | S13: =IF(L13=0,0,IF(AND(AD13>=AC13,AD13<=AB13),((AD13-AC13)*12)*N13,0)) -> 0 | T13: =IF(S13>0,S13,O13) -> 0 | U13: 1 | V13: =U13*(O13+S13)*W13 -> 0 | W13: 0.164 | X13: =P13*U13 -> 0 | Y13: =X13*W13 -> 0 | Z13: =$E13+(($D13-1)/12) -> -0.08333333333 | AA13: =($H$7+1)-($E$7/12) -> 2015 | AB13: =$I13+(($D13-1)/12) -> -0.08333333333 | AC13: =$F$7+($G$7/12) -> 2014 | AD13: =$K13+(($J13-1)/12) -> -0.08333333333
C17: Total Land | F17: =SUM(F12:F16) -> 0 | L17: =SUM(L12:L16) -> 0 | M17: 0 | N17: 0 | O17: 0 | P17: 0 | Q17: 0 | R17: 0 | S17: 0 | T17: 0 | V17: =SUM(V12:V16) -> 0 | X17: =SUM(X12:X16) -> 0 | Y17: =SUM(Y12:Y16) -> 0
C19: Leasehold Improvements-Land
B20: 315302 | C20: Lot Paving | D20: 12 | E20: 2010 | F20: 163682.59 | G20: 0 | H20: 12 | I20: =E20+H20 -> 2022 | L20: 0 | M20: =F20-F20*G20 -> 163682.59 | N20: =M20/H20/12 -> 1136.684653 | O20: =IF(L20>0,0,IF(OR(Z20>AA20,AB20<AC20),0,IF(AND(AB20>=AC20,AB20<=AA20),N20*((AB20-AC20)*12),IF(AND(AC20<=Z20,AA20>=Z20),((AA20-Z20)*12)*N20,IF(AB20>AA20,12*N20,0))))) -> 13640.21583 | P20: =IF(Z20>AA20,0,IF(AB20<AC20,M20,IF(AND(AB20>=AC20,AB20<=AA20),(M20-T20),IF(AND(AC20<=Z20,AA20>=Z20),0,IF(AB20>AA20,((AC20-Z20)*12)*N20,0))))) -> 42057.33215 | Q20: =IF(L20>0,0,Y20+V20*W20)*W20 -> 1191.340234 | R20: =IF(L20>0,(F20-Y20)/2,IF(Z20>=AC20,(((F20*U20)*W20)-Q20)/2,((((F20*U20)*W20)-Y20)+(((F20*U20)*W20)-Q20))/2)) -> 22799.57341 | S20: =IF(L20=0,0,IF(AND(AD20>=AC20,AD20<=AB20),((AD20-AC20)*12)*N20,0)) -> 0 | T20: =IF(S20>0,S20,O20) -> 13640.21583 | U20: 1 | V20: =U20*(O20+S20)*W20 -> 2236.995397 | W20: 0.164 | X20: =P20*U20 -> 42057.33215 | Y20: =X20*W20 -> 6897.402473 | Z20: =$E20+(($D20-1)/12) -> 2010.916667 | AA20: =($H$7+1)-($E$7/12) -> 2015 | AB20: =$I20+(($D20-1)/12) -> 2022.916667 | AC20: =$F$7+($G$7/12) -> 2014 | AD20: =$K20+(($J20-1)/12) -> -0.08333333333
B21: 144648 | C21: Facility Stormwater Structure | D21: 11 | E21: 2008 | F21: 1200 | G21: 0 | H21: 3 | I21: =E21+H21 -> 2011 | L21: 0 | M21: =F21-F21*G21 -> 1200 | N21: =M21/H21/12 -> 33.33333333 | O21: =IF(L21>0,0,IF(OR(Z21>AA21,AB21<AC21),0,IF(AND(AB21>=AC21,AB21<=AA21),N21*((AB21-AC21)*12),IF(AND(AC21<=Z21,AA21>=Z21),((AA21-Z21)*12)*N21,IF(AB21>AA21,12*N21,0))))) -> 0 | P21: =IF(Z21>AA21,0,IF(AB21<AC21,M21,IF(AND(AB21>=AC21,AB21<=AA21),(M21-T21),IF(AND(AC21<=Z21,AA21>=Z21),0,IF(AB21>AA21,((AC21-Z21)*12)*N21,0))))) -> 1200 | Q21: =IF(L21>0,0,Y21+V21*W21)*W21 -> 32.2752 | R21: =IF(L21>0,(F21-Y21)/2,IF(Z21>=AC21,(((F21*U21)*W21)-Q21)/2,((((F21*U21)*W21)-Y21)+(((F21*U21)*W21)-Q21))/2)) -> 82.2624 | S21: =IF(L21=0,0,IF(AND(AD21>=AC21,AD21<=AB21),((AD21-AC21)*12)*N21,0)) -> 0 | T21: =IF(S21>0,S21,O21) -> 0 | U21: 1 | V21: =U21*(O21+S21)*W21 -> 0 | W21: 0.164 | X21: =P21*U21 -> 1200 | Y21: =X21*W21 -> 196.8 | Z21: =$E21+(($D21-1)/12) -> 2008.833333 | AA21: =($H$7+1)-($E$7/12) -> 2015 | AB21: =$I21+(($D21-1)/12) -> 2011.833333 | AC21: =$F$7+($G$7/12) -> 2014 | AD21: =$K21+(($J21-1)/12) -> -0.08333333333
B22: 144684 | C22: INTER-TEL AXXESS PHONE SYSTEM | D22: 11 | E22: 2008 | F22: 130000 | G22: 0 | H22: 3 | I22: =E22+H22 -> 2011 | L22: 0 | M22: =F22-F22*G22 -> 130000 | N22: =M22/H22/12 -> 3611.111111 | O22: =IF(L22>0,0,IF(OR(Z22>AA22,AB22<AC22),0,IF(AND(AB22>=AC22,AB22<=AA22),N22*((AB22-AC22)*12),IF(AND(AC22<=Z22,AA22>=Z22),((AA22-Z22)*12)*N22,IF(AB22>AA22,12*N22,0))))) -> 0 | P22: =IF(Z22>AA22,0,IF(AB22<AC22,M22,IF(AND(AB22>=AC22,AB22<=AA22),(M22-T22),IF(AND(AC22<=Z22,AA22>=Z22),0,IF(AB22>AA22,((AC22-Z22)*12)*N22,0))))) -> 130000 | Q22: =IF(L22>0,0,Y22+V22*W22)*W22 -> 3496.48 | R22: =IF(L22>0,(F22-Y22)/2,IF(Z22>=AC22,(((F22*U22)*W22)-Q22)/2,((((F22*U22)*W22)-Y22)+(((F22*U22)*W22)-Q22))/2)) -> 8911.76 | S22: =IF(L22=0,0,IF(AND(AD22>=AC22,AD22<=AB22),((AD22-AC22)*12)*N22,0)) -> 0 | T22: =IF(S22>0,S22,O22) -> 0 | U22: 1 | V22: =U22*(O22+S22)*W22 -> 0 | W22: 0.164 | X22: =P22*U22 -> 130000 | Y22: =X22*W22 -> 21320 | Z22: =$E22+(($D22-1)/12) -> 2008.833333 | AA22: =($H$7+1)-($E$7/12) -> 2015 | AB22: =$I22+(($D22-1)/12) -> 2011.833333 | AC22: =$F$7+($G$7/12) -> 2014 | AD22: =$K22+(($J22-1)/12) -> -0.08333333333
B23: 315202 | C23: Lot Paving | D23: 12 | E23: 2010 | F23: 339909.3 | G23: 0 | H23: 12 | I23: =E23+H23 -> 2022 | L23: 0 | M23: =F23-F23*G23 -> 339909.3 | N23: =M23/H23/12 -> 2360.48125 | O23: =IF(L23>0,0,IF(OR(Z23>AA23,AB23<AC23),0,IF(AND(AB23>=AC23,AB23<=AA23),N23*((AB23-AC23)*12),IF(AND(AC23<=Z23,AA23>=Z23),((AA23-Z23)*12)*N23,IF(AB23>AA23,12*N23,0))))) -> 28325.775 | P23: =IF(Z23>AA23,0,IF(AB23<AC23,M23,IF(AND(AB23>=AC23,AB23<=AA23),(M23-T23),IF(AND(AC23<=Z23,AA23>=Z23),0,IF(AB23>AA23,((AC23-Z23)*12)*N23,0))))) -> 87337.80625 | Q23: =IF(L23>0,0,Y23+V23*W23)*W23 -> 2473.981044 | R23: =IF(L23>0,(F23-Y23)/2,IF(Z23>=AC23,(((F23*U23)*W23)-Q23)/2,((((F23*U23)*W23)-Y23)+(((F23*U23)*W23)-Q23))/2)) -> 47346.43457 | S23: =IF(L23=0,0,IF(AND(AD23>=AC23,AD23<=AB23),((AD23-AC23)*12)*N23,0)) -> 0 | T23: =IF(S23>0,S23,O23) -> 28325.775 | U23: 1 | V23: =U23*(O23+S23)*W23 -> 4645.4271 | W23: 0.164 | X23: =P23*U23 -> 87337.80625 | Y23: =X23*W23 -> 14323.40022 | Z23: =$E23+(($D23-1)/12) -> 2010.916667 | AA23: =($H$7+1)-($E$7/12) -> 2015 | AB23: =$I23+(($D23-1)/12) -> 2022.916667 | AC23: =$F$7+($G$7/12) -> 2014 | AD23: =$K23+(($J23-1)/12) -> -0.08333333333
B24: 375934 | C24: Facility Stormwater Structure | D24: 1 | E24: 2015 | F24: 32815.5 | G24: 0 | H24: 15 | I24: =E24+H24 -> 2030 | L24: 0 | M24: =F24-F24*G24 -> 32815.5 | N24: =M24/H24/12 -> 182.3083333 | O24: =IF(L24>0,0,IF(OR(Z24>AA24,AB24<AC24),0,IF(AND(AB24>=AC24,AB24<=AA24),N24*((AB24-AC24)*12),IF(AND(AC24<=Z24,AA24>=Z24),((AA24-Z24)*12)*N24,IF(AB24>AA24,12*N24,0))))) -> 0 | P24: =IF(Z24>AA24,0,IF(AB24<AC24,M24,IF(AND(AB24>=AC24,AB24<=AA24),(M24-T24),IF(AND(AC24<=Z24,AA24>=Z24),0,IF(AB24>AA24,((AC24-Z24)*12)*N24,0))))) -> 0 | Q24: =IF(L24>0,0,Y24+V24*W24)*W24 -> 0 | R24: =IF(L24>0,(F24-Y24)/2,IF(Z24>=AC24,(((F24*U24)*W24)-Q24)/2,((((F24*U24)*W24)-Y24)+(((F24*U24)*W24)-Q24))/2)) -> 2690.871 | S24: =IF(L24=0,0,IF(AND(AD24>=AC24,AD24<=AB24),((AD24-AC24)*12)*N24,0)) -> 0 | T24: =IF(S24>0,S24,O24) -> 0 | U24: 1 | V24: =U24*(O24+S24)*W24 -> 0 | W24: 0.164 | X24: =P24*U24 -> 0 | Y24: =X24*W24 -> 0 | Z24: =$E24+(($D24-1)/12) -> 2015 | AA24: =($H$7+1)-($E$7/12) -> 2015 | AB24: =$I24+(($D24-1)/12) -> 2030 | AC24: =$F$7+($G$7/12) -> 2014 | AD24: =$K24+(($J24-1)/12) -> -0.08333333333
C27: Leasehold Improvements-Land | F27: =SUM(F20:F26) -> 667607.39 | L27: =SUM(L20:L26) -> 0 | M27: 667607.39 | N27: 7323.918681 | O27: 41965.99083 | P27: 260595.1384 | Q27: 7194.076478 | R27: 81830.90137 | S27: 0 | T27: 41965.99083 | V27: =SUM(V20:V26) -> 6882.422497 | X27: =SUM(X20:X26) -> 260595.1384 | Y27: =SUM(Y20:Y26) -> 42737.6027
C30: Buildings
B31: 144759 | C31: 19?? OFFICE TRAILER (10X24) | D31: 11 | E31: 2008 | F31: 520 | G31: 0 | H31: 5 | I31: =E31+H31 -> 2013 | L31: 0 | M31: =F31-F31*G31 -> 520 | N31: =M31/H31/12 -> 8.666666667 | O31: =IF(L31>0,0,IF(OR(Z31>AA31,AB31<AC31),0,IF(AND(AB31>=AC31,AB31<=AA31),N31*((AB31-AC31)*12),IF(AND(AC31<=Z31,AA31>=Z31),((AA31-Z31)*12)*N31,IF(AB31>AA31,12*N31,0))))) -> 0 | P31: =IF(Z31>AA31,0,IF(AB31<AC31,M31,IF(AND(AB31>=AC31,AB31<=AA31),(M31-T31),IF(AND(AC31<=Z31,AA31>=Z31),0,IF(AB31>AA31,((AC31-Z31)*12)*N31,0))))) -> 520 | Q31: =IF(L31>0,0,Y31+V31*W31)*W31 -> 13.98592 | R31: =IF(L31>0,(F31-Y31)/2,IF(Z31>=AC31,(((F31*U31)*W31)-Q31)/2,((((F31*U31)*W31)-Y31)+(((F31*U31)*W31)-Q31))/2)) -> 35.64704 | S31: =IF(L31=0,0,IF(AND(AD31>=AC31,AD31<=AB31),((AD31-AC31)*12)*N31,0)) -> 0 | T31: =IF(S31>0,S31,O31) -> 0 | U31: 1 | V31: =U31*(O31+S31)*W31 -> 0 | W31: 0.164 | X31: =P31*U31 -> 520 | Y31: =X31*W31 -> 85.28 | Z31: =$E31+(($D31-1)/12) -> 2008.833333 | AA31: =($H$7+1)-($E$7/12) -> 2015 | AB31: =$I31+(($D31-1)/12) -> 2013.833333 | AC31: =$F$7+($G$7/12) -> 2014 | AD31: =$K31+(($J31-1)/12) -> -0.08333333333
B32: 144913 | C32: KENT FACILITY CUSTOMER SERVICE | D32: 11 | E32: 2008 | F32: 0 | G32: 0 | H32: 1 | I32: =E32+H32 -> 2009 | L32: 0 | M32: =F32-F32*G32 -> 0 | N32: =M32/H32/12 -> 0 | O32: =IF(L32>0,0,IF(OR(Z32>AA32,AB32<AC32),0,IF(AND(AB32>=AC32,AB32<=AA32),N32*((AB32-AC32)*12),IF(AND(AC32<=Z32,AA32>=Z32),((AA32-Z32)*12)*N32,IF(AB32>AA32,12*N32,0))))) -> 0 | P32: =IF(Z32>AA32,0,IF(AB32<AC32,M32,IF(AND(AB32>=AC32,AB32<=AA32),(M32-T32),IF(AND(AC32<=Z32,AA32>=Z32),0,IF(AB32>AA32,((AC32-Z32)*12)*N32,0))))) -> 0 | Q32: =IF(L32>0,0,Y32+V32*W32)*W32 -> 0 | R32: =IF(L32>0,(F32-Y32)/2,IF(Z32>=AC32,(((F32*U32)*W32)-Q32)/2,((((F32*U32)*W32)-Y32)+(((F32*U32)*W32)-Q32))/2)) -> 0 | S32: =IF(L32=0,0,IF(AND(AD32>=AC32,AD32<=AB32),((AD32-AC32)*12)*N32,0)) -> 0 | T32: =IF(S32>0,S32,O32) -> 0 | U32: 1 | V32: =U32*(O32+S32)*W32 -> 0 | W32: 0.164 | X32: =P32*U32 -> 0 | Y32: =X32*W32 -> 0 | Z32: =$E32+(($D32-1)/12) -> 2008.833333 | AA32: =($H$7+1)-($E$7/12) -> 2015 | AB32: =$I32+(($D32-1)/12) -> 2009.833333 | AC32: =$F$7+($G$7/12) -> 2014 | AD32: =$K32+(($J32-1)/12) -> -0.08333333333
B33: 315792 | C33: CIP Building Improvements | D33: 1 | E33: 2011 | F33: 32850 | G33: 0 | H33: 30 | I33: =E33+H33 -> 2041 | L33: 0 | M33: =F33-F33*G33 -> 32850 | N33: =M33/H33/12 -> 91.25 | O33: =IF(L33>0,0,IF(OR(Z33>AA33,AB33<AC33),0,IF(AND(AB33>=AC33,AB33<=AA33),N33*((AB33-AC33)*12),IF(AND(AC33<=Z33,AA33>=Z33),((AA33-Z33)*12)*N33,IF(AB33>AA33,12*N33,0))))) -> 1095 | P33: =IF(Z33>AA33,0,IF(AB33<AC33,M33,IF(AND(AB33>=AC33,AB33<=AA33),(M33-T33),IF(AND(AC33<=Z33,AA33>=Z33),0,IF(AB33>AA33,((AC33-Z33)*12)*N33,0))))) -> 3285 | Q33: =IF(L33>0,0,Y33+V33*W33)*W33 -> 93.18334368 | R33: =IF(L33>0,(F33-Y33)/2,IF(Z33>=AC33,(((F33*U33)*W33)-Q33)/2,((((F33*U33)*W33)-Y33)+(((F33*U33)*W33)-Q33))/2)) -> 5071.438328 | S33: =IF(L33=0,0,IF(AND(AD33>=AC33,AD33<=AB33),((AD33-AC33)*12)*N33,0)) -> 0 | T33: =IF(S33>0,S33,O33) -> 1095 | U33: 1 | V33: =U33*(O33+S33)*W33 -> 179.58 | W33: 0.164 | X33: =P33*U33 -> 3285 | Y33: =X33*W33 -> 538.74 | Z33: =$E33+(($D33-1)/12) -> 2011 | AA33: =($H$7+1)-($E$7/12) -> 2015 | AB33: =$I33+(($D33-1)/12) -> 2041 | AC33: =$F$7+($G$7/12) -> 2014 | AD33: =$K33+(($J33-1)/12) -> -0.08333333333
C37: Total Buildings | F37: =SUM(F31:F35) -> 33370 | L37: =SUM(L31:L36) -> 0 | M37: =SUM(M31:M35) -> 33370 | N37: 99.91666667 | O37: 1095 | P37: 3805 | Q37: 107.1692637 | R37: 5107.085368 | S37: 0 | T37: 1095 | V37: =SUM(V31:V35) -> 179.58 | X37: =SUM(X31:X35) -> 3805 | Y37: =SUM(Y31:Y35) -> 624.02
C39: Machinery & Equipment
B40: 299411 | C40: HYSTER H90FT Diesel Forklift | D40: 12 | E40: 2009 | F40: 45880.5 | G40: 0 | H40: 7 | I40: =E40+H40 -> 2016 | L40: 0 | M40: =F40-F40*G40 -> 45880.5 | N40: =M40/H40/12 -> 546.1964286 | O40: =IF(L40>0,0,IF(OR(Z40>AA40,AB40<AC40),0,IF(AND(AB40>=AC40,AB40<=AA40),N40*((AB40-AC40)*12),IF(AND(AC40<=Z40,AA40>=Z40),((AA40-Z40)*12)*N40,IF(AB40>AA40,12*N40,0))))) -> 6554.357143 | P40: =IF(Z40>AA40,0,IF(AB40<AC40,M40,IF(AND(AB40>=AC40,AB40<=AA40),(M40-T40),IF(AND(AC40<=Z40,AA40>=Z40),0,IF(AB40>AA40,((AC40-Z40)*12)*N40,0))))) -> 26763.625 | Q40: =IF(L40>0,0,Y40+V40*W40)*W40 -> 748.7453603 | R40: =IF(L40>0,(F40-Y40)/2,IF(Z40>=AC40,(((F40*U40)*W40)-Q40)/2,((((F40*U40)*W40)-Y40)+(((F40*U40)*W40)-Q40))/2)) -> 4955.41207 | S40: =IF(L40=0,0,IF(AND(AD40>=AC40,AD40<=AB40),((AD40-AC40)*12)*N40,0)) -> 0 | T40: =IF(S40>0,S40,O40) -> 6554.357143 | U40: 1 | V40: =U40*(O40+S40)*W40 -> 1074.914571 | W40: 0.164 | X40: =P40*U40 -> 26763.625 | Y40: =X40*W40 -> 4389.2345 | Z40: =$E40+(($D40-1)/12) -> 2009.916667 | AA40: =($H$7+1)-($E$7/12) -> 2015 | AB40: =$I40+(($D40-1)/12) -> 2016.916667 | AC40: =$F$7+($G$7/12) -> 2014 | AD40: =$K40+(($J40-1)/12) -> -0.08333333333
B41: 144918 | C41: BELL AIR 30 GAL AIR COMPRESSOR | D41: 11 | E41: 2008 | F41: 1700 | G41: 0 | H41: 1.166666667 | I41: =E41+H41 -> 2009.166667 | L41: 0 | M41: =F41-F41*G41 -> 1700 | N41: =M41/H41/12 -> 121.4285714 | O41: =IF(L41>0,0,IF(OR(Z41>AA41,AB41<AC41),0,IF(AND(AB41>=AC41,AB41<=AA41),N41*((AB41-AC41)*12),IF(AND(AC41<=Z41,AA41>=Z41),((AA41-Z41)*12)*N41,IF(AB41>AA41,12*N41,0))))) -> 0 | P41: =IF(Z41>AA41,0,IF(AB41<AC41,M41,IF(AND(AB41>=AC41,AB41<=AA41),(M41-T41),IF(AND(AC41<=Z41,AA41>=Z41),0,IF(AB41>AA41,((AC41-Z41)*12)*N41,0))))) -> 1700 | Q41: =IF(L41>0,0,Y41+V41*W41)*W41 -> 45.7232 | R41: =IF(L41>0,(F41-Y41)/2,IF(Z41>=AC41,(((F41*U41)*W41)-Q41)/2,((((F41*U41)*W41)-Y41)+(((F41*U41)*W41)-Q41))/2)) -> 116.5384 | S41: =IF(L41=0,0,IF(AND(AD41>=AC41,AD41<=AB41),((AD41-AC41)*12)*N41,0)) -> 0 | T41: =IF(S41>0,S41,O41) -> 0 | U41: 1 | V41: =U41*(O41+S41)*W41 -> 0 | W41: 0.164 | X41: =P41*U41 -> 1700 | Y41: =X41*W41 -> 278.8 | Z41: =$E41+(($D41-1)/12) -> 2008.833333 | AA41: =($H$7+1)-($E$7/12) -> 2015 | AB41: =$I41+(($D41-1)/12) -> 2010 | AC41: =$F$7+($G$7/12) -> 2014 | AD41: =$K41+(($J41-1)/12) -> -0.08333333333
B42: 144938 | C42: CI 11/05 (ENGINE) | D42: 11 | E42: 2008 | F42: 0 | G42: 0 | H42: 1.083333333 | I42: =E42+H42 -> 2009.083333 | L42: 0 | M42: =F42-F42*G42 -> 0 | N42: =M42/H42/12 -> 0 | O42: =IF(L42>0,0,IF(OR(Z42>AA42,AB42<AC42),0,IF(AND(AB42>=AC42,AB42<=AA42),N42*((AB42-AC42)*12),IF(AND(AC42<=Z42,AA42>=Z42),((AA42-Z42)*12)*N42,IF(AB42>AA42,12*N42,0))))) -> 0 | P42: =IF(Z42>AA42,0,IF(AB42<AC42,M42,IF(AND(AB42>=AC42,AB42<=AA42),(M42-T42),IF(AND(AC42<=Z42,AA42>=Z42),0,IF(AB42>AA42,((AC42-Z42)*12)*N42,0))))) -> 0 | Q42: =IF(L42>0,0,Y42+V42*W42)*W42 -> 0 | R42: =IF(L42>0,(F42-Y42)/2,IF(Z42>=AC42,(((F42*U42)*W42)-Q42)/2,((((F42*U42)*W42)-Y42)+(((F42*U42)*W42)-Q42))/2)) -> 0 | S42: =IF(L42=0,0,IF(AND(AD42>=AC42,AD42<=AB42),((AD42-AC42)*12)*N42,0)) -> 0 | T42: =IF(S42>0,S42,O42) -> 0 | U42: 1 | V42: =U42*(O42+S42)*W42 -> 0 | W42: 0.164 | X42: =P42*U42 -> 0 | Y42: =X42*W42 -> 0 | Z42: =$E42+(($D42-1)/12) -> 2008.833333 | AA42: =($H$7+1)-($E$7/12) -> 2015 | AB42: =$I42+(($D42-1)/12) -> 2009.916667 | AC42: =$F$7+($G$7/12) -> 2014 | AD42: =$K42+(($J42-1)/12) -> -0.08333333333
C46: Total Machinery & Equipment | F46: =SUM(F40:F45) -> 47580.5 | L46: =SUM(L40:L45) -> 0 | M46: 47580.5 | N46: 667.625 | O46: 6554.357143 | P46: 28463.625 | Q46: 794.4685603 | R46: 5071.95047 | S46: 0 | T46: 6554.357143 | V46: =SUM(V40:V45) -> 1074.914571 | X46: =SUM(X40:X45) -> 28463.625 | Y46: =SUM(Y40:Y45) -> 4668.0345
C48: Shop Equipment
B49: 364267 | C49: Mi-T-M H-Water Pressure Washer | D49: 5 | E49: 2014 | F49: 5801 | G49: 0 | H49: 7 | I49: =E49+H49 -> 2021 | L49: 0 | M49: =F49-F49*G49 -> 5801 | N49: =M49/H49/12 -> 69.05952381 | O49: =IF(L49>0,0,IF(OR(Z49>AA49,AB49<AC49),0,IF(AND(AB49>=AC49,AB49<=AA49),N49*((AB49-AC49)*12),IF(AND(AC49<=Z49,AA49>=Z49),((AA49-Z49)*12)*N49,IF(AB49>AA49,12*N49,0))))) -> 552.4761905 | P49: =IF(Z49>AA49,0,IF(AB49<AC49,M49,IF(AND(AB49>=AC49,AB49<=AA49),(M49-T49),IF(AND(AC49<=Z49,AA49>=Z49),0,IF(AB49>AA49,((AC49-Z49)*12)*N49,0))))) -> 0 | Q49: =IF(L49>0,0,Y49+V49*W49)*W49 -> 2.436941538 | R49: =IF(L49>0,(F49-Y49)/2,IF(Z49>=AC49,(((F49*U49)*W49)-Q49)/2,((((F49*U49)*W49)-Y49)+(((F49*U49)*W49)-Q49))/2)) -> 474.4635292 | S49: =IF(L49=0,0,IF(AND(AD49>=AC49,AD49<=AB49),((AD49-AC49)*12)*N49,0)) -> 0 | T49: =IF(S49>0,S49,O49) -> 552.4761905 | U49: 1 | V49: =U49*(O49+S49)*W49 -> 90.60609524 | W49: 0.164 | X49: =P49*U49 -> 0 | Y49: =X49*W49 -> 0 | Z49: =$E49+(($D49-1)/12) -> 2014.333333 | AA49: =($H$7+1)-($E$7/12) -> 2015 | AB49: =$I49+(($D49-1)/12) -> 2021.333333 | AC49: =$F$7+($G$7/12) -> 2014 | AD49: =$K49+(($J49-1)/12) -> -0.08333333333
C53: Total Shop Equipment | F53: =SUM(F49:F52) -> 5801 | L53: =SUM(L49:L52) -> 0 | M53: 5801 | N53: 69.05952381 | O53: 552.4761905 | P53: 0 | Q53: 2.436941538 | R53: 474.4635292 | S53: 0 | T53: 552.4761905 | V53: =SUM(V49:V52) -> 90.60609524 | X53: =SUM(X49:X52) -> 0 | Y53: =SUM(Y49:Y52) -> 0
C55: Computer Equipment
